Workbook

Sheet Introduction
M11: MAINtenance, renewal and Improvement
M12: of rail transport iNfrastructure
M13: to reduce Economic and environmental impacts
H15: Abstract of the MAINLINE Project: Growth in demand for rail transportation across Europe is predicted to continue. Much of this growth will have to be accommodated on existing lines that contain old infrastructure. This demand will increase both the rate of deterioration of these elderly assets and the need for shorter line closures for maintenance or renewal interventions. The impact of these interventions must be minimized and will also need to take into account the need for lower economic and environmental impacts. New interventions will need to be developed along with additional tools to inform decision makers about the economic and environmental consequences of different intervention options being considered. MAINLINE proposes to address all these issues through a series of linked work packages that will target at least € 300m per year savings across Europe with a reduced environmental footprint in terms of embodied carbon and other environmental benefits. It will: - Apply new technologies to extend the life of elderly infrastructure - Improve degradation and structural models to develop more realistic life cycle cost and safety models - Investigate new construction methods for the replacement of obsolete infrastructure - Investigate monitoring techniques to complement or replace existing examination techniques - Develop management tools to assess whole life environmental and economic impact.
H36: Project funded by the EU 7th Framework Programme under call SST.2011.5.2-6 Cost-effective improvement of rail transport, infrastructure. Grant agreement no: 285121

Sheet CuttingsLCAT
B5: Soil Cuttings Life Cycle Assessment Tool (LCAT)
B7: 1 | C7: LCAT Definition
B8: A | C8: Each LCAT is a forecasting tool that compares different maintenance and intervention strategies for the selected asset based on a life cycle evaluation. A Life-Cycle Assessment is ‘the comparison and
C9: and evaluation of the inputs/outputs and the potential environmental impacts of a system during its lifetime. Such a lifecycle evaluation attempts to quantify and model:
C10: - Direct economic costs
C11: - Availability (delay costs / user cost)
C12: - Environmental impact costs
B13: B | C13: For a more detailed explanation of the mode, the User is encouraged to reference the LCAT User Manual written under the ML D5.7 deliverable.
B15: 2 | C15: LCAT function
B30: 3 | C30: LCAT application
B31: A | C31: The Soil Cuttings LCAT does not have a length dimension; it can accommodate any length. The User may specify the appropriate length based on relevant cost information in the 'IntCost() sheets.
B33: 4 | C33: Deterioration modelling: The MAINLINE Cuttings Alorithm
B34: A | C34: A risk based approach that takes into account multiple possible deterioration mechanisms needs to be adopted in order to assess a cutting’s condition
B35: B | C35: This is known as the 'MAINLINE Cuttings Algorithm'; It processes some variables to give an overall Slope Risk Value (SRV) which typically varied between 0 and 20, the higher values indicating more risk.
B36: C | C36: These variables can be seen below:
B49: 5 | C49: Summary

Sheet Flowchart
A1: MAINLINE | C1: Soil Cutting Model
B3: Model Flow Chart
C4: This shows the relationship between the sheets in this model.
C5: Click on a heading to go to that sheet.

Sheet Instructions
A1: MAINLINE | C1: =Flowchart!C1 -> Soil Cutting Model
B4: Background: | C4: MAINLINE: | D4: Work Package 5; Deliverable 5.5 - Life-cycle Assessment Tool
C5: File Name: | D5: ML_D5.5_CuttingsModel_v06.00.xlsm
C6: Model ref: | D6: ML-D5.5 Soil Cutting Model
C7: Model version: | D7: =MID(CELL("Filename",$A$1),FIND("_v",CELL("Filename",$A$1),1)+2,5) -> 06 00
C8: Version date: | D8: 2014-09-01
C9: Function: | D9: This model was developed by the MAINLINE project to demonstrate the deteroration and intervention algorithms discovered in the MAINLINE work packages.
B12: INSTRUCTIONS: | D12: Instructions are given below for each sheet which requires some user input
B13: Sheet colours: | C13: NOTES | D13: Black tab sheets are general instructions and information about the model
C14: INPUT | D14: Blue tab are sheets for data input
C15: OUTPUT | D15: Purple tabs are output sheets
C16: INTV COST | D16: Green tabs are sheets for the user to calculate costs and environmental impacts of interventions
C17: ENV REFS | D17: Yellow tab is a sheet of environmantal reference data
C18: CALCULATION | D18: Red tabs are calculation sheets, which the user can see but does not need to change
B20: Cell colours: | C20: Data Input Cells | D20: All input cells are coloured light blue. Other cells cannot be changed.
D21: Click on any blue cell to see input instructions
D22: Detailed instructions are given on each sheet
B25: USER SHEETS:
C26: Introduction | D26: Introduction to MAINLINE
C27: BridgesLCAT | D27: Introduction to the Soil Cuttings LCAT
B28: Information: | C28: Flowchart | D28: Outline of data flow in the model, with dynamic links to sheets
C29: Instructions | D29: This sheet of instructions
C30: TechNotes | D30: Some technical details about the model
B31: User inputs: | C31: InputCondition | D31: Select the conditions which best describe the cutting and its initial condition
C32: IntvTriggers | D32: This lists the interventions which may be used and their triggering mechanisms; additional interventions may be added.
C33: IntvChanges | D33: This sheet shows the ways in which the scores change after the interventions
C34: IntvCosts | D34: Enter the costs and environmental impacts of each intervention
C35: IntvCost (1)-(15) | D35: Build-up of costs and impacts for each intervention; there are 15 sheets, one for each intervention
C36: EnvImpacts | D36: Reference list of impacts of construction material and operations
B38: User outputs: | C38: Summary | D38: This shows a summary of the modelling results.
C39: OutputFinancial | D39: This shows a summary of the projected financial costs
C40: OutputEnv | D40: This shows a summary of the projected environmental impacts
C41: OutputOps | D41: This shows a summary of the projected operational impacts
C42: OutputCondition | D42: This shows a summary of the projected condition scores

Sheet TechNotes
A1: MAINLINE | C1: =Flowchart!C1 -> Soil Cutting Model
B3: Amendments: | C3: Version
B4: 2013-11-05 | C4: V01.00 | D4: Discussed with COWI
C5: V01.10 | D5: Plot of Env. impact on 'OutputEnv': data range corrected
C6: V01.10 | D6: Intervention schedule added to 'OutputFinancial', 'OutputOps' & 'OutputCondition'
C7: V01.11 | D7: List of Environmental Impacts on 'EnvImpacts' extended to allow user to insert extra data
C8: V01.11 | D8: Discount rate allowed for Equivalent cost of environmental impacts
C9: V01.12 | D9: Intervention schedule added to 'Summary' sheet
B10: 2013-11-29 | C10: V02.00 | D10: Released for review
B11: 2013-12-20 | C11: V03.00 | D11: Final release (D5.5). See amendments in 'Checking'
B12: 2014-04-28 | C12: V04.00 | D12: Updated deterioration rates for MA and DA
D13: Updated InputCondition format and InitialScores calculation
D14: Removal of grey 'Data' tabs
B15: 2014-05-12 | C15: V05.00 | D15: Fixed hyperlink on worksheet "Flowchart"
B16: 2014-09-01 | C16: V06.00 | D16: Cosmetic changes such as the 'Introduction' sheet added
B18: Function of Sheets:
C19: FlowChart | D19: Overview of the workings of the model
C20: Instructions | D20: Model origin, version, and general notes on use of the model
C21: TechNotes | D21: Some technical notes on the model and its workings
C22: Review | D22: Details of review comments and subsequent amendments
C23: InputCondition | D23: Input of initial condition of asset
C24: IntvTriggers | D24: Interventions and how they are triggered
C25: IntvCosts | D25: Intervention costs and environmental impacts and operational impacts
C26: IntvChanges | D26: Changes to scores caused by interventions, and any limitation on their repetition
C27: Summary | D27: Summary of the model run with key inputs and outputs
C28: OutputFinancial | D28: Summary of projected costs
C29: OutputEnv | D29: Summary of projected environmental impacts
C30: OutputOps | D30: Summary of projected operational impacts
C31: OutputCondition | D31: Output of projected asset condition
C32: InitialScores | D32: Calculation of initial scores form initial condition
C33: DetRates | D33: Tables of deterioration data
C34: Projection | D34: Calculation of deterioration and interventions for 20 time periods of 5 years each
C35: Resullts | D35: Collation of results from Projection
C36: EnvImpacts | D36: Reference list of Impacts of typical constructuion and maintenance activities and materials
C37: IntvCost (1) | D37: Estimation of the costs and environmental impact of Intervention No 1
C38: - etc - | D38: … etc..
C39: IntvCost (15) | D39: Estimation of the costs and environmental impact of Intervention No 15
B41: Technical notes: | C41: MAINLINE | D41: This model does not use VBA code or Macros
D42: This model uses Excel 'Form Control' objects and not ActiveX controls.
D43: Because the model uses 'Form Control' objects it is best stored as a macro file (.xlsm)

Sheet InputCondition
A1: MAINLINE | C1: =Flowchart!C1 -> Soil Cutting Model
B2: User Input - Initial Condition
C3: Input of data which describes the status and condition of the cutting at the start of the assessment.
C5: Static Data
D15: Changeable data

Sheet IntvTriggers
A1: MAINLINE | C1: =Flowchart!C1 -> Soil Cutting Model
B2: Intervention Triggers
C5: Add any additonal Intervention names D21:D28
C6: Enter the intervention sequence in C14:C28
C7: Enter score triggers or timings of interventions
C8: Only blue color cells may require user input
F10: SRV | G10: MA | H10: VA | I10: SW | J10: DA | K10: BA | L10: CA
F11: Overall Slope Risk value | G11: Movement Assessment | H11: Vegetation Assessment | I11: Surface Water Assessment | J11: Drainage Assessment | K11: Burrowing Assessment | L11: Construction Activity Assessment
E12: Min | F12: =Projection!F8 -> 0 | G12: =Projection!G8 -> 0 | H12: =Projection!H8 -> 0 | I12: =Projection!I8 -> 0 | J12: =Projection!J8 -> -1 | K12: =Projection!K8 -> 0 | L12: =Projection!L8 -> 0
E13: User-defined key scores | F13: 10 | G13: 1 | H13: 1.2 | I13: 2.5 | J13: 1.2 | K13: 1.5 | L13: 1 | N13: Modelling periods of 5 years
E14: Max | F14: =Projection!F9 -> 18 | G14: =Projection!G9 -> 5 | H14: =Projection!H9 -> 1.5 | I14: =Projection!I9 -> 3 | J14: =Projection!J9 -> 1.5 | K14: =Projection!K9 -> 2 | L14: =Projection!L9 -> 2 | N14: 1 | O14: 2 | P14: 3 | Q14: 4 | R14: 5 | S14: 6 | T14: 7 | U14: 8 | V14: 9 | W14: 10 | X14: 11 | Y14: 12 | Z14: 13 | AA14: 14 | AB14: 15 | AC14: 16 | AD14: 17 | AE14: 18 | AF14: 19 | AG14: 20 | AH14: 21
B15: Ref | C15: Seq | D15: Intervention | F15: Intervention trigger scores | N15: Interventions triggered by timing (x)
B16: 1 | C16: 7 | D16: Vegetation clearance | W16: x | AG16: x
B17: 2 | C17: 6 | D17: Drainage clearance | R17: x | W17: x | AB17: x | AG17: x
B18: 3 | C18: 5 | D18: Drainage repair | I18: 1.5 | J18: 1.2
B19: 4 | C19: 4 | D19: Drainage replacement | I19: 2
B20: 5 | C20: 3 | D20: Burrow filling | K20: 1.7
B21: 6 | C21: 2 | D21: Minor earthworks | G21: 4
B22: 7 | C22: 1 | D22: Major earthworks | F22: 10
B23: 8 | D23: [unused]
B24: 9 | D24: [unused]
B25: 10 | D25: [unused]
B26: 11 | D26: [unused]
B27: 12 | D27: [unused]
B28: 13 | D28: [unused]
B29: 14 | D29: [unused]
B30: 15 | D30: [unused]
F31: Note: | O31: Note:
B32: Using | C32: =MAX(C16:C30) -> 7 | D32: interventions | F32: Scores increase as condition deteriorates | O32: Score triggers are ignored if any timed triggers are used
B34: Note:
B35: These trigger values should be used with reference to the Deterioration mechanisms described in ML D2.2 & D2.3 reports

Sheet IntvChanges
A1: MAINLINE | C1: =Flowchart!C1 -> Soil Cutting Model
B2: Intervention Changes
C5: Enter the changes in scores due to the interventions.
C6: These may be 'Relative' to the previous score or an 'Absolute' value.
C7: Only blue color cells may require user input
F10: MA | G10: VA | H10: SW | I10: DA | J10: BA | K10: CA | M10: MA | N10: VA | O10: SW | P10: DA | Q10: BA | R10: CA | T10: Limitation of Repetition
F11: Movement Assessment | G11: Vegetation Assessment | H11: Surface Water Assessment | I11: Drainage Assessment | J11: Burrowing Assessment | K11: Construction Activity Assessment | M11: Movement Assessment | N11: Vegetation Assessment | O11: Surface Water Assessment | P11: Drainage Assessment | Q11: Burrowing Assessment | R11: Construction Activity Assessment | T11: Maximum repeat interventions | V11: =INDEX($D$15:$D$29,V12,1) -> Vegetation clearance | W11: Drainage clearance | X11: Drainage repair | Y11: Drainage replacement | Z11: Burrow filling | AA11: Minor earthworks | AB11: Major earthworks | AC11: [unused] | AD11: [unused] | AE11: [unused] | AF11: [unused] | AG11: [unused] | AH11: [unused] | AI11: [unused] | AJ11: [unused]
D12: Min score | F12: =Projection!G8 -> 0 | G12: =Projection!H8 -> 0 | H12: =Projection!I8 -> 0 | I12: =Projection!J8 -> -1 | J12: =Projection!K8 -> 0 | K12: =Projection!L8 -> 0 | M12: =Projection!G8 -> 0 | N12: =Projection!H8 -> 0 | O12: =Projection!I8 -> 0 | P12: =Projection!J8 -> -1 | Q12: =Projection!K8 -> 0 | R12: =Projection!L8 -> 0 | V12: 1 | W12: 2 | X12: 3 | Y12: 4 | Z12: 5 | AA12: 6 | AB12: 7 | AC12: 8 | AD12: 9 | AE12: 10 | AF12: 11 | AG12: 12 | AH12: 13 | AI12: 14 | AJ12: 15
D13: Max score | F13: =Projection!G9 -> 5 | G13: =Projection!H9 -> 1.5 | H13: =Projection!I9 -> 3 | I13: =Projection!J9 -> 1.5 | J13: =Projection!K9 -> 2 | K13: =Projection!L9 -> 2 | M13: =Projection!G9 -> 5 | N13: =Projection!H9 -> 1.5 | O13: =Projection!I9 -> 3 | P13: =Projection!J9 -> 1.5 | Q13: =Projection!K9 -> 2 | R13: =Projection!L9 -> 2
B14: Ref | C14: Seq | D14: Intervention | F14: RELATIVE change of score | M14: ABSOLUTE revised score | V14: Reset repeat counter
B15: 1 | C15: =IntvTriggers!C16 -> 7 | D15: =IntvTriggers!D16 -> Vegetation clearance | I15: -0.3 | N15: 0
B16: 2 | C16: =IntvTriggers!C17 -> 6 | D16: =IntvTriggers!D17 -> Drainage clearance | H16: -0.5 | P16: 0.5
B17: 3 | C17: =IntvTriggers!C18 -> 5 | D17: =IntvTriggers!D18 -> Drainage repair | H17: -1 | P17: -0.5
B18: 4 | C18: =IntvTriggers!C19 -> 4 | D18: =IntvTriggers!D19 -> Drainage replacement | O18: 0 | P18: -1
B19: 5 | C19: =IntvTriggers!C20 -> 3 | D19: =IntvTriggers!D20 -> Burrow filling | Q19: 0
B20: 6 | C20: =IntvTriggers!C21 -> 2 | D20: =IntvTriggers!D21 -> Minor earthworks | H20: -0.5 | M20: 1.5 | N20: 0 | P20: 0.5 | Q20: 0 | R20: 0
B21: 7 | C21: =IntvTriggers!C22 -> 1 | D21: =IntvTriggers!D22 -> Major earthworks | M21: 0 | N21: 0 | O21: 0 | P21: 0 | Q21: 0 | R21: 0
B22: 8 | C22: =IntvTriggers!C23 -> 0 | D22: =IntvTriggers!D23 -> [unused]
B23: 9 | C23: =IntvTriggers!C24 -> 0 | D23: =IntvTriggers!D24 -> [unused]
B24: 10 | C24: =IntvTriggers!C25 -> 0 | D24: =IntvTriggers!D25 -> [unused]
B25: 11 | C25: =IntvTriggers!C26 -> 0 | D25: =IntvTriggers!D26 -> [unused]
B26: 12 | C26: =IntvTriggers!C27 -> 0 | D26: =IntvTriggers!D27 -> [unused]
B27: 13 | C27: =IntvTriggers!C28 -> 0 | D27: =IntvTriggers!D28 -> [unused]
B28: 14 | C28: =IntvTriggers!C29 -> 0 | D28: =IntvTriggers!D29 -> [unused]
B29: 15 | C29: =IntvTriggers!C30 -> 0 | D29: =IntvTriggers!D30 -> [unused]
C31: Notes:
B32: ● | C32: Relative changes mean that the score will be changed by the addition of the specified amount (uplift) to the pre-existing MAINLINE Algorithm score.
B33: ● | C33: Absolute changes set the score to the specified value irrespective of the pre-existing MAINLINE Algorithm score.

Sheet IntvCosts
A1: MAINLINE | C1: =Flowchart!C1 -> Soil Cutting Model
B2: Intervention Costs & Impacts
C5: Enter names of cost categories
C6: Enter any budget names and proportions
C7: Enter operational impacts of interventions
C8: Enter discount rate and cash equivalents of impacts
C9: Only blue color cells may require user input
D11: Costs by category [Euros] | J11: Costs by Budgets [%] | O11: Environ. Impacts | T11: Operational Impact
C12: Name: | D12: Labour | E12: Plant | F12: Materials | G12: Tax | H12: TOTAL | J12: Maintenance | K12: Capital | L12: Operational | M12: Central Government | O12: Carbon Dioxide equivalent | P12: User-defined impact (2) | Q12: User-defined impact (3) | R12: Cash Equivalent | T12: Over-night possession [Nr] | U12: Day possessions [Nr] | V12: Speed restriction [days] | W12: Total cash Equivalent
C13: Ref: | D13: Lab | E13: Plt | F13: Mnt | G13: Tax | J13: Mnt | K13: Cap | L13: Ops | M13: Gov | O13: CO2e | P13: EI-2 | Q13: EI-3 | R13: All | T13: Poss(N) | U13: Poss(D) | V13: TSR | W13: All
C14: Unit: | D14: € | E14: € | F14: € | G14: € | H14: € | J14: % | K14: % | L14: % | M14: % | O14: kg | P14: unit2 | Q14: unit3 | R14: € | T14: Nr | U14: Nr | V14: Days | W14: €
B15: Ref | C15: Intervention | D15: 0 | E15: 1 | F15: 2 | G15: 3 | O15: 0 | P15: 1 | Q15: 2
B16: 1 | C16: =IntvTriggers!D16 -> Vegetation clearance | D16: =OFFSET(INDIRECT("'IntvCost ("&$B16&")'!"&$D$31),0,D$15) -> 500 | E16: =OFFSET(INDIRECT("'IntvCost ("&$B16&")'!"&$D$31),0,E$15) -> 400 | F16: =OFFSET(INDIRECT("'IntvCost ("&$B16&")'!"&$D$31),0,F$15) -> 35 | G16: =OFFSET(INDIRECT("'IntvCost ("&$B16&")'!"&$D$31),0,G$15) -> 0 | H16: =SUM(D16:G16) -> 935 | J16: =1-SUM(K16:M16) -> 1 | O16: =OFFSET(INDIRECT("'IntvCost ("&$B16&")'!"&$O$31),0,O$15) -> 206.611963 | P16: =OFFSET(INDIRECT("'IntvCost ("&$B16&")'!"&$O$31),0,P$15) -> 0 | Q16: 0 | R16: =SUMPRODUCT(O$32:Q$32,O16:Q16) -> 227.2731593 | V16: 2 | W16: =SUMPRODUCT(T16:V16,T$32:V$32) -> 400
B17: 2 | C17: =IntvTriggers!D17 -> Drainage clearance | D17: =OFFSET(INDIRECT("'IntvCost ("&$B17&")'!"&$D$31),0,D$15) -> 1000 | E17: 1550 | F17: 105 | G17: 0 | H17: 2655 | J17: 1 | O17: 22.694 | P17: 0 | Q17: 0 | R17: =SUMPRODUCT(O$32:Q$32,O17:Q17) -> 24.9634 | T17: 1 | V17: 2 | W17: 1400
B18: 3 | C18: =IntvTriggers!D18 -> Drainage repair | D18: 2000 | E18: 3000 | F18: 200 | G18: 0 | H18: 5200 | J18: =1-SUM(K18:M18) -> 0.95 | K18: 0.05 | O18: 865.1946168 | P18: 0 | Q18: 0 | R18: =SUMPRODUCT(O$32:Q$32,O18:Q18) -> 951.7140785 | T18: 1 | V18: 2 | W18: 1400
B19: 4 | C19: =IntvTriggers!D19 -> Drainage replacement | D19: 2000 | E19: 3000 | F19: 2220 | G19: 0 | H19: 7220 | J19: 0.5 | K19: 0.5 | O19: 20078.19234 | P19: 0 | Q19: 0 | R19: 22086.01157 | T19: 2 | V19: 2 | W19: 2400
B20: 5 | C20: =IntvTriggers!D20 -> Burrow filling | D20: 2000 | E20: 1550 | F20: 45 | G20: 0 | H20: 3595 | J20: 1 | O20: 56.461 | P20: 0 | Q20: 0 | R20: 62.1071 | V20: 1 | W20: 200
B21: 6 | C21: =IntvTriggers!D21 -> Minor earthworks | D21: 5500 | E21: 9500 | F21: 6000 | G21: 0 | H21: 21000 | J21: 0.4 | K21: 0.5 | L21: 0.05 | M21: 0.05 | O21: 16199.84058 | P21: 0 | Q21: 0 | R21: 17819.82464 | T21: 2 | V21: 5 | W21: 3000
B22: 7 | C22: =IntvTriggers!D22 -> Major earthworks | D22: 11000 | E22: 19000 | F22: 12000 | G22: 0 | H22: 42000 | J22: 0.05 | K22: 0.8 | L22: 0.05 | M22: 0.1 | O22: 32399.68117 | P22: 0 | Q22: 0 | R22: 35639.64928 | T22: 3 | U22: 1 | V22: 10 | W22: 10000
B23: 8 | C23: =IntvTriggers!D23 -> [unused] | D23: 0 | E23: 0 | F23: 0 | G23: 0 | H23: =SUM(D23:G23) -> 0 | J23: =1-SUM(K23:M23) -> 1 | O23: 0 | P23: 0 | Q23: 0 | R23: 0 | W23: =SUMPRODUCT(T23:V23,T$32:V$32) -> 0
B24: 9 | C24: =IntvTriggers!D24 -> [unused] | D24: 0 | E24: 0 | F24: 0 | G24: 0 | H24: 0 | J24: 1 | O24: 0 | P24: 0 | Q24: 0 | R24: 0 | W24: 0
B25: 10 | C25: =IntvTriggers!D25 -> [unused] | D25: 0 | E25: 0 | F25: 0 | G25: 0 | H25: 0 | J25: 1 | O25: 0 | P25: 0 | Q25: 0 | R25: 0 | W25: 0
B26: 11 | C26: =IntvTriggers!D26 -> [unused] | D26: 0 | E26: 0 | F26: 0 | G26: 0 | H26: 0 | J26: 1 | O26: 0 | P26: 0 | Q26: 0 | R26: 0 | W26: 0
B27: 12 | C27: =IntvTriggers!D27 -> [unused] | D27: 0 | E27: 0 | F27: 0 | G27: 0 | H27: 0 | J27: 1 | O27: 0 | P27: 0 | Q27: 0 | R27: 0 | W27: 0
B28: 13 | C28: =IntvTriggers!D28 -> [unused] | D28: 0 | E28: 0 | F28: 0 | G28: 0 | H28: 0 | J28: 1 | O28: 0 | P28: 0 | Q28: 0 | R28: 0 | W28: 0
B29: 14 | C29: =IntvTriggers!D29 -> [unused] | D29: 0 | E29: 0 | F29: 0 | G29: 0 | H29: 0 | J29: 1 | O29: 0 | P29: 0 | Q29: 0 | R29: 0 | W29: 0
B30: 15 | C30: =IntvTriggers!D30 -> [unused] | D30: 0 | E30: 0 | F30: 0 | G30: 0 | H30: 0 | J30: 1 | O30: 0 | P30: 0 | Q30: 0 | R30: 0 | W30: 0
D31: IntvCost1 | O31: IntvEnvr1
M32: Cash equivalents of impacts | O32: 1.1 | P32: 2 | Q32: 3 | T32: 1000 | U32: 5000 | V32: 200
G34: Discount rate for Financial costs (pa) | H34: 0.023 | Q34: Discount rate for Env. Equiv. costs (pa) | R34: 0.02

Sheet IntvCost (1)
A1: MAINLINE | C1: =Flowchart!C1 -> Soil Cutting Model
B2: Costs & Environment Impact of Intervention
C3: Enter costs and environmental impacts for this intervention
B4: Interv. No: | C4: =-VALUE(RIGHT(CELL("filename",A1),4)) -> 1
B5: Intervention: | C5: =INDEX(IntvTriggers!D16:D30,C4,1) -> Vegetation clearance
B6: Scale: | C6: ONE intervention treats: | D6: =100*20 -> 2000 | E6: m2
D8: Financial Costs Estimate [Euros] | I8: Environamental Impact Assessment
C9: Item | D9: =IntvCosts!D12 -> Labour | E9: =IntvCosts!E12 -> Plant | F9: =IntvCosts!F12 -> Materials | G9: =IntvCosts!G12 -> Tax | H9: TOTAL | I9: Environmental Impact | J9: Usage | K9: Unit of usage | L9: =IntvCosts!O12 -> Carbon Dioxide equivalent | M9: =IntvCosts!P12 -> User-defined impact (2) | N9: =IntvCosts!Q12 -> User-defined impact (3) | O9: Notes on estimation
D10: € | E10: € | F10: € | G10: € | H10: € | L10: kg (CO2e) | M10: =IntvCosts!P14& " (" &IntvCosts!P13&")" -> unit2 (EI-2) | N10: =IntvCosts!Q14& " (" &IntvCosts!Q13&")" -> unit3 (EI-3)
C11: Chainsaw (diesel) | E11: 50 | F11: 5 | H11: =SUM(D11:G11) -> 55 | I11: Chainsaw (5) | J11: 5 | K11: =IF($I11<>"",VLOOKUP($I11,EnvImpacts!$G$14:$I$73,EnvImpacts!H$13,0),"-") -> hr | L11: =IF($I11<>"",VLOOKUP($I11,EnvImpacts!$G$14:$I$73,EnvImpacts!I$13,0),"-") -> 3.35 | O11: Diesel fuel consumption only
C12: Shedder (diesel) | E12: 100 | F12: 5 | H12: =SUM(D12:G12) -> 105 | I12: Diesel fuel | J12: 5 | K12: =IF($I12<>"",VLOOKUP($I12,EnvImpacts!$G$14:$I$73,EnvImpacts!H$13,0),"-") -> l | L12: =IF($I12<>"",VLOOKUP($I12,EnvImpacts!$G$14:$I$73,EnvImpacts!I$13,0),"-") -> 2.68 | O12: Diesel fuel consumption only
C13: Winch (diesel) | E13: 50 | F13: 5 | H13: 55 | I13: Diesel fuel | J13: 5 | K13: =IF($I13<>"",VLOOKUP($I13,EnvImpacts!$G$14:$I$73,EnvImpacts!H$13,0),"-") -> l | L13: =IF($I13<>"",VLOOKUP($I13,EnvImpacts!$G$14:$I$73,EnvImpacts!I$13,0),"-") -> 2.68 | O13: Diesel fuel consumption only
C14: Truck (transport to & from site) | E14: 200 | F14: 20 | H14: 220 | I14: Road transport EURO4 (5) | J14: 5 | K14: =IF($I14<>"",VLOOKUP($I14,EnvImpacts!$G$14:$I$73,EnvImpacts!H$13,0),"-") -> t-km | L14: =IF($I14<>"",VLOOKUP($I14,EnvImpacts!$G$14:$I$73,EnvImpacts!I$13,0),"-") -> 0.0198 | O14: Diesel fuel consumption only
C15: Manpower | D15: 500 | H15: 500 | K15: =IF($I15<>"",VLOOKUP($I15,EnvImpacts!$G$14:$I$73,EnvImpacts!H$13,0),"-") -> - | L15: =IF($I15<>"",VLOOKUP($I15,EnvImpacts!$G$14:$I$73,EnvImpacts!I$13,0),"-") -> -
H16: 0 | K16: =IF($I16<>"",VLOOKUP($I16,EnvImpacts!$G$14:$I$73,EnvImpacts!H$13,0),"-") -> - | L16: =IF($I16<>"",VLOOKUP($I16,EnvImpacts!$G$14:$I$73,EnvImpacts!I$13,0),"-") -> -
H17: 0 | K17: =IF($I17<>"",VLOOKUP($I17,EnvImpacts!$G$14:$I$73,EnvImpacts!H$13,0),"-") -> - | L17: =IF($I17<>"",VLOOKUP($I17,EnvImpacts!$G$14:$I$73,EnvImpacts!I$13,0),"-") -> -
H18: 0 | K18: =IF($I18<>"",VLOOKUP($I18,EnvImpacts!$G$14:$I$73,EnvImpacts!H$13,0),"-") -> - | L18: =IF($I18<>"",VLOOKUP($I18,EnvImpacts!$G$14:$I$73,EnvImpacts!I$13,0),"-") -> -
H19: 0 | K19: =IF($I19<>"",VLOOKUP($I19,EnvImpacts!$G$14:$I$73,EnvImpacts!H$13,0),"-") -> - | L19: =IF($I19<>"",VLOOKUP($I19,EnvImpacts!$G$14:$I$73,EnvImpacts!I$13,0),"-") -> -
H20: 0 | K20: =IF($I20<>"",VLOOKUP($I20,EnvImpacts!$G$14:$I$73,EnvImpacts!H$13,0),"-") -> - | L20: =IF($I20<>"",VLOOKUP($I20,EnvImpacts!$G$14:$I$73,EnvImpacts!I$13,0),"-") -> -
H21: 0 | K21: =IF($I21<>"",VLOOKUP($I21,EnvImpacts!$G$14:$I$73,EnvImpacts!H$13,0),"-") -> - | L21: =IF($I21<>"",VLOOKUP($I21,EnvImpacts!$G$14:$I$73,EnvImpacts!I$13,0),"-") -> -
H22: 0 | K22: =IF($I22<>"",VLOOKUP($I22,EnvImpacts!$G$14:$I$73,EnvImpacts!H$13,0),"-") -> - | L22: =IF($I22<>"",VLOOKUP($I22,EnvImpacts!$G$14:$I$73,EnvImpacts!I$13,0),"-") -> -
H23: 0 | K23: =IF($I23<>"",VLOOKUP($I23,EnvImpacts!$G$14:$I$73,EnvImpacts!H$13,0),"-") -> - | L23: =IF($I23<>"",VLOOKUP($I23,EnvImpacts!$G$14:$I$73,EnvImpacts!I$13,0),"-") -> -
H24: 0 | K24: =IF($I24<>"",VLOOKUP($I24,EnvImpacts!$G$14:$I$73,EnvImpacts!H$13,0),"-") -> - | L24: =IF($I24<>"",VLOOKUP($I24,EnvImpacts!$G$14:$I$73,EnvImpacts!I$13,0),"-") -> -
H25: 0 | K25: =IF($I25<>"",VLOOKUP($I25,EnvImpacts!$G$14:$I$73,EnvImpacts!H$13,0),"-") -> - | L25: =IF($I25<>"",VLOOKUP($I25,EnvImpacts!$G$14:$I$73,EnvImpacts!I$13,0),"-") -> -
H26: =SUM(D26:G26) -> 0 | K26: =IF($I26<>"",VLOOKUP($I26,EnvImpacts!$G$14:$I$73,EnvImpacts!H$13,0),"-") -> - | L26: =IF($I26<>"",VLOOKUP($I26,EnvImpacts!$G$14:$I$73,EnvImpacts!I$13,0),"-") -> -
I27: User defined impacts
C28: Bonfire of waste vegetation | H28: =SUM(D28:G28) -> 0 | I28: Burning wood | J28: 100 | K28: kg | L28: =(6*12+12*16)/(6*12+10*1+5*16) -> 1.62962963 | O28: 1.628 kg CO2e / kg of vegetation: 6.CO2/(C6H10O5)
H29: =SUM(D29:G29) -> 0
C31: Totals | D31: =SUM(D10:D30) -> 500 | E31: =SUM(E10:E30) -> 400 | F31: =SUM(F10:F30) -> 35 | G31: =SUM(G10:G30) -> 0 | H31: =SUM(H10:H30) -> 935 | I31: Carried to 'IntvCosts' | L31: =SUMPRODUCT($J10:$J29,L10:L29) -> 206.611963 | M31: =SUM(M10:M29) -> 0 | N31: =SUM(N10:N29) -> 0 | O31: Carried to 'IntvCosts'

Sheet IntvCost (2)
A1: MAINLINE | C1: =Flowchart!C1 -> Soil Cutting Model
B2: Costs & Environment Impact of Intervention
C3: Enter costs and environmental impacts for this intervention
B4: Interv. No: | C4: =-VALUE(RIGHT(CELL("filename",A1),4)) -> 2
B5: Intervention: | C5: =INDEX(IntvTriggers!D16:D30,C4,1) -> Drainage clearance
B6: Scale: | C6: ONE intervention treats: | D6: 200 | E6: m
D8: Financial Costs Estimate [Euros] | I8: Environamental Impact Assessment
C9: Item | D9: =IntvCosts!D12 -> Labour | E9: =IntvCosts!E12 -> Plant | F9: =IntvCosts!F12 -> Materials | G9: =IntvCosts!G12 -> Tax | H9: TOTAL | I9: Environmental Impact | J9: Usage | K9: Unit of usage | L9: =IntvCosts!O12 -> Carbon Dioxide equivalent | M9: =IntvCosts!P12 -> User-defined impact (2) | N9: =IntvCosts!Q12 -> User-defined impact (3) | O9: Notes on estimation
D10: € | E10: € | F10: € | G10: € | H10: € | L10: kg (CO2e) | M10: =IntvCosts!P14& " (" &IntvCosts!P13&")" -> unit2 (EI-2) | N10: =IntvCosts!Q14& " (" &IntvCosts!Q13&")" -> unit3 (EI-3)
C11: Excavation | E11: 1000 | F11: 50 | H11: =SUM(D11:G11) -> 1050 | I11: Excavator (5) | J11: 10 | K11: =IF($I11<>"",VLOOKUP($I11,EnvImpacts!$G$14:$I$73,EnvImpacts!H$13,0),"-") -> t | L11: =IF($I11<>"",VLOOKUP($I11,EnvImpacts!$G$14:$I$73,EnvImpacts!I$13,0),"-") -> 0.55
C12: Road transport | E12: 500 | F12: 50 | H12: =SUM(D12:G12) -> 550 | I12: Road transport EURO3 (5) | J12: 20 | K12: =IF($I12<>"",VLOOKUP($I12,EnvImpacts!$G$14:$I$73,EnvImpacts!H$13,0),"-") -> t-km | L12: =IF($I12<>"",VLOOKUP($I12,EnvImpacts!$G$14:$I$73,EnvImpacts!I$13,0),"-") -> 0.0222
C13: Manpower | D13: 1000 | H13: 1000 | K13: =IF($I13<>"",VLOOKUP($I13,EnvImpacts!$G$14:$I$73,EnvImpacts!H$13,0),"-") -> - | L13: =IF($I13<>"",VLOOKUP($I13,EnvImpacts!$G$14:$I$73,EnvImpacts!I$13,0),"-") -> -
C14: Chainsaw | E14: 50 | F14: 5 | H14: 55 | I14: Chainsaw (5) | J14: 5 | K14: =IF($I14<>"",VLOOKUP($I14,EnvImpacts!$G$14:$I$73,EnvImpacts!H$13,0),"-") -> hr | L14: =IF($I14<>"",VLOOKUP($I14,EnvImpacts!$G$14:$I$73,EnvImpacts!I$13,0),"-") -> 3.35
H15: 0 | K15: =IF($I15<>"",VLOOKUP($I15,EnvImpacts!$G$14:$I$73,EnvImpacts!H$13,0),"-") -> - | L15: =IF($I15<>"",VLOOKUP($I15,EnvImpacts!$G$14:$I$73,EnvImpacts!I$13,0),"-") -> -
H16: 0 | K16: =IF($I16<>"",VLOOKUP($I16,EnvImpacts!$G$14:$I$73,EnvImpacts!H$13,0),"-") -> - | L16: =IF($I16<>"",VLOOKUP($I16,EnvImpacts!$G$14:$I$73,EnvImpacts!I$13,0),"-") -> -
H17: 0 | K17: =IF($I17<>"",VLOOKUP($I17,EnvImpacts!$G$14:$I$73,EnvImpacts!H$13,0),"-") -> - | L17: =IF($I17<>"",VLOOKUP($I17,EnvImpacts!$G$14:$I$73,EnvImpacts!I$13,0),"-") -> -
H18: 0 | K18: =IF($I18<>"",VLOOKUP($I18,EnvImpacts!$G$14:$I$73,EnvImpacts!H$13,0),"-") -> - | L18: =IF($I18<>"",VLOOKUP($I18,EnvImpacts!$G$14:$I$73,EnvImpacts!I$13,0),"-") -> -
H19: 0 | K19: =IF($I19<>"",VLOOKUP($I19,EnvImpacts!$G$14:$I$73,EnvImpacts!H$13,0),"-") -> - | L19: =IF($I19<>"",VLOOKUP($I19,EnvImpacts!$G$14:$I$73,EnvImpacts!I$13,0),"-") -> -
H20: 0 | K20: =IF($I20<>"",VLOOKUP($I20,EnvImpacts!$G$14:$I$73,EnvImpacts!H$13,0),"-") -> - | L20: =IF($I20<>"",VLOOKUP($I20,EnvImpacts!$G$14:$I$73,EnvImpacts!I$13,0),"-") -> -
H21: 0 | K21: =IF($I21<>"",VLOOKUP($I21,EnvImpacts!$G$14:$I$73,EnvImpacts!H$13,0),"-") -> - | L21: =IF($I21<>"",VLOOKUP($I21,EnvImpacts!$G$14:$I$73,EnvImpacts!I$13,0),"-") -> -
H22: 0 | K22: =IF($I22<>"",VLOOKUP($I22,EnvImpacts!$G$14:$I$73,EnvImpacts!H$13,0),"-") -> - | L22: =IF($I22<>"",VLOOKUP($I22,EnvImpacts!$G$14:$I$73,EnvImpacts!I$13,0),"-") -> -
H23: 0 | K23: =IF($I23<>"",VLOOKUP($I23,EnvImpacts!$G$14:$I$73,EnvImpacts!H$13,0),"-") -> - | L23: =IF($I23<>"",VLOOKUP($I23,EnvImpacts!$G$14:$I$73,EnvImpacts!I$13,0),"-") -> -
H24: 0 | K24: =IF($I24<>"",VLOOKUP($I24,EnvImpacts!$G$14:$I$73,EnvImpacts!H$13,0),"-") -> - | L24: =IF($I24<>"",VLOOKUP($I24,EnvImpacts!$G$14:$I$73,EnvImpacts!I$13,0),"-") -> -
H25: 0 | K25: =IF($I25<>"",VLOOKUP($I25,EnvImpacts!$G$14:$I$73,EnvImpacts!H$13,0),"-") -> - | L25: =IF($I25<>"",VLOOKUP($I25,EnvImpacts!$G$14:$I$73,EnvImpacts!I$13,0),"-") -> -
H26: =SUM(D26:G26) -> 0 | K26: =IF($I26<>"",VLOOKUP($I26,EnvImpacts!$G$14:$I$73,EnvImpacts!H$13,0),"-") -> - | L26: =IF($I26<>"",VLOOKUP($I26,EnvImpacts!$G$14:$I$73,EnvImpacts!I$13,0),"-") -> -
I27: User defined impacts
H28: =SUM(D28:G28) -> 0
H29: =SUM(D29:G29) -> 0
C31: Totals | D31: =SUM(D10:D30) -> 1000 | E31: =SUM(E10:E30) -> 1550 | F31: =SUM(F10:F30) -> 105 | G31: =SUM(G10:G30) -> 0 | H31: =SUM(H10:H30) -> 2655 | I31: Carried to 'IntvCosts' | L31: =SUMPRODUCT($J10:$J29,L10:L29) -> 22.694 | M31: =SUM(M10:M29) -> 0 | N31: =SUM(N10:N29) -> 0 | O31: Carried to 'IntvCosts'

Sheet IntvCost (3)
A1: MAINLINE | C1: =Flowchart!C1 -> Soil Cutting Model
B2: Costs & Environment Impact of Intervention
C3: Enter costs and environmental impacts for this intervention
B4: Interv. No: | C4: =-VALUE(RIGHT(CELL("filename",A1),4)) -> 3
B5: Intervention: | C5: =INDEX(IntvTriggers!D16:D30,C4,1) -> Drainage repair
B6: Scale: | C6: ONE intervention treats: | D6: 200 | E6: m
D8: Financial Costs Estimate [Euros] | I8: Environamental Impact Assessment
C9: Item | D9: =IntvCosts!D12 -> Labour | E9: =IntvCosts!E12 -> Plant | F9: =IntvCosts!F12 -> Materials | G9: =IntvCosts!G12 -> Tax | H9: TOTAL | I9: Environmental Impact | J9: Usage | K9: Unit of usage | L9: =IntvCosts!O12 -> Carbon Dioxide equivalent | M9: =IntvCosts!P12 -> User-defined impact (2) | N9: =IntvCosts!Q12 -> User-defined impact (3) | O9: Notes on estimation
D10: € | E10: € | F10: € | G10: € | H10: € | L10: kg (CO2e) | M10: =IntvCosts!P14& " (" &IntvCosts!P13&")" -> unit2 (EI-2) | N10: =IntvCosts!Q14& " (" &IntvCosts!Q13&")" -> unit3 (EI-3)
C11: Excavation | E11: 2000 | H11: =SUM(D11:G11) -> 2000 | I11: Excavator (5) | K11: =IF($I11<>"",VLOOKUP($I11,EnvImpacts!$G$14:$I$73,EnvImpacts!H$13,0),"-") -> t | L11: =IF($I11<>"",VLOOKUP($I11,EnvImpacts!$G$14:$I$73,EnvImpacts!I$13,0),"-") -> 0.55
C12: Road transport | E12: 1000 | H12: =SUM(D12:G12) -> 1000 | I12: Road transport EURO3 (5) | K12: =IF($I12<>"",VLOOKUP($I12,EnvImpacts!$G$14:$I$73,EnvImpacts!H$13,0),"-") -> t-km | L12: =IF($I12<>"",VLOOKUP($I12,EnvImpacts!$G$14:$I$73,EnvImpacts!I$13,0),"-") -> 0.0222
C13: Manpower | D13: 2000 | H13: 2000 | K13: =IF($I13<>"",VLOOKUP($I13,EnvImpacts!$G$14:$I$73,EnvImpacts!H$13,0),"-") -> - | L13: =IF($I13<>"",VLOOKUP($I13,EnvImpacts!$G$14:$I$73,EnvImpacts!I$13,0),"-") -> -
C14: GRP drainage pipe | F14: 200 | H14: 200 | I14: GRP drainage pipe | J14: 10 | K14: =IF($I14<>"",VLOOKUP($I14,EnvImpacts!$G$14:$I$73,EnvImpacts!H$13,0),"-") -> m | L14: =IF($I14<>"",VLOOKUP($I14,EnvImpacts!$G$14:$I$73,EnvImpacts!I$13,0),"-") -> 86.51946168
H15: 0 | K15: =IF($I15<>"",VLOOKUP($I15,EnvImpacts!$G$14:$I$73,EnvImpacts!H$13,0),"-") -> - | L15: =IF($I15<>"",VLOOKUP($I15,EnvImpacts!$G$14:$I$73,EnvImpacts!I$13,0),"-") -> -
H16: 0 | K16: =IF($I16<>"",VLOOKUP($I16,EnvImpacts!$G$14:$I$73,EnvImpacts!H$13,0),"-") -> - | L16: =IF($I16<>"",VLOOKUP($I16,EnvImpacts!$G$14:$I$73,EnvImpacts!I$13,0),"-") -> -
H17: 0 | K17: =IF($I17<>"",VLOOKUP($I17,EnvImpacts!$G$14:$I$73,EnvImpacts!H$13,0),"-") -> - | L17: =IF($I17<>"",VLOOKUP($I17,EnvImpacts!$G$14:$I$73,EnvImpacts!I$13,0),"-") -> -
H18: 0 | K18: =IF($I18<>"",VLOOKUP($I18,EnvImpacts!$G$14:$I$73,EnvImpacts!H$13,0),"-") -> - | L18: =IF($I18<>"",VLOOKUP($I18,EnvImpacts!$G$14:$I$73,EnvImpacts!I$13,0),"-") -> -
H19: 0 | K19: =IF($I19<>"",VLOOKUP($I19,EnvImpacts!$G$14:$I$73,EnvImpacts!H$13,0),"-") -> - | L19: =IF($I19<>"",VLOOKUP($I19,EnvImpacts!$G$14:$I$73,EnvImpacts!I$13,0),"-") -> -
H20: 0 | K20: =IF($I20<>"",VLOOKUP($I20,EnvImpacts!$G$14:$I$73,EnvImpacts!H$13,0),"-") -> - | L20: =IF($I20<>"",VLOOKUP($I20,EnvImpacts!$G$14:$I$73,EnvImpacts!I$13,0),"-") -> -
H21: 0 | K21: =IF($I21<>"",VLOOKUP($I21,EnvImpacts!$G$14:$I$73,EnvImpacts!H$13,0),"-") -> - | L21: =IF($I21<>"",VLOOKUP($I21,EnvImpacts!$G$14:$I$73,EnvImpacts!I$13,0),"-") -> -
H22: 0 | K22: =IF($I22<>"",VLOOKUP($I22,EnvImpacts!$G$14:$I$73,EnvImpacts!H$13,0),"-") -> - | L22: =IF($I22<>"",VLOOKUP($I22,EnvImpacts!$G$14:$I$73,EnvImpacts!I$13,0),"-") -> -
H23: 0 | K23: =IF($I23<>"",VLOOKUP($I23,EnvImpacts!$G$14:$I$73,EnvImpacts!H$13,0),"-") -> - | L23: =IF($I23<>"",VLOOKUP($I23,EnvImpacts!$G$14:$I$73,EnvImpacts!I$13,0),"-") -> -
H24: 0 | K24: =IF($I24<>"",VLOOKUP($I24,EnvImpacts!$G$14:$I$73,EnvImpacts!H$13,0),"-") -> - | L24: =IF($I24<>"",VLOOKUP($I24,EnvImpacts!$G$14:$I$73,EnvImpacts!I$13,0),"-") -> -
H25: 0 | K25: =IF($I25<>"",VLOOKUP($I25,EnvImpacts!$G$14:$I$73,EnvImpacts!H$13,0),"-") -> - | L25: =IF($I25<>"",VLOOKUP($I25,EnvImpacts!$G$14:$I$73,EnvImpacts!I$13,0),"-") -> -
H26: =SUM(D26:G26) -> 0 | K26: =IF($I26<>"",VLOOKUP($I26,EnvImpacts!$G$14:$I$73,EnvImpacts!H$13,0),"-") -> - | L26: =IF($I26<>"",VLOOKUP($I26,EnvImpacts!$G$14:$I$73,EnvImpacts!I$13,0),"-") -> -
I27: User defined impacts
H28: =SUM(D28:G28) -> 0
H29: =SUM(D29:G29) -> 0
C31: Totals | D31: =SUM(D10:D30) -> 2000 | E31: =SUM(E10:E30) -> 3000 | F31: =SUM(F10:F30) -> 200 | G31: =SUM(G10:G30) -> 0 | H31: =SUM(H10:H30) -> 5200 | I31: Carried to 'IntvCosts' | L31: =SUMPRODUCT($J10:$J29,L10:L29) -> 865.1946168 | M31: =SUM(M10:M29) -> 0 | N31: =SUM(N10:N29) -> 0 | O31: Carried to 'IntvCosts'

Sheet IntvCost (4)
A1: MAINLINE | C1: =Flowchart!C1 -> Soil Cutting Model
B2: Costs & Environment Impact of Intervention
C3: Enter costs and environmental impacts for this intervention
B4: Interv. No: | C4: =-VALUE(RIGHT(CELL("filename",A1),4)) -> 4
B5: Intervention: | C5: =INDEX(IntvTriggers!D16:D30,C4,1) -> Drainage replacement
B6: Scale: | C6: ONE intervention treats: | D6: 200 | E6: m
D8: Financial Costs Estimate [Euros] | I8: Environamental Impact Assessment
C9: Item | D9: =IntvCosts!D12 -> Labour | E9: =IntvCosts!E12 -> Plant | F9: =IntvCosts!F12 -> Materials | G9: =IntvCosts!G12 -> Tax | H9: TOTAL | I9: Environmental Impact | J9: Usage | K9: Unit of usage | L9: =IntvCosts!O12 -> Carbon Dioxide equivalent | M9: =IntvCosts!P12 -> User-defined impact (2) | N9: =IntvCosts!Q12 -> User-defined impact (3) | O9: Notes on estimation
D10: € | E10: € | F10: € | G10: € | H10: € | L10: kg (CO2e) | M10: =IntvCosts!P14& " (" &IntvCosts!P13&")" -> unit2 (EI-2) | N10: =IntvCosts!Q14& " (" &IntvCosts!Q13&")" -> unit3 (EI-3)
C11: Excavation | E11: 2000 | H11: =SUM(D11:G11) -> 2000 | I11: Excavator (5) | K11: =IF($I11<>"",VLOOKUP($I11,EnvImpacts!$G$14:$I$73,EnvImpacts!H$13,0),"-") -> t | L11: =IF($I11<>"",VLOOKUP($I11,EnvImpacts!$G$14:$I$73,EnvImpacts!I$13,0),"-") -> 0.55
C12: Road transport | E12: 1000 | H12: =SUM(D12:G12) -> 1000 | I12: Road transport EURO3 (5) | K12: =IF($I12<>"",VLOOKUP($I12,EnvImpacts!$G$14:$I$73,EnvImpacts!H$13,0),"-") -> t-km | L12: =IF($I12<>"",VLOOKUP($I12,EnvImpacts!$G$14:$I$73,EnvImpacts!I$13,0),"-") -> 0.0222
C13: Manpower | D13: 2000 | H13: 2000 | K13: =IF($I13<>"",VLOOKUP($I13,EnvImpacts!$G$14:$I$73,EnvImpacts!H$13,0),"-") -> - | L13: =IF($I13<>"",VLOOKUP($I13,EnvImpacts!$G$14:$I$73,EnvImpacts!I$13,0),"-") -> -
C14: GRP drainage pipe | F14: 2000 | H14: 2000 | I14: GRP drainage pipe | J14: 200 | K14: =IF($I14<>"",VLOOKUP($I14,EnvImpacts!$G$14:$I$73,EnvImpacts!H$13,0),"-") -> m | L14: =IF($I14<>"",VLOOKUP($I14,EnvImpacts!$G$14:$I$73,EnvImpacts!I$13,0),"-") -> 86.51946168
C15: Concrete in-fill | F15: 20 | H15: 20 | I15: Concrete, mass insitu | J15: 5 | K15: =IF($I15<>"",VLOOKUP($I15,EnvImpacts!$G$14:$I$73,EnvImpacts!H$13,0),"-") -> m3 | L15: =IF($I15<>"",VLOOKUP($I15,EnvImpacts!$G$14:$I$73,EnvImpacts!I$13,0),"-") -> 221.26
C16: Precast units | F16: 200 | H16: 200 | I16: Concrete, precast | J16: 5 | K16: =IF($I16<>"",VLOOKUP($I16,EnvImpacts!$G$14:$I$73,EnvImpacts!H$13,0),"-") -> m3 | L16: =IF($I16<>"",VLOOKUP($I16,EnvImpacts!$G$14:$I$73,EnvImpacts!I$13,0),"-") -> 333.6
H17: 0 | K17: =IF($I17<>"",VLOOKUP($I17,EnvImpacts!$G$14:$I$73,EnvImpacts!H$13,0),"-") -> - | L17: =IF($I17<>"",VLOOKUP($I17,EnvImpacts!$G$14:$I$73,EnvImpacts!I$13,0),"-") -> -
H18: 0 | K18: =IF($I18<>"",VLOOKUP($I18,EnvImpacts!$G$14:$I$73,EnvImpacts!H$13,0),"-") -> - | L18: =IF($I18<>"",VLOOKUP($I18,EnvImpacts!$G$14:$I$73,EnvImpacts!I$13,0),"-") -> -
H19: 0 | K19: =IF($I19<>"",VLOOKUP($I19,EnvImpacts!$G$14:$I$73,EnvImpacts!H$13,0),"-") -> - | L19: =IF($I19<>"",VLOOKUP($I19,EnvImpacts!$G$14:$I$73,EnvImpacts!I$13,0),"-") -> -
H20: 0 | K20: =IF($I20<>"",VLOOKUP($I20,EnvImpacts!$G$14:$I$73,EnvImpacts!H$13,0),"-") -> - | L20: =IF($I20<>"",VLOOKUP($I20,EnvImpacts!$G$14:$I$73,EnvImpacts!I$13,0),"-") -> -
H21: 0 | K21: =IF($I21<>"",VLOOKUP($I21,EnvImpacts!$G$14:$I$73,EnvImpacts!H$13,0),"-") -> - | L21: =IF($I21<>"",VLOOKUP($I21,EnvImpacts!$G$14:$I$73,EnvImpacts!I$13,0),"-") -> -
H22: 0 | K22: =IF($I22<>"",VLOOKUP($I22,EnvImpacts!$G$14:$I$73,EnvImpacts!H$13,0),"-") -> - | L22: =IF($I22<>"",VLOOKUP($I22,EnvImpacts!$G$14:$I$73,EnvImpacts!I$13,0),"-") -> -
H23: 0 | K23: =IF($I23<>"",VLOOKUP($I23,EnvImpacts!$G$14:$I$73,EnvImpacts!H$13,0),"-") -> - | L23: =IF($I23<>"",VLOOKUP($I23,EnvImpacts!$G$14:$I$73,EnvImpacts!I$13,0),"-") -> -
H24: 0 | K24: =IF($I24<>"",VLOOKUP($I24,EnvImpacts!$G$14:$I$73,EnvImpacts!H$13,0),"-") -> - | L24: =IF($I24<>"",VLOOKUP($I24,EnvImpacts!$G$14:$I$73,EnvImpacts!I$13,0),"-") -> -
H25: 0 | K25: =IF($I25<>"",VLOOKUP($I25,EnvImpacts!$G$14:$I$73,EnvImpacts!H$13,0),"-") -> - | L25: =IF($I25<>"",VLOOKUP($I25,EnvImpacts!$G$14:$I$73,EnvImpacts!I$13,0),"-") -> -
H26: =SUM(D26:G26) -> 0 | K26: =IF($I26<>"",VLOOKUP($I26,EnvImpacts!$G$14:$I$73,EnvImpacts!H$13,0),"-") -> - | L26: =IF($I26<>"",VLOOKUP($I26,EnvImpacts!$G$14:$I$73,EnvImpacts!I$13,0),"-") -> -
I27: User defined impacts
H28: =SUM(D28:G28) -> 0
H29: =SUM(D29:G29) -> 0
C31: Totals | D31: =SUM(D10:D30) -> 2000 | E31: =SUM(E10:E30) -> 3000 | F31: =SUM(F10:F30) -> 2220 | G31: =SUM(G10:G30) -> 0 | H31: =SUM(H10:H30) -> 7220 | I31: Carried to 'IntvCosts' | L31: =SUMPRODUCT($J10:$J29,L10:L29) -> 20078.19234 | M31: =SUM(M10:M29) -> 0 | N31: =SUM(N10:N29) -> 0 | O31: Carried to 'IntvCosts'

Sheet IntvCost (5)
A1: MAINLINE | C1: =Flowchart!C1 -> Soil Cutting Model
B2: Costs & Environment Impact of Intervention
C3: Enter costs and environmental impacts for this intervention
B4: Interv. No: | C4: =-VALUE(RIGHT(CELL("filename",A1),4)) -> 5
B5: Intervention: | C5: =INDEX(IntvTriggers!D16:D30,C4,1) -> Burrow filling
B6: Scale: | C6: ONE intervention treats: | D6: 2000 | E6: m2
D8: Financial Costs Estimate [Euros] | I8: Environamental Impact Assessment
C9: Item | D9: =IntvCosts!D12 -> Labour | E9: =IntvCosts!E12 -> Plant | F9: =IntvCosts!F12 -> Materials | G9: =IntvCosts!G12 -> Tax | H9: TOTAL | I9: Environmental Impact | J9: Usage | K9: Unit of usage | L9: =IntvCosts!O12 -> Carbon Dioxide equivalent | M9: =IntvCosts!P12 -> User-defined impact (2) | N9: =IntvCosts!Q12 -> User-defined impact (3) | O9: Notes on estimation
D10: € | E10: € | F10: € | G10: € | H10: € | L10: kg (CO2e) | M10: =IntvCosts!P14& " (" &IntvCosts!P13&")" -> unit2 (EI-2) | N10: =IntvCosts!Q14& " (" &IntvCosts!Q13&")" -> unit3 (EI-3)
C11: Manpower | D11: 2000 | H11: =SUM(D11:G11) -> 2000 | K11: =IF($I11<>"",VLOOKUP($I11,EnvImpacts!$G$14:$I$73,EnvImpacts!H$13,0),"-") -> - | L11: =IF($I11<>"",VLOOKUP($I11,EnvImpacts!$G$14:$I$73,EnvImpacts!I$13,0),"-") -> -
C12: Excavator | E12: 1000 | F12: 20 | H12: =SUM(D12:G12) -> 1020 | I12: Excavator (5) | J12: 5 | K12: =IF($I12<>"",VLOOKUP($I12,EnvImpacts!$G$14:$I$73,EnvImpacts!H$13,0),"-") -> t | L12: =IF($I12<>"",VLOOKUP($I12,EnvImpacts!$G$14:$I$73,EnvImpacts!I$13,0),"-") -> 0.55
C13: Truck | E13: 500 | F13: 20 | H13: 520 | I13: Road transport EURO3 (5) | J13: 5 | K13: =IF($I13<>"",VLOOKUP($I13,EnvImpacts!$G$14:$I$73,EnvImpacts!H$13,0),"-") -> t-km | L13: =IF($I13<>"",VLOOKUP($I13,EnvImpacts!$G$14:$I$73,EnvImpacts!I$13,0),"-") -> 0.0222
C14: Chainsaw | E14: 50 | F14: 5 | H14: 55 | I14: Chainsaw (5) | J14: 16 | K14: =IF($I14<>"",VLOOKUP($I14,EnvImpacts!$G$14:$I$73,EnvImpacts!H$13,0),"-") -> hr | L14: =IF($I14<>"",VLOOKUP($I14,EnvImpacts!$G$14:$I$73,EnvImpacts!I$13,0),"-") -> 3.35
H15: 0 | K15: =IF($I15<>"",VLOOKUP($I15,EnvImpacts!$G$14:$I$73,EnvImpacts!H$13,0),"-") -> - | L15: =IF($I15<>"",VLOOKUP($I15,EnvImpacts!$G$14:$I$73,EnvImpacts!I$13,0),"-") -> -
H16: 0 | K16: =IF($I16<>"",VLOOKUP($I16,EnvImpacts!$G$14:$I$73,EnvImpacts!H$13,0),"-") -> - | L16: =IF($I16<>"",VLOOKUP($I16,EnvImpacts!$G$14:$I$73,EnvImpacts!I$13,0),"-") -> -
H17: 0 | K17: =IF($I17<>"",VLOOKUP($I17,EnvImpacts!$G$14:$I$73,EnvImpacts!H$13,0),"-") -> - | L17: =IF($I17<>"",VLOOKUP($I17,EnvImpacts!$G$14:$I$73,EnvImpacts!I$13,0),"-") -> -
H18: 0 | K18: =IF($I18<>"",VLOOKUP($I18,EnvImpacts!$G$14:$I$73,EnvImpacts!H$13,0),"-") -> - | L18: =IF($I18<>"",VLOOKUP($I18,EnvImpacts!$G$14:$I$73,EnvImpacts!I$13,0),"-") -> -
H19: 0 | K19: =IF($I19<>"",VLOOKUP($I19,EnvImpacts!$G$14:$I$73,EnvImpacts!H$13,0),"-") -> - | L19: =IF($I19<>"",VLOOKUP($I19,EnvImpacts!$G$14:$I$73,EnvImpacts!I$13,0),"-") -> -
H20: 0 | K20: =IF($I20<>"",VLOOKUP($I20,EnvImpacts!$G$14:$I$73,EnvImpacts!H$13,0),"-") -> - | L20: =IF($I20<>"",VLOOKUP($I20,EnvImpacts!$G$14:$I$73,EnvImpacts!I$13,0),"-") -> -
H21: 0 | K21: =IF($I21<>"",VLOOKUP($I21,EnvImpacts!$G$14:$I$73,EnvImpacts!H$13,0),"-") -> - | L21: =IF($I21<>"",VLOOKUP($I21,EnvImpacts!$G$14:$I$73,EnvImpacts!I$13,0),"-") -> -
H22: 0 | K22: =IF($I22<>"",VLOOKUP($I22,EnvImpacts!$G$14:$I$73,EnvImpacts!H$13,0),"-") -> - | L22: =IF($I22<>"",VLOOKUP($I22,EnvImpacts!$G$14:$I$73,EnvImpacts!I$13,0),"-") -> -
H23: 0 | K23: =IF($I23<>"",VLOOKUP($I23,EnvImpacts!$G$14:$I$73,EnvImpacts!H$13,0),"-") -> - | L23: =IF($I23<>"",VLOOKUP($I23,EnvImpacts!$G$14:$I$73,EnvImpacts!I$13,0),"-") -> -
H24: 0 | K24: =IF($I24<>"",VLOOKUP($I24,EnvImpacts!$G$14:$I$73,EnvImpacts!H$13,0),"-") -> - | L24: =IF($I24<>"",VLOOKUP($I24,EnvImpacts!$G$14:$I$73,EnvImpacts!I$13,0),"-") -> -
H25: 0 | K25: =IF($I25<>"",VLOOKUP($I25,EnvImpacts!$G$14:$I$73,EnvImpacts!H$13,0),"-") -> - | L25: =IF($I25<>"",VLOOKUP($I25,EnvImpacts!$G$14:$I$73,EnvImpacts!I$13,0),"-") -> -
H26: =SUM(D26:G26) -> 0 | K26: =IF($I26<>"",VLOOKUP($I26,EnvImpacts!$G$14:$I$73,EnvImpacts!H$13,0),"-") -> - | L26: =IF($I26<>"",VLOOKUP($I26,EnvImpacts!$G$14:$I$73,EnvImpacts!I$13,0),"-") -> -
I27: User defined impacts
H28: =SUM(D28:G28) -> 0
H29: =SUM(D29:G29) -> 0
C31: Totals | D31: =SUM(D10:D30) -> 2000 | E31: =SUM(E10:E30) -> 1550 | F31: =SUM(F10:F30) -> 45 | G31: =SUM(G10:G30) -> 0 | H31: =SUM(H10:H30) -> 3595 | I31: Carried to 'IntvCosts' | L31: =SUMPRODUCT($J10:$J29,L10:L29) -> 56.461 | M31: =SUM(M10:M29) -> 0 | N31: =SUM(N10:N29) -> 0 | O31: Carried to 'IntvCosts'

Sheet IntvCost (6)
A1: MAINLINE | C1: =Flowchart!C1 -> Soil Cutting Model
B2: Costs & Environment Impact of Intervention
C3: Enter costs and environmental impacts for this intervention
B4: Interv. No: | C4: =-VALUE(RIGHT(CELL("filename",A1),4)) -> 6
B5: Intervention: | C5: =INDEX(IntvTriggers!D16:D30,C4,1) -> Minor earthworks
B6: Scale: | C6: ONE intervention treats: | D6: 1000 | E6: m2
D8: Financial Costs Estimate [Euros] | I8: Environamental Impact Assessment
C9: Item | D9: =IntvCosts!D12 -> Labour | E9: =IntvCosts!E12 -> Plant | F9: =IntvCosts!F12 -> Materials | G9: =IntvCosts!G12 -> Tax | H9: TOTAL | I9: Environmental Impact | J9: Usage | K9: Unit of usage | L9: =IntvCosts!O12 -> Carbon Dioxide equivalent | M9: =IntvCosts!P12 -> User-defined impact (2) | N9: =IntvCosts!Q12 -> User-defined impact (3) | O9: Notes on estimation
D10: € | E10: € | F10: € | G10: € | H10: € | L10: kg (CO2e) | M10: =IntvCosts!P14& " (" &IntvCosts!P13&")" -> unit2 (EI-2) | N10: =IntvCosts!Q14& " (" &IntvCosts!Q13&")" -> unit3 (EI-3)
C11: Excavation | E11: 5000 | H11: =SUM(D11:G11) -> 5000 | I11: Excavator (5) | J11: 100 | K11: =IF($I11<>"",VLOOKUP($I11,EnvImpacts!$G$14:$I$73,EnvImpacts!H$13,0),"-") -> t | L11: =IF($I11<>"",VLOOKUP($I11,EnvImpacts!$G$14:$I$73,EnvImpacts!I$13,0),"-") -> 0.55
C12: Geotextile | F12: 500 | H12: =SUM(D12:G12) -> 500 | I12: Geo-textile | J12: 500 | K12: =IF($I12<>"",VLOOKUP($I12,EnvImpacts!$G$14:$I$73,EnvImpacts!H$13,0),"-") -> m2 | L12: =IF($I12<>"",VLOOKUP($I12,EnvImpacts!$G$14:$I$73,EnvImpacts!I$13,0),"-") -> 0.961695
C13: Replacement pipes | F13: 500 | H13: 500 | I13: GRP drainage pipe | J13: 50 | K13: =IF($I13<>"",VLOOKUP($I13,EnvImpacts!$G$14:$I$73,EnvImpacts!H$13,0),"-") -> m | L13: =IF($I13<>"",VLOOKUP($I13,EnvImpacts!$G$14:$I$73,EnvImpacts!I$13,0),"-") -> 86.51946168
C14: Fill material | F14: 5000 | H14: 5000 | I14: Granular fill | J14: 1000 | K14: =IF($I14<>"",VLOOKUP($I14,EnvImpacts!$G$14:$I$73,EnvImpacts!H$13,0),"-") -> m3 | L14: =IF($I14<>"",VLOOKUP($I14,EnvImpacts!$G$14:$I$73,EnvImpacts!I$13,0),"-") -> 11.2
C15: Clearing vegetation | E15: 500 | H15: 500 | I15: Chainsaw (5) | J15: 40 | K15: =IF($I15<>"",VLOOKUP($I15,EnvImpacts!$G$14:$I$73,EnvImpacts!H$13,0),"-") -> hr | L15: =IF($I15<>"",VLOOKUP($I15,EnvImpacts!$G$14:$I$73,EnvImpacts!I$13,0),"-") -> 3.35
C16: Transport men & equipment | D16: 500 | E16: 4000 | H16: 4500 | I16: Road transport EURO5 (5) | J16: 200 | K16: =IF($I16<>"",VLOOKUP($I16,EnvImpacts!$G$14:$I$73,EnvImpacts!H$13,0),"-") -> t-km | L16: =IF($I16<>"",VLOOKUP($I16,EnvImpacts!$G$14:$I$73,EnvImpacts!I$13,0),"-") -> 0.0201
C17: Manpower | D17: 5000 | H17: 5000 | K17: =IF($I17<>"",VLOOKUP($I17,EnvImpacts!$G$14:$I$73,EnvImpacts!H$13,0),"-") -> - | L17: =IF($I17<>"",VLOOKUP($I17,EnvImpacts!$G$14:$I$73,EnvImpacts!I$13,0),"-") -> -
H18: 0 | K18: =IF($I18<>"",VLOOKUP($I18,EnvImpacts!$G$14:$I$73,EnvImpacts!H$13,0),"-") -> - | L18: =IF($I18<>"",VLOOKUP($I18,EnvImpacts!$G$14:$I$73,EnvImpacts!I$13,0),"-") -> -
H19: 0 | K19: =IF($I19<>"",VLOOKUP($I19,EnvImpacts!$G$14:$I$73,EnvImpacts!H$13,0),"-") -> - | L19: =IF($I19<>"",VLOOKUP($I19,EnvImpacts!$G$14:$I$73,EnvImpacts!I$13,0),"-") -> -
H20: 0 | K20: =IF($I20<>"",VLOOKUP($I20,EnvImpacts!$G$14:$I$73,EnvImpacts!H$13,0),"-") -> - | L20: =IF($I20<>"",VLOOKUP($I20,EnvImpacts!$G$14:$I$73,EnvImpacts!I$13,0),"-") -> -
H21: 0 | K21: =IF($I21<>"",VLOOKUP($I21,EnvImpacts!$G$14:$I$73,EnvImpacts!H$13,0),"-") -> - | L21: =IF($I21<>"",VLOOKUP($I21,EnvImpacts!$G$14:$I$73,EnvImpacts!I$13,0),"-") -> -
H22: 0 | K22: =IF($I22<>"",VLOOKUP($I22,EnvImpacts!$G$14:$I$73,EnvImpacts!H$13,0),"-") -> - | L22: =IF($I22<>"",VLOOKUP($I22,EnvImpacts!$G$14:$I$73,EnvImpacts!I$13,0),"-") -> -
H23: 0 | K23: =IF($I23<>"",VLOOKUP($I23,EnvImpacts!$G$14:$I$73,EnvImpacts!H$13,0),"-") -> - | L23: =IF($I23<>"",VLOOKUP($I23,EnvImpacts!$G$14:$I$73,EnvImpacts!I$13,0),"-") -> -
H24: 0 | K24: =IF($I24<>"",VLOOKUP($I24,EnvImpacts!$G$14:$I$73,EnvImpacts!H$13,0),"-") -> - | L24: =IF($I24<>"",VLOOKUP($I24,EnvImpacts!$G$14:$I$73,EnvImpacts!I$13,0),"-") -> -
H25: 0 | K25: =IF($I25<>"",VLOOKUP($I25,EnvImpacts!$G$14:$I$73,EnvImpacts!H$13,0),"-") -> - | L25: =IF($I25<>"",VLOOKUP($I25,EnvImpacts!$G$14:$I$73,EnvImpacts!I$13,0),"-") -> -
H26: =SUM(D26:G26) -> 0 | K26: =IF($I26<>"",VLOOKUP($I26,EnvImpacts!$G$14:$I$73,EnvImpacts!H$13,0),"-") -> - | L26: =IF($I26<>"",VLOOKUP($I26,EnvImpacts!$G$14:$I$73,EnvImpacts!I$13,0),"-") -> -
I27: User defined impacts
H28: =SUM(D28:G28) -> 0
H29: =SUM(D29:G29) -> 0
C31: Totals | D31: =SUM(D10:D30) -> 5500 | E31: =SUM(E10:E30) -> 9500 | F31: =SUM(F10:F30) -> 6000 | G31: =SUM(G10:G30) -> 0 | H31: =SUM(H10:H30) -> 21000 | I31: Carried to 'IntvCosts' | L31: =SUMPRODUCT($J10:$J29,L10:L29) -> 16199.84058 | M31: =SUM(M10:M29) -> 0 | N31: =SUM(N10:N29) -> 0 | O31: Carried to 'IntvCosts'

Sheet IntvCost (7)
A1: MAINLINE | C1: =Flowchart!C1 -> Soil Cutting Model
B2: Costs & Environment Impact of Intervention
C3: Enter costs and environmental impacts for this intervention
B4: Interv. No: | C4: =-VALUE(RIGHT(CELL("filename",A1),4)) -> 7
B5: Intervention: | C5: =INDEX(IntvTriggers!D16:D30,C4,1) -> Major earthworks
B6: Scale: | C6: ONE intervention treats:
D8: Financial Costs Estimate [Euros] | I8: Environamental Impact Assessment
C9: Item | D9: =IntvCosts!D12 -> Labour | E9: =IntvCosts!E12 -> Plant | F9: =IntvCosts!F12 -> Materials | G9: =IntvCosts!G12 -> Tax | H9: TOTAL | I9: Environmental Impact | J9: Usage | K9: Unit of usage | L9: =IntvCosts!O12 -> Carbon Dioxide equivalent | M9: =IntvCosts!P12 -> User-defined impact (2) | N9: =IntvCosts!Q12 -> User-defined impact (3) | O9: Notes on estimation
D10: € | E10: € | F10: € | G10: € | H10: € | L10: kg (CO2e) | M10: =IntvCosts!P14& " (" &IntvCosts!P13&")" -> unit2 (EI-2) | N10: =IntvCosts!Q14& " (" &IntvCosts!Q13&")" -> unit3 (EI-3)
C11: Excavation | E11: 10000 | H11: =SUM(D11:G11) -> 10000 | I11: Excavator (5) | J11: 200 | K11: =IF($I11<>"",VLOOKUP($I11,EnvImpacts!$G$14:$I$73,EnvImpacts!H$13,0),"-") -> t | L11: =IF($I11<>"",VLOOKUP($I11,EnvImpacts!$G$14:$I$73,EnvImpacts!I$13,0),"-") -> 0.55
C12: Geotextile | F12: 1000 | H12: =SUM(D12:G12) -> 1000 | I12: Geo-textile | J12: 1000 | K12: =IF($I12<>"",VLOOKUP($I12,EnvImpacts!$G$14:$I$73,EnvImpacts!H$13,0),"-") -> m2 | L12: =IF($I12<>"",VLOOKUP($I12,EnvImpacts!$G$14:$I$73,EnvImpacts!I$13,0),"-") -> 0.961695
C13: Replacement pipes | F13: 1000 | H13: 1000 | I13: GRP drainage pipe | J13: 100 | K13: =IF($I13<>"",VLOOKUP($I13,EnvImpacts!$G$14:$I$73,EnvImpacts!H$13,0),"-") -> m | L13: =IF($I13<>"",VLOOKUP($I13,EnvImpacts!$G$14:$I$73,EnvImpacts!I$13,0),"-") -> 86.51946168
C14: Fill material | F14: 10000 | H14: 10000 | I14: Granular fill | J14: 2000 | K14: =IF($I14<>"",VLOOKUP($I14,EnvImpacts!$G$14:$I$73,EnvImpacts!H$13,0),"-") -> m3 | L14: =IF($I14<>"",VLOOKUP($I14,EnvImpacts!$G$14:$I$73,EnvImpacts!I$13,0),"-") -> 11.2
C15: Clearing vegetation | E15: 1000 | H15: 1000 | I15: Chainsaw (5) | J15: 80 | K15: =IF($I15<>"",VLOOKUP($I15,EnvImpacts!$G$14:$I$73,EnvImpacts!H$13,0),"-") -> hr | L15: =IF($I15<>"",VLOOKUP($I15,EnvImpacts!$G$14:$I$73,EnvImpacts!I$13,0),"-") -> 3.35
C16: Transport men & equipment | D16: 1000 | E16: 8000 | H16: 9000 | I16: Road transport EURO5 (5) | J16: 400 | K16: =IF($I16<>"",VLOOKUP($I16,EnvImpacts!$G$14:$I$73,EnvImpacts!H$13,0),"-") -> t-km | L16: =IF($I16<>"",VLOOKUP($I16,EnvImpacts!$G$14:$I$73,EnvImpacts!I$13,0),"-") -> 0.0201
C17: Manpower | D17: 10000 | H17: 10000 | K17: =IF($I17<>"",VLOOKUP($I17,EnvImpacts!$G$14:$I$73,EnvImpacts!H$13,0),"-") -> - | L17: =IF($I17<>"",VLOOKUP($I17,EnvImpacts!$G$14:$I$73,EnvImpacts!I$13,0),"-") -> -
H18: 0 | K18: =IF($I18<>"",VLOOKUP($I18,EnvImpacts!$G$14:$I$73,EnvImpacts!H$13,0),"-") -> - | L18: =IF($I18<>"",VLOOKUP($I18,EnvImpacts!$G$14:$I$73,EnvImpacts!I$13,0),"-") -> -
H19: 0 | K19: =IF($I19<>"",VLOOKUP($I19,EnvImpacts!$G$14:$I$73,EnvImpacts!H$13,0),"-") -> - | L19: =IF($I19<>"",VLOOKUP($I19,EnvImpacts!$G$14:$I$73,EnvImpacts!I$13,0),"-") -> -
H20: 0 | K20: =IF($I20<>"",VLOOKUP($I20,EnvImpacts!$G$14:$I$73,EnvImpacts!H$13,0),"-") -> - | L20: =IF($I20<>"",VLOOKUP($I20,EnvImpacts!$G$14:$I$73,EnvImpacts!I$13,0),"-") -> -
H21: 0 | K21: =IF($I21<>"",VLOOKUP($I21,EnvImpacts!$G$14:$I$73,EnvImpacts!H$13,0),"-") -> - | L21: =IF($I21<>"",VLOOKUP($I21,EnvImpacts!$G$14:$I$73,EnvImpacts!I$13,0),"-") -> -
H22: 0 | K22: =IF($I22<>"",VLOOKUP($I22,EnvImpacts!$G$14:$I$73,EnvImpacts!H$13,0),"-") -> - | L22: =IF($I22<>"",VLOOKUP($I22,EnvImpacts!$G$14:$I$73,EnvImpacts!I$13,0),"-") -> -
H23: 0 | K23: =IF($I23<>"",VLOOKUP($I23,EnvImpacts!$G$14:$I$73,EnvImpacts!H$13,0),"-") -> - | L23: =IF($I23<>"",VLOOKUP($I23,EnvImpacts!$G$14:$I$73,EnvImpacts!I$13,0),"-") -> -
H24: 0 | K24: =IF($I24<>"",VLOOKUP($I24,EnvImpacts!$G$14:$I$73,EnvImpacts!H$13,0),"-") -> - | L24: =IF($I24<>"",VLOOKUP($I24,EnvImpacts!$G$14:$I$73,EnvImpacts!I$13,0),"-") -> -
H25: 0 | K25: =IF($I25<>"",VLOOKUP($I25,EnvImpacts!$G$14:$I$73,EnvImpacts!H$13,0),"-") -> - | L25: =IF($I25<>"",VLOOKUP($I25,EnvImpacts!$G$14:$I$73,EnvImpacts!I$13,0),"-") -> -
H26: =SUM(D26:G26) -> 0 | K26: =IF($I26<>"",VLOOKUP($I26,EnvImpacts!$G$14:$I$73,EnvImpacts!H$13,0),"-") -> - | L26: =IF($I26<>"",VLOOKUP($I26,EnvImpacts!$G$14:$I$73,EnvImpacts!I$13,0),"-") -> -
I27: User defined impacts
H28: =SUM(D28:G28) -> 0
H29: =SUM(D29:G29) -> 0
C31: Totals | D31: =SUM(D10:D30) -> 11000 | E31: =SUM(E10:E30) -> 19000 | F31: =SUM(F10:F30) -> 12000 | G31: =SUM(G10:G30) -> 0 | H31: =SUM(H10:H30) -> 42000 | I31: Carried to 'IntvCosts' | L31: =SUMPRODUCT($J10:$J29,L10:L29) -> 32399.68117 | M31: =SUM(M10:M29) -> 0 | N31: =SUM(N10:N29) -> 0 | O31: Carried to 'IntvCosts'

Sheet IntvCost (8)
A1: MAINLINE | C1: =Flowchart!C1 -> Soil Cutting Model
B2: Costs & Environment Impact of Intervention
C3: Enter costs and environmental impacts for this intervention
B4: Interv. No: | C4: =-VALUE(RIGHT(CELL("filename",A1),4)) -> 8
B5: Intervention: | C5: =INDEX(IntvTriggers!D16:D30,C4,1) -> [unused]
B6: Scale: | C6: ONE intervention treats:
D8: Financial Costs Estimate [Euros] | I8: Environamental Impact Assessment
C9: Item | D9: =IntvCosts!D12 -> Labour | E9: =IntvCosts!E12 -> Plant | F9: =IntvCosts!F12 -> Materials | G9: =IntvCosts!G12 -> Tax | H9: TOTAL | I9: Environmental Impact | J9: Usage | K9: Unit of usage | L9: =IntvCosts!O12 -> Carbon Dioxide equivalent | M9: =IntvCosts!P12 -> User-defined impact (2) | N9: =IntvCosts!Q12 -> User-defined impact (3) | O9: Notes on estimation
D10: € | E10: € | F10: € | G10: € | H10: € | L10: kg (CO2e) | M10: =IntvCosts!P14& " (" &IntvCosts!P13&")" -> unit2 (EI-2) | N10: =IntvCosts!Q14& " (" &IntvCosts!Q13&")" -> unit3 (EI-3)
H11: =SUM(D11:G11) -> 0 | K11: =IF($I11<>"",VLOOKUP($I11,EnvImpacts!$G$14:$I$73,EnvImpacts!H$13,0),"-") -> - | L11: =IF($I11<>"",VLOOKUP($I11,EnvImpacts!$G$14:$I$73,EnvImpacts!I$13,0),"-") -> -
H12: =SUM(D12:G12) -> 0 | K12: =IF($I12<>"",VLOOKUP($I12,EnvImpacts!$G$14:$I$73,EnvImpacts!H$13,0),"-") -> - | L12: =IF($I12<>"",VLOOKUP($I12,EnvImpacts!$G$14:$I$73,EnvImpacts!I$13,0),"-") -> -
H13: 0 | K13: =IF($I13<>"",VLOOKUP($I13,EnvImpacts!$G$14:$I$73,EnvImpacts!H$13,0),"-") -> - | L13: =IF($I13<>"",VLOOKUP($I13,EnvImpacts!$G$14:$I$73,EnvImpacts!I$13,0),"-") -> -
H14: 0 | K14: =IF($I14<>"",VLOOKUP($I14,EnvImpacts!$G$14:$I$73,EnvImpacts!H$13,0),"-") -> - | L14: =IF($I14<>"",VLOOKUP($I14,EnvImpacts!$G$14:$I$73,EnvImpacts!I$13,0),"-") -> -
H15: 0 | K15: =IF($I15<>"",VLOOKUP($I15,EnvImpacts!$G$14:$I$73,EnvImpacts!H$13,0),"-") -> - | L15: =IF($I15<>"",VLOOKUP($I15,EnvImpacts!$G$14:$I$73,EnvImpacts!I$13,0),"-") -> -
H16: 0 | K16: =IF($I16<>"",VLOOKUP($I16,EnvImpacts!$G$14:$I$73,EnvImpacts!H$13,0),"-") -> - | L16: =IF($I16<>"",VLOOKUP($I16,EnvImpacts!$G$14:$I$73,EnvImpacts!I$13,0),"-") -> -
H17: 0 | K17: =IF($I17<>"",VLOOKUP($I17,EnvImpacts!$G$14:$I$73,EnvImpacts!H$13,0),"-") -> - | L17: =IF($I17<>"",VLOOKUP($I17,EnvImpacts!$G$14:$I$73,EnvImpacts!I$13,0),"-") -> -
H18: 0 | K18: =IF($I18<>"",VLOOKUP($I18,EnvImpacts!$G$14:$I$73,EnvImpacts!H$13,0),"-") -> - | L18: =IF($I18<>"",VLOOKUP($I18,EnvImpacts!$G$14:$I$73,EnvImpacts!I$13,0),"-") -> -
H19: 0 | K19: =IF($I19<>"",VLOOKUP($I19,EnvImpacts!$G$14:$I$73,EnvImpacts!H$13,0),"-") -> - | L19: =IF($I19<>"",VLOOKUP($I19,EnvImpacts!$G$14:$I$73,EnvImpacts!I$13,0),"-") -> -
H20: 0 | K20: =IF($I20<>"",VLOOKUP($I20,EnvImpacts!$G$14:$I$73,EnvImpacts!H$13,0),"-") -> - | L20: =IF($I20<>"",VLOOKUP($I20,EnvImpacts!$G$14:$I$73,EnvImpacts!I$13,0),"-") -> -
H21: 0 | K21: =IF($I21<>"",VLOOKUP($I21,EnvImpacts!$G$14:$I$73,EnvImpacts!H$13,0),"-") -> - | L21: =IF($I21<>"",VLOOKUP($I21,EnvImpacts!$G$14:$I$73,EnvImpacts!I$13,0),"-") -> -
H22: 0 | K22: =IF($I22<>"",VLOOKUP($I22,EnvImpacts!$G$14:$I$73,EnvImpacts!H$13,0),"-") -> - | L22: =IF($I22<>"",VLOOKUP($I22,EnvImpacts!$G$14:$I$73,EnvImpacts!I$13,0),"-") -> -
H23: 0 | K23: =IF($I23<>"",VLOOKUP($I23,EnvImpacts!$G$14:$I$73,EnvImpacts!H$13,0),"-") -> - | L23: =IF($I23<>"",VLOOKUP($I23,EnvImpacts!$G$14:$I$73,EnvImpacts!I$13,0),"-") -> -
H24: 0 | K24: =IF($I24<>"",VLOOKUP($I24,EnvImpacts!$G$14:$I$73,EnvImpacts!H$13,0),"-") -> - | L24: =IF($I24<>"",VLOOKUP($I24,EnvImpacts!$G$14:$I$73,EnvImpacts!I$13,0),"-") -> -
H25: 0 | K25: =IF($I25<>"",VLOOKUP($I25,EnvImpacts!$G$14:$I$73,EnvImpacts!H$13,0),"-") -> - | L25: =IF($I25<>"",VLOOKUP($I25,EnvImpacts!$G$14:$I$73,EnvImpacts!I$13,0),"-") -> -
H26: =SUM(D26:G26) -> 0 | K26: =IF($I26<>"",VLOOKUP($I26,EnvImpacts!$G$14:$I$73,EnvImpacts!H$13,0),"-") -> - | L26: =IF($I26<>"",VLOOKUP($I26,EnvImpacts!$G$14:$I$73,EnvImpacts!I$13,0),"-") -> -
I27: User defined impacts
H28: =SUM(D28:G28) -> 0
H29: =SUM(D29:G29) -> 0
C31: Totals | D31: =SUM(D10:D30) -> 0 | E31: =SUM(E10:E30) -> 0 | F31: =SUM(F10:F30) -> 0 | G31: =SUM(G10:G30) -> 0 | H31: =SUM(H10:H30) -> 0 | I31: Carried to 'IntvCosts' | L31: =SUMPRODUCT($J10:$J29,L10:L29) -> 0 | M31: =SUM(M10:M29) -> 0 | N31: =SUM(N10:N29) -> 0 | O31: Carried to 'IntvCosts'

Sheet IntvCost (9)
A1: MAINLINE | C1: =Flowchart!C1 -> Soil Cutting Model
B2: Costs & Environment Impact of Intervention
C3: Enter costs and environmental impacts for this intervention
B4: Interv. No: | C4: =-VALUE(RIGHT(CELL("filename",A1),4)) -> 9
B5: Intervention: | C5: =INDEX(IntvTriggers!D16:D30,C4,1) -> [unused]
B6: Scale: | C6: ONE intervention treats:
D8: Financial Costs Estimate [Euros] | I8: Environamental Impact Assessment
C9: Item | D9: =IntvCosts!D12 -> Labour | E9: =IntvCosts!E12 -> Plant | F9: =IntvCosts!F12 -> Materials | G9: =IntvCosts!G12 -> Tax | H9: TOTAL | I9: Environmental Impact | J9: Usage | K9: Unit of usage | L9: =IntvCosts!O12 -> Carbon Dioxide equivalent | M9: =IntvCosts!P12 -> User-defined impact (2) | N9: =IntvCosts!Q12 -> User-defined impact (3) | O9: Notes on estimation
D10: € | E10: € | F10: € | G10: € | H10: € | L10: kg (CO2e) | M10: =IntvCosts!P14& " (" &IntvCosts!P13&")" -> unit2 (EI-2) | N10: =IntvCosts!Q14& " (" &IntvCosts!Q13&")" -> unit3 (EI-3)
H11: =SUM(D11:G11) -> 0 | K11: =IF($I11<>"",VLOOKUP($I11,EnvImpacts!$G$14:$I$73,EnvImpacts!H$13,0),"-") -> - | L11: =IF($I11<>"",VLOOKUP($I11,EnvImpacts!$G$14:$I$73,EnvImpacts!I$13,0),"-") -> -
H12: =SUM(D12:G12) -> 0 | K12: =IF($I12<>"",VLOOKUP($I12,EnvImpacts!$G$14:$I$73,EnvImpacts!H$13,0),"-") -> - | L12: =IF($I12<>"",VLOOKUP($I12,EnvImpacts!$G$14:$I$73,EnvImpacts!I$13,0),"-") -> -
H13: 0 | K13: =IF($I13<>"",VLOOKUP($I13,EnvImpacts!$G$14:$I$73,EnvImpacts!H$13,0),"-") -> - | L13: =IF($I13<>"",VLOOKUP($I13,EnvImpacts!$G$14:$I$73,EnvImpacts!I$13,0),"-") -> -
H14: 0 | K14: =IF($I14<>"",VLOOKUP($I14,EnvImpacts!$G$14:$I$73,EnvImpacts!H$13,0),"-") -> - | L14: =IF($I14<>"",VLOOKUP($I14,EnvImpacts!$G$14:$I$73,EnvImpacts!I$13,0),"-") -> -
H15: 0 | K15: =IF($I15<>"",VLOOKUP($I15,EnvImpacts!$G$14:$I$73,EnvImpacts!H$13,0),"-") -> - | L15: =IF($I15<>"",VLOOKUP($I15,EnvImpacts!$G$14:$I$73,EnvImpacts!I$13,0),"-") -> -
H16: 0 | K16: =IF($I16<>"",VLOOKUP($I16,EnvImpacts!$G$14:$I$73,EnvImpacts!H$13,0),"-") -> - | L16: =IF($I16<>"",VLOOKUP($I16,EnvImpacts!$G$14:$I$73,EnvImpacts!I$13,0),"-") -> -
H17: 0 | K17: =IF($I17<>"",VLOOKUP($I17,EnvImpacts!$G$14:$I$73,EnvImpacts!H$13,0),"-") -> - | L17: =IF($I17<>"",VLOOKUP($I17,EnvImpacts!$G$14:$I$73,EnvImpacts!I$13,0),"-") -> -
H18: 0 | K18: =IF($I18<>"",VLOOKUP($I18,EnvImpacts!$G$14:$I$73,EnvImpacts!H$13,0),"-") -> - | L18: =IF($I18<>"",VLOOKUP($I18,EnvImpacts!$G$14:$I$73,EnvImpacts!I$13,0),"-") -> -
H19: 0 | K19: =IF($I19<>"",VLOOKUP($I19,EnvImpacts!$G$14:$I$73,EnvImpacts!H$13,0),"-") -> - | L19: =IF($I19<>"",VLOOKUP($I19,EnvImpacts!$G$14:$I$73,EnvImpacts!I$13,0),"-") -> -
H20: 0 | K20: =IF($I20<>"",VLOOKUP($I20,EnvImpacts!$G$14:$I$73,EnvImpacts!H$13,0),"-") -> - | L20: =IF($I20<>"",VLOOKUP($I20,EnvImpacts!$G$14:$I$73,EnvImpacts!I$13,0),"-") -> -
H21: 0 | K21: =IF($I21<>"",VLOOKUP($I21,EnvImpacts!$G$14:$I$73,EnvImpacts!H$13,0),"-") -> - | L21: =IF($I21<>"",VLOOKUP($I21,EnvImpacts!$G$14:$I$73,EnvImpacts!I$13,0),"-") -> -
H22: 0 | K22: =IF($I22<>"",VLOOKUP($I22,EnvImpacts!$G$14:$I$73,EnvImpacts!H$13,0),"-") -> - | L22: =IF($I22<>"",VLOOKUP($I22,EnvImpacts!$G$14:$I$73,EnvImpacts!I$13,0),"-") -> -
H23: 0 | K23: =IF($I23<>"",VLOOKUP($I23,EnvImpacts!$G$14:$I$73,EnvImpacts!H$13,0),"-") -> - | L23: =IF($I23<>"",VLOOKUP($I23,EnvImpacts!$G$14:$I$73,EnvImpacts!I$13,0),"-") -> -
H24: 0 | K24: =IF($I24<>"",VLOOKUP($I24,EnvImpacts!$G$14:$I$73,EnvImpacts!H$13,0),"-") -> - | L24: =IF($I24<>"",VLOOKUP($I24,EnvImpacts!$G$14:$I$73,EnvImpacts!I$13,0),"-") -> -
H25: 0 | K25: =IF($I25<>"",VLOOKUP($I25,EnvImpacts!$G$14:$I$73,EnvImpacts!H$13,0),"-") -> - | L25: =IF($I25<>"",VLOOKUP($I25,EnvImpacts!$G$14:$I$73,EnvImpacts!I$13,0),"-") -> -
H26: =SUM(D26:G26) -> 0 | K26: =IF($I26<>"",VLOOKUP($I26,EnvImpacts!$G$14:$I$73,EnvImpacts!H$13,0),"-") -> - | L26: =IF($I26<>"",VLOOKUP($I26,EnvImpacts!$G$14:$I$73,EnvImpacts!I$13,0),"-") -> -
I27: User defined impacts
H28: =SUM(D28:G28) -> 0
H29: =SUM(D29:G29) -> 0
C31: Totals | D31: =SUM(D10:D30) -> 0 | E31: =SUM(E10:E30) -> 0 | F31: =SUM(F10:F30) -> 0 | G31: =SUM(G10:G30) -> 0 | H31: =SUM(H10:H30) -> 0 | I31: Carried to 'IntvCosts' | L31: =SUMPRODUCT($J10:$J29,L10:L29) -> 0 | M31: =SUM(M10:M29) -> 0 | N31: =SUM(N10:N29) -> 0 | O31: Carried to 'IntvCosts'

Sheet IntvCost (10)
A1: MAINLINE | C1: =Flowchart!C1 -> Soil Cutting Model
B2: Costs & Environment Impact of Intervention
C3: Enter costs and environmental impacts for this intervention
B4: Interv. No: | C4: =-VALUE(RIGHT(CELL("filename",A1),4)) -> 10
B5: Intervention: | C5: =INDEX(IntvTriggers!D16:D30,C4,1) -> [unused]
B6: Scale: | C6: ONE intervention treats:
D8: Financial Costs Estimate [Euros] | I8: Environamental Impact Assessment
C9: Item | D9: =IntvCosts!D12 -> Labour | E9: =IntvCosts!E12 -> Plant | F9: =IntvCosts!F12 -> Materials | G9: =IntvCosts!G12 -> Tax | H9: TOTAL | I9: Environmental Impact | J9: Usage | K9: Unit of usage | L9: =IntvCosts!O12 -> Carbon Dioxide equivalent | M9: =IntvCosts!P12 -> User-defined impact (2) | N9: =IntvCosts!Q12 -> User-defined impact (3) | O9: Notes on estimation
D10: € | E10: € | F10: € | G10: € | H10: € | L10: kg (CO2e) | M10: =IntvCosts!P14& " (" &IntvCosts!P13&")" -> unit2 (EI-2) | N10: =IntvCosts!Q14& " (" &IntvCosts!Q13&")" -> unit3 (EI-3)
H11: =SUM(D11:G11) -> 0 | K11: =IF($I11<>"",VLOOKUP($I11,EnvImpacts!$G$14:$I$73,EnvImpacts!H$13,0),"-") -> - | L11: =IF($I11<>"",VLOOKUP($I11,EnvImpacts!$G$14:$I$73,EnvImpacts!I$13,0),"-") -> -
H12: =SUM(D12:G12) -> 0 | K12: =IF($I12<>"",VLOOKUP($I12,EnvImpacts!$G$14:$I$73,EnvImpacts!H$13,0),"-") -> - | L12: =IF($I12<>"",VLOOKUP($I12,EnvImpacts!$G$14:$I$73,EnvImpacts!I$13,0),"-") -> -
H13: 0 | K13: =IF($I13<>"",VLOOKUP($I13,EnvImpacts!$G$14:$I$73,EnvImpacts!H$13,0),"-") -> - | L13: =IF($I13<>"",VLOOKUP($I13,EnvImpacts!$G$14:$I$73,EnvImpacts!I$13,0),"-") -> -
H14: 0 | K14: =IF($I14<>"",VLOOKUP($I14,EnvImpacts!$G$14:$I$73,EnvImpacts!H$13,0),"-") -> - | L14: =IF($I14<>"",VLOOKUP($I14,EnvImpacts!$G$14:$I$73,EnvImpacts!I$13,0),"-") -> -
H15: 0 | K15: =IF($I15<>"",VLOOKUP($I15,EnvImpacts!$G$14:$I$73,EnvImpacts!H$13,0),"-") -> - | L15: =IF($I15<>"",VLOOKUP($I15,EnvImpacts!$G$14:$I$73,EnvImpacts!I$13,0),"-") -> -
H16: 0 | K16: =IF($I16<>"",VLOOKUP($I16,EnvImpacts!$G$14:$I$73,EnvImpacts!H$13,0),"-") -> - | L16: =IF($I16<>"",VLOOKUP($I16,EnvImpacts!$G$14:$I$73,EnvImpacts!I$13,0),"-") -> -
H17: 0 | K17: =IF($I17<>"",VLOOKUP($I17,EnvImpacts!$G$14:$I$73,EnvImpacts!H$13,0),"-") -> - | L17: =IF($I17<>"",VLOOKUP($I17,EnvImpacts!$G$14:$I$73,EnvImpacts!I$13,0),"-") -> -
H18: 0 | K18: =IF($I18<>"",VLOOKUP($I18,EnvImpacts!$G$14:$I$73,EnvImpacts!H$13,0),"-") -> - | L18: =IF($I18<>"",VLOOKUP($I18,EnvImpacts!$G$14:$I$73,EnvImpacts!I$13,0),"-") -> -
H19: 0 | K19: =IF($I19<>"",VLOOKUP($I19,EnvImpacts!$G$14:$I$73,EnvImpacts!H$13,0),"-") -> - | L19: =IF($I19<>"",VLOOKUP($I19,EnvImpacts!$G$14:$I$73,EnvImpacts!I$13,0),"-") -> -
H20: 0 | K20: =IF($I20<>"",VLOOKUP($I20,EnvImpacts!$G$14:$I$73,EnvImpacts!H$13,0),"-") -> - | L20: =IF($I20<>"",VLOOKUP($I20,EnvImpacts!$G$14:$I$73,EnvImpacts!I$13,0),"-") -> -
H21: 0 | K21: =IF($I21<>"",VLOOKUP($I21,EnvImpacts!$G$14:$I$73,EnvImpacts!H$13,0),"-") -> - | L21: =IF($I21<>"",VLOOKUP($I21,EnvImpacts!$G$14:$I$73,EnvImpacts!I$13,0),"-") -> -
H22: 0 | K22: =IF($I22<>"",VLOOKUP($I22,EnvImpacts!$G$14:$I$73,EnvImpacts!H$13,0),"-") -> - | L22: =IF($I22<>"",VLOOKUP($I22,EnvImpacts!$G$14:$I$73,EnvImpacts!I$13,0),"-") -> -
H23: 0 | K23: =IF($I23<>"",VLOOKUP($I23,EnvImpacts!$G$14:$I$73,EnvImpacts!H$13,0),"-") -> - | L23: =IF($I23<>"",VLOOKUP($I23,EnvImpacts!$G$14:$I$73,EnvImpacts!I$13,0),"-") -> -
H24: 0 | K24: =IF($I24<>"",VLOOKUP($I24,EnvImpacts!$G$14:$I$73,EnvImpacts!H$13,0),"-") -> - | L24: =IF($I24<>"",VLOOKUP($I24,EnvImpacts!$G$14:$I$73,EnvImpacts!I$13,0),"-") -> -
H25: 0 | K25: =IF($I25<>"",VLOOKUP($I25,EnvImpacts!$G$14:$I$73,EnvImpacts!H$13,0),"-") -> - | L25: =IF($I25<>"",VLOOKUP($I25,EnvImpacts!$G$14:$I$73,EnvImpacts!I$13,0),"-") -> -
H26: =SUM(D26:G26) -> 0 | K26: =IF($I26<>"",VLOOKUP($I26,EnvImpacts!$G$14:$I$73,EnvImpacts!H$13,0),"-") -> - | L26: =IF($I26<>"",VLOOKUP($I26,EnvImpacts!$G$14:$I$73,EnvImpacts!I$13,0),"-") -> -
I27: User defined impacts
H28: =SUM(D28:G28) -> 0
H29: =SUM(D29:G29) -> 0
C31: Totals | D31: =SUM(D10:D30) -> 0 | E31: =SUM(E10:E30) -> 0 | F31: =SUM(F10:F30) -> 0 | G31: =SUM(G10:G30) -> 0 | H31: =SUM(H10:H30) -> 0 | I31: Carried to 'IntvCosts' | L31: =SUMPRODUCT($J10:$J29,L10:L29) -> 0 | M31: =SUM(M10:M29) -> 0 | N31: =SUM(N10:N29) -> 0 | O31: Carried to 'IntvCosts'

Sheet IntvCost (11)
A1: MAINLINE | C1: =Flowchart!C1 -> Soil Cutting Model
B2: Costs & Environment Impact of Intervention
C3: Enter costs and environmental impacts for this intervention
B4: Interv. No: | C4: =-VALUE(RIGHT(CELL("filename",A1),4)) -> 11
B5: Intervention: | C5: =INDEX(IntvTriggers!D16:D30,C4,1) -> [unused]
B6: Scale: | C6: ONE intervention treats:
D8: Financial Costs Estimate [Euros] | I8: Environamental Impact Assessment
C9: Item | D9: =IntvCosts!D12 -> Labour | E9: =IntvCosts!E12 -> Plant | F9: =IntvCosts!F12 -> Materials | G9: =IntvCosts!G12 -> Tax | H9: TOTAL | I9: Environmental Impact | J9: Usage | K9: Unit of usage | L9: =IntvCosts!O12 -> Carbon Dioxide equivalent | M9: =IntvCosts!P12 -> User-defined impact (2) | N9: =IntvCosts!Q12 -> User-defined impact (3) | O9: Notes on estimation
D10: € | E10: € | F10: € | G10: € | H10: € | L10: kg (CO2e) | M10: =IntvCosts!P14& " (" &IntvCosts!P13&")" -> unit2 (EI-2) | N10: =IntvCosts!Q14& " (" &IntvCosts!Q13&")" -> unit3 (EI-3)
H11: =SUM(D11:G11) -> 0 | K11: =IF($I11<>"",VLOOKUP($I11,EnvImpacts!$G$14:$I$73,EnvImpacts!H$13,0),"-") -> - | L11: =IF($I11<>"",VLOOKUP($I11,EnvImpacts!$G$14:$I$73,EnvImpacts!I$13,0),"-") -> -
H12: =SUM(D12:G12) -> 0 | K12: =IF($I12<>"",VLOOKUP($I12,EnvImpacts!$G$14:$I$73,EnvImpacts!H$13,0),"-") -> - | L12: =IF($I12<>"",VLOOKUP($I12,EnvImpacts!$G$14:$I$73,EnvImpacts!I$13,0),"-") -> -
H13: 0 | K13: =IF($I13<>"",VLOOKUP($I13,EnvImpacts!$G$14:$I$73,EnvImpacts!H$13,0),"-") -> - | L13: =IF($I13<>"",VLOOKUP($I13,EnvImpacts!$G$14:$I$73,EnvImpacts!I$13,0),"-") -> -
H14: 0 | K14: =IF($I14<>"",VLOOKUP($I14,EnvImpacts!$G$14:$I$73,EnvImpacts!H$13,0),"-") -> - | L14: =IF($I14<>"",VLOOKUP($I14,EnvImpacts!$G$14:$I$73,EnvImpacts!I$13,0),"-") -> -
H15: 0 | K15: =IF($I15<>"",VLOOKUP($I15,EnvImpacts!$G$14:$I$73,EnvImpacts!H$13,0),"-") -> - | L15: =IF($I15<>"",VLOOKUP($I15,EnvImpacts!$G$14:$I$73,EnvImpacts!I$13,0),"-") -> -
H16: 0 | K16: =IF($I16<>"",VLOOKUP($I16,EnvImpacts!$G$14:$I$73,EnvImpacts!H$13,0),"-") -> - | L16: =IF($I16<>"",VLOOKUP($I16,EnvImpacts!$G$14:$I$73,EnvImpacts!I$13,0),"-") -> -
H17: 0 | K17: =IF($I17<>"",VLOOKUP($I17,EnvImpacts!$G$14:$I$73,EnvImpacts!H$13,0),"-") -> - | L17: =IF($I17<>"",VLOOKUP($I17,EnvImpacts!$G$14:$I$73,EnvImpacts!I$13,0),"-") -> -
H18: 0 | K18: =IF($I18<>"",VLOOKUP($I18,EnvImpacts!$G$14:$I$73,EnvImpacts!H$13,0),"-") -> - | L18: =IF($I18<>"",VLOOKUP($I18,EnvImpacts!$G$14:$I$73,EnvImpacts!I$13,0),"-") -> -
H19: 0 | K19: =IF($I19<>"",VLOOKUP($I19,EnvImpacts!$G$14:$I$73,EnvImpacts!H$13,0),"-") -> - | L19: =IF($I19<>"",VLOOKUP($I19,EnvImpacts!$G$14:$I$73,EnvImpacts!I$13,0),"-") -> -
H20: 0 | K20: =IF($I20<>"",VLOOKUP($I20,EnvImpacts!$G$14:$I$73,EnvImpacts!H$13,0),"-") -> - | L20: =IF($I20<>"",VLOOKUP($I20,EnvImpacts!$G$14:$I$73,EnvImpacts!I$13,0),"-") -> -
H21: 0 | K21: =IF($I21<>"",VLOOKUP($I21,EnvImpacts!$G$14:$I$73,EnvImpacts!H$13,0),"-") -> - | L21: =IF($I21<>"",VLOOKUP($I21,EnvImpacts!$G$14:$I$73,EnvImpacts!I$13,0),"-") -> -
H22: 0 | K22: =IF($I22<>"",VLOOKUP($I22,EnvImpacts!$G$14:$I$73,EnvImpacts!H$13,0),"-") -> - | L22: =IF($I22<>"",VLOOKUP($I22,EnvImpacts!$G$14:$I$73,EnvImpacts!I$13,0),"-") -> -
H23: 0 | K23: =IF($I23<>"",VLOOKUP($I23,EnvImpacts!$G$14:$I$73,EnvImpacts!H$13,0),"-") -> - | L23: =IF($I23<>"",VLOOKUP($I23,EnvImpacts!$G$14:$I$73,EnvImpacts!I$13,0),"-") -> -
H24: 0 | K24: =IF($I24<>"",VLOOKUP($I24,EnvImpacts!$G$14:$I$73,EnvImpacts!H$13,0),"-") -> - | L24: =IF($I24<>"",VLOOKUP($I24,EnvImpacts!$G$14:$I$73,EnvImpacts!I$13,0),"-") -> -
H25: 0 | K25: =IF($I25<>"",VLOOKUP($I25,EnvImpacts!$G$14:$I$73,EnvImpacts!H$13,0),"-") -> - | L25: =IF($I25<>"",VLOOKUP($I25,EnvImpacts!$G$14:$I$73,EnvImpacts!I$13,0),"-") -> -
H26: =SUM(D26:G26) -> 0 | K26: =IF($I26<>"",VLOOKUP($I26,EnvImpacts!$G$14:$I$73,EnvImpacts!H$13,0),"-") -> - | L26: =IF($I26<>"",VLOOKUP($I26,EnvImpacts!$G$14:$I$73,EnvImpacts!I$13,0),"-") -> -
I27: User defined impacts
H28: =SUM(D28:G28) -> 0
H29: =SUM(D29:G29) -> 0
C31: Totals | D31: =SUM(D10:D30) -> 0 | E31: =SUM(E10:E30) -> 0 | F31: =SUM(F10:F30) -> 0 | G31: =SUM(G10:G30) -> 0 | H31: =SUM(H10:H30) -> 0 | I31: Carried to 'IntvCosts' | L31: =SUMPRODUCT($J10:$J29,L10:L29) -> 0 | M31: =SUM(M10:M29) -> 0 | N31: =SUM(N10:N29) -> 0 | O31: Carried to 'IntvCosts'

Sheet IntvCost (12)
A1: MAINLINE | C1: =Flowchart!C1 -> Soil Cutting Model
B2: Costs & Environment Impact of Intervention
C3: Enter costs and environmental impacts for this intervention
B4: Interv. No: | C4: =-VALUE(RIGHT(CELL("filename",A1),4)) -> 12
B5: Intervention: | C5: =INDEX(IntvTriggers!D16:D30,C4,1) -> [unused]
B6: Scale: | C6: ONE intervention treats:
D8: Financial Costs Estimate [Euros] | I8: Environamental Impact Assessment
C9: Item | D9: =IntvCosts!D12 -> Labour | E9: =IntvCosts!E12 -> Plant | F9: =IntvCosts!F12 -> Materials | G9: =IntvCosts!G12 -> Tax | H9: TOTAL | I9: Environmental Impact | J9: Usage | K9: Unit of usage | L9: =IntvCosts!O12 -> Carbon Dioxide equivalent | M9: =IntvCosts!P12 -> User-defined impact (2) | N9: =IntvCosts!Q12 -> User-defined impact (3) | O9: Notes on estimation
D10: € | E10: € | F10: € | G10: € | H10: € | L10: kg (CO2e) | M10: =IntvCosts!P14& " (" &IntvCosts!P13&")" -> unit2 (EI-2) | N10: =IntvCosts!Q14& " (" &IntvCosts!Q13&")" -> unit3 (EI-3)
H11: =SUM(D11:G11) -> 0 | K11: =IF($I11<>"",VLOOKUP($I11,EnvImpacts!$G$14:$I$73,EnvImpacts!H$13,0),"-") -> - | L11: =IF($I11<>"",VLOOKUP($I11,EnvImpacts!$G$14:$I$73,EnvImpacts!I$13,0),"-") -> -
H12: =SUM(D12:G12) -> 0 | K12: =IF($I12<>"",VLOOKUP($I12,EnvImpacts!$G$14:$I$73,EnvImpacts!H$13,0),"-") -> - | L12: =IF($I12<>"",VLOOKUP($I12,EnvImpacts!$G$14:$I$73,EnvImpacts!I$13,0),"-") -> -
H13: 0 | K13: =IF($I13<>"",VLOOKUP($I13,EnvImpacts!$G$14:$I$73,EnvImpacts!H$13,0),"-") -> - | L13: =IF($I13<>"",VLOOKUP($I13,EnvImpacts!$G$14:$I$73,EnvImpacts!I$13,0),"-") -> -
H14: 0 | K14: =IF($I14<>"",VLOOKUP($I14,EnvImpacts!$G$14:$I$73,EnvImpacts!H$13,0),"-") -> - | L14: =IF($I14<>"",VLOOKUP($I14,EnvImpacts!$G$14:$I$73,EnvImpacts!I$13,0),"-") -> -
H15: 0 | K15: =IF($I15<>"",VLOOKUP($I15,EnvImpacts!$G$14:$I$73,EnvImpacts!H$13,0),"-") -> - | L15: =IF($I15<>"",VLOOKUP($I15,EnvImpacts!$G$14:$I$73,EnvImpacts!I$13,0),"-") -> -
H16: 0 | K16: =IF($I16<>"",VLOOKUP($I16,EnvImpacts!$G$14:$I$73,EnvImpacts!H$13,0),"-") -> - | L16: =IF($I16<>"",VLOOKUP($I16,EnvImpacts!$G$14:$I$73,EnvImpacts!I$13,0),"-") -> -
H17: 0 | K17: =IF($I17<>"",VLOOKUP($I17,EnvImpacts!$G$14:$I$73,EnvImpacts!H$13,0),"-") -> - | L17: =IF($I17<>"",VLOOKUP($I17,EnvImpacts!$G$14:$I$73,EnvImpacts!I$13,0),"-") -> -
H18: 0 | K18: =IF($I18<>"",VLOOKUP($I18,EnvImpacts!$G$14:$I$73,EnvImpacts!H$13,0),"-") -> - | L18: =IF($I18<>"",VLOOKUP($I18,EnvImpacts!$G$14:$I$73,EnvImpacts!I$13,0),"-") -> -
H19: 0 | K19: =IF($I19<>"",VLOOKUP($I19,EnvImpacts!$G$14:$I$73,EnvImpacts!H$13,0),"-") -> - | L19: =IF($I19<>"",VLOOKUP($I19,EnvImpacts!$G$14:$I$73,EnvImpacts!I$13,0),"-") -> -
H20: 0 | K20: =IF($I20<>"",VLOOKUP($I20,EnvImpacts!$G$14:$I$73,EnvImpacts!H$13,0),"-") -> - | L20: =IF($I20<>"",VLOOKUP($I20,EnvImpacts!$G$14:$I$73,EnvImpacts!I$13,0),"-") -> -
H21: 0 | K21: =IF($I21<>"",VLOOKUP($I21,EnvImpacts!$G$14:$I$73,EnvImpacts!H$13,0),"-") -> - | L21: =IF($I21<>"",VLOOKUP($I21,EnvImpacts!$G$14:$I$73,EnvImpacts!I$13,0),"-") -> -
H22: 0 | K22: =IF($I22<>"",VLOOKUP($I22,EnvImpacts!$G$14:$I$73,EnvImpacts!H$13,0),"-") -> - | L22: =IF($I22<>"",VLOOKUP($I22,EnvImpacts!$G$14:$I$73,EnvImpacts!I$13,0),"-") -> -
H23: 0 | K23: =IF($I23<>"",VLOOKUP($I23,EnvImpacts!$G$14:$I$73,EnvImpacts!H$13,0),"-") -> - | L23: =IF($I23<>"",VLOOKUP($I23,EnvImpacts!$G$14:$I$73,EnvImpacts!I$13,0),"-") -> -
H24: 0 | K24: =IF($I24<>"",VLOOKUP($I24,EnvImpacts!$G$14:$I$73,EnvImpacts!H$13,0),"-") -> - | L24: =IF($I24<>"",VLOOKUP($I24,EnvImpacts!$G$14:$I$73,EnvImpacts!I$13,0),"-") -> -
H25: 0 | K25: =IF($I25<>"",VLOOKUP($I25,EnvImpacts!$G$14:$I$73,EnvImpacts!H$13,0),"-") -> - | L25: =IF($I25<>"",VLOOKUP($I25,EnvImpacts!$G$14:$I$73,EnvImpacts!I$13,0),"-") -> -
H26: =SUM(D26:G26) -> 0 | K26: =IF($I26<>"",VLOOKUP($I26,EnvImpacts!$G$14:$I$73,EnvImpacts!H$13,0),"-") -> - | L26: =IF($I26<>"",VLOOKUP($I26,EnvImpacts!$G$14:$I$73,EnvImpacts!I$13,0),"-") -> -
I27: User defined impacts
H28: =SUM(D28:G28) -> 0
H29: =SUM(D29:G29) -> 0
C31: Totals | D31: =SUM(D10:D30) -> 0 | E31: =SUM(E10:E30) -> 0 | F31: =SUM(F10:F30) -> 0 | G31: =SUM(G10:G30) -> 0 | H31: =SUM(H10:H30) -> 0 | I31: Carried to 'IntvCosts' | L31: =SUMPRODUCT($J10:$J29,L10:L29) -> 0 | M31: =SUM(M10:M29) -> 0 | N31: =SUM(N10:N29) -> 0 | O31: Carried to 'IntvCosts'

Sheet IntvCost (13)
A1: MAINLINE | C1: =Flowchart!C1 -> Soil Cutting Model
B2: Costs & Environment Impact of Intervention
C3: Enter costs and environmental impacts for this intervention
B4: Interv. No: | C4: =-VALUE(RIGHT(CELL("filename",A1),4)) -> 13
B5: Intervention: | C5: =INDEX(IntvTriggers!D16:D30,C4,1) -> [unused]
B6: Scale: | C6: ONE intervention treats:
D8: Financial Costs Estimate [Euros] | I8: Environamental Impact Assessment
C9: Item | D9: =IntvCosts!D12 -> Labour | E9: =IntvCosts!E12 -> Plant | F9: =IntvCosts!F12 -> Materials | G9: =IntvCosts!G12 -> Tax | H9: TOTAL | I9: Environmental Impact | J9: Usage | K9: Unit of usage | L9: =IntvCosts!O12 -> Carbon Dioxide equivalent | M9: =IntvCosts!P12 -> User-defined impact (2) | N9: =IntvCosts!Q12 -> User-defined impact (3) | O9: Notes on estimation
D10: € | E10: € | F10: € | G10: € | H10: € | L10: kg (CO2e) | M10: =IntvCosts!P14& " (" &IntvCosts!P13&")" -> unit2 (EI-2) | N10: =IntvCosts!Q14& " (" &IntvCosts!Q13&")" -> unit3 (EI-3)
H11: =SUM(D11:G11) -> 0 | K11: =IF($I11<>"",VLOOKUP($I11,EnvImpacts!$G$14:$I$73,EnvImpacts!H$13,0),"-") -> - | L11: =IF($I11<>"",VLOOKUP($I11,EnvImpacts!$G$14:$I$73,EnvImpacts!I$13,0),"-") -> -
H12: =SUM(D12:G12) -> 0 | K12: =IF($I12<>"",VLOOKUP($I12,EnvImpacts!$G$14:$I$73,EnvImpacts!H$13,0),"-") -> - | L12: =IF($I12<>"",VLOOKUP($I12,EnvImpacts!$G$14:$I$73,EnvImpacts!I$13,0),"-") -> -
H13: 0 | K13: =IF($I13<>"",VLOOKUP($I13,EnvImpacts!$G$14:$I$73,EnvImpacts!H$13,0),"-") -> - | L13: =IF($I13<>"",VLOOKUP($I13,EnvImpacts!$G$14:$I$73,EnvImpacts!I$13,0),"-") -> -
H14: 0 | K14: =IF($I14<>"",VLOOKUP($I14,EnvImpacts!$G$14:$I$73,EnvImpacts!H$13,0),"-") -> - | L14: =IF($I14<>"",VLOOKUP($I14,EnvImpacts!$G$14:$I$73,EnvImpacts!I$13,0),"-") -> -
H15: 0 | K15: =IF($I15<>"",VLOOKUP($I15,EnvImpacts!$G$14:$I$73,EnvImpacts!H$13,0),"-") -> - | L15: =IF($I15<>"",VLOOKUP($I15,EnvImpacts!$G$14:$I$73,EnvImpacts!I$13,0),"-") -> -
H16: 0 | K16: =IF($I16<>"",VLOOKUP($I16,EnvImpacts!$G$14:$I$73,EnvImpacts!H$13,0),"-") -> - | L16: =IF($I16<>"",VLOOKUP($I16,EnvImpacts!$G$14:$I$73,EnvImpacts!I$13,0),"-") -> -
H17: 0 | K17: =IF($I17<>"",VLOOKUP($I17,EnvImpacts!$G$14:$I$73,EnvImpacts!H$13,0),"-") -> - | L17: =IF($I17<>"",VLOOKUP($I17,EnvImpacts!$G$14:$I$73,EnvImpacts!I$13,0),"-") -> -
H18: 0 | K18: =IF($I18<>"",VLOOKUP($I18,EnvImpacts!$G$14:$I$73,EnvImpacts!H$13,0),"-") -> - | L18: =IF($I18<>"",VLOOKUP($I18,EnvImpacts!$G$14:$I$73,EnvImpacts!I$13,0),"-") -> -
H19: 0 | K19: =IF($I19<>"",VLOOKUP($I19,EnvImpacts!$G$14:$I$73,EnvImpacts!H$13,0),"-") -> - | L19: =IF($I19<>"",VLOOKUP($I19,EnvImpacts!$G$14:$I$73,EnvImpacts!I$13,0),"-") -> -
H20: 0 | K20: =IF($I20<>"",VLOOKUP($I20,EnvImpacts!$G$14:$I$73,EnvImpacts!H$13,0),"-") -> - | L20: =IF($I20<>"",VLOOKUP($I20,EnvImpacts!$G$14:$I$73,EnvImpacts!I$13,0),"-") -> -
H21: 0 | K21: =IF($I21<>"",VLOOKUP($I21,EnvImpacts!$G$14:$I$73,EnvImpacts!H$13,0),"-") -> - | L21: =IF($I21<>"",VLOOKUP($I21,EnvImpacts!$G$14:$I$73,EnvImpacts!I$13,0),"-") -> -
H22: 0 | K22: =IF($I22<>"",VLOOKUP($I22,EnvImpacts!$G$14:$I$73,EnvImpacts!H$13,0),"-") -> - | L22: =IF($I22<>"",VLOOKUP($I22,EnvImpacts!$G$14:$I$73,EnvImpacts!I$13,0),"-") -> -
H23: 0 | K23: =IF($I23<>"",VLOOKUP($I23,EnvImpacts!$G$14:$I$73,EnvImpacts!H$13,0),"-") -> - | L23: =IF($I23<>"",VLOOKUP($I23,EnvImpacts!$G$14:$I$73,EnvImpacts!I$13,0),"-") -> -
H24: 0 | K24: =IF($I24<>"",VLOOKUP($I24,EnvImpacts!$G$14:$I$73,EnvImpacts!H$13,0),"-") -> - | L24: =IF($I24<>"",VLOOKUP($I24,EnvImpacts!$G$14:$I$73,EnvImpacts!I$13,0),"-") -> -
H25: 0 | K25: =IF($I25<>"",VLOOKUP($I25,EnvImpacts!$G$14:$I$73,EnvImpacts!H$13,0),"-") -> - | L25: =IF($I25<>"",VLOOKUP($I25,EnvImpacts!$G$14:$I$73,EnvImpacts!I$13,0),"-") -> -
H26: =SUM(D26:G26) -> 0 | K26: =IF($I26<>"",VLOOKUP($I26,EnvImpacts!$G$14:$I$73,EnvImpacts!H$13,0),"-") -> - | L26: =IF($I26<>"",VLOOKUP($I26,EnvImpacts!$G$14:$I$73,EnvImpacts!I$13,0),"-") -> -
I27: User defined impacts
H28: =SUM(D28:G28) -> 0
H29: =SUM(D29:G29) -> 0
C31: Totals | D31: =SUM(D10:D30) -> 0 | E31: =SUM(E10:E30) -> 0 | F31: =SUM(F10:F30) -> 0 | G31: =SUM(G10:G30) -> 0 | H31: =SUM(H10:H30) -> 0 | I31: Carried to 'IntvCosts' | L31: =SUMPRODUCT($J10:$J29,L10:L29) -> 0 | M31: =SUM(M10:M29) -> 0 | N31: =SUM(N10:N29) -> 0 | O31: Carried to 'IntvCosts'

Sheet IntvCost (14)
A1: MAINLINE | C1: =Flowchart!C1 -> Soil Cutting Model
B2: Costs & Environment Impact of Intervention
C3: Enter costs and environmental impacts for this intervention
B4: Interv. No: | C4: =-VALUE(RIGHT(CELL("filename",A1),4)) -> 14
B5: Intervention: | C5: =INDEX(IntvTriggers!D16:D30,C4,1) -> [unused]
B6: Scale: | C6: ONE intervention treats:
D8: Financial Costs Estimate [Euros] | I8: Environamental Impact Assessment
C9: Item | D9: =IntvCosts!D12 -> Labour | E9: =IntvCosts!E12 -> Plant | F9: =IntvCosts!F12 -> Materials | G9: =IntvCosts!G12 -> Tax | H9: TOTAL | I9: Environmental Impact | J9: Usage | K9: Unit of usage | L9: =IntvCosts!O12 -> Carbon Dioxide equivalent | M9: =IntvCosts!P12 -> User-defined impact (2) | N9: =IntvCosts!Q12 -> User-defined impact (3) | O9: Notes on estimation
D10: € | E10: € | F10: € | G10: € | H10: € | L10: kg (CO2e) | M10: =IntvCosts!P14& " (" &IntvCosts!P13&")" -> unit2 (EI-2) | N10: =IntvCosts!Q14& " (" &IntvCosts!Q13&")" -> unit3 (EI-3)
H11: =SUM(D11:G11) -> 0 | K11: =IF($I11<>"",VLOOKUP($I11,EnvImpacts!$G$14:$I$73,EnvImpacts!H$13,0),"-") -> - | L11: =IF($I11<>"",VLOOKUP($I11,EnvImpacts!$G$14:$I$73,EnvImpacts!I$13,0),"-") -> -
H12: =SUM(D12:G12) -> 0 | K12: =IF($I12<>"",VLOOKUP($I12,EnvImpacts!$G$14:$I$73,EnvImpacts!H$13,0),"-") -> - | L12: =IF($I12<>"",VLOOKUP($I12,EnvImpacts!$G$14:$I$73,EnvImpacts!I$13,0),"-") -> -
H13: 0 | K13: =IF($I13<>"",VLOOKUP($I13,EnvImpacts!$G$14:$I$73,EnvImpacts!H$13,0),"-") -> - | L13: =IF($I13<>"",VLOOKUP($I13,EnvImpacts!$G$14:$I$73,EnvImpacts!I$13,0),"-") -> -
H14: 0 | K14: =IF($I14<>"",VLOOKUP($I14,EnvImpacts!$G$14:$I$73,EnvImpacts!H$13,0),"-") -> - | L14: =IF($I14<>"",VLOOKUP($I14,EnvImpacts!$G$14:$I$73,EnvImpacts!I$13,0),"-") -> -
H15: 0 | K15: =IF($I15<>"",VLOOKUP($I15,EnvImpacts!$G$14:$I$73,EnvImpacts!H$13,0),"-") -> - | L15: =IF($I15<>"",VLOOKUP($I15,EnvImpacts!$G$14:$I$73,EnvImpacts!I$13,0),"-") -> -
H16: 0 | K16: =IF($I16<>"",VLOOKUP($I16,EnvImpacts!$G$14:$I$73,EnvImpacts!H$13,0),"-") -> - | L16: =IF($I16<>"",VLOOKUP($I16,EnvImpacts!$G$14:$I$73,EnvImpacts!I$13,0),"-") -> -
H17: 0 | K17: =IF($I17<>"",VLOOKUP($I17,EnvImpacts!$G$14:$I$73,EnvImpacts!H$13,0),"-") -> - | L17: =IF($I17<>"",VLOOKUP($I17,EnvImpacts!$G$14:$I$73,EnvImpacts!I$13,0),"-") -> -
H18: 0 | K18: =IF($I18<>"",VLOOKUP($I18,EnvImpacts!$G$14:$I$73,EnvImpacts!H$13,0),"-") -> - | L18: =IF($I18<>"",VLOOKUP($I18,EnvImpacts!$G$14:$I$73,EnvImpacts!I$13,0),"-") -> -
H19: 0 | K19: =IF($I19<>"",VLOOKUP($I19,EnvImpacts!$G$14:$I$73,EnvImpacts!H$13,0),"-") -> - | L19: =IF($I19<>"",VLOOKUP($I19,EnvImpacts!$G$14:$I$73,EnvImpacts!I$13,0),"-") -> -
H20: 0 | K20: =IF($I20<>"",VLOOKUP($I20,EnvImpacts!$G$14:$I$73,EnvImpacts!H$13,0),"-") -> - | L20: =IF($I20<>"",VLOOKUP($I20,EnvImpacts!$G$14:$I$73,EnvImpacts!I$13,0),"-") -> -
H21: 0 | K21: =IF($I21<>"",VLOOKUP($I21,EnvImpacts!$G$14:$I$73,EnvImpacts!H$13,0),"-") -> - | L21: =IF($I21<>"",VLOOKUP($I21,EnvImpacts!$G$14:$I$73,EnvImpacts!I$13,0),"-") -> -
H22: 0 | K22: =IF($I22<>"",VLOOKUP($I22,EnvImpacts!$G$14:$I$73,EnvImpacts!H$13,0),"-") -> - | L22: =IF($I22<>"",VLOOKUP($I22,EnvImpacts!$G$14:$I$73,EnvImpacts!I$13,0),"-") -> -
H23: 0 | K23: =IF($I23<>"",VLOOKUP($I23,EnvImpacts!$G$14:$I$73,EnvImpacts!H$13,0),"-") -> - | L23: =IF($I23<>"",VLOOKUP($I23,EnvImpacts!$G$14:$I$73,EnvImpacts!I$13,0),"-") -> -
H24: 0 | K24: =IF($I24<>"",VLOOKUP($I24,EnvImpacts!$G$14:$I$73,EnvImpacts!H$13,0),"-") -> - | L24: =IF($I24<>"",VLOOKUP($I24,EnvImpacts!$G$14:$I$73,EnvImpacts!I$13,0),"-") -> -
H25: 0 | K25: =IF($I25<>"",VLOOKUP($I25,EnvImpacts!$G$14:$I$73,EnvImpacts!H$13,0),"-") -> - | L25: =IF($I25<>"",VLOOKUP($I25,EnvImpacts!$G$14:$I$73,EnvImpacts!I$13,0),"-") -> -
H26: =SUM(D26:G26) -> 0 | K26: =IF($I26<>"",VLOOKUP($I26,EnvImpacts!$G$14:$I$73,EnvImpacts!H$13,0),"-") -> - | L26: =IF($I26<>"",VLOOKUP($I26,EnvImpacts!$G$14:$I$73,EnvImpacts!I$13,0),"-") -> -
I27: User defined impacts
H28: =SUM(D28:G28) -> 0
H29: =SUM(D29:G29) -> 0
C31: Totals | D31: =SUM(D10:D30) -> 0 | E31: =SUM(E10:E30) -> 0 | F31: =SUM(F10:F30) -> 0 | G31: =SUM(G10:G30) -> 0 | H31: =SUM(H10:H30) -> 0 | I31: Carried to 'IntvCosts' | L31: =SUMPRODUCT($J10:$J29,L10:L29) -> 0 | M31: =SUM(M10:M29) -> 0 | N31: =SUM(N10:N29) -> 0 | O31: Carried to 'IntvCosts'

Sheet IntvCost (15)
A1: MAINLINE | C1: =Flowchart!C1 -> Soil Cutting Model
B2: Costs & Environment Impact of Intervention
C3: Enter costs and environmental impacts for this intervention
B4: Interv. No: | C4: =-VALUE(RIGHT(CELL("filename",A1),4)) -> 15
B5: Intervention: | C5: =INDEX(IntvTriggers!D16:D30,C4,1) -> [unused]
B6: Scale: | C6: ONE intervention treats:
D8: Financial Costs Estimate [Euros] | I8: Environamental Impact Assessment
C9: Item | D9: =IntvCosts!D12 -> Labour | E9: =IntvCosts!E12 -> Plant | F9: =IntvCosts!F12 -> Materials | G9: =IntvCosts!G12 -> Tax | H9: TOTAL | I9: Environmental Impact | J9: Usage | K9: Unit of usage | L9: =IntvCosts!O12 -> Carbon Dioxide equivalent | M9: =IntvCosts!P12 -> User-defined impact (2) | N9: =IntvCosts!Q12 -> User-defined impact (3) | O9: Notes on estimation
D10: € | E10: € | F10: € | G10: € | H10: € | L10: kg (CO2e) | M10: =IntvCosts!P14& " (" &IntvCosts!P13&")" -> unit2 (EI-2) | N10: =IntvCosts!Q14& " (" &IntvCosts!Q13&")" -> unit3 (EI-3)
H11: =SUM(D11:G11) -> 0 | K11: =IF($I11<>"",VLOOKUP($I11,EnvImpacts!$G$14:$I$73,EnvImpacts!H$13,0),"-") -> - | L11: =IF($I11<>"",VLOOKUP($I11,EnvImpacts!$G$14:$I$73,EnvImpacts!I$13,0),"-") -> -
H12: =SUM(D12:G12) -> 0 | K12: =IF($I12<>"",VLOOKUP($I12,EnvImpacts!$G$14:$I$73,EnvImpacts!H$13,0),"-") -> - | L12: =IF($I12<>"",VLOOKUP($I12,EnvImpacts!$G$14:$I$73,EnvImpacts!I$13,0),"-") -> -
H13: 0 | K13: =IF($I13<>"",VLOOKUP($I13,EnvImpacts!$G$14:$I$73,EnvImpacts!H$13,0),"-") -> - | L13: =IF($I13<>"",VLOOKUP($I13,EnvImpacts!$G$14:$I$73,EnvImpacts!I$13,0),"-") -> -
H14: 0 | K14: =IF($I14<>"",VLOOKUP($I14,EnvImpacts!$G$14:$I$73,EnvImpacts!H$13,0),"-") -> - | L14: =IF($I14<>"",VLOOKUP($I14,EnvImpacts!$G$14:$I$73,EnvImpacts!I$13,0),"-") -> -
H15: 0 | K15: =IF($I15<>"",VLOOKUP($I15,EnvImpacts!$G$14:$I$73,EnvImpacts!H$13,0),"-") -> - | L15: =IF($I15<>"",VLOOKUP($I15,EnvImpacts!$G$14:$I$73,EnvImpacts!I$13,0),"-") -> -
H16: 0 | K16: =IF($I16<>"",VLOOKUP($I16,EnvImpacts!$G$14:$I$73,EnvImpacts!H$13,0),"-") -> - | L16: =IF($I16<>"",VLOOKUP($I16,EnvImpacts!$G$14:$I$73,EnvImpacts!I$13,0),"-") -> -
H17: 0 | K17: =IF($I17<>"",VLOOKUP($I17,EnvImpacts!$G$14:$I$73,EnvImpacts!H$13,0),"-") -> - | L17: =IF($I17<>"",VLOOKUP($I17,EnvImpacts!$G$14:$I$73,EnvImpacts!I$13,0),"-") -> -
H18: 0 | K18: =IF($I18<>"",VLOOKUP($I18,EnvImpacts!$G$14:$I$73,EnvImpacts!H$13,0),"-") -> - | L18: =IF($I18<>"",VLOOKUP($I18,EnvImpacts!$G$14:$I$73,EnvImpacts!I$13,0),"-") -> -
H19: 0 | K19: =IF($I19<>"",VLOOKUP($I19,EnvImpacts!$G$14:$I$73,EnvImpacts!H$13,0),"-") -> - | L19: =IF($I19<>"",VLOOKUP($I19,EnvImpacts!$G$14:$I$73,EnvImpacts!I$13,0),"-") -> -
H20: 0 | K20: =IF($I20<>"",VLOOKUP($I20,EnvImpacts!$G$14:$I$73,EnvImpacts!H$13,0),"-") -> - | L20: =IF($I20<>"",VLOOKUP($I20,EnvImpacts!$G$14:$I$73,EnvImpacts!I$13,0),"-") -> -
H21: 0 | K21: =IF($I21<>"",VLOOKUP($I21,EnvImpacts!$G$14:$I$73,EnvImpacts!H$13,0),"-") -> - | L21: =IF($I21<>"",VLOOKUP($I21,EnvImpacts!$G$14:$I$73,EnvImpacts!I$13,0),"-") -> -
H22: 0 | K22: =IF($I22<>"",VLOOKUP($I22,EnvImpacts!$G$14:$I$73,EnvImpacts!H$13,0),"-") -> - | L22: =IF($I22<>"",VLOOKUP($I22,EnvImpacts!$G$14:$I$73,EnvImpacts!I$13,0),"-") -> -
H23: 0 | K23: =IF($I23<>"",VLOOKUP($I23,EnvImpacts!$G$14:$I$73,EnvImpacts!H$13,0),"-") -> - | L23: =IF($I23<>"",VLOOKUP($I23,EnvImpacts!$G$14:$I$73,EnvImpacts!I$13,0),"-") -> -
H24: 0 | K24: =IF($I24<>"",VLOOKUP($I24,EnvImpacts!$G$14:$I$73,EnvImpacts!H$13,0),"-") -> - | L24: =IF($I24<>"",VLOOKUP($I24,EnvImpacts!$G$14:$I$73,EnvImpacts!I$13,0),"-") -> -
H25: 0 | K25: =IF($I25<>"",VLOOKUP($I25,EnvImpacts!$G$14:$I$73,EnvImpacts!H$13,0),"-") -> - | L25: =IF($I25<>"",VLOOKUP($I25,EnvImpacts!$G$14:$I$73,EnvImpacts!I$13,0),"-") -> -
H26: =SUM(D26:G26) -> 0 | K26: =IF($I26<>"",VLOOKUP($I26,EnvImpacts!$G$14:$I$73,EnvImpacts!H$13,0),"-") -> - | L26: =IF($I26<>"",VLOOKUP($I26,EnvImpacts!$G$14:$I$73,EnvImpacts!I$13,0),"-") -> -
I27: User defined impacts
H28: =SUM(D28:G28) -> 0
H29: =SUM(D29:G29) -> 0
C31: Totals | D31: =SUM(D10:D30) -> 0 | E31: =SUM(E10:E30) -> 0 | F31: =SUM(F10:F30) -> 0 | G31: =SUM(G10:G30) -> 0 | H31: =SUM(H10:H30) -> 0 | I31: Carried to 'IntvCosts' | L31: =SUMPRODUCT($J10:$J29,L10:L29) -> 0 | M31: =SUM(M10:M29) -> 0 | N31: =SUM(N10:N29) -> 0 | O31: Carried to 'IntvCosts'

Sheet SRV Calculation
A1: MAINLINE | C1: =Flowchart!C1 -> Soil Cutting Model
B2: Initial Condition Calculation
C3: This sheet calculates the initial condition of the slope. There is no user input in this sheet.
C5: InputCondition Values
D7: Cutting Soil Type | H7: Slope Angle from Horiontal | L7: Slope Height (Vertically) | P7: Adjacent Land Slope | T7: Adjacent Land Features
D8: Option Button Value | E8: 2 | H8: Option Button Value | I8: 1 | L8: Option Button Value | M8: 1 | P8: Option Button Value | Q8: 2 | T8: Check Boxes
C9: 1 | D9: Cohesive | E9: =$E$8=C9 -> FALSE | G9: 1 | H9: α < 15° | I9: =$I$8=G9 -> TRUE | K9: 1 | L9: H < 3m | M9: =$M$8=K9 -> TRUE | O9: 1 | P9: Negative Slope | Q9: =$Q$8=O9 -> FALSE | T9: Any water course present | U9: FALSE
C10: 2 | D10: Granular | E10: =$E$8=C10 -> TRUE | G10: 2 | H10: 15° <= α < 25° | I10: =$I$8=G10 -> FALSE | K10: 2 | L10: 3m <= H < 10m | M10: =$M$8=K10 -> FALSE | O10: 2 | P10: No Slope | Q10: =$Q$8=O10 -> TRUE | T10: Any unstable land present | U10: FALSE
C11: 3 | D11: Inter-bedded | E11: =$E$8=C11 -> FALSE | G11: 3 | H11: 25° <= α < 35° | I11: =$I$8=G11 -> FALSE | K11: 3 | L11: H <= 10m | M11: FALSE | O11: 3 | P11: Positive Slope | Q11: FALSE
G12: 4 | H12: α >= 35° | I12: =$I$8=G12 -> FALSE
D14: Movement Features | H14: Vegetation Features | L14: Surface Water Features | P14: Drainage Features | T14: Animal Burrows
D15: Option Button Value | E15: 1 | H15: Option Button Value | I15: 2 | L15: Option Button Value | M15: 1 | P15: Option Button Value | Q15: 1 | T15: Option Button Value | U15: 1
C16: 1 | D16: None | E16: =$E$15=C16 -> TRUE | G16: 1 | H16: Slope bare or sparse | I16: =$I$15=G16 -> FALSE | K16: 1 | L16: None | M16: =$M$15=K16 -> TRUE | O16: 1 | P16: Drainage present | Q16: =$Q$15=O16 -> TRUE | S16: 1 | T16: None | U16: =$U$15=S16 -> TRUE
C17: 2 | D17: Some observed | E17: =$E$15=C17 -> FALSE | G17: 2 | H17: Vegetation present | I17: =$I$15=G17 -> TRUE | K17: 2 | L17: Water features observed | M17: =$M$15=K17 -> FALSE | O17: 2 | P17: Drainage absent | Q17: =$Q$15=O17 -> FALSE | S17: 2 | T17: Occasional small burrows | U17: =$U$15=S17 -> FALSE
D18: If 'Some observed' | H18: If 'Vegetation present' | L18: If 'Water features observed' | O18: 3 | P18: Unknown (no features) | Q18: FALSE | S18: 3 | T18: Occasional large burrows | U18: FALSE
D19: Check Boxes | H19: Check Boxes | L19: Check Boxes | P19: If 'Drainage present' | S19: 4 | T19: Frequent burrows | U19: FALSE
D20: Remediated | E20: FALSE | H20: Abundant grass | I20: TRUE | L20: Surface Flow | M20: FALSE | P20: Option Button Value | Q20: 2
D21: Track Heave | E21: FALSE | H21: Occasional trees | I21: FALSE | L21: Erosion Channels | M21: FALSE | O21: 1 | P21: Competent drainage | Q21: =$Q$20=O21 -> FALSE | T21: Construction Activity
D22: Toe Bulging | E22: FALSE | H22: Frequent trees | I22: FALSE | L22: Marshy Ground | M22: FALSE | O22: 2 | P22: Fully or partially blocked | Q22: =$Q$20=O22 -> TRUE | T22: Check Boxes
D23: Crest Slump | E23: FALSE | H23: Tilted trees | I23: FALSE | L23: Toe Ponding | M23: FALSE | P23: If 'Fully or partially blocked' | T23: Any crest stockpiles present | U23: FALSE
D24: Midslope Hummocks | E24: FALSE | L24: Toe fine accumulating | M24: FALSE | P24: Check Boxes | T24: Any toe excavations present | U24: FALSE
D25: Toe Debris | E25: FALSE | L25: Crest erosion | M25: FALSE | P25: Crest blocked | Q25: FALSE
P26: Slope blocked | Q26: TRUE | T26: Cracking
P27: Toe blocked | Q27: FALSE | T27: Check Boxe
T28: Slope cracked >3mm | U28: FALSE
C32: SKMA Input Values
C33: Logic Checks for Conditional Formatting
C35: Movement Features
C36: 1 | D36: Features but not identified | E36: =AND(E17,NOT(OR(E20:E25))) -> FALSE
C37: 2 | D37: None feature but some identified | E37: =AND(E16,OR(E20:E25)) -> FALSE
D38: Either 1) or 2) | E38: =OR(E37,E36) -> FALSE
C40: Vegetation Features
C41: 3 | D41: Features but not identified | E41: =AND(I17,NOT(OR(I20:I23))) -> FALSE
C42: 4 | D42: None feature but some identified | E42: =AND(I16,OR(I20:I23)) -> FALSE
D43: Either 3) or 4) | E43: =OR(E42,E41) -> FALSE
C45: Surface Water Features
C46: 5 | D46: Features but not identified | E46: =AND(M17,NOT(OR(M20:M25))) -> FALSE
C47: 6 | D47: None feature but some identified | E47: =AND(M16,OR(M20:M25)) -> FALSE
D48: Either 5) or 6) | E48: =OR(E47,E46) -> FALSE
C50: Drainage Features
C51: 7 | D51: Drainage Present | E51: =Q16 -> TRUE
C52: 8 | D52: Drainage Present and Blocked | E52: =AND(Q16,Q22) -> TRUE
C53: 9 | D53: DP&B but no block type identified | E53: =AND('SRV Calculation'!E52,NOT(OR('SRV Calculation'!Q25,'SRV Calculation'!Q26,'SRV Calculation'!Q27))) -> FALSE
C54: 10 | D54: Drainage Present and Competent | E54: =AND(Q16,Q21) -> FALSE
C55: 11 | D55: Drainage P&C but block identified | E55: =AND(Q21,OR(Q25,Q26,Q27)) -> FALSE
C56: 12 | D56: Either 9) or 11) | E56: =OR(E53,E55) -> FALSE
C57: 13 | D57: Both 7) and 12) | E57: =AND(E51,E56) -> FALSE
C61: SKMA Inputs - Consolidated Values
D63: Cutting Soil Type | E63: =E8 -> 2
D64: Slope Angle from Horiontal | E64: =I8 -> 1
D65: Slope Height (Vertically) | E65: =M8 -> 1
D66: Adjacent Land Slope | E66: =Q8 -> 2
D67: Animal Burrows | E67: =U15 -> 1
D69: Adjacent Land Features
D70: Slope Only | E70: =NOT(OR(U9,U10)) -> TRUE | F70: 1
D71: Slope + Water Course | E71: =AND(U9,NOT(U10)) -> FALSE | F71: 2
D72: Slope + Unstable Land | E72: =AND(U10,NOT(U9)) -> FALSE | F72: 3
D73: Slope + Water + Unstable Land | E73: =AND(U9,U10) -> FALSE | F73: 4
D74: Selected: | F74: =VLOOKUP(TRUE,E70:F73,2,FALSE) -> 1
D76: Movement Features | H76: Vegetation Features | L76: Surface Water Features | P76: Drainage Features | T76: Construction Activity
D77: None or Remediated | E77: =OR(E16,E20) -> TRUE | H77: Slope cracked (>3mm) | I77: =$U$28 -> FALSE | L77: None | M77: =$M$16 -> TRUE | P77: None | Q77: =IF(OR(Q78:Q82),FALSE,TRUE) -> FALSE | T77: None | U77: =NOT(OR($U$23,$U$24)) -> TRUE
D78: Track Heave | E78: =E21 -> FALSE | H78: Slope bare or sparse | I78: =$I$16 -> FALSE | L78: Surface Flow | M78: =$M$20 -> FALSE | P78: Competent drainage | Q78: =AND($Q$16,$Q$21) -> FALSE | T78: Crest stockpile | U78: =$U$23 -> FALSE
D79: Toe Bulging | E79: =E22 -> FALSE | H79: Abundant grass | I79: =$I$20 -> TRUE | L79: Erosion Channels | M79: =$M$21 -> FALSE | P79: Crest blocked | Q79: =AND($Q$16,$Q$25) -> FALSE | T79: Toe excavation | U79: =$U$24 -> FALSE
D80: Crest Slump | E80: =E23 -> FALSE | H80: Occasional trees | I80: =$I$21 -> FALSE | L80: Marshy Ground | M80: =$M$22 -> FALSE | P80: Slope blocked | Q80: =AND($Q$16,$Q$26) -> TRUE
D81: Midslope Hummocks | E81: =E24 -> FALSE | H81: Frequent trees | I81: =$I$22 -> FALSE | L81: Toe Ponding | M81: =$M$23 -> FALSE | P81: Toe blocked | Q81: =AND($Q$16,$Q$27) -> FALSE
D82: Toe Debris | E82: =E25 -> FALSE | H82: Tilted trees | I82: =$I$23 -> FALSE | L82: Toe fine accumulating | M82: =$M$24 -> FALSE | P82: No drains | Q82: =$Q$17 -> FALSE
L83: Crest erosion | M83: =$M$25 -> FALSE
Y87: Soil Type | AB87: Slope Material | AD87: =E63 -> 2
AA88: 1 | AB88: MAT1 | AC88: Cohesive
AA89: 2 | AB89: MAT2 | AC89: Granular
AA90: 3 | AB90: MAT3 | AC90: Inter-bedded
AC92: Soil offset | AD92: =(AD87-1)*(COLUMNS(AF95:AM95)-1) -> 7
AF95: 1 | AM95: 2 | AT95: 3
AF96: Cohesive | AM96: Granular | AT96: Inter-bedded
AH99: Combined Angle & Height factors | AO99: Combined Angle & Height factors | AV99: Combined Angle & Height factors
Y100: Slope Angle & Height Factor (SHF) | AB100: Slope Angle | AD100: =E64 -> 1 | AH100: SAF1 | AI100: SAF2 | AJ100: SAF3 | AK100: SAF4 | AO100: SAF1 | AP100: SAF2 | AQ100: SAF3 | AR100: SAF4 | AV100: SAF1 | AW100: SAF2 | AX100: SAF3 | AY100: SAF4 | BB100: SHF Applied Score
AA101: 1 | AB101: SAF1 | AC101: α < 15 | AH101: 0 | AI101: 1 | AJ101: 2 | AK101: 3 | AO101: 0 | AP101: 0 | AQ101: 0 | AR101: 1 | AV101: 0 | AW101: 1 | AX101: 2 | AY101: 3
AA102: 2 | AB102: SAF2 | AC102: 15 <= α < 25 | AF102: SHF1 | AG102: -1 | AH102: 0 | AI102: 0 | AJ102: 1 | AK102: 2 | AM102: SHF1 | AN102: 0 | AO102: 0 | AP102: 0 | AQ102: 0 | AR102: 1 | AT102: SHF1 | AU102: 0 | AV102: 0 | AW102: 1 | AX102: 2 | AY102: 3 | BB102: =INDEX(OFFSET(AH102:AK104,0,$AD$92),AD106,AD100) -> 0
AA103: 3 | AB103: SAF3 | AC103: 25 <= α < 35 | AF103: SHF2 | AG103: 0 | AH103: 0 | AI103: 1 | AJ103: 2 | AK103: 3 | AM103: SHF2 | AN103: 1 | AO103: 1 | AP103: 1 | AQ103: 1 | AR103: 2 | AT103: SHF2 | AU103: 1 | AV103: 1 | AW103: 2 | AX103: 3 | AY103: 4
AA104: 4 | AB104: SAF4 | AC104: α >= 35 | AF104: SHF3 | AG104: 1 | AH104: 1 | AI104: 2 | AJ104: 3 | AK104: 4 | AM104: SHF3 | AN104: 2 | AO104: 2 | AP104: 2 | AQ104: 2 | AR104: 3 | AT104: SHF3 | AU104: 2 | AV104: 2 | AW104: 3 | AX104: 4 | AY104: 5
AB106: Slope Height | AD106: =E65 -> 1
AA107: 1 | AB107: SHF1 | AC107: h < 3
AA108: 2 | AB108: SHF2 | AC108: 3 <= h < 10
AA109: 3 | AB109: SHF3 | AC109: h >= 10
AH112: Combined Adj. Land factors | AO112: Combined Adj. Land factors | AV112: Combined Adj. Land factors | BB112: ALF Applied Score
Y113: Adjacent Land Factor (ALF) | AB113: Adjacent Land Slope | AD113: =E66 -> 2 | AH113: ALF1 | AI113: ALF2 | AJ113: ALF3 | AK113: ALF4 | AO113: ALF1 | AP113: ALF2 | AQ113: ALF3 | AR113: ALF4 | AV113: ALF1 | AW113: ALF2 | AX113: ALF3 | AY113: ALF4
AA114: 1 | AB114: ALS1 | AC114: -ve slope | AG114: ALS1 | AH114: 0 | AI114: 0 | AJ114: 0 | AK114: 0 | AN114: ALS1 | AO114: 0 | AP114: 0 | AQ114: 0 | AR114: 0 | AU114: ALS1 | AV114: 0 | AW114: 0 | AX114: 0 | AY114: 0 | BB114: =INDEX(OFFSET(AH114:AK116,0,$AD$92),AD113,AD118) -> 0
AA115: 2 | AB115: ALS2 | AC115: No slope | AG115: ALS2 | AH115: 0 | AI115: 1 | AJ115: 0 | AK115: 1 | AN115: ALS2 | AO115: 0 | AP115: 1 | AQ115: 0 | AR115: 1 | AU115: ALS2 | AV115: 0 | AW115: 1 | AX115: 0 | AY115: 1
AA116: 3 | AB116: ALS3 | AC116: +ve slope | AG116: ALS3 | AH116: 1 | AI116: 2 | AJ116: 1.5 | AK116: 2 | AN116: ALS3 | AO116: 1 | AP116: 2 | AQ116: 1.5 | AR116: 2 | AU116: ALS3 | AV116: 1 | AW116: 2 | AX116: 1.5 | AY116: 2
AB118: Adjacent Land Features | AD118: =F74 -> 1
AA119: 1 | AB119: ALF1 | AC119: Slope Only
AA120: 2 | AB120: ALF2 | AC120: Slope + Water Course
AA121: 3 | AB121: ALF3 | AC121: Slope + Unstable Land
AA122: 4 | AB122: ALF4 | AC122: Slope + W.C. + U.L.
Y127: Movement Assessment (MA) | AB127: MA Features | AG127: MA Scoring Matrix | AQ127: MA Feaure Scores | BB127: MA Applied Score
AS128: =TRANSPOSE(AD130:AD135) -> TRUE | AT128: FALSE | AU128: FALSE | AV128: FALSE | AW128: FALSE | AX128: FALSE
AB129: Movement Features | AH129: MA1 | AI129: MA2 | AJ129: MA3 | AK129: MA4 | AL129: MA5 | AM129: MA6 | AS129: MA1 | AT129: MA2 | AU129: MA3 | AV129: MA4 | AW129: MA5 | AX129: MA6 | BB129: =MAX(AS130:AX135) -> 0
AA130: 1 | AB130: MA1 | AC130: None or Remediated | AD130: =E77:E82 -> TRUE | AG130: MA1 | AH130: 0 | AI130: 4 | AJ130: 2 | AK130: 1 | AL130: 1 | AM130: 1 | AQ130: =AD130:AD135 -> TRUE | AR130: MA1 | AS130: =IF(AND($AQ130,AS$128),AH130,"") -> 0 | AT130: =IF(AND($AQ130,AT$128),AI130,"") -> 
AA131: 2 | AB131: MA2 | AC131: Track Heave | AD131: FALSE | AG131: MA2 | AH131: 4 | AI131: 4 | AJ131: 4 | AK131: 5 | AL131: 4 | AM131: 4 | AQ131: FALSE | AR131: MA2 | AS131: =IF(AND($AQ131,AS$128),AH131,"") -> 
AA132: 3 | AB132: MA3 | AC132: Toe Bulging | AD132: FALSE | AG132: MA3 | AH132: 2 | AI132: 4 | AJ132: 2 | AK132: 3 | AL132: 2.5 | AM132: 2 | AQ132: FALSE | AR132: MA3
AA133: 4 | AB133: MA4 | AC133: Crest Slump | AD133: FALSE | AG133: MA4 | AH133: 1 | AI133: 5 | AJ133: 3 | AK133: 1 | AL133: 2 | AM133: 2 | AQ133: FALSE | AR133: MA4
AA134: 5 | AB134: MA5 | AC134: Midslope Hummocks | AD134: FALSE | AG134: MA5 | AH134: 1 | AI134: 4 | AJ134: 2.5 | AK134: 2 | AL134: 1 | AM134: 1.5 | AQ134: FALSE | AR134: MA5
AA135: 6 | AB135: MA6 | AC135: Toe Debris | AD135: FALSE | AG135: MA6 | AH135: 1 | AI135: 4 | AJ135: 2 | AK135: 2 | AL135: 1.5 | AM135: 1 | AQ135: FALSE | AR135: MA6
Y139: Vegetation Assessment (VA) | AB139: VA Features | AG139: VA Scoring Matrix | AQ139: VA Feaure Scores | BB139: VA Applied Score
AS140: =TRANSPOSE(AD142:AD147) -> FALSE | AT140: FALSE | AU140: TRUE | AV140: FALSE | AW140: FALSE | AX140: FALSE
AB141: Vegetation Features | AH141: VA1 | AI141: VA2 | AJ141: VA3 | AK141: VA4 | AL141: VA5 | AM141: VA6 | AS141: VA1 | AT141: VA2 | AU141: VA3 | AV141: VA4 | AW141: VA5 | AX141: VA6 | BB141: =MAX(AS142:AX147) -> 0
AA142: 1 | AB142: VA1 | AC142: Slope Cracked (>3mm) | AD142: =I77:I82 -> FALSE | AG142: VA1 | AH142: n/a | AI142: 0.3 | AJ142: 0.3 | AK142: 0.3 | AL142: 0.5 | AM142: 1 | AQ142: =AD142:AD147 -> FALSE | AR142: VA1 | AS142: =IF(AND($AQ142,AS$140),AH142,"") -> 
AA143: 2 | AB143: VA2 | AC143: Slope Bare or Sparse | AD143: FALSE | AG143: VA2 | AH143: 0.3 | AI143: 0.2 | AJ143: n/a | AK143: 0.1 | AL143: 0.3 | AM143: 1 | AQ143: FALSE | AR143: VA2
AA144: 3 | AB144: VA3 | AC144: Abundant Grass | AD144: TRUE | AG144: VA3 | AH144: 0.3 | AI144: n/a | AJ144: 0 | AK144: 0 | AL144: 0.1 | AM144: 1 | AQ144: TRUE | AR144: VA3 | AU144: 0
AA145: 4 | AB145: VA4 | AC145: Occasional Trees | AD145: FALSE | AG145: VA4 | AH145: 0.3 | AI145: 0.1 | AJ145: 0 | AK145: 0 | AL145: n/a | AM145: 1 | AQ145: FALSE | AR145: VA4
AA146: 5 | AB146: VA5 | AC146: Frequent Trees | AD146: FALSE | AG146: VA5 | AH146: 0.5 | AI146: 0.3 | AJ146: 0.1 | AK146: n/a | AL146: 0.3 | AM146: 1.5 | AQ146: FALSE | AR146: VA5
AA147: 6 | AB147: VA6 | AC147: Tilted Trees | AD147: FALSE | AG147: VA6 | AH147: 1 | AI147: 1 | AJ147: 1 | AK147: 1 | AL147: 1.5 | AM147: 1 | AQ147: FALSE | AR147: VA6
Y151: Surface Water Assessment (SWA) | AB151: SWA Features | AG151: SWA Scoring Matrix | BB151: SWA Applied Score
AS152: =TRANSPOSE(AD154:AD160) -> TRUE | AT152: FALSE | AU152: FALSE | AV152: FALSE | AW152: FALSE | AX152: FALSE | AY152: FALSE
AB153: Surface Water Feature 1 | AH153: SWA1 | AI153: SWA2 | AJ153: SWA3 | AK153: SWA4 | AL153: SWA5 | AM153: SWA6 | AN153: SWA7 | AS153: SWA1 | AT153: SWA2 | AU153: SWA3 | AV153: SWA4 | AW153: SWA5 | AX153: SWA6 | AY153: SWA7 | BB153: =MAX(AS154:AY160) -> 0
AA154: 1 | AB154: SWA1 | AC154: None | AD154: =M77:M83 -> TRUE | AG154: SWA1 | AH154: 0 | AI154: 2 | AJ154: 1 | AK154: 1 | AL154: 0.5 | AM154: 0.5 | AN154: 1 | AQ154: =AD154:AD160 -> TRUE | AR154: SWA1 | AS154: =IF(AND($AQ154,AS$152),AH154,"") -> 0 | AT154: =IF(AND($AQ154,AT$152),AI154,"") -> 
AA155: 2 | AB155: SWA2 | AC155: Surface Flow | AD155: FALSE | AG155: SWA2 | AH155: 2 | AI155: 2 | AJ155: 2.5 | AK155: 2.5 | AL155: 2.5 | AM155: 2.5 | AN155: 3 | AQ155: FALSE | AR155: SWA2 | AS155: =IF(AND($AQ155,AS$152),AH155,"") -> 
AA156: 3 | AB156: SWA3 | AC156: Erosion Channels | AD156: FALSE | AG156: SWA3 | AH156: 1 | AI156: 2.5 | AJ156: 1 | AK156: 1.5 | AL156: 1.5 | AM156: 1.5 | AN156: 2 | AQ156: FALSE | AR156: SWA3
AA157: 4 | AB157: SWA4 | AC157: Marshy Ground | AD157: FALSE | AG157: SWA4 | AH157: 1 | AI157: 2.5 | AJ157: 1.5 | AK157: 1 | AL157: 1 | AM157: 1 | AN157: 1.5 | AQ157: FALSE | AR157: SWA4
AA158: 5 | AB158: SWA5 | AC158: Toe Ponding | AD158: FALSE | AG158: SWA5 | AH158: 0.5 | AI158: 2.5 | AJ158: 1.5 | AK158: 1 | AL158: 0.5 | AM158: 1 | AN158: 1.5 | AQ158: FALSE | AR158: SWA5
AA159: 6 | AB159: SWA6 | AC159: Toe Fines Accumulating | AD159: FALSE | AG159: SWA6 | AH159: 0.5 | AI159: 2.5 | AJ159: 1.5 | AK159: 1 | AL159: 1 | AM159: 0.5 | AN159: 1.5 | AQ159: FALSE | AR159: SWA6
AA160: 7 | AB160: SWA7 | AC160: Crest Erosion | AD160: FALSE | AG160: SWA7 | AH160: 1 | AI160: 3 | AJ160: 2 | AK160: 1.5 | AL160: 1.5 | AM160: 1.5 | AN160: 1 | AQ160: FALSE | AR160: SWA7
Y164: Drainage Assessment (DA) | AB164: DA Features | AG164: DA Scoring Matrix | AQ164: DA Feaure Scores | BB164: DA Applied Score
AS165: =TRANSPOSE(AD167:AD172) -> FALSE | AT165: FALSE | AU165: FALSE | AV165: TRUE | AW165: FALSE | AX165: FALSE
AB166: Drainage Features | AH166: DA1 | AI166: DA2 | AJ166: DA3 | AK166: DA4 | AL166: DA5 | AM166: DA6 | AS166: DA1 | AT166: DA2 | AU166: DA3 | AV166: DA4 | AW166: DA5 | AX166: DA6 | BB166: =MAX(AS167:AX172) -> 0.5
AA167: 1 | AB167: DA1 | AC167: None | AD167: =(Q77:Q82) -> FALSE | AG167: DA1 | AH167: 0 | AI167: =AK177 -> 0 | AJ167: =AK178 -> 0.5 | AK167: =AH170 -> 0.5 | AL167: =AH171 -> 0.5 | AM167: =AH172 -> 1 | AQ167: =AD167:AD172 -> FALSE | AR167: DA1 | AS167: =IF(AND($AQ167,AS$165),AH167,"") ->  | AT167: =IF(AND($AQ167,AT$165),AI167,"") -> 
AA168: 2 | AB168: DA2 | AC168: Competent drainage | AD168: FALSE | AG168: DA2 | AH168: =AK177 -> 0 | AI168: =AK177 -> 0 | AJ168: =AI169 -> 0.5 | AK168: =AI170 -> 0.5 | AL168: =AI171 -> 0.5 | AM168: n/a | AQ168: FALSE | AR168: DA2 | AS168: =IF(AND($AQ168,AS$165),AH168,"") -> 
AA169: 3 | AB169: DA3 | AC169: Crest Blocked | AD169: FALSE | AG169: DA3 | AH169: =AK178 -> 0.5 | AI169: 0.5 | AJ169: =AK178 -> 0.5 | AK169: =AK179 -> 1 | AL169: =AJ171 -> 1 | AM169: n/a | AQ169: FALSE | AR169: DA3
AA170: 4 | AB170: DA4 | AC170: Slope Blocked | AD170: TRUE | AG170: DA4 | AH170: 0.5 | AI170: 0.5 | AJ170: =AK179 -> 1 | AK170: 0.5 | AL170: =AK171 -> 1 | AM170: n/a | AQ170: TRUE | AR170: DA4 | AV170: 0.5
AA171: 5 | AB171: DA5 | AC171: Toe Blocked | AD171: FALSE | AG171: DA5 | AH171: 0.5 | AI171: 0.5 | AJ171: 1 | AK171: 1 | AL171: 0.5 | AM171: n/a | AQ171: FALSE | AR171: DA5
AA172: 6 | AB172: DA6 | AC172: No Drains | AD172: FALSE | AG172: DA6 | AH172: 1 | AI172: n/a | AJ172: n/a | AK172: n/a | AL172: n/a | AM172: 1 | AQ172: FALSE | AR172: DA6
AH174: DA Variable Matrix Factors
AH176: Adjacent slope | AK176: Selected | AL176: TRUE | AM176: FALSE
AH177: ALF>0? | AI177: =BB114>0 -> FALSE | AJ177: DAA | AK177: =IF(AI177,AL177,AM177) -> 0 | AL177: -1 | AM177: 0
AH178: ALF3? | AI178: =AD113=3 -> FALSE | AJ178: DAB | AK178: =IF(AI178,AL178,AM178) -> 0.5 | AL178: 1 | AM178: 0.5
AJ179: DAC | AK179: =IF(AI178,AL179,AM179) -> 1 | AL179: 1.5 | AM179: 1
Y183: Burrowing Assessment (BA) | AB183: BA Features | AG183: BA Scoring Matrix | BB183: BA Applied Score
AB185: Burrowing Features | AD185: =E67 -> 1 | BB185: =INDEX(AH186:AH189,AD185,1) -> 0
AA186: 1 | AB186: BA1 | AC186: None | AG186: BA1 | AH186: 0
AA187: 2 | AB187: BA2 | AC187: Occasional Small | AG187: BA2 | AH187: 0
AA188: 3 | AB188: BA3 | AC188: Occasional Large | AG188: BA3 | AH188: 1
AA189: 4 | AB189: BA4 | AC189: Frequent | AG189: BA4 | AH189: 2
Y193: Construction Activity Assessment (CA) | AB193: CA Features | AG193: CA Scoring Matrix | AQ193: CA Feaure Scores | BB193: CA Applied Score
AS194: =TRANSPOSE(AD196:AD198) -> TRUE | AT194: FALSE | AU194: FALSE
AB195: Construction Activity Features | AH195: CA1 | AI195: CA2 | AJ195: CA3 | AS195: CA1 | AT195: CA2 | AU195: CA3 | BB195: =MAX(AS196:AU198) -> 0
AA196: 1 | AB196: CA1 | AC196: None | AD196: =U77:U79 -> TRUE | AG196: CA1 | AH196: 0 | AI196: 1 | AJ196: 1 | AQ196: =AD196:AD198 -> TRUE | AR196: CA1 | AS196: =IF(AND($AQ196,AS$194),AH196,"") -> 0
AA197: 2 | AB197: CA2 | AC197: Crest stockpile | AD197: FALSE | AG197: CA2 | AH197: 1 | AI197: 1 | AJ197: 2 | AQ197: FALSE | AR197: CA2
AA198: 3 | AB198: CA3 | AC198: Toe excavation | AD198: FALSE | AG198: CA3 | AH198: 1 | AI198: 2 | AJ198: 1 | AQ198: FALSE | AR198: CA3

Sheet InitialScores
A1: MAINLINE | C1: =Flowchart!C1 -> Soil Cutting Model
B2: Initial Condition of Slope
C3: This sheet shows the calculation of the initial slope risk factor
C4: There is no user input on this sheet.
B5: Summary of Slope Scores
C6: Code | D6: Assessment | E6: Value | F6: Min. | G6: Max.
C7: MA | D7: Movement assessment | E7: ='SRV Calculation'!BB129 -> 0 | F7: =MIN('SRV Calculation'!AH130:AM135) -> 0 | G7: =MAX('SRV Calculation'!AH130:AM135) -> 5
C8: VA | D8: Vegetation Assessment | E8: ='SRV Calculation'!BB141 -> 0 | F8: =MIN('SRV Calculation'!AH142:AM147) -> 0 | G8: =MAX('SRV Calculation'!AH142:AM147) -> 1.5
C9: SW | D9: Surface Water Assessment | E9: ='SRV Calculation'!BB153 -> 0 | F9: =MIN('SRV Calculation'!AH154:AN160) -> 0 | G9: =MAX('SRV Calculation'!AH154:AN160) -> 3
C10: DA | D10: Drainage Assessment | E10: ='SRV Calculation'!BB166 -> 0.5 | F10: =MIN('SRV Calculation'!AH167:AM172,'SRV Calculation'!AL177:AM179) -> -1 | G10: =MAX('SRV Calculation'!AH167:AM172,'SRV Calculation'!AL177:AM179) -> 1.5
C11: BA | D11: Burrowing Assessment | E11: ='SRV Calculation'!BB185 -> 0 | F11: =MIN('SRV Calculation'!AH186:AH189) -> 0 | G11: =MAX('SRV Calculation'!AH186:AH189) -> 2
C12: CA | D12: Construction Activity Assessment | E12: ='SRV Calculation'!BB195 -> 0 | F12: =MIN('SRV Calculation'!AH196:AJ198) -> 0 | G12: =MAX('SRV Calculation'!AH196:AJ198) -> 2
C13: SAV | D13: Slope Assessment Value (Variable) | E13: =MAX(E7,E8)+MAX(E9,E10)+E11+E12 -> 0.5 | F13: =IF(F8=-1,F7+F8,MAX(F7,F8))+MAX(F9,F10)+F11+F12 -> 0 | G13: =IF(G8=-1,G7+G8,MAX(G7,G8))+MAX(G9,G10)+G11+G12 -> 12
C14: SHF | D14: Slope Angle & Height Factor | E14: ='SRV Calculation'!BB102 -> 0 | F14: =MIN(OFFSET('SRV Calculation'!AH102:AK104,0,'SRV Calculation'!AD92)) -> 0 | G14: =MAX(OFFSET('SRV Calculation'!AH102:AK104,0,'SRV Calculation'!AD92)) -> 3
C15: ALF | D15: Adjacent Land Factor | E15: ='SRV Calculation'!BB114 -> 0 | F15: =MIN(OFFSET('SRV Calculation'!AH114:AK116,0,'SRV Calculation'!AD92)) -> 0 | G15: =MAX(OFFSET('SRV Calculation'!AH114:AK116,0,'SRV Calculation'!AD92)) -> 2
C16: BV | D16: Base Value (constant) | E16: =E14+E15 -> 0 | F16: =F14+F15 -> 0 | G16: =G14+G15 -> 5
C17: BVm | D17: Modified base value | E17: =1+E16*0.1 -> 1 | F17: =1+F16*0.1 -> 1 | G17: =1+G16*0.1 -> 1.5
C18: SRV | D18: Slope Risk Value | E18: =E13*E17 -> 0.5 | F18: =F13*F17 -> 0 | G18: =G13*G17 -> 18

Sheet DetRates
A1: MAINLINE | C1: =Flowchart!C1 -> Soil Cutting Model
A2: Deterioration Data
B3: There is no user input on this sheet.
B4: This sheet includes all the data on deterioration which is used in the 'Projection' sheet.
B5: Increments are used so that variables will change over successive periods even if increments are small.
B6: If output values were given a variable could become fixed at one value.
B7: Increments are shown for 5 years
C9: Slope Soil Type | D9: ='SRV Calculation'!AD87 -> 2 | G9: =OFFSET(N14,0,D10) -> Granular
C10: Soil type offset | D10: =MATCH(D9,N13:AG13,0)-1 -> 7
G12: Changes in condition variables during deterioration
N13: 1 | U13: 2 | AB13: 3
G14: Inputs | N14: Cohesive | U14: Granular | AB14: Inter-bedded
G15: MA | H15: VA | I15: SW | J15: DA | K15: BA | L15: CA | N15: MA | O15: VA | P15: SW | Q15: DA | R15: BA | S15: CA | U15: MA | V15: VA | W15: SW | X15: DA | Y15: BA | Z15: CA | AB15: MA | AC15: VA | AD15: SW | AE15: DA | AF15: BA | AG15: CA
G16: Movement Assessment | H16: Vegetation Assessment | I16: Surface Water Assessment | J16: Drainage Assessment | K16: Burrowing Assessment | L16: Construction Activity Assessment | N16: Movement Assessment | O16: Vegetation Assessment | P16: Surface Water Assessment | Q16: Drainage Assessment | R16: Burrowing Assessment | S16: Construction Activity Assessment | U16: Movement Assessment | V16: Vegetation Assessment | W16: Surface Water Assessment | X16: Drainage Assessment | Y16: Burrowing Assessment | Z16: Construction Activity Assessment | AB16: Movement Assessment | AC16: Vegetation Assessment | AD16: Surface Water Assessment | AE16: Drainage Assessment | AF16: Burrowing Assessment | AG16: Construction Activity Assessment
G17: 0 | H17: 0 | I17: 0 | J17: -1 | K17: 0 | L17: 0 | N17: 0.1060440329 | O17: 0.4822385367 | P17: 0.6898702303 | Q17: 0.1212085821 | R17: 0.5738037733 | S17: 0.05295467833 | U17: 0.07179596043 | V17: 0.3207570802 | W17: 0.2725380599 | X17: 0.117094605 | Y17: 0.4893651175 | Z17: 0.04777360613 | AB17: 0.1998124676 | AC17: 0.728069965 | AD17: 0.7056902855 | AE17: 0.2159249926 | AF17: 0.4682327824 | AG17: 0.09513905937
G18: 1 | H18: 0.2 | I18: 1 | J18: 0 | K18: 1 | L18: 1 | N18: 0.8750214286 | O18: 0.4944043657 | P18: 0.6446629569 | Q18: 0.1212085821 | R18: 0.4207376344 | S18: 0 | U18: 1.019381579 | V18: 0.2736145434 | W18: 0.5503130646 | X18: 0.117094605 | Y18: 0.3857120705 | Z18: 0.02670845847 | AB18: 1.739574473 | AC18: 0.4990207356 | AD18: 0.7065452534 | AE18: 0.2159249926 | AF18: 0.5276029191 | AG18: 0.03550369222
G19: 1.5 | H19: 0.3 | I19: 1.5 | J19: 0.5 | K19: 2 | L19: 2 | N19: 1.0865 | O19: 0.7855880761 | P19: 0.6347742082 | Q19: 0.07783311688 | R19: 0 | S19: 0 | U19: 1.14751 | V19: 0.5707642053 | W19: 0.6223360027 | X19: 0.1165464789 | Y19: 0 | Z19: 0 | AB19: 0.9821811321 | AC19: 1.254043836 | AD19: 0.7784891993 | AE19: 0.1291439608 | AF19: 0 | AG19: 0
G20: 2 | H20: 0.5 | I20: 2 | J20: 1.5 | K20: - | L20: - | N20: 0.9104754098 | O20: 0.8138404531 | P20: 0.7940273218 | Q20: 0 | U20: 0.1959552632 | V20: 0.299887789 | W20: 0.322861523 | X20: 0 | AB20: 1.075715223 | AC20: 1.559944766 | AD20: 0.9902798242 | AE20: 0
G21: 2.5 | H21: 1 | I21: 2.5 | J21: - | K21: - | L21: - | N21: 0.03649473684 | O21: 0.0337424913 | P21: 0.2213130307 | U21: 0.07940434517 | V21: 0.0290113727 | W21: 0.1234475982 | AB21: 0.1223139535 | AC21: 0.0474460443 | AD21: 0.1489761383
G22: 4 | H22: 1.5 | I22: 3 | J22: - | K22: - | L22: - | N22: 0.03649473684 | O22: 0 | P22: 0 | U22: 0.07940434517 | V22: 0 | W22: 0 | AB22: 0.1223139535 | AC22: 0 | AD22: 0
G23: 5 | H23: - | I23: - | J23: - | K23: - | L23: - | N23: 0 | U23: 0 | AB23: 0
N69: Increment in 5-year period | U69: Increment in 5-year period | AB69: Increment in 5-year period
Q70: 1 | X70: 1 | AE70: 2
Q71: 0.5 | X71: 0 | AE71: 0.5
Q72: 0.5 | X72: 0 | AE72: 0.5
Q73: 0.5 | X73: 0 | AE73: 0.5
Q74: 0.5 | X74: 0 | AE74: 0.5
Q75: 0.5 | X75: 0 | AE75: 0.5
Q76: 0.5 | X76: 0 | AE76: 0.5
Q77: 0.5 | X77: 0 | AE77: 0.5
Q78: 0.5 | X78: 0 | AE78: 0.5
Q79: 0.5 | X79: 0 | AE79: 0.5
N80: 1.5 | O80: 0.4 | P80: 0.5 | Q80: 0.5 | R80: 1 | S80: 0 | U80: 0.5 | V80: 0.3 | W80: 0.5 | X80: 0 | Y80: 0 | Z80: 0 | AB80: 1 | AC80: 0.7 | AD80: 0.5 | AE80: 0.5 | AF80: 1 | AG80: 0
N81: 1.5 | O81: 0.5 | P81: 0.5 | Q81: 0 | R81: 0 | S81: 0 | U81: 0.5 | V81: 0.3 | W81: 0.5 | X81: 0 | Y81: 0 | Z81: 0 | AB81: 1 | AC81: 0.5 | AD81: 0.5 | AE81: 0.5 | AF81: 1 | AG81: 0
N82: 1.5 | O82: 0.5 | P82: 0.5 | Q82: 0 | R82: 0 | S82: 0 | U82: 0.5 | V82: 0.3 | W82: 0.5 | X82: 0 | Y82: 0 | Z82: 0 | AB82: 1 | AC82: 0.5 | AD82: 0.5 | AE82: 0.5 | AF82: 1 | AG82: 0
N83: 1.5 | O83: 0.8 | P83: 0.5 | Q83: 0 | R83: 0 | S83: 0 | U83: 0.5 | V83: 0.6 | W83: 0.5 | X83: 0 | Y83: 0 | Z83: 0 | AB83: 1 | AC83: 1.2 | AD83: 0.5 | AE83: 0.5 | AF83: 1 | AG83: 0
N84: 1.5 | O84: 0.8 | P84: 0.5 | Q84: 0 | R84: 0 | S84: 0 | U84: 0.5 | V84: 0 | W84: 0.5 | X84: 0 | Y84: 0 | Z84: 0 | AB84: 1 | AC84: 1.6 | AD84: 0.5 | AE84: 0.5 | AF84: 1 | AG84: 0
N85: 1.5 | O85: 0.8 | P85: 0.5 | Q85: 0 | R85: 0 | S85: 0 | U85: 0.5 | V85: 0 | W85: 0.5 | X85: 0 | Y85: 0 | Z85: 0 | AB85: 1 | AC85: 1.6 | AD85: 0.5 | AE85: 0.5 | AF85: 1 | AG85: 0
N86: 1.5 | O86: 0 | P86: 0.5 | Q86: 0 | R86: 0 | S86: 0 | U86: 0.5 | V86: 0 | W86: 0.5 | X86: 0 | Y86: 0 | Z86: 0 | AB86: 1 | AC86: 0 | AD86: 0.5 | AE86: 0 | AF86: 1 | AG86: 0
N87: 1.5 | O87: 0 | P87: 0.5 | Q87: 0 | R87: 0 | S87: 0 | U87: 0.5 | V87: 0 | W87: 0.5 | X87: 0 | Y87: 0 | Z87: 0 | AB87: 1 | AC87: 0 | AD87: 0.5 | AE87: 0 | AF87: 1 | AG87: 0
N88: 1.5 | O88: 0 | P88: 0.5 | Q88: 0 | R88: 0 | S88: 0 | U88: 0.5 | V88: 0 | W88: 0.5 | X88: 0 | Y88: 0 | Z88: 0 | AB88: 1 | AC88: 0 | AD88: 0.5 | AE88: 0 | AF88: 1 | AG88: 0
N89: 1.5 | O89: 0 | P89: 0.5 | Q89: 0 | R89: 0 | S89: 0 | U89: 0.5 | V89: 0 | W89: 0.5 | X89: 0 | Y89: 0 | Z89: 0 | AB89: 1 | AC89: 0 | AD89: 0.5 | AE89: 0 | AF89: 1 | AG89: 0
N90: 1.5 | O90: 0 | P90: 0.5 | Q90: 0 | R90: 0 | S90: 0 | U90: 0.5 | V90: 0 | W90: 0.5 | X90: 0 | Y90: 0 | Z90: 0 | AB90: 1 | AC90: 0 | AD90: 0.5 | AE90: 0 | AF90: 1 | AG90: 0
N91: 1.5 | O91: 0 | P91: 0.5 | Q91: 0 | R91: 0 | S91: 0 | U91: 1 | V91: 0 | W91: 0.5 | X91: 0 | Y91: 0 | Z91: 0 | AB91: 1.5 | AC91: 0 | AD91: 0.5 | AE91: 0 | AF91: 0 | AG91: 0
N92: 1.5 | O92: 0 | P92: 0.5 | Q92: 0 | R92: 0 | S92: 0 | U92: 1 | V92: 0 | W92: 0.5 | X92: 0 | Y92: 0 | Z92: 0 | AB92: 1.5 | AC92: 0 | AD92: 0.5 | AE92: 0 | AF92: 0 | AG92: 0
N93: 1.5 | O93: 0 | P93: 0.5 | Q93: 0 | R93: 0 | S93: 0 | U93: 1 | V93: 0 | W93: 0.5 | X93: 0 | Y93: 0 | Z93: 0 | AB93: 1.5 | AC93: 0 | AD93: 0.5 | AE93: 0 | AF93: 0 | AG93: 0
N94: 1.5 | O94: 0 | P94: 0.5 | Q94: 0 | R94: 0 | S94: 0 | U94: 1 | V94: 0 | W94: 0.5 | X94: 0 | Y94: 0 | Z94: 0 | AB94: 1.5 | AC94: 0 | AD94: 0.5 | AE94: 0 | AF94: 0 | AG94: 0
N95: 1.5 | O95: 0 | P95: 0.5 | Q95: 0 | R95: 0 | S95: 0 | U95: 1 | V95: 0 | W95: 0.5 | X95: 0 | Y95: 0 | Z95: 0 | AB95: 1.5 | AC95: 0 | AD95: 0.5 | AE95: 0 | AF95: 0 | AG95: 0
N96: 0.5 | P96: 0.5 | R96: 0 | S96: 0 | U96: 0 | W96: 0.5 | Y96: 0 | Z96: 0 | AB96: 0.5 | AD96: 1 | AF96: 0 | AG96: 0
N97: 0.5 | P97: 0.5 | R97: 0 | S97: 0 | U97: 0 | W97: 0.5 | Y97: 0 | Z97: 0 | AB97: 0.5 | AD97: 1 | AF97: 0 | AG97: 0
N98: 0.5 | P98: 0.5 | R98: 0 | S98: 0 | U98: 0 | W98: 0.5 | Y98: 0 | Z98: 0 | AB98: 0.5 | AD98: 1 | AF98: 0 | AG98: 0
N99: 0.5 | P99: 0.5 | R99: 0 | S99: 0 | U99: 0 | W99: 0.5 | Y99: 0 | Z99: 0 | AB99: 0.5 | AD99: 1 | AF99: 0 | AG99: 0
N100: 0.5 | P100: 0.5 | R100: 0 | S100: 0 | U100: 0 | W100: 0.5 | Y100: 0 | Z100: 0 | AB100: 0.5 | AD100: 1 | AF100: 0 | AG100: 0
N101: 0 | P101: 0 | U101: 0 | W101: 0 | AB101: 0 | AD101: 0
N102: 0 | P102: 0 | U102: 0 | W102: 0 | AB102: 0 | AD102: 0
N103: 0 | P103: 0 | U103: 0 | W103: 0 | AB103: 0 | AD103: 0
N104: 0 | P104: 0 | U104: 0 | W104: 0 | AB104: 0 | AD104: 0
N105: 0 | P105: 0 | U105: 0 | W105: 0 | AB105: 0 | AD105: 0
N106: 0 | P106: 0 | U106: 0 | W106: 0 | AB106: 0 | AD106: 0
N107: 0 | P107: 0 | U107: 0 | W107: 0 | AB107: 0 | AD107: 0
N108: 0 | P108: 0 | U108: 0 | W108: 0 | AB108: 0 | AD108: 0
N109: 0 | P109: 0 | U109: 0 | W109: 0 | AB109: 0 | AD109: 0
N110: 0 | P110: 0 | U110: 0 | W110: 0 | AB110: 0 | AD110: 0
N111: 0 | U111: 0 | AB111: 0
N112: 0 | U112: 0 | AB112: 0
N113: 0 | U113: 0 | AB113: 0
N114: 0 | U114: 0 | AB114: 0
N115: 0 | U115: 0 | AB115: 0
N116: 0 | U116: 0 | AB116: 0
N117: 0 | U117: 0 | AB117: 0
N118: 0 | U118: 0 | AB118: 0
N119: 0 | U119: 0 | AB119: 0
N120: 0 | U120: 0 | AB120: 0
N121: 0 | U121: 0 | AB121: 0
N122: 0 | U122: 0 | AB122: 0
N123: 0 | U123: 0 | AB123: 0
N124: 0 | U124: 0 | AB124: 0
N125: 0 | U125: 0 | AB125: 0
N126: 0 | U126: 0 | AB126: 0
N127: 0 | U127: 0 | AB127: 0
N128: 0 | U128: 0 | AB128: 0
N129: 0 | U129: 0 | AB129: 0
N130: 0 | U130: 0 | AB130: 0

Sheet Projection
A1: MAINLINE | C1: =Flowchart!C1 -> Soil Cutting Model
B2: Intervention Triggers & Impacts
C3: This sheet includes the calculation of condition and interventions in each period
C4: There is no use input on this sheet
C6: Scoring system | F6: 12 | G6: 1 | H6: 2 | I6: 3 | J6: 4 | K6: 5 | L6: 6
F7: SRV | G7: =INDEX(InitialScores!$C$7:$C$12,G$6,1) -> MA | H7: =INDEX(InitialScores!$C$7:$C$12,H$6,1) -> VA | I7: =INDEX(InitialScores!$C$7:$C$12,I$6,1) -> SW | J7: =INDEX(InitialScores!$C$7:$C$12,J$6,1) -> DA | K7: =INDEX(InitialScores!$C$7:$C$12,K$6,1) -> BA | L7: =INDEX(InitialScores!$C$7:$C$12,L$6,1) -> CA
E8: Minimum possible scores: | F8: =INDEX(InitialScores!$E$7:$G$18,F$6,$M8) -> 0 | G8: =INDEX(InitialScores!$E$7:$G$18,G$6,$M8) -> 0 | H8: =INDEX(InitialScores!$E$7:$G$18,H$6,$M8) -> 0 | I8: =INDEX(InitialScores!$E$7:$G$18,I$6,$M8) -> 0 | J8: =INDEX(InitialScores!$E$7:$G$18,J$6,$M8) -> -1 | K8: =INDEX(InitialScores!$E$7:$G$18,K$6,$M8) -> 0 | L8: =INDEX(InitialScores!$E$7:$G$18,L$6,$M8) -> 0 | M8: 2
E9: Maximum possible scores: | F9: =INDEX(InitialScores!$E$7:$G$18,F$6,$M9) -> 18 | G9: =INDEX(InitialScores!$E$7:$G$18,G$6,$M9) -> 5 | H9: =INDEX(InitialScores!$E$7:$G$18,H$6,$M9) -> 1.5 | I9: =INDEX(InitialScores!$E$7:$G$18,I$6,$M9) -> 3 | J9: =INDEX(InitialScores!$E$7:$G$18,J$6,$M9) -> 1.5 | K9: =INDEX(InitialScores!$E$7:$G$18,K$6,$M9) -> 2 | L9: =INDEX(InitialScores!$E$7:$G$18,L$6,$M9) -> 2 | M9: 3
E10: Initial score values: | F10: =INDEX(InitialScores!$E$7:$G$18,F$6,$M10) -> 0.5 | G10: =INDEX(InitialScores!$E$7:$G$18,G$6,$M10) -> 0 | H10: =INDEX(InitialScores!$E$7:$G$18,H$6,$M10) -> 0 | I10: =INDEX(InitialScores!$E$7:$G$18,I$6,$M10) -> 0 | J10: =INDEX(InitialScores!$E$7:$G$18,J$6,$M10) -> 0.5 | K10: =INDEX(InitialScores!$E$7:$G$18,K$6,$M10) -> 0 | L10: =INDEX(InitialScores!$E$7:$G$18,L$6,$M10) -> 0 | M10: 1
E11: Modified base value: (constant) | F11: =InitialScores!E17 -> 1
C13: Interventions in use: | P13: =IntvTriggers!$F$10 -> SRV | Q13: =G7 -> MA | R13: VA | S13: SW | T13: DA | U13: BA | V13: CA | Y13: Repetition Counting
C14: =IntvTriggers!C32 -> 7 | AB14: These intervention counters are reset
C15: Seq | D15: Intv | E15: Name | G15: Change methods: 1=none; 2=Abs; 3=Rel ; | N15: Timed | P15: Trigger methods: 1=none; 2=Score; 3=Time | Y15: Input | Z15: Limit | AB15: =INDEX($D$16:$D$30,COLUMNS($AB14:AB14),1) -> 7 | AC15: =INDEX($D$16:$D$30,COLUMNS($AB14:AC14),1) -> 6 | AD15: =INDEX($D$16:$D$30,COLUMNS($AB14:AD14),1) -> 5 | AE15: =INDEX($D$16:$D$30,COLUMNS($AB14:AE14),1) -> 4 | AF15: =INDEX($D$16:$D$30,COLUMNS($AB14:AF14),1) -> 3 | AG15: =INDEX($D$16:$D$30,COLUMNS($AB14:AG14),1) -> 2 | AH15: =INDEX($D$16:$D$30,COLUMNS($AB14:AH14),1) -> 1 | AI15: =INDEX($D$16:$D$30,COLUMNS($AB14:AI14),1) -> 0 | AJ15: =INDEX($D$16:$D$30,COLUMNS($AB14:AJ14),1) -> 0 | AK15: =INDEX($D$16:$D$30,COLUMNS($AB14:AK14),1) -> 0 | AL15: =INDEX($D$16:$D$30,COLUMNS($AB14:AL14),1) -> 0 | AM15: =INDEX($D$16:$D$30,COLUMNS($AB14:AM14),1) -> 0 | AN15: =INDEX($D$16:$D$30,COLUMNS($AB14:AN14),1) -> 0 | AO15: =INDEX($D$16:$D$30,COLUMNS($AB14:AO14),1) -> 0 | AP15: =INDEX($D$16:$D$30,COLUMNS($AB14:AP14),1) -> 0
C16: 1 | D16: =IF(C16>Projection!C$14,0,MATCH(C16,IntvTriggers!$C$16:$C$30,0)) -> 7 | E16: =IF(D16=0,"[not used]",INDEX(IntvTriggers!$D$16:$D$30,D16,1)) -> Major earthworks | F16: 1 | G16: =IF($D16>0,IF(INDEX(IntvChanges!M$15:M$29,$D16,1)<>"",2,IF(INDEX(IntvChanges!F$15:F$29,$D16,1)<>"",3,1)),1) -> 2 | H16: =IF($D16>0,IF(INDEX(IntvChanges!N$15:N$29,$D16,1)<>"",2,IF(INDEX(IntvChanges!G$15:G$29,$D16,1)<>"",3,1)),1) -> 2 | I16: =IF($D16>0,IF(INDEX(IntvChanges!O$15:O$29,$D16,1)<>"",2,IF(INDEX(IntvChanges!H$15:H$29,$D16,1)<>"",3,1)),1) -> 2 | J16: =IF($D16>0,IF(INDEX(IntvChanges!P$15:P$29,$D16,1)<>"",2,IF(INDEX(IntvChanges!I$15:I$29,$D16,1)<>"",3,1)),1) -> 2 | K16: =IF($D16>0,IF(INDEX(IntvChanges!Q$15:Q$29,$D16,1)<>"",2,IF(INDEX(IntvChanges!J$15:J$29,$D16,1)<>"",3,1)),1) -> 2 | L16: =IF($D16>0,IF(INDEX(IntvChanges!R$15:R$29,$D16,1)<>"",2,IF(INDEX(IntvChanges!K$15:K$29,$D16,1)<>"",3,1)),1) -> 2 | N16: =AND(D16>0,COUNTA(OFFSET(IntvTriggers!$N$15:$AH$15,$D16,0))>0) -> FALSE | P16: =IF($D16>0,IF($N16,3,IF(INDEX(IntvTriggers!F$16:F$30,$D16,1)<>"",2,1)),1) -> 2 | Q16: =IF($D16>0,IF($N16,3,IF(INDEX(IntvTriggers!G$16:G$30,$D16,1)<>"",2,1)),1) -> 1 | R16: =IF($D16>0,IF($N16,3,IF(INDEX(IntvTriggers!H$16:H$30,$D16,1)<>"",2,1)),1) -> 1 | S16: =IF($D16>0,IF($N16,3,IF(INDEX(IntvTriggers!I$16:I$30,$D16,1)<>"",2,1)),1) -> 1 | T16: =IF($D16>0,IF($N16,3,IF(INDEX(IntvTriggers!J$16:J$30,$D16,1)<>"",2,1)),1) -> 1 | U16: =IF($D16>0,IF($N16,3,IF(INDEX(IntvTriggers!K$16:K$30,$D16,1)<>"",2,1)),1) -> 1 | V16: =IF($D16>0,IF($N16,3,IF(INDEX(IntvTriggers!L$16:L$30,$D16,1)<>"",2,1)),1) -> 1 | Y16: =IF($D16=0,0,INDEX(IntvChanges!$T$15:$T$29,$D16,1)) -> 0 | Z16: =IF(Y16=0,99,Y16) -> 99 | AB16: =IF(AND($D16>0,AB$15>0,$Y16>0,AB$15<>$D16),IF(INDEX(IntvChanges!$V$15:$AJ$29,$D16,AB$15)="",0,1),0) -> 0 | AC16: =IF(AND($D16>0,AC$15>0,$Y16>0,AC$15<>$D16),IF(INDEX(IntvChanges!$V$15:$AJ$29,$D16,AC$15)="",0,1),0) -> 0 | AD16: =IF(AND($D16>0,AD$15>0,$Y16>0,AD$15<>$D16),IF(INDEX(IntvChanges!$V$15:$AJ$29,$D16,AD$15)="",0,1),0) -> 0 | AE16: =IF(AND($D16>0,AE$15>0,$Y16>0,AE$15<>$D16),IF(INDEX(IntvChanges!$V$15:$AJ$29,$D16,AE$15)="",0,1),0) -> 0 | AF16: =IF(AND($D16>0,AF$15>0,$Y16>0,AF$15<>$D16),IF(INDEX(IntvChanges!$V$15:$AJ$29,$D16,AF$15)="",0,1),0) -> 0 | AG16: =IF(AND($D16>0,AG$15>0,$Y16>0,AG$15<>$D16),IF(INDEX(IntvChanges!$V$15:$AJ$29,$D16,AG$15)="",0,1),0) -> 0 | AH16: =IF(AND($D16>0,AH$15>0,$Y16>0,AH$15<>$D16),IF(INDEX(IntvChanges!$V$15:$AJ$29,$D16,AH$15)="",0,1),0) -> 0 | AI16: =IF(AND($D16>0,AI$15>0,$Y16>0,AI$15<>$D16),IF(INDEX(IntvChanges!$V$15:$AJ$29,$D16,AI$15)="",0,1),0) -> 0 | AJ16: =IF(AND($D16>0,AJ$15>0,$Y16>0,AJ$15<>$D16),IF(INDEX(IntvChanges!$V$15:$AJ$29,$D16,AJ$15)="",0,1),0) -> 0 | AK16: =IF(AND($D16>0,AK$15>0,$Y16>0,AK$15<>$D16),IF(INDEX(IntvChanges!$V$15:$AJ$29,$D16,AK$15)="",0,1),0) -> 0 | AL16: =IF(AND($D16>0,AL$15>0,$Y16>0,AL$15<>$D16),IF(INDEX(IntvChanges!$V$15:$AJ$29,$D16,AL$15)="",0,1),0) -> 0 | AM16: =IF(AND($D16>0,AM$15>0,$Y16>0,AM$15<>$D16),IF(INDEX(IntvChanges!$V$15:$AJ$29,$D16,AM$15)="",0,1),0) -> 0 | AN16: =IF(AND($D16>0,AN$15>0,$Y16>0,AN$15<>$D16),IF(INDEX(IntvChanges!$V$15:$AJ$29,$D16,AN$15)="",0,1),0) -> 0 | AO16: =IF(AND($D16>0,AO$15>0,$Y16>0,AO$15<>$D16),IF(INDEX(IntvChanges!$V$15:$AJ$29,$D16,AO$15)="",0,1),0) -> 0 | AP16: =IF(AND($D16>0,AP$15>0,$Y16>0,AP$15<>$D16),IF(INDEX(IntvChanges!$V$15:$AJ$29,$D16,AP$15)="",0,1),0) -> 0 | AQ16: These intervention do the resetting
C17: 2 | D17: =IF(C17>Projection!C$14,0,MATCH(C17,IntvTriggers!$C$16:$C$30,0)) -> 6 | E17: =IF(D17=0,"[not used]",INDEX(IntvTriggers!$D$16:$D$30,D17,1)) -> Minor earthworks | F17: 1 | G17: =IF($D17>0,IF(INDEX(IntvChanges!M$15:M$29,$D17,1)<>"",2,IF(INDEX(IntvChanges!F$15:F$29,$D17,1)<>"",3,1)),1) -> 2 | H17: =IF($D17>0,IF(INDEX(IntvChanges!N$15:N$29,$D17,1)<>"",2,IF(INDEX(IntvChanges!G$15:G$29,$D17,1)<>"",3,1)),1) -> 2 | I17: =IF($D17>0,IF(INDEX(IntvChanges!O$15:O$29,$D17,1)<>"",2,IF(INDEX(IntvChanges!H$15:H$29,$D17,1)<>"",3,1)),1) -> 3 | J17: =IF($D17>0,IF(INDEX(IntvChanges!P$15:P$29,$D17,1)<>"",2,IF(INDEX(IntvChanges!I$15:I$29,$D17,1)<>"",3,1)),1) -> 2 | K17: =IF($D17>0,IF(INDEX(IntvChanges!Q$15:Q$29,$D17,1)<>"",2,IF(INDEX(IntvChanges!J$15:J$29,$D17,1)<>"",3,1)),1) -> 2 | L17: =IF($D17>0,IF(INDEX(IntvChanges!R$15:R$29,$D17,1)<>"",2,IF(INDEX(IntvChanges!K$15:K$29,$D17,1)<>"",3,1)),1) -> 2 | N17: =AND(D17>0,COUNTA(OFFSET(IntvTriggers!$N$15:$AH$15,$D17,0))>0) -> FALSE | P17: =IF($D17>0,IF($N17,3,IF(INDEX(IntvTriggers!F$16:F$30,$D17,1)<>"",2,1)),1) -> 1 | Q17: =IF($D17>0,IF($N17,3,IF(INDEX(IntvTriggers!G$16:G$30,$D17,1)<>"",2,1)),1) -> 2 | R17: =IF($D17>0,IF($N17,3,IF(INDEX(IntvTriggers!H$16:H$30,$D17,1)<>"",2,1)),1) -> 1 | S17: =IF($D17>0,IF($N17,3,IF(INDEX(IntvTriggers!I$16:I$30,$D17,1)<>"",2,1)),1) -> 1 | T17: =IF($D17>0,IF($N17,3,IF(INDEX(IntvTriggers!J$16:J$30,$D17,1)<>"",2,1)),1) -> 1 | U17: =IF($D17>0,IF($N17,3,IF(INDEX(IntvTriggers!K$16:K$30,$D17,1)<>"",2,1)),1) -> 1 | V17: =IF($D17>0,IF($N17,3,IF(INDEX(IntvTriggers!L$16:L$30,$D17,1)<>"",2,1)),1) -> 1 | Y17: =IF($D17=0,0,INDEX(IntvChanges!$T$15:$T$29,$D17,1)) -> 0 | Z17: 99 | AB17: =IF(AND($D17>0,AB$15>0,$Y17>0,AB$15<>$D17),IF(INDEX(IntvChanges!$V$15:$AJ$29,$D17,AB$15)="",0,1),0) -> 0 | AC17: =IF(AND($D17>0,AC$15>0,$Y17>0,AC$15<>$D17),IF(INDEX(IntvChanges!$V$15:$AJ$29,$D17,AC$15)="",0,1),0) -> 0 | AD17: =IF(AND($D17>0,AD$15>0,$Y17>0,AD$15<>$D17),IF(INDEX(IntvChanges!$V$15:$AJ$29,$D17,AD$15)="",0,1),0) -> 0 | AE17: =IF(AND($D17>0,AE$15>0,$Y17>0,AE$15<>$D17),IF(INDEX(IntvChanges!$V$15:$AJ$29,$D17,AE$15)="",0,1),0) -> 0 | AF17: =IF(AND($D17>0,AF$15>0,$Y17>0,AF$15<>$D17),IF(INDEX(IntvChanges!$V$15:$AJ$29,$D17,AF$15)="",0,1),0) -> 0 | AG17: =IF(AND($D17>0,AG$15>0,$Y17>0,AG$15<>$D17),IF(INDEX(IntvChanges!$V$15:$AJ$29,$D17,AG$15)="",0,1),0) -> 0 | AH17: =IF(AND($D17>0,AH$15>0,$Y17>0,AH$15<>$D17),IF(INDEX(IntvChanges!$V$15:$AJ$29,$D17,AH$15)="",0,1),0) -> 0 | AI17: =IF(AND($D17>0,AI$15>0,$Y17>0,AI$15<>$D17),IF(INDEX(IntvChanges!$V$15:$AJ$29,$D17,AI$15)="",0,1),0) -> 0 | AJ17: =IF(AND($D17>0,AJ$15>0,$Y17>0,AJ$15<>$D17),IF(INDEX(IntvChanges!$V$15:$AJ$29,$D17,AJ$15)="",0,1),0) -> 0 | AK17: =IF(AND($D17>0,AK$15>0,$Y17>0,AK$15<>$D17),IF(INDEX(IntvChanges!$V$15:$AJ$29,$D17,AK$15)="",0,1),0) -> 0 | AL17: =IF(AND($D17>0,AL$15>0,$Y17>0,AL$15<>$D17),IF(INDEX(IntvChanges!$V$15:$AJ$29,$D17,AL$15)="",0,1),0) -> 0 | AM17: =IF(AND($D17>0,AM$15>0,$Y17>0,AM$15<>$D17),IF(INDEX(IntvChanges!$V$15:$AJ$29,$D17,AM$15)="",0,1),0) -> 0 | AN17: =IF(AND($D17>0,AN$15>0,$Y17>0,AN$15<>$D17),IF(INDEX(IntvChanges!$V$15:$AJ$29,$D17,AN$15)="",0,1),0) -> 0 | AO17: =IF(AND($D17>0,AO$15>0,$Y17>0,AO$15<>$D17),IF(INDEX(IntvChanges!$V$15:$AJ$29,$D17,AO$15)="",0,1),0) -> 0 | AP17: =IF(AND($D17>0,AP$15>0,$Y17>0,AP$15<>$D17),IF(INDEX(IntvChanges!$V$15:$AJ$29,$D17,AP$15)="",0,1),0) -> 0
C18: 3 | D18: =IF(C18>Projection!C$14,0,MATCH(C18,IntvTriggers!$C$16:$C$30,0)) -> 5 | E18: =IF(D18=0,"[not used]",INDEX(IntvTriggers!$D$16:$D$30,D18,1)) -> Burrow filling | F18: 1 | G18: =IF($D18>0,IF(INDEX(IntvChanges!M$15:M$29,$D18,1)<>"",2,IF(INDEX(IntvChanges!F$15:F$29,$D18,1)<>"",3,1)),1) -> 1 | H18: =IF($D18>0,IF(INDEX(IntvChanges!N$15:N$29,$D18,1)<>"",2,IF(INDEX(IntvChanges!G$15:G$29,$D18,1)<>"",3,1)),1) -> 1 | I18: =IF($D18>0,IF(INDEX(IntvChanges!O$15:O$29,$D18,1)<>"",2,IF(INDEX(IntvChanges!H$15:H$29,$D18,1)<>"",3,1)),1) -> 1 | J18: =IF($D18>0,IF(INDEX(IntvChanges!P$15:P$29,$D18,1)<>"",2,IF(INDEX(IntvChanges!I$15:I$29,$D18,1)<>"",3,1)),1) -> 1 | K18: =IF($D18>0,IF(INDEX(IntvChanges!Q$15:Q$29,$D18,1)<>"",2,IF(INDEX(IntvChanges!J$15:J$29,$D18,1)<>"",3,1)),1) -> 2 | L18: =IF($D18>0,IF(INDEX(IntvChanges!R$15:R$29,$D18,1)<>"",2,IF(INDEX(IntvChanges!K$15:K$29,$D18,1)<>"",3,1)),1) -> 1 | N18: =AND(D18>0,COUNTA(OFFSET(IntvTriggers!$N$15:$AH$15,$D18,0))>0) -> FALSE | P18: =IF($D18>0,IF($N18,3,IF(INDEX(IntvTriggers!F$16:F$30,$D18,1)<>"",2,1)),1) -> 1 | Q18: =IF($D18>0,IF($N18,3,IF(INDEX(IntvTriggers!G$16:G$30,$D18,1)<>"",2,1)),1) -> 1 | R18: =IF($D18>0,IF($N18,3,IF(INDEX(IntvTriggers!H$16:H$30,$D18,1)<>"",2,1)),1) -> 1 | S18: =IF($D18>0,IF($N18,3,IF(INDEX(IntvTriggers!I$16:I$30,$D18,1)<>"",2,1)),1) -> 1 | T18: =IF($D18>0,IF($N18,3,IF(INDEX(IntvTriggers!J$16:J$30,$D18,1)<>"",2,1)),1) -> 1 | U18: =IF($D18>0,IF($N18,3,IF(INDEX(IntvTriggers!K$16:K$30,$D18,1)<>"",2,1)),1) -> 2 | V18: =IF($D18>0,IF($N18,3,IF(INDEX(IntvTriggers!L$16:L$30,$D18,1)<>"",2,1)),1) -> 1 | Y18: =IF($D18=0,0,INDEX(IntvChanges!$T$15:$T$29,$D18,1)) -> 0 | Z18: 99 | AB18: =IF(AND($D18>0,AB$15>0,$Y18>0,AB$15<>$D18),IF(INDEX(IntvChanges!$V$15:$AJ$29,$D18,AB$15)="",0,1),0) -> 0 | AC18: =IF(AND($D18>0,AC$15>0,$Y18>0,AC$15<>$D18),IF(INDEX(IntvChanges!$V$15:$AJ$29,$D18,AC$15)="",0,1),0) -> 0 | AD18: =IF(AND($D18>0,AD$15>0,$Y18>0,AD$15<>$D18),IF(INDEX(IntvChanges!$V$15:$AJ$29,$D18,AD$15)="",0,1),0) -> 0 | AE18: =IF(AND($D18>0,AE$15>0,$Y18>0,AE$15<>$D18),IF(INDEX(IntvChanges!$V$15:$AJ$29,$D18,AE$15)="",0,1),0) -> 0 | AF18: =IF(AND($D18>0,AF$15>0,$Y18>0,AF$15<>$D18),IF(INDEX(IntvChanges!$V$15:$AJ$29,$D18,AF$15)="",0,1),0) -> 0 | AG18: =IF(AND($D18>0,AG$15>0,$Y18>0,AG$15<>$D18),IF(INDEX(IntvChanges!$V$15:$AJ$29,$D18,AG$15)="",0,1),0) -> 0 | AH18: =IF(AND($D18>0,AH$15>0,$Y18>0,AH$15<>$D18),IF(INDEX(IntvChanges!$V$15:$AJ$29,$D18,AH$15)="",0,1),0) -> 0 | AI18: =IF(AND($D18>0,AI$15>0,$Y18>0,AI$15<>$D18),IF(INDEX(IntvChanges!$V$15:$AJ$29,$D18,AI$15)="",0,1),0) -> 0 | AJ18: =IF(AND($D18>0,AJ$15>0,$Y18>0,AJ$15<>$D18),IF(INDEX(IntvChanges!$V$15:$AJ$29,$D18,AJ$15)="",0,1),0) -> 0 | AK18: =IF(AND($D18>0,AK$15>0,$Y18>0,AK$15<>$D18),IF(INDEX(IntvChanges!$V$15:$AJ$29,$D18,AK$15)="",0,1),0) -> 0 | AL18: =IF(AND($D18>0,AL$15>0,$Y18>0,AL$15<>$D18),IF(INDEX(IntvChanges!$V$15:$AJ$29,$D18,AL$15)="",0,1),0) -> 0 | AM18: =IF(AND($D18>0,AM$15>0,$Y18>0,AM$15<>$D18),IF(INDEX(IntvChanges!$V$15:$AJ$29,$D18,AM$15)="",0,1),0) -> 0 | AN18: =IF(AND($D18>0,AN$15>0,$Y18>0,AN$15<>$D18),IF(INDEX(IntvChanges!$V$15:$AJ$29,$D18,AN$15)="",0,1),0) -> 0 | AO18: =IF(AND($D18>0,AO$15>0,$Y18>0,AO$15<>$D18),IF(INDEX(IntvChanges!$V$15:$AJ$29,$D18,AO$15)="",0,1),0) -> 0 | AP18: =IF(AND($D18>0,AP$15>0,$Y18>0,AP$15<>$D18),IF(INDEX(IntvChanges!$V$15:$AJ$29,$D18,AP$15)="",0,1),0) -> 0
C19: 4 | D19: =IF(C19>Projection!C$14,0,MATCH(C19,IntvTriggers!$C$16:$C$30,0)) -> 4 | E19: =IF(D19=0,"[not used]",INDEX(IntvTriggers!$D$16:$D$30,D19,1)) -> Drainage replacement | F19: 1 | G19: =IF($D19>0,IF(INDEX(IntvChanges!M$15:M$29,$D19,1)<>"",2,IF(INDEX(IntvChanges!F$15:F$29,$D19,1)<>"",3,1)),1) -> 1 | H19: =IF($D19>0,IF(INDEX(IntvChanges!N$15:N$29,$D19,1)<>"",2,IF(INDEX(IntvChanges!G$15:G$29,$D19,1)<>"",3,1)),1) -> 1 | I19: =IF($D19>0,IF(INDEX(IntvChanges!O$15:O$29,$D19,1)<>"",2,IF(INDEX(IntvChanges!H$15:H$29,$D19,1)<>"",3,1)),1) -> 2 | J19: =IF($D19>0,IF(INDEX(IntvChanges!P$15:P$29,$D19,1)<>"",2,IF(INDEX(IntvChanges!I$15:I$29,$D19,1)<>"",3,1)),1) -> 2 | K19: =IF($D19>0,IF(INDEX(IntvChanges!Q$15:Q$29,$D19,1)<>"",2,IF(INDEX(IntvChanges!J$15:J$29,$D19,1)<>"",3,1)),1) -> 1 | L19: =IF($D19>0,IF(INDEX(IntvChanges!R$15:R$29,$D19,1)<>"",2,IF(INDEX(IntvChanges!K$15:K$29,$D19,1)<>"",3,1)),1) -> 1 | N19: =AND(D19>0,COUNTA(OFFSET(IntvTriggers!$N$15:$AH$15,$D19,0))>0) -> FALSE | P19: =IF($D19>0,IF($N19,3,IF(INDEX(IntvTriggers!F$16:F$30,$D19,1)<>"",2,1)),1) -> 1 | Q19: =IF($D19>0,IF($N19,3,IF(INDEX(IntvTriggers!G$16:G$30,$D19,1)<>"",2,1)),1) -> 1 | R19: =IF($D19>0,IF($N19,3,IF(INDEX(IntvTriggers!H$16:H$30,$D19,1)<>"",2,1)),1) -> 1 | S19: =IF($D19>0,IF($N19,3,IF(INDEX(IntvTriggers!I$16:I$30,$D19,1)<>"",2,1)),1) -> 2 | T19: =IF($D19>0,IF($N19,3,IF(INDEX(IntvTriggers!J$16:J$30,$D19,1)<>"",2,1)),1) -> 1 | U19: =IF($D19>0,IF($N19,3,IF(INDEX(IntvTriggers!K$16:K$30,$D19,1)<>"",2,1)),1) -> 1 | V19: =IF($D19>0,IF($N19,3,IF(INDEX(IntvTriggers!L$16:L$30,$D19,1)<>"",2,1)),1) -> 1 | Y19: =IF($D19=0,0,INDEX(IntvChanges!$T$15:$T$29,$D19,1)) -> 0 | Z19: 99 | AB19: =IF(AND($D19>0,AB$15>0,$Y19>0,AB$15<>$D19),IF(INDEX(IntvChanges!$V$15:$AJ$29,$D19,AB$15)="",0,1),0) -> 0 | AC19: =IF(AND($D19>0,AC$15>0,$Y19>0,AC$15<>$D19),IF(INDEX(IntvChanges!$V$15:$AJ$29,$D19,AC$15)="",0,1),0) -> 0 | AD19: =IF(AND($D19>0,AD$15>0,$Y19>0,AD$15<>$D19),IF(INDEX(IntvChanges!$V$15:$AJ$29,$D19,AD$15)="",0,1),0) -> 0 | AE19: =IF(AND($D19>0,AE$15>0,$Y19>0,AE$15<>$D19),IF(INDEX(IntvChanges!$V$15:$AJ$29,$D19,AE$15)="",0,1),0) -> 0 | AF19: =IF(AND($D19>0,AF$15>0,$Y19>0,AF$15<>$D19),IF(INDEX(IntvChanges!$V$15:$AJ$29,$D19,AF$15)="",0,1),0) -> 0 | AG19: =IF(AND($D19>0,AG$15>0,$Y19>0,AG$15<>$D19),IF(INDEX(IntvChanges!$V$15:$AJ$29,$D19,AG$15)="",0,1),0) -> 0 | AH19: =IF(AND($D19>0,AH$15>0,$Y19>0,AH$15<>$D19),IF(INDEX(IntvChanges!$V$15:$AJ$29,$D19,AH$15)="",0,1),0) -> 0 | AI19: =IF(AND($D19>0,AI$15>0,$Y19>0,AI$15<>$D19),IF(INDEX(IntvChanges!$V$15:$AJ$29,$D19,AI$15)="",0,1),0) -> 0 | AJ19: =IF(AND($D19>0,AJ$15>0,$Y19>0,AJ$15<>$D19),IF(INDEX(IntvChanges!$V$15:$AJ$29,$D19,AJ$15)="",0,1),0) -> 0 | AK19: =IF(AND($D19>0,AK$15>0,$Y19>0,AK$15<>$D19),IF(INDEX(IntvChanges!$V$15:$AJ$29,$D19,AK$15)="",0,1),0) -> 0 | AL19: =IF(AND($D19>0,AL$15>0,$Y19>0,AL$15<>$D19),IF(INDEX(IntvChanges!$V$15:$AJ$29,$D19,AL$15)="",0,1),0) -> 0 | AM19: =IF(AND($D19>0,AM$15>0,$Y19>0,AM$15<>$D19),IF(INDEX(IntvChanges!$V$15:$AJ$29,$D19,AM$15)="",0,1),0) -> 0 | AN19: =IF(AND($D19>0,AN$15>0,$Y19>0,AN$15<>$D19),IF(INDEX(IntvChanges!$V$15:$AJ$29,$D19,AN$15)="",0,1),0) -> 0 | AO19: =IF(AND($D19>0,AO$15>0,$Y19>0,AO$15<>$D19),IF(INDEX(IntvChanges!$V$15:$AJ$29,$D19,AO$15)="",0,1),0) -> 0 | AP19: =IF(AND($D19>0,AP$15>0,$Y19>0,AP$15<>$D19),IF(INDEX(IntvChanges!$V$15:$AJ$29,$D19,AP$15)="",0,1),0) -> 0
C20: 5 | D20: =IF(C20>Projection!C$14,0,MATCH(C20,IntvTriggers!$C$16:$C$30,0)) -> 3 | E20: =IF(D20=0,"[not used]",INDEX(IntvTriggers!$D$16:$D$30,D20,1)) -> Drainage repair | F20: 1 | G20: =IF($D20>0,IF(INDEX(IntvChanges!M$15:M$29,$D20,1)<>"",2,IF(INDEX(IntvChanges!F$15:F$29,$D20,1)<>"",3,1)),1) -> 1 | H20: =IF($D20>0,IF(INDEX(IntvChanges!N$15:N$29,$D20,1)<>"",2,IF(INDEX(IntvChanges!G$15:G$29,$D20,1)<>"",3,1)),1) -> 1 | I20: =IF($D20>0,IF(INDEX(IntvChanges!O$15:O$29,$D20,1)<>"",2,IF(INDEX(IntvChanges!H$15:H$29,$D20,1)<>"",3,1)),1) -> 3 | J20: =IF($D20>0,IF(INDEX(IntvChanges!P$15:P$29,$D20,1)<>"",2,IF(INDEX(IntvChanges!I$15:I$29,$D20,1)<>"",3,1)),1) -> 2 | K20: =IF($D20>0,IF(INDEX(IntvChanges!Q$15:Q$29,$D20,1)<>"",2,IF(INDEX(IntvChanges!J$15:J$29,$D20,1)<>"",3,1)),1) -> 1 | L20: =IF($D20>0,IF(INDEX(IntvChanges!R$15:R$29,$D20,1)<>"",2,IF(INDEX(IntvChanges!K$15:K$29,$D20,1)<>"",3,1)),1) -> 1 | N20: =AND(D20>0,COUNTA(OFFSET(IntvTriggers!$N$15:$AH$15,$D20,0))>0) -> FALSE | P20: =IF($D20>0,IF($N20,3,IF(INDEX(IntvTriggers!F$16:F$30,$D20,1)<>"",2,1)),1) -> 1 | Q20: =IF($D20>0,IF($N20,3,IF(INDEX(IntvTriggers!G$16:G$30,$D20,1)<>"",2,1)),1) -> 1 | R20: =IF($D20>0,IF($N20,3,IF(INDEX(IntvTriggers!H$16:H$30,$D20,1)<>"",2,1)),1) -> 1 | S20: =IF($D20>0,IF($N20,3,IF(INDEX(IntvTriggers!I$16:I$30,$D20,1)<>"",2,1)),1) -> 2 | T20: =IF($D20>0,IF($N20,3,IF(INDEX(IntvTriggers!J$16:J$30,$D20,1)<>"",2,1)),1) -> 2 | U20: =IF($D20>0,IF($N20,3,IF(INDEX(IntvTriggers!K$16:K$30,$D20,1)<>"",2,1)),1) -> 1 | V20: =IF($D20>0,IF($N20,3,IF(INDEX(IntvTriggers!L$16:L$30,$D20,1)<>"",2,1)),1) -> 1 | Y20: =IF($D20=0,0,INDEX(IntvChanges!$T$15:$T$29,$D20,1)) -> 0 | Z20: 99 | AB20: =IF(AND($D20>0,AB$15>0,$Y20>0,AB$15<>$D20),IF(INDEX(IntvChanges!$V$15:$AJ$29,$D20,AB$15)="",0,1),0) -> 0 | AC20: =IF(AND($D20>0,AC$15>0,$Y20>0,AC$15<>$D20),IF(INDEX(IntvChanges!$V$15:$AJ$29,$D20,AC$15)="",0,1),0) -> 0 | AD20: =IF(AND($D20>0,AD$15>0,$Y20>0,AD$15<>$D20),IF(INDEX(IntvChanges!$V$15:$AJ$29,$D20,AD$15)="",0,1),0) -> 0 | AE20: =IF(AND($D20>0,AE$15>0,$Y20>0,AE$15<>$D20),IF(INDEX(IntvChanges!$V$15:$AJ$29,$D20,AE$15)="",0,1),0) -> 0 | AF20: =IF(AND($D20>0,AF$15>0,$Y20>0,AF$15<>$D20),IF(INDEX(IntvChanges!$V$15:$AJ$29,$D20,AF$15)="",0,1),0) -> 0 | AG20: =IF(AND($D20>0,AG$15>0,$Y20>0,AG$15<>$D20),IF(INDEX(IntvChanges!$V$15:$AJ$29,$D20,AG$15)="",0,1),0) -> 0 | AH20: =IF(AND($D20>0,AH$15>0,$Y20>0,AH$15<>$D20),IF(INDEX(IntvChanges!$V$15:$AJ$29,$D20,AH$15)="",0,1),0) -> 0 | AI20: =IF(AND($D20>0,AI$15>0,$Y20>0,AI$15<>$D20),IF(INDEX(IntvChanges!$V$15:$AJ$29,$D20,AI$15)="",0,1),0) -> 0 | AJ20: =IF(AND($D20>0,AJ$15>0,$Y20>0,AJ$15<>$D20),IF(INDEX(IntvChanges!$V$15:$AJ$29,$D20,AJ$15)="",0,1),0) -> 0 | AK20: =IF(AND($D20>0,AK$15>0,$Y20>0,AK$15<>$D20),IF(INDEX(IntvChanges!$V$15:$AJ$29,$D20,AK$15)="",0,1),0) -> 0 | AL20: =IF(AND($D20>0,AL$15>0,$Y20>0,AL$15<>$D20),IF(INDEX(IntvChanges!$V$15:$AJ$29,$D20,AL$15)="",0,1),0) -> 0 | AM20: =IF(AND($D20>0,AM$15>0,$Y20>0,AM$15<>$D20),IF(INDEX(IntvChanges!$V$15:$AJ$29,$D20,AM$15)="",0,1),0) -> 0 | AN20: =IF(AND($D20>0,AN$15>0,$Y20>0,AN$15<>$D20),IF(INDEX(IntvChanges!$V$15:$AJ$29,$D20,AN$15)="",0,1),0) -> 0 | AO20: =IF(AND($D20>0,AO$15>0,$Y20>0,AO$15<>$D20),IF(INDEX(IntvChanges!$V$15:$AJ$29,$D20,AO$15)="",0,1),0) -> 0 | AP20: =IF(AND($D20>0,AP$15>0,$Y20>0,AP$15<>$D20),IF(INDEX(IntvChanges!$V$15:$AJ$29,$D20,AP$15)="",0,1),0) -> 0
C21: 6 | D21: =IF(C21>Projection!C$14,0,MATCH(C21,IntvTriggers!$C$16:$C$30,0)) -> 2 | E21: =IF(D21=0,"[not used]",INDEX(IntvTriggers!$D$16:$D$30,D21,1)) -> Drainage clearance | F21: 1 | G21: =IF($D21>0,IF(INDEX(IntvChanges!M$15:M$29,$D21,1)<>"",2,IF(INDEX(IntvChanges!F$15:F$29,$D21,1)<>"",3,1)),1) -> 1 | H21: =IF($D21>0,IF(INDEX(IntvChanges!N$15:N$29,$D21,1)<>"",2,IF(INDEX(IntvChanges!G$15:G$29,$D21,1)<>"",3,1)),1) -> 1 | I21: =IF($D21>0,IF(INDEX(IntvChanges!O$15:O$29,$D21,1)<>"",2,IF(INDEX(IntvChanges!H$15:H$29,$D21,1)<>"",3,1)),1) -> 3 | J21: =IF($D21>0,IF(INDEX(IntvChanges!P$15:P$29,$D21,1)<>"",2,IF(INDEX(IntvChanges!I$15:I$29,$D21,1)<>"",3,1)),1) -> 2 | K21: =IF($D21>0,IF(INDEX(IntvChanges!Q$15:Q$29,$D21,1)<>"",2,IF(INDEX(IntvChanges!J$15:J$29,$D21,1)<>"",3,1)),1) -> 1 | L21: =IF($D21>0,IF(INDEX(IntvChanges!R$15:R$29,$D21,1)<>"",2,IF(INDEX(IntvChanges!K$15:K$29,$D21,1)<>"",3,1)),1) -> 1 | N21: =AND(D21>0,COUNTA(OFFSET(IntvTriggers!$N$15:$AH$15,$D21,0))>0) -> TRUE | P21: =IF($D21>0,IF($N21,3,IF(INDEX(IntvTriggers!F$16:F$30,$D21,1)<>"",2,1)),1) -> 3 | Q21: =IF($D21>0,IF($N21,3,IF(INDEX(IntvTriggers!G$16:G$30,$D21,1)<>"",2,1)),1) -> 3 | R21: =IF($D21>0,IF($N21,3,IF(INDEX(IntvTriggers!H$16:H$30,$D21,1)<>"",2,1)),1) -> 3 | S21: =IF($D21>0,IF($N21,3,IF(INDEX(IntvTriggers!I$16:I$30,$D21,1)<>"",2,1)),1) -> 3 | T21: =IF($D21>0,IF($N21,3,IF(INDEX(IntvTriggers!J$16:J$30,$D21,1)<>"",2,1)),1) -> 3 | U21: =IF($D21>0,IF($N21,3,IF(INDEX(IntvTriggers!K$16:K$30,$D21,1)<>"",2,1)),1) -> 3 | V21: =IF($D21>0,IF($N21,3,IF(INDEX(IntvTriggers!L$16:L$30,$D21,1)<>"",2,1)),1) -> 3 | Y21: =IF($D21=0,0,INDEX(IntvChanges!$T$15:$T$29,$D21,1)) -> 0 | Z21: 99 | AB21: =IF(AND($D21>0,AB$15>0,$Y21>0,AB$15<>$D21),IF(INDEX(IntvChanges!$V$15:$AJ$29,$D21,AB$15)="",0,1),0) -> 0 | AC21: =IF(AND($D21>0,AC$15>0,$Y21>0,AC$15<>$D21),IF(INDEX(IntvChanges!$V$15:$AJ$29,$D21,AC$15)="",0,1),0) -> 0 | AD21: =IF(AND($D21>0,AD$15>0,$Y21>0,AD$15<>$D21),IF(INDEX(IntvChanges!$V$15:$AJ$29,$D21,AD$15)="",0,1),0) -> 0 | AE21: =IF(AND($D21>0,AE$15>0,$Y21>0,AE$15<>$D21),IF(INDEX(IntvChanges!$V$15:$AJ$29,$D21,AE$15)="",0,1),0) -> 0 | AF21: =IF(AND($D21>0,AF$15>0,$Y21>0,AF$15<>$D21),IF(INDEX(IntvChanges!$V$15:$AJ$29,$D21,AF$15)="",0,1),0) -> 0 | AG21: =IF(AND($D21>0,AG$15>0,$Y21>0,AG$15<>$D21),IF(INDEX(IntvChanges!$V$15:$AJ$29,$D21,AG$15)="",0,1),0) -> 0 | AH21: =IF(AND($D21>0,AH$15>0,$Y21>0,AH$15<>$D21),IF(INDEX(IntvChanges!$V$15:$AJ$29,$D21,AH$15)="",0,1),0) -> 0 | AI21: =IF(AND($D21>0,AI$15>0,$Y21>0,AI$15<>$D21),IF(INDEX(IntvChanges!$V$15:$AJ$29,$D21,AI$15)="",0,1),0) -> 0 | AJ21: =IF(AND($D21>0,AJ$15>0,$Y21>0,AJ$15<>$D21),IF(INDEX(IntvChanges!$V$15:$AJ$29,$D21,AJ$15)="",0,1),0) -> 0 | AK21: =IF(AND($D21>0,AK$15>0,$Y21>0,AK$15<>$D21),IF(INDEX(IntvChanges!$V$15:$AJ$29,$D21,AK$15)="",0,1),0) -> 0 | AL21: =IF(AND($D21>0,AL$15>0,$Y21>0,AL$15<>$D21),IF(INDEX(IntvChanges!$V$15:$AJ$29,$D21,AL$15)="",0,1),0) -> 0 | AM21: =IF(AND($D21>0,AM$15>0,$Y21>0,AM$15<>$D21),IF(INDEX(IntvChanges!$V$15:$AJ$29,$D21,AM$15)="",0,1),0) -> 0 | AN21: =IF(AND($D21>0,AN$15>0,$Y21>0,AN$15<>$D21),IF(INDEX(IntvChanges!$V$15:$AJ$29,$D21,AN$15)="",0,1),0) -> 0 | AO21: =IF(AND($D21>0,AO$15>0,$Y21>0,AO$15<>$D21),IF(INDEX(IntvChanges!$V$15:$AJ$29,$D21,AO$15)="",0,1),0) -> 0 | AP21: =IF(AND($D21>0,AP$15>0,$Y21>0,AP$15<>$D21),IF(INDEX(IntvChanges!$V$15:$AJ$29,$D21,AP$15)="",0,1),0) -> 0
C22: 7 | D22: =IF(C22>Projection!C$14,0,MATCH(C22,IntvTriggers!$C$16:$C$30,0)) -> 1 | E22: =IF(D22=0,"[not used]",INDEX(IntvTriggers!$D$16:$D$30,D22,1)) -> Vegetation clearance | F22: 1 | G22: =IF($D22>0,IF(INDEX(IntvChanges!M$15:M$29,$D22,1)<>"",2,IF(INDEX(IntvChanges!F$15:F$29,$D22,1)<>"",3,1)),1) -> 1 | H22: =IF($D22>0,IF(INDEX(IntvChanges!N$15:N$29,$D22,1)<>"",2,IF(INDEX(IntvChanges!G$15:G$29,$D22,1)<>"",3,1)),1) -> 2 | I22: =IF($D22>0,IF(INDEX(IntvChanges!O$15:O$29,$D22,1)<>"",2,IF(INDEX(IntvChanges!H$15:H$29,$D22,1)<>"",3,1)),1) -> 1 | J22: =IF($D22>0,IF(INDEX(IntvChanges!P$15:P$29,$D22,1)<>"",2,IF(INDEX(IntvChanges!I$15:I$29,$D22,1)<>"",3,1)),1) -> 3 | K22: =IF($D22>0,IF(INDEX(IntvChanges!Q$15:Q$29,$D22,1)<>"",2,IF(INDEX(IntvChanges!J$15:J$29,$D22,1)<>"",3,1)),1) -> 1 | L22: =IF($D22>0,IF(INDEX(IntvChanges!R$15:R$29,$D22,1)<>"",2,IF(INDEX(IntvChanges!K$15:K$29,$D22,1)<>"",3,1)),1) -> 1 | N22: =AND(D22>0,COUNTA(OFFSET(IntvTriggers!$N$15:$AH$15,$D22,0))>0) -> TRUE | P22: =IF($D22>0,IF($N22,3,IF(INDEX(IntvTriggers!F$16:F$30,$D22,1)<>"",2,1)),1) -> 3 | Q22: =IF($D22>0,IF($N22,3,IF(INDEX(IntvTriggers!G$16:G$30,$D22,1)<>"",2,1)),1) -> 3 | R22: =IF($D22>0,IF($N22,3,IF(INDEX(IntvTriggers!H$16:H$30,$D22,1)<>"",2,1)),1) -> 3 | S22: =IF($D22>0,IF($N22,3,IF(INDEX(IntvTriggers!I$16:I$30,$D22,1)<>"",2,1)),1) -> 3 | T22: =IF($D22>0,IF($N22,3,IF(INDEX(IntvTriggers!J$16:J$30,$D22,1)<>"",2,1)),1) -> 3 | U22: =IF($D22>0,IF($N22,3,IF(INDEX(IntvTriggers!K$16:K$30,$D22,1)<>"",2,1)),1) -> 3 | V22: =IF($D22>0,IF($N22,3,IF(INDEX(IntvTriggers!L$16:L$30,$D22,1)<>"",2,1)),1) -> 3 | Y22: =IF($D22=0,0,INDEX(IntvChanges!$T$15:$T$29,$D22,1)) -> 0 | Z22: 99 | AB22: =IF(AND($D22>0,AB$15>0,$Y22>0,AB$15<>$D22),IF(INDEX(IntvChanges!$V$15:$AJ$29,$D22,AB$15)="",0,1),0) -> 0 | AC22: =IF(AND($D22>0,AC$15>0,$Y22>0,AC$15<>$D22),IF(INDEX(IntvChanges!$V$15:$AJ$29,$D22,AC$15)="",0,1),0) -> 0 | AD22: =IF(AND($D22>0,AD$15>0,$Y22>0,AD$15<>$D22),IF(INDEX(IntvChanges!$V$15:$AJ$29,$D22,AD$15)="",0,1),0) -> 0 | AE22: =IF(AND($D22>0,AE$15>0,$Y22>0,AE$15<>$D22),IF(INDEX(IntvChanges!$V$15:$AJ$29,$D22,AE$15)="",0,1),0) -> 0 | AF22: =IF(AND($D22>0,AF$15>0,$Y22>0,AF$15<>$D22),IF(INDEX(IntvChanges!$V$15:$AJ$29,$D22,AF$15)="",0,1),0) -> 0 | AG22: =IF(AND($D22>0,AG$15>0,$Y22>0,AG$15<>$D22),IF(INDEX(IntvChanges!$V$15:$AJ$29,$D22,AG$15)="",0,1),0) -> 0 | AH22: =IF(AND($D22>0,AH$15>0,$Y22>0,AH$15<>$D22),IF(INDEX(IntvChanges!$V$15:$AJ$29,$D22,AH$15)="",0,1),0) -> 0 | AI22: =IF(AND($D22>0,AI$15>0,$Y22>0,AI$15<>$D22),IF(INDEX(IntvChanges!$V$15:$AJ$29,$D22,AI$15)="",0,1),0) -> 0 | AJ22: =IF(AND($D22>0,AJ$15>0,$Y22>0,AJ$15<>$D22),IF(INDEX(IntvChanges!$V$15:$AJ$29,$D22,AJ$15)="",0,1),0) -> 0 | AK22: =IF(AND($D22>0,AK$15>0,$Y22>0,AK$15<>$D22),IF(INDEX(IntvChanges!$V$15:$AJ$29,$D22,AK$15)="",0,1),0) -> 0 | AL22: =IF(AND($D22>0,AL$15>0,$Y22>0,AL$15<>$D22),IF(INDEX(IntvChanges!$V$15:$AJ$29,$D22,AL$15)="",0,1),0) -> 0 | AM22: =IF(AND($D22>0,AM$15>0,$Y22>0,AM$15<>$D22),IF(INDEX(IntvChanges!$V$15:$AJ$29,$D22,AM$15)="",0,1),0) -> 0 | AN22: =IF(AND($D22>0,AN$15>0,$Y22>0,AN$15<>$D22),IF(INDEX(IntvChanges!$V$15:$AJ$29,$D22,AN$15)="",0,1),0) -> 0 | AO22: =IF(AND($D22>0,AO$15>0,$Y22>0,AO$15<>$D22),IF(INDEX(IntvChanges!$V$15:$AJ$29,$D22,AO$15)="",0,1),0) -> 0 | AP22: =IF(AND($D22>0,AP$15>0,$Y22>0,AP$15<>$D22),IF(INDEX(IntvChanges!$V$15:$AJ$29,$D22,AP$15)="",0,1),0) -> 0
C23: 8 | D23: =IF(C23>Projection!C$14,0,MATCH(C23,IntvTriggers!$C$16:$C$30,0)) -> 0 | E23: =IF(D23=0,"[not used]",INDEX(IntvTriggers!$D$16:$D$30,D23,1)) -> [not used] | F23: 1 | G23: =IF($D23>0,IF(INDEX(IntvChanges!M$15:M$29,$D23,1)<>"",2,IF(INDEX(IntvChanges!F$15:F$29,$D23,1)<>"",3,1)),1) -> 1 | H23: =IF($D23>0,IF(INDEX(IntvChanges!N$15:N$29,$D23,1)<>"",2,IF(INDEX(IntvChanges!G$15:G$29,$D23,1)<>"",3,1)),1) -> 1 | I23: =IF($D23>0,IF(INDEX(IntvChanges!O$15:O$29,$D23,1)<>"",2,IF(INDEX(IntvChanges!H$15:H$29,$D23,1)<>"",3,1)),1) -> 1 | J23: =IF($D23>0,IF(INDEX(IntvChanges!P$15:P$29,$D23,1)<>"",2,IF(INDEX(IntvChanges!I$15:I$29,$D23,1)<>"",3,1)),1) -> 1 | K23: =IF($D23>0,IF(INDEX(IntvChanges!Q$15:Q$29,$D23,1)<>"",2,IF(INDEX(IntvChanges!J$15:J$29,$D23,1)<>"",3,1)),1) -> 1 | L23: =IF($D23>0,IF(INDEX(IntvChanges!R$15:R$29,$D23,1)<>"",2,IF(INDEX(IntvChanges!K$15:K$29,$D23,1)<>"",3,1)),1) -> 1 | N23: =AND(D23>0,COUNTA(OFFSET(IntvTriggers!$N$15:$AH$15,$D23,0))>0) -> FALSE | P23: =IF($D23>0,IF($N23,3,IF(INDEX(IntvTriggers!F$16:F$30,$D23,1)<>"",2,1)),1) -> 1 | Q23: =IF($D23>0,IF($N23,3,IF(INDEX(IntvTriggers!G$16:G$30,$D23,1)<>"",2,1)),1) -> 1 | R23: =IF($D23>0,IF($N23,3,IF(INDEX(IntvTriggers!H$16:H$30,$D23,1)<>"",2,1)),1) -> 1 | S23: =IF($D23>0,IF($N23,3,IF(INDEX(IntvTriggers!I$16:I$30,$D23,1)<>"",2,1)),1) -> 1 | T23: =IF($D23>0,IF($N23,3,IF(INDEX(IntvTriggers!J$16:J$30,$D23,1)<>"",2,1)),1) -> 1 | U23: =IF($D23>0,IF($N23,3,IF(INDEX(IntvTriggers!K$16:K$30,$D23,1)<>"",2,1)),1) -> 1 | V23: =IF($D23>0,IF($N23,3,IF(INDEX(IntvTriggers!L$16:L$30,$D23,1)<>"",2,1)),1) -> 1 | Y23: =IF($D23=0,0,INDEX(IntvChanges!$T$15:$T$29,$D23,1)) -> 0 | Z23: 99 | AB23: =IF(AND($D23>0,AB$15>0,$Y23>0,AB$15<>$D23),IF(INDEX(IntvChanges!$V$15:$AJ$29,$D23,AB$15)="",0,1),0) -> 0 | AC23: =IF(AND($D23>0,AC$15>0,$Y23>0,AC$15<>$D23),IF(INDEX(IntvChanges!$V$15:$AJ$29,$D23,AC$15)="",0,1),0) -> 0 | AD23: =IF(AND($D23>0,AD$15>0,$Y23>0,AD$15<>$D23),IF(INDEX(IntvChanges!$V$15:$AJ$29,$D23,AD$15)="",0,1),0) -> 0 | AE23: =IF(AND($D23>0,AE$15>0,$Y23>0,AE$15<>$D23),IF(INDEX(IntvChanges!$V$15:$AJ$29,$D23,AE$15)="",0,1),0) -> 0 | AF23: =IF(AND($D23>0,AF$15>0,$Y23>0,AF$15<>$D23),IF(INDEX(IntvChanges!$V$15:$AJ$29,$D23,AF$15)="",0,1),0) -> 0 | AG23: =IF(AND($D23>0,AG$15>0,$Y23>0,AG$15<>$D23),IF(INDEX(IntvChanges!$V$15:$AJ$29,$D23,AG$15)="",0,1),0) -> 0 | AH23: =IF(AND($D23>0,AH$15>0,$Y23>0,AH$15<>$D23),IF(INDEX(IntvChanges!$V$15:$AJ$29,$D23,AH$15)="",0,1),0) -> 0 | AI23: =IF(AND($D23>0,AI$15>0,$Y23>0,AI$15<>$D23),IF(INDEX(IntvChanges!$V$15:$AJ$29,$D23,AI$15)="",0,1),0) -> 0 | AJ23: =IF(AND($D23>0,AJ$15>0,$Y23>0,AJ$15<>$D23),IF(INDEX(IntvChanges!$V$15:$AJ$29,$D23,AJ$15)="",0,1),0) -> 0 | AK23: =IF(AND($D23>0,AK$15>0,$Y23>0,AK$15<>$D23),IF(INDEX(IntvChanges!$V$15:$AJ$29,$D23,AK$15)="",0,1),0) -> 0 | AL23: =IF(AND($D23>0,AL$15>0,$Y23>0,AL$15<>$D23),IF(INDEX(IntvChanges!$V$15:$AJ$29,$D23,AL$15)="",0,1),0) -> 0 | AM23: =IF(AND($D23>0,AM$15>0,$Y23>0,AM$15<>$D23),IF(INDEX(IntvChanges!$V$15:$AJ$29,$D23,AM$15)="",0,1),0) -> 0 | AN23: =IF(AND($D23>0,AN$15>0,$Y23>0,AN$15<>$D23),IF(INDEX(IntvChanges!$V$15:$AJ$29,$D23,AN$15)="",0,1),0) -> 0 | AO23: =IF(AND($D23>0,AO$15>0,$Y23>0,AO$15<>$D23),IF(INDEX(IntvChanges!$V$15:$AJ$29,$D23,AO$15)="",0,1),0) -> 0 | AP23: =IF(AND($D23>0,AP$15>0,$Y23>0,AP$15<>$D23),IF(INDEX(IntvChanges!$V$15:$AJ$29,$D23,AP$15)="",0,1),0) -> 0
C24: 9 | D24: =IF(C24>Projection!C$14,0,MATCH(C24,IntvTriggers!$C$16:$C$30,0)) -> 0 | E24: =IF(D24=0,"[not used]",INDEX(IntvTriggers!$D$16:$D$30,D24,1)) -> [not used] | F24: 1 | G24: =IF($D24>0,IF(INDEX(IntvChanges!M$15:M$29,$D24,1)<>"",2,IF(INDEX(IntvChanges!F$15:F$29,$D24,1)<>"",3,1)),1) -> 1 | H24: =IF($D24>0,IF(INDEX(IntvChanges!N$15:N$29,$D24,1)<>"",2,IF(INDEX(IntvChanges!G$15:G$29,$D24,1)<>"",3,1)),1) -> 1 | I24: =IF($D24>0,IF(INDEX(IntvChanges!O$15:O$29,$D24,1)<>"",2,IF(INDEX(IntvChanges!H$15:H$29,$D24,1)<>"",3,1)),1) -> 1 | J24: =IF($D24>0,IF(INDEX(IntvChanges!P$15:P$29,$D24,1)<>"",2,IF(INDEX(IntvChanges!I$15:I$29,$D24,1)<>"",3,1)),1) -> 1 | K24: =IF($D24>0,IF(INDEX(IntvChanges!Q$15:Q$29,$D24,1)<>"",2,IF(INDEX(IntvChanges!J$15:J$29,$D24,1)<>"",3,1)),1) -> 1 | L24: =IF($D24>0,IF(INDEX(IntvChanges!R$15:R$29,$D24,1)<>"",2,IF(INDEX(IntvChanges!K$15:K$29,$D24,1)<>"",3,1)),1) -> 1 | N24: =AND(D24>0,COUNTA(OFFSET(IntvTriggers!$N$15:$AH$15,$D24,0))>0) -> FALSE | P24: =IF($D24>0,IF($N24,3,IF(INDEX(IntvTriggers!F$16:F$30,$D24,1)<>"",2,1)),1) -> 1 | Q24: =IF($D24>0,IF($N24,3,IF(INDEX(IntvTriggers!G$16:G$30,$D24,1)<>"",2,1)),1) -> 1 | R24: =IF($D24>0,IF($N24,3,IF(INDEX(IntvTriggers!H$16:H$30,$D24,1)<>"",2,1)),1) -> 1 | S24: =IF($D24>0,IF($N24,3,IF(INDEX(IntvTriggers!I$16:I$30,$D24,1)<>"",2,1)),1) -> 1 | T24: =IF($D24>0,IF($N24,3,IF(INDEX(IntvTriggers!J$16:J$30,$D24,1)<>"",2,1)),1) -> 1 | U24: =IF($D24>0,IF($N24,3,IF(INDEX(IntvTriggers!K$16:K$30,$D24,1)<>"",2,1)),1) -> 1 | V24: =IF($D24>0,IF($N24,3,IF(INDEX(IntvTriggers!L$16:L$30,$D24,1)<>"",2,1)),1) -> 1 | Y24: =IF($D24=0,0,INDEX(IntvChanges!$T$15:$T$29,$D24,1)) -> 0 | Z24: 99 | AB24: =IF(AND($D24>0,AB$15>0,$Y24>0,AB$15<>$D24),IF(INDEX(IntvChanges!$V$15:$AJ$29,$D24,AB$15)="",0,1),0) -> 0 | AC24: =IF(AND($D24>0,AC$15>0,$Y24>0,AC$15<>$D24),IF(INDEX(IntvChanges!$V$15:$AJ$29,$D24,AC$15)="",0,1),0) -> 0 | AD24: =IF(AND($D24>0,AD$15>0,$Y24>0,AD$15<>$D24),IF(INDEX(IntvChanges!$V$15:$AJ$29,$D24,AD$15)="",0,1),0) -> 0 | AE24: =IF(AND($D24>0,AE$15>0,$Y24>0,AE$15<>$D24),IF(INDEX(IntvChanges!$V$15:$AJ$29,$D24,AE$15)="",0,1),0) -> 0 | AF24: =IF(AND($D24>0,AF$15>0,$Y24>0,AF$15<>$D24),IF(INDEX(IntvChanges!$V$15:$AJ$29,$D24,AF$15)="",0,1),0) -> 0 | AG24: =IF(AND($D24>0,AG$15>0,$Y24>0,AG$15<>$D24),IF(INDEX(IntvChanges!$V$15:$AJ$29,$D24,AG$15)="",0,1),0) -> 0 | AH24: =IF(AND($D24>0,AH$15>0,$Y24>0,AH$15<>$D24),IF(INDEX(IntvChanges!$V$15:$AJ$29,$D24,AH$15)="",0,1),0) -> 0 | AI24: =IF(AND($D24>0,AI$15>0,$Y24>0,AI$15<>$D24),IF(INDEX(IntvChanges!$V$15:$AJ$29,$D24,AI$15)="",0,1),0) -> 0 | AJ24: =IF(AND($D24>0,AJ$15>0,$Y24>0,AJ$15<>$D24),IF(INDEX(IntvChanges!$V$15:$AJ$29,$D24,AJ$15)="",0,1),0) -> 0 | AK24: =IF(AND($D24>0,AK$15>0,$Y24>0,AK$15<>$D24),IF(INDEX(IntvChanges!$V$15:$AJ$29,$D24,AK$15)="",0,1),0) -> 0 | AL24: =IF(AND($D24>0,AL$15>0,$Y24>0,AL$15<>$D24),IF(INDEX(IntvChanges!$V$15:$AJ$29,$D24,AL$15)="",0,1),0) -> 0 | AM24: =IF(AND($D24>0,AM$15>0,$Y24>0,AM$15<>$D24),IF(INDEX(IntvChanges!$V$15:$AJ$29,$D24,AM$15)="",0,1),0) -> 0 | AN24: =IF(AND($D24>0,AN$15>0,$Y24>0,AN$15<>$D24),IF(INDEX(IntvChanges!$V$15:$AJ$29,$D24,AN$15)="",0,1),0) -> 0 | AO24: =IF(AND($D24>0,AO$15>0,$Y24>0,AO$15<>$D24),IF(INDEX(IntvChanges!$V$15:$AJ$29,$D24,AO$15)="",0,1),0) -> 0 | AP24: =IF(AND($D24>0,AP$15>0,$Y24>0,AP$15<>$D24),IF(INDEX(IntvChanges!$V$15:$AJ$29,$D24,AP$15)="",0,1),0) -> 0
C25: 10 | D25: =IF(C25>Projection!C$14,0,MATCH(C25,IntvTriggers!$C$16:$C$30,0)) -> 0 | E25: =IF(D25=0,"[not used]",INDEX(IntvTriggers!$D$16:$D$30,D25,1)) -> [not used] | F25: 1 | G25: =IF($D25>0,IF(INDEX(IntvChanges!M$15:M$29,$D25,1)<>"",2,IF(INDEX(IntvChanges!F$15:F$29,$D25,1)<>"",3,1)),1) -> 1 | H25: =IF($D25>0,IF(INDEX(IntvChanges!N$15:N$29,$D25,1)<>"",2,IF(INDEX(IntvChanges!G$15:G$29,$D25,1)<>"",3,1)),1) -> 1 | I25: =IF($D25>0,IF(INDEX(IntvChanges!O$15:O$29,$D25,1)<>"",2,IF(INDEX(IntvChanges!H$15:H$29,$D25,1)<>"",3,1)),1) -> 1 | J25: =IF($D25>0,IF(INDEX(IntvChanges!P$15:P$29,$D25,1)<>"",2,IF(INDEX(IntvChanges!I$15:I$29,$D25,1)<>"",3,1)),1) -> 1 | K25: =IF($D25>0,IF(INDEX(IntvChanges!Q$15:Q$29,$D25,1)<>"",2,IF(INDEX(IntvChanges!J$15:J$29,$D25,1)<>"",3,1)),1) -> 1 | L25: =IF($D25>0,IF(INDEX(IntvChanges!R$15:R$29,$D25,1)<>"",2,IF(INDEX(IntvChanges!K$15:K$29,$D25,1)<>"",3,1)),1) -> 1 | N25: =AND(D25>0,COUNTA(OFFSET(IntvTriggers!$N$15:$AH$15,$D25,0))>0) -> FALSE | P25: =IF($D25>0,IF($N25,3,IF(INDEX(IntvTriggers!F$16:F$30,$D25,1)<>"",2,1)),1) -> 1 | Q25: =IF($D25>0,IF($N25,3,IF(INDEX(IntvTriggers!G$16:G$30,$D25,1)<>"",2,1)),1) -> 1 | R25: =IF($D25>0,IF($N25,3,IF(INDEX(IntvTriggers!H$16:H$30,$D25,1)<>"",2,1)),1) -> 1 | S25: =IF($D25>0,IF($N25,3,IF(INDEX(IntvTriggers!I$16:I$30,$D25,1)<>"",2,1)),1) -> 1 | T25: =IF($D25>0,IF($N25,3,IF(INDEX(IntvTriggers!J$16:J$30,$D25,1)<>"",2,1)),1) -> 1 | U25: =IF($D25>0,IF($N25,3,IF(INDEX(IntvTriggers!K$16:K$30,$D25,1)<>"",2,1)),1) -> 1 | V25: =IF($D25>0,IF($N25,3,IF(INDEX(IntvTriggers!L$16:L$30,$D25,1)<>"",2,1)),1) -> 1 | Y25: =IF($D25=0,0,INDEX(IntvChanges!$T$15:$T$29,$D25,1)) -> 0 | Z25: =IF(Y25=0,99,Y25) -> 99 | AB25: =IF(AND($D25>0,AB$15>0,$Y25>0,AB$15<>$D25),IF(INDEX(IntvChanges!$V$15:$AJ$29,$D25,AB$15)="",0,1),0) -> 0 | AC25: =IF(AND($D25>0,AC$15>0,$Y25>0,AC$15<>$D25),IF(INDEX(IntvChanges!$V$15:$AJ$29,$D25,AC$15)="",0,1),0) -> 0 | AD25: =IF(AND($D25>0,AD$15>0,$Y25>0,AD$15<>$D25),IF(INDEX(IntvChanges!$V$15:$AJ$29,$D25,AD$15)="",0,1),0) -> 0 | AE25: =IF(AND($D25>0,AE$15>0,$Y25>0,AE$15<>$D25),IF(INDEX(IntvChanges!$V$15:$AJ$29,$D25,AE$15)="",0,1),0) -> 0 | AF25: =IF(AND($D25>0,AF$15>0,$Y25>0,AF$15<>$D25),IF(INDEX(IntvChanges!$V$15:$AJ$29,$D25,AF$15)="",0,1),0) -> 0 | AG25: =IF(AND($D25>0,AG$15>0,$Y25>0,AG$15<>$D25),IF(INDEX(IntvChanges!$V$15:$AJ$29,$D25,AG$15)="",0,1),0) -> 0 | AH25: =IF(AND($D25>0,AH$15>0,$Y25>0,AH$15<>$D25),IF(INDEX(IntvChanges!$V$15:$AJ$29,$D25,AH$15)="",0,1),0) -> 0 | AI25: =IF(AND($D25>0,AI$15>0,$Y25>0,AI$15<>$D25),IF(INDEX(IntvChanges!$V$15:$AJ$29,$D25,AI$15)="",0,1),0) -> 0 | AJ25: =IF(AND($D25>0,AJ$15>0,$Y25>0,AJ$15<>$D25),IF(INDEX(IntvChanges!$V$15:$AJ$29,$D25,AJ$15)="",0,1),0) -> 0 | AK25: =IF(AND($D25>0,AK$15>0,$Y25>0,AK$15<>$D25),IF(INDEX(IntvChanges!$V$15:$AJ$29,$D25,AK$15)="",0,1),0) -> 0 | AL25: =IF(AND($D25>0,AL$15>0,$Y25>0,AL$15<>$D25),IF(INDEX(IntvChanges!$V$15:$AJ$29,$D25,AL$15)="",0,1),0) -> 0 | AM25: =IF(AND($D25>0,AM$15>0,$Y25>0,AM$15<>$D25),IF(INDEX(IntvChanges!$V$15:$AJ$29,$D25,AM$15)="",0,1),0) -> 0 | AN25: =IF(AND($D25>0,AN$15>0,$Y25>0,AN$15<>$D25),IF(INDEX(IntvChanges!$V$15:$AJ$29,$D25,AN$15)="",0,1),0) -> 0 | AO25: =IF(AND($D25>0,AO$15>0,$Y25>0,AO$15<>$D25),IF(INDEX(IntvChanges!$V$15:$AJ$29,$D25,AO$15)="",0,1),0) -> 0 | AP25: =IF(AND($D25>0,AP$15>0,$Y25>0,AP$15<>$D25),IF(INDEX(IntvChanges!$V$15:$AJ$29,$D25,AP$15)="",0,1),0) -> 0
C26: 11 | D26: =IF(C26>Projection!C$14,0,MATCH(C26,IntvTriggers!$C$16:$C$30,0)) -> 0 | E26: =IF(D26=0,"[not used]",INDEX(IntvTriggers!$D$16:$D$30,D26,1)) -> [not used] | F26: 1 | G26: =IF($D26>0,IF(INDEX(IntvChanges!M$15:M$29,$D26,1)<>"",2,IF(INDEX(IntvChanges!F$15:F$29,$D26,1)<>"",3,1)),1) -> 1 | H26: =IF($D26>0,IF(INDEX(IntvChanges!N$15:N$29,$D26,1)<>"",2,IF(INDEX(IntvChanges!G$15:G$29,$D26,1)<>"",3,1)),1) -> 1 | I26: =IF($D26>0,IF(INDEX(IntvChanges!O$15:O$29,$D26,1)<>"",2,IF(INDEX(IntvChanges!H$15:H$29,$D26,1)<>"",3,1)),1) -> 1 | J26: =IF($D26>0,IF(INDEX(IntvChanges!P$15:P$29,$D26,1)<>"",2,IF(INDEX(IntvChanges!I$15:I$29,$D26,1)<>"",3,1)),1) -> 1 | K26: =IF($D26>0,IF(INDEX(IntvChanges!Q$15:Q$29,$D26,1)<>"",2,IF(INDEX(IntvChanges!J$15:J$29,$D26,1)<>"",3,1)),1) -> 1 | L26: =IF($D26>0,IF(INDEX(IntvChanges!R$15:R$29,$D26,1)<>"",2,IF(INDEX(IntvChanges!K$15:K$29,$D26,1)<>"",3,1)),1) -> 1 | N26: =AND(D26>0,COUNTA(OFFSET(IntvTriggers!$N$15:$AH$15,$D26,0))>0) -> FALSE | P26: =IF($D26>0,IF($N26,3,IF(INDEX(IntvTriggers!F$16:F$30,$D26,1)<>"",2,1)),1) -> 1 | Q26: =IF($D26>0,IF($N26,3,IF(INDEX(IntvTriggers!G$16:G$30,$D26,1)<>"",2,1)),1) -> 1 | R26: =IF($D26>0,IF($N26,3,IF(INDEX(IntvTriggers!H$16:H$30,$D26,1)<>"",2,1)),1) -> 1 | S26: =IF($D26>0,IF($N26,3,IF(INDEX(IntvTriggers!I$16:I$30,$D26,1)<>"",2,1)),1) -> 1 | T26: =IF($D26>0,IF($N26,3,IF(INDEX(IntvTriggers!J$16:J$30,$D26,1)<>"",2,1)),1) -> 1 | U26: =IF($D26>0,IF($N26,3,IF(INDEX(IntvTriggers!K$16:K$30,$D26,1)<>"",2,1)),1) -> 1 | V26: =IF($D26>0,IF($N26,3,IF(INDEX(IntvTriggers!L$16:L$30,$D26,1)<>"",2,1)),1) -> 1 | Y26: =IF($D26=0,0,INDEX(IntvChanges!$T$15:$T$29,$D26,1)) -> 0 | Z26: =IF(Y26=0,99,Y26) -> 99 | AB26: =IF(AND($D26>0,AB$15>0,$Y26>0,AB$15<>$D26),IF(INDEX(IntvChanges!$V$15:$AJ$29,$D26,AB$15)="",0,1),0) -> 0 | AC26: =IF(AND($D26>0,AC$15>0,$Y26>0,AC$15<>$D26),IF(INDEX(IntvChanges!$V$15:$AJ$29,$D26,AC$15)="",0,1),0) -> 0 | AD26: =IF(AND($D26>0,AD$15>0,$Y26>0,AD$15<>$D26),IF(INDEX(IntvChanges!$V$15:$AJ$29,$D26,AD$15)="",0,1),0) -> 0 | AE26: =IF(AND($D26>0,AE$15>0,$Y26>0,AE$15<>$D26),IF(INDEX(IntvChanges!$V$15:$AJ$29,$D26,AE$15)="",0,1),0) -> 0 | AF26: =IF(AND($D26>0,AF$15>0,$Y26>0,AF$15<>$D26),IF(INDEX(IntvChanges!$V$15:$AJ$29,$D26,AF$15)="",0,1),0) -> 0 | AG26: =IF(AND($D26>0,AG$15>0,$Y26>0,AG$15<>$D26),IF(INDEX(IntvChanges!$V$15:$AJ$29,$D26,AG$15)="",0,1),0) -> 0 | AH26: =IF(AND($D26>0,AH$15>0,$Y26>0,AH$15<>$D26),IF(INDEX(IntvChanges!$V$15:$AJ$29,$D26,AH$15)="",0,1),0) -> 0 | AI26: =IF(AND($D26>0,AI$15>0,$Y26>0,AI$15<>$D26),IF(INDEX(IntvChanges!$V$15:$AJ$29,$D26,AI$15)="",0,1),0) -> 0 | AJ26: =IF(AND($D26>0,AJ$15>0,$Y26>0,AJ$15<>$D26),IF(INDEX(IntvChanges!$V$15:$AJ$29,$D26,AJ$15)="",0,1),0) -> 0 | AK26: =IF(AND($D26>0,AK$15>0,$Y26>0,AK$15<>$D26),IF(INDEX(IntvChanges!$V$15:$AJ$29,$D26,AK$15)="",0,1),0) -> 0 | AL26: =IF(AND($D26>0,AL$15>0,$Y26>0,AL$15<>$D26),IF(INDEX(IntvChanges!$V$15:$AJ$29,$D26,AL$15)="",0,1),0) -> 0 | AM26: =IF(AND($D26>0,AM$15>0,$Y26>0,AM$15<>$D26),IF(INDEX(IntvChanges!$V$15:$AJ$29,$D26,AM$15)="",0,1),0) -> 0 | AN26: =IF(AND($D26>0,AN$15>0,$Y26>0,AN$15<>$D26),IF(INDEX(IntvChanges!$V$15:$AJ$29,$D26,AN$15)="",0,1),0) -> 0 | AO26: =IF(AND($D26>0,AO$15>0,$Y26>0,AO$15<>$D26),IF(INDEX(IntvChanges!$V$15:$AJ$29,$D26,AO$15)="",0,1),0) -> 0 | AP26: =IF(AND($D26>0,AP$15>0,$Y26>0,AP$15<>$D26),IF(INDEX(IntvChanges!$V$15:$AJ$29,$D26,AP$15)="",0,1),0) -> 0
C27: 12 | D27: =IF(C27>Projection!C$14,0,MATCH(C27,IntvTriggers!$C$16:$C$30,0)) -> 0 | E27: =IF(D27=0,"[not used]",INDEX(IntvTriggers!$D$16:$D$30,D27,1)) -> [not used] | F27: 1 | G27: =IF($D27>0,IF(INDEX(IntvChanges!M$15:M$29,$D27,1)<>"",2,IF(INDEX(IntvChanges!F$15:F$29,$D27,1)<>"",3,1)),1) -> 1 | H27: =IF($D27>0,IF(INDEX(IntvChanges!N$15:N$29,$D27,1)<>"",2,IF(INDEX(IntvChanges!G$15:G$29,$D27,1)<>"",3,1)),1) -> 1 | I27: =IF($D27>0,IF(INDEX(IntvChanges!O$15:O$29,$D27,1)<>"",2,IF(INDEX(IntvChanges!H$15:H$29,$D27,1)<>"",3,1)),1) -> 1 | J27: =IF($D27>0,IF(INDEX(IntvChanges!P$15:P$29,$D27,1)<>"",2,IF(INDEX(IntvChanges!I$15:I$29,$D27,1)<>"",3,1)),1) -> 1 | K27: =IF($D27>0,IF(INDEX(IntvChanges!Q$15:Q$29,$D27,1)<>"",2,IF(INDEX(IntvChanges!J$15:J$29,$D27,1)<>"",3,1)),1) -> 1 | L27: =IF($D27>0,IF(INDEX(IntvChanges!R$15:R$29,$D27,1)<>"",2,IF(INDEX(IntvChanges!K$15:K$29,$D27,1)<>"",3,1)),1) -> 1 | N27: =AND(D27>0,COUNTA(OFFSET(IntvTriggers!$N$15:$AH$15,$D27,0))>0) -> FALSE | P27: =IF($D27>0,IF($N27,3,IF(INDEX(IntvTriggers!F$16:F$30,$D27,1)<>"",2,1)),1) -> 1 | Q27: =IF($D27>0,IF($N27,3,IF(INDEX(IntvTriggers!G$16:G$30,$D27,1)<>"",2,1)),1) -> 1 | R27: =IF($D27>0,IF($N27,3,IF(INDEX(IntvTriggers!H$16:H$30,$D27,1)<>"",2,1)),1) -> 1 | S27: =IF($D27>0,IF($N27,3,IF(INDEX(IntvTriggers!I$16:I$30,$D27,1)<>"",2,1)),1) -> 1 | T27: =IF($D27>0,IF($N27,3,IF(INDEX(IntvTriggers!J$16:J$30,$D27,1)<>"",2,1)),1) -> 1 | U27: =IF($D27>0,IF($N27,3,IF(INDEX(IntvTriggers!K$16:K$30,$D27,1)<>"",2,1)),1) -> 1 | V27: =IF($D27>0,IF($N27,3,IF(INDEX(IntvTriggers!L$16:L$30,$D27,1)<>"",2,1)),1) -> 1 | Y27: =IF($D27=0,0,INDEX(IntvChanges!$T$15:$T$29,$D27,1)) -> 0 | Z27: =IF(Y27=0,99,Y27) -> 99 | AB27: =IF(AND($D27>0,AB$15>0,$Y27>0,AB$15<>$D27),IF(INDEX(IntvChanges!$V$15:$AJ$29,$D27,AB$15)="",0,1),0) -> 0 | AC27: =IF(AND($D27>0,AC$15>0,$Y27>0,AC$15<>$D27),IF(INDEX(IntvChanges!$V$15:$AJ$29,$D27,AC$15)="",0,1),0) -> 0 | AD27: =IF(AND($D27>0,AD$15>0,$Y27>0,AD$15<>$D27),IF(INDEX(IntvChanges!$V$15:$AJ$29,$D27,AD$15)="",0,1),0) -> 0 | AE27: =IF(AND($D27>0,AE$15>0,$Y27>0,AE$15<>$D27),IF(INDEX(IntvChanges!$V$15:$AJ$29,$D27,AE$15)="",0,1),0) -> 0 | AF27: =IF(AND($D27>0,AF$15>0,$Y27>0,AF$15<>$D27),IF(INDEX(IntvChanges!$V$15:$AJ$29,$D27,AF$15)="",0,1),0) -> 0 | AG27: =IF(AND($D27>0,AG$15>0,$Y27>0,AG$15<>$D27),IF(INDEX(IntvChanges!$V$15:$AJ$29,$D27,AG$15)="",0,1),0) -> 0 | AH27: =IF(AND($D27>0,AH$15>0,$Y27>0,AH$15<>$D27),IF(INDEX(IntvChanges!$V$15:$AJ$29,$D27,AH$15)="",0,1),0) -> 0 | AI27: =IF(AND($D27>0,AI$15>0,$Y27>0,AI$15<>$D27),IF(INDEX(IntvChanges!$V$15:$AJ$29,$D27,AI$15)="",0,1),0) -> 0 | AJ27: =IF(AND($D27>0,AJ$15>0,$Y27>0,AJ$15<>$D27),IF(INDEX(IntvChanges!$V$15:$AJ$29,$D27,AJ$15)="",0,1),0) -> 0 | AK27: =IF(AND($D27>0,AK$15>0,$Y27>0,AK$15<>$D27),IF(INDEX(IntvChanges!$V$15:$AJ$29,$D27,AK$15)="",0,1),0) -> 0 | AL27: =IF(AND($D27>0,AL$15>0,$Y27>0,AL$15<>$D27),IF(INDEX(IntvChanges!$V$15:$AJ$29,$D27,AL$15)="",0,1),0) -> 0 | AM27: =IF(AND($D27>0,AM$15>0,$Y27>0,AM$15<>$D27),IF(INDEX(IntvChanges!$V$15:$AJ$29,$D27,AM$15)="",0,1),0) -> 0 | AN27: =IF(AND($D27>0,AN$15>0,$Y27>0,AN$15<>$D27),IF(INDEX(IntvChanges!$V$15:$AJ$29,$D27,AN$15)="",0,1),0) -> 0 | AO27: =IF(AND($D27>0,AO$15>0,$Y27>0,AO$15<>$D27),IF(INDEX(IntvChanges!$V$15:$AJ$29,$D27,AO$15)="",0,1),0) -> 0 | AP27: =IF(AND($D27>0,AP$15>0,$Y27>0,AP$15<>$D27),IF(INDEX(IntvChanges!$V$15:$AJ$29,$D27,AP$15)="",0,1),0) -> 0
C28: 13 | D28: =IF(C28>Projection!C$14,0,MATCH(C28,IntvTriggers!$C$16:$C$30,0)) -> 0 | E28: =IF(D28=0,"[not used]",INDEX(IntvTriggers!$D$16:$D$30,D28,1)) -> [not used] | F28: 1 | G28: =IF($D28>0,IF(INDEX(IntvChanges!M$15:M$29,$D28,1)<>"",2,IF(INDEX(IntvChanges!F$15:F$29,$D28,1)<>"",3,1)),1) -> 1 | H28: =IF($D28>0,IF(INDEX(IntvChanges!N$15:N$29,$D28,1)<>"",2,IF(INDEX(IntvChanges!G$15:G$29,$D28,1)<>"",3,1)),1) -> 1 | I28: =IF($D28>0,IF(INDEX(IntvChanges!O$15:O$29,$D28,1)<>"",2,IF(INDEX(IntvChanges!H$15:H$29,$D28,1)<>"",3,1)),1) -> 1 | J28: =IF($D28>0,IF(INDEX(IntvChanges!P$15:P$29,$D28,1)<>"",2,IF(INDEX(IntvChanges!I$15:I$29,$D28,1)<>"",3,1)),1) -> 1 | K28: =IF($D28>0,IF(INDEX(IntvChanges!Q$15:Q$29,$D28,1)<>"",2,IF(INDEX(IntvChanges!J$15:J$29,$D28,1)<>"",3,1)),1) -> 1 | L28: =IF($D28>0,IF(INDEX(IntvChanges!R$15:R$29,$D28,1)<>"",2,IF(INDEX(IntvChanges!K$15:K$29,$D28,1)<>"",3,1)),1) -> 1 | N28: =AND(D28>0,COUNTA(OFFSET(IntvTriggers!$N$15:$AH$15,$D28,0))>0) -> FALSE | P28: =IF($D28>0,IF($N28,3,IF(INDEX(IntvTriggers!F$16:F$30,$D28,1)<>"",2,1)),1) -> 1 | Q28: =IF($D28>0,IF($N28,3,IF(INDEX(IntvTriggers!G$16:G$30,$D28,1)<>"",2,1)),1) -> 1 | R28: =IF($D28>0,IF($N28,3,IF(INDEX(IntvTriggers!H$16:H$30,$D28,1)<>"",2,1)),1) -> 1 | S28: =IF($D28>0,IF($N28,3,IF(INDEX(IntvTriggers!I$16:I$30,$D28,1)<>"",2,1)),1) -> 1 | T28: =IF($D28>0,IF($N28,3,IF(INDEX(IntvTriggers!J$16:J$30,$D28,1)<>"",2,1)),1) -> 1 | U28: =IF($D28>0,IF($N28,3,IF(INDEX(IntvTriggers!K$16:K$30,$D28,1)<>"",2,1)),1) -> 1 | V28: =IF($D28>0,IF($N28,3,IF(INDEX(IntvTriggers!L$16:L$30,$D28,1)<>"",2,1)),1) -> 1 | Y28: =IF($D28=0,0,INDEX(IntvChanges!$T$15:$T$29,$D28,1)) -> 0 | Z28: =IF(Y28=0,99,Y28) -> 99 | AB28: =IF(AND($D28>0,AB$15>0,$Y28>0,AB$15<>$D28),IF(INDEX(IntvChanges!$V$15:$AJ$29,$D28,AB$15)="",0,1),0) -> 0 | AC28: =IF(AND($D28>0,AC$15>0,$Y28>0,AC$15<>$D28),IF(INDEX(IntvChanges!$V$15:$AJ$29,$D28,AC$15)="",0,1),0) -> 0 | AD28: =IF(AND($D28>0,AD$15>0,$Y28>0,AD$15<>$D28),IF(INDEX(IntvChanges!$V$15:$AJ$29,$D28,AD$15)="",0,1),0) -> 0 | AE28: =IF(AND($D28>0,AE$15>0,$Y28>0,AE$15<>$D28),IF(INDEX(IntvChanges!$V$15:$AJ$29,$D28,AE$15)="",0,1),0) -> 0 | AF28: =IF(AND($D28>0,AF$15>0,$Y28>0,AF$15<>$D28),IF(INDEX(IntvChanges!$V$15:$AJ$29,$D28,AF$15)="",0,1),0) -> 0 | AG28: =IF(AND($D28>0,AG$15>0,$Y28>0,AG$15<>$D28),IF(INDEX(IntvChanges!$V$15:$AJ$29,$D28,AG$15)="",0,1),0) -> 0 | AH28: =IF(AND($D28>0,AH$15>0,$Y28>0,AH$15<>$D28),IF(INDEX(IntvChanges!$V$15:$AJ$29,$D28,AH$15)="",0,1),0) -> 0 | AI28: =IF(AND($D28>0,AI$15>0,$Y28>0,AI$15<>$D28),IF(INDEX(IntvChanges!$V$15:$AJ$29,$D28,AI$15)="",0,1),0) -> 0 | AJ28: =IF(AND($D28>0,AJ$15>0,$Y28>0,AJ$15<>$D28),IF(INDEX(IntvChanges!$V$15:$AJ$29,$D28,AJ$15)="",0,1),0) -> 0 | AK28: =IF(AND($D28>0,AK$15>0,$Y28>0,AK$15<>$D28),IF(INDEX(IntvChanges!$V$15:$AJ$29,$D28,AK$15)="",0,1),0) -> 0 | AL28: =IF(AND($D28>0,AL$15>0,$Y28>0,AL$15<>$D28),IF(INDEX(IntvChanges!$V$15:$AJ$29,$D28,AL$15)="",0,1),0) -> 0 | AM28: =IF(AND($D28>0,AM$15>0,$Y28>0,AM$15<>$D28),IF(INDEX(IntvChanges!$V$15:$AJ$29,$D28,AM$15)="",0,1),0) -> 0 | AN28: =IF(AND($D28>0,AN$15>0,$Y28>0,AN$15<>$D28),IF(INDEX(IntvChanges!$V$15:$AJ$29,$D28,AN$15)="",0,1),0) -> 0 | AO28: =IF(AND($D28>0,AO$15>0,$Y28>0,AO$15<>$D28),IF(INDEX(IntvChanges!$V$15:$AJ$29,$D28,AO$15)="",0,1),0) -> 0 | AP28: =IF(AND($D28>0,AP$15>0,$Y28>0,AP$15<>$D28),IF(INDEX(IntvChanges!$V$15:$AJ$29,$D28,AP$15)="",0,1),0) -> 0
C29: 14 | D29: =IF(C29>Projection!C$14,0,MATCH(C29,IntvTriggers!$C$16:$C$30,0)) -> 0 | E29: =IF(D29=0,"[not used]",INDEX(IntvTriggers!$D$16:$D$30,D29,1)) -> [not used] | F29: 1 | G29: =IF($D29>0,IF(INDEX(IntvChanges!M$15:M$29,$D29,1)<>"",2,IF(INDEX(IntvChanges!F$15:F$29,$D29,1)<>"",3,1)),1) -> 1 | H29: =IF($D29>0,IF(INDEX(IntvChanges!N$15:N$29,$D29,1)<>"",2,IF(INDEX(IntvChanges!G$15:G$29,$D29,1)<>"",3,1)),1) -> 1 | I29: =IF($D29>0,IF(INDEX(IntvChanges!O$15:O$29,$D29,1)<>"",2,IF(INDEX(IntvChanges!H$15:H$29,$D29,1)<>"",3,1)),1) -> 1 | J29: =IF($D29>0,IF(INDEX(IntvChanges!P$15:P$29,$D29,1)<>"",2,IF(INDEX(IntvChanges!I$15:I$29,$D29,1)<>"",3,1)),1) -> 1 | K29: =IF($D29>0,IF(INDEX(IntvChanges!Q$15:Q$29,$D29,1)<>"",2,IF(INDEX(IntvChanges!J$15:J$29,$D29,1)<>"",3,1)),1) -> 1 | L29: =IF($D29>0,IF(INDEX(IntvChanges!R$15:R$29,$D29,1)<>"",2,IF(INDEX(IntvChanges!K$15:K$29,$D29,1)<>"",3,1)),1) -> 1 | N29: =AND(D29>0,COUNTA(OFFSET(IntvTriggers!$N$15:$AH$15,$D29,0))>0) -> FALSE | P29: =IF($D29>0,IF($N29,3,IF(INDEX(IntvTriggers!F$16:F$30,$D29,1)<>"",2,1)),1) -> 1 | Q29: =IF($D29>0,IF($N29,3,IF(INDEX(IntvTriggers!G$16:G$30,$D29,1)<>"",2,1)),1) -> 1 | R29: =IF($D29>0,IF($N29,3,IF(INDEX(IntvTriggers!H$16:H$30,$D29,1)<>"",2,1)),1) -> 1 | S29: =IF($D29>0,IF($N29,3,IF(INDEX(IntvTriggers!I$16:I$30,$D29,1)<>"",2,1)),1) -> 1 | T29: =IF($D29>0,IF($N29,3,IF(INDEX(IntvTriggers!J$16:J$30,$D29,1)<>"",2,1)),1) -> 1 | U29: =IF($D29>0,IF($N29,3,IF(INDEX(IntvTriggers!K$16:K$30,$D29,1)<>"",2,1)),1) -> 1 | V29: =IF($D29>0,IF($N29,3,IF(INDEX(IntvTriggers!L$16:L$30,$D29,1)<>"",2,1)),1) -> 1 | Y29: =IF($D29=0,0,INDEX(IntvChanges!$T$15:$T$29,$D29,1)) -> 0 | Z29: =IF(Y29=0,99,Y29) -> 99 | AB29: =IF(AND($D29>0,AB$15>0,$Y29>0,AB$15<>$D29),IF(INDEX(IntvChanges!$V$15:$AJ$29,$D29,AB$15)="",0,1),0) -> 0 | AC29: =IF(AND($D29>0,AC$15>0,$Y29>0,AC$15<>$D29),IF(INDEX(IntvChanges!$V$15:$AJ$29,$D29,AC$15)="",0,1),0) -> 0 | AD29: =IF(AND($D29>0,AD$15>0,$Y29>0,AD$15<>$D29),IF(INDEX(IntvChanges!$V$15:$AJ$29,$D29,AD$15)="",0,1),0) -> 0 | AE29: =IF(AND($D29>0,AE$15>0,$Y29>0,AE$15<>$D29),IF(INDEX(IntvChanges!$V$15:$AJ$29,$D29,AE$15)="",0,1),0) -> 0 | AF29: =IF(AND($D29>0,AF$15>0,$Y29>0,AF$15<>$D29),IF(INDEX(IntvChanges!$V$15:$AJ$29,$D29,AF$15)="",0,1),0) -> 0 | AG29: =IF(AND($D29>0,AG$15>0,$Y29>0,AG$15<>$D29),IF(INDEX(IntvChanges!$V$15:$AJ$29,$D29,AG$15)="",0,1),0) -> 0 | AH29: =IF(AND($D29>0,AH$15>0,$Y29>0,AH$15<>$D29),IF(INDEX(IntvChanges!$V$15:$AJ$29,$D29,AH$15)="",0,1),0) -> 0 | AI29: =IF(AND($D29>0,AI$15>0,$Y29>0,AI$15<>$D29),IF(INDEX(IntvChanges!$V$15:$AJ$29,$D29,AI$15)="",0,1),0) -> 0 | AJ29: =IF(AND($D29>0,AJ$15>0,$Y29>0,AJ$15<>$D29),IF(INDEX(IntvChanges!$V$15:$AJ$29,$D29,AJ$15)="",0,1),0) -> 0 | AK29: =IF(AND($D29>0,AK$15>0,$Y29>0,AK$15<>$D29),IF(INDEX(IntvChanges!$V$15:$AJ$29,$D29,AK$15)="",0,1),0) -> 0 | AL29: =IF(AND($D29>0,AL$15>0,$Y29>0,AL$15<>$D29),IF(INDEX(IntvChanges!$V$15:$AJ$29,$D29,AL$15)="",0,1),0) -> 0 | AM29: =IF(AND($D29>0,AM$15>0,$Y29>0,AM$15<>$D29),IF(INDEX(IntvChanges!$V$15:$AJ$29,$D29,AM$15)="",0,1),0) -> 0 | AN29: =IF(AND($D29>0,AN$15>0,$Y29>0,AN$15<>$D29),IF(INDEX(IntvChanges!$V$15:$AJ$29,$D29,AN$15)="",0,1),0) -> 0 | AO29: =IF(AND($D29>0,AO$15>0,$Y29>0,AO$15<>$D29),IF(INDEX(IntvChanges!$V$15:$AJ$29,$D29,AO$15)="",0,1),0) -> 0 | AP29: =IF(AND($D29>0,AP$15>0,$Y29>0,AP$15<>$D29),IF(INDEX(IntvChanges!$V$15:$AJ$29,$D29,AP$15)="",0,1),0) -> 0
C30: 15 | D30: =IF(C30>Projection!C$14,0,MATCH(C30,IntvTriggers!$C$16:$C$30,0)) -> 0 | E30: =IF(D30=0,"[not used]",INDEX(IntvTriggers!$D$16:$D$30,D30,1)) -> [not used] | F30: 1 | G30: =IF($D30>0,IF(INDEX(IntvChanges!M$15:M$29,$D30,1)<>"",2,IF(INDEX(IntvChanges!F$15:F$29,$D30,1)<>"",3,1)),1) -> 1 | H30: =IF($D30>0,IF(INDEX(IntvChanges!N$15:N$29,$D30,1)<>"",2,IF(INDEX(IntvChanges!G$15:G$29,$D30,1)<>"",3,1)),1) -> 1 | I30: =IF($D30>0,IF(INDEX(IntvChanges!O$15:O$29,$D30,1)<>"",2,IF(INDEX(IntvChanges!H$15:H$29,$D30,1)<>"",3,1)),1) -> 1 | J30: =IF($D30>0,IF(INDEX(IntvChanges!P$15:P$29,$D30,1)<>"",2,IF(INDEX(IntvChanges!I$15:I$29,$D30,1)<>"",3,1)),1) -> 1 | K30: =IF($D30>0,IF(INDEX(IntvChanges!Q$15:Q$29,$D30,1)<>"",2,IF(INDEX(IntvChanges!J$15:J$29,$D30,1)<>"",3,1)),1) -> 1 | L30: =IF($D30>0,IF(INDEX(IntvChanges!R$15:R$29,$D30,1)<>"",2,IF(INDEX(IntvChanges!K$15:K$29,$D30,1)<>"",3,1)),1) -> 1 | N30: =AND(D30>0,COUNTA(OFFSET(IntvTriggers!$N$15:$AH$15,$D30,0))>0) -> FALSE | P30: =IF($D30>0,IF($N30,3,IF(INDEX(IntvTriggers!F$16:F$30,$D30,1)<>"",2,1)),1) -> 1 | Q30: =IF($D30>0,IF($N30,3,IF(INDEX(IntvTriggers!G$16:G$30,$D30,1)<>"",2,1)),1) -> 1 | R30: =IF($D30>0,IF($N30,3,IF(INDEX(IntvTriggers!H$16:H$30,$D30,1)<>"",2,1)),1) -> 1 | S30: =IF($D30>0,IF($N30,3,IF(INDEX(IntvTriggers!I$16:I$30,$D30,1)<>"",2,1)),1) -> 1 | T30: =IF($D30>0,IF($N30,3,IF(INDEX(IntvTriggers!J$16:J$30,$D30,1)<>"",2,1)),1) -> 1 | U30: =IF($D30>0,IF($N30,3,IF(INDEX(IntvTriggers!K$16:K$30,$D30,1)<>"",2,1)),1) -> 1 | V30: =IF($D30>0,IF($N30,3,IF(INDEX(IntvTriggers!L$16:L$30,$D30,1)<>"",2,1)),1) -> 1 | Y30: =IF($D30=0,0,INDEX(IntvChanges!$T$15:$T$29,$D30,1)) -> 0 | Z30: 99 | AB30: =IF(AND($D30>0,AB$15>0,$Y30>0,AB$15<>$D30),IF(INDEX(IntvChanges!$V$15:$AJ$29,$D30,AB$15)="",0,1),0) -> 0 | AC30: =IF(AND($D30>0,AC$15>0,$Y30>0,AC$15<>$D30),IF(INDEX(IntvChanges!$V$15:$AJ$29,$D30,AC$15)="",0,1),0) -> 0 | AD30: =IF(AND($D30>0,AD$15>0,$Y30>0,AD$15<>$D30),IF(INDEX(IntvChanges!$V$15:$AJ$29,$D30,AD$15)="",0,1),0) -> 0 | AE30: =IF(AND($D30>0,AE$15>0,$Y30>0,AE$15<>$D30),IF(INDEX(IntvChanges!$V$15:$AJ$29,$D30,AE$15)="",0,1),0) -> 0 | AF30: =IF(AND($D30>0,AF$15>0,$Y30>0,AF$15<>$D30),IF(INDEX(IntvChanges!$V$15:$AJ$29,$D30,AF$15)="",0,1),0) -> 0 | AG30: =IF(AND($D30>0,AG$15>0,$Y30>0,AG$15<>$D30),IF(INDEX(IntvChanges!$V$15:$AJ$29,$D30,AG$15)="",0,1),0) -> 0 | AH30: =IF(AND($D30>0,AH$15>0,$Y30>0,AH$15<>$D30),IF(INDEX(IntvChanges!$V$15:$AJ$29,$D30,AH$15)="",0,1),0) -> 0 | AI30: =IF(AND($D30>0,AI$15>0,$Y30>0,AI$15<>$D30),IF(INDEX(IntvChanges!$V$15:$AJ$29,$D30,AI$15)="",0,1),0) -> 0 | AJ30: =IF(AND($D30>0,AJ$15>0,$Y30>0,AJ$15<>$D30),IF(INDEX(IntvChanges!$V$15:$AJ$29,$D30,AJ$15)="",0,1),0) -> 0 | AK30: =IF(AND($D30>0,AK$15>0,$Y30>0,AK$15<>$D30),IF(INDEX(IntvChanges!$V$15:$AJ$29,$D30,AK$15)="",0,1),0) -> 0 | AL30: =IF(AND($D30>0,AL$15>0,$Y30>0,AL$15<>$D30),IF(INDEX(IntvChanges!$V$15:$AJ$29,$D30,AL$15)="",0,1),0) -> 0 | AM30: =IF(AND($D30>0,AM$15>0,$Y30>0,AM$15<>$D30),IF(INDEX(IntvChanges!$V$15:$AJ$29,$D30,AM$15)="",0,1),0) -> 0 | AN30: =IF(AND($D30>0,AN$15>0,$Y30>0,AN$15<>$D30),IF(INDEX(IntvChanges!$V$15:$AJ$29,$D30,AN$15)="",0,1),0) -> 0 | AO30: =IF(AND($D30>0,AO$15>0,$Y30>0,AO$15<>$D30),IF(INDEX(IntvChanges!$V$15:$AJ$29,$D30,AO$15)="",0,1),0) -> 0 | AP30: =IF(AND($D30>0,AP$15>0,$Y30>0,AP$15<>$D30),IF(INDEX(IntvChanges!$V$15:$AJ$29,$D30,AP$15)="",0,1),0) -> 0
G32: Absolute changes | P32: Trigger scores
C33: =C16 -> 1 | D33: =D16 -> 7 | E33: =E16 -> Major earthworks | F33: - | G33: =IF(G16=2,INDEX(IntvChanges!M$15:M$29,$D33,1),"-") -> 0 | H33: =IF(H16=2,INDEX(IntvChanges!N$15:N$29,$D33,1),"-") -> 0 | I33: =IF(I16=2,INDEX(IntvChanges!O$15:O$29,$D33,1),"-") -> 0 | J33: =IF(J16=2,INDEX(IntvChanges!P$15:P$29,$D33,1),"-") -> 0 | K33: =IF(K16=2,INDEX(IntvChanges!Q$15:Q$29,$D33,1),"-") -> 0 | L33: =IF(L16=2,INDEX(IntvChanges!R$15:R$29,$D33,1),"-") -> 0 | P33: =IF(P16=2,INDEX(IntvTriggers!F$16:F$30,$D33,1),"-") -> 10 | Q33: =IF(Q16=2,INDEX(IntvTriggers!G$16:G$30,$D33,1),"-") -> - | R33: =IF(R16=2,INDEX(IntvTriggers!H$16:H$30,$D33,1),"-") -> - | S33: =IF(S16=2,INDEX(IntvTriggers!I$16:I$30,$D33,1),"-") -> - | T33: =IF(T16=2,INDEX(IntvTriggers!J$16:J$30,$D33,1),"-") -> - | U33: =IF(U16=2,INDEX(IntvTriggers!K$16:K$30,$D33,1),"-") -> - | V33: =IF(V16=2,INDEX(IntvTriggers!L$16:L$30,$D33,1),"-") -> -
C34: =C17 -> 2 | D34: =D17 -> 6 | E34: Minor earthworks | F34: - | G34: =IF(G17=2,INDEX(IntvChanges!M$15:M$29,$D34,1),"-") -> 1.5 | H34: =IF(H17=2,INDEX(IntvChanges!N$15:N$29,$D34,1),"-") -> 0 | I34: =IF(I17=2,INDEX(IntvChanges!O$15:O$29,$D34,1),"-") -> - | J34: =IF(J17=2,INDEX(IntvChanges!P$15:P$29,$D34,1),"-") -> 0.5 | K34: =IF(K17=2,INDEX(IntvChanges!Q$15:Q$29,$D34,1),"-") -> 0 | L34: =IF(L17=2,INDEX(IntvChanges!R$15:R$29,$D34,1),"-") -> 0 | P34: =IF(P17=2,INDEX(IntvTriggers!F$16:F$30,$D34,1),"-") -> - | Q34: =IF(Q17=2,INDEX(IntvTriggers!G$16:G$30,$D34,1),"-") -> 4 | R34: =IF(R17=2,INDEX(IntvTriggers!H$16:H$30,$D34,1),"-") -> - | S34: =IF(S17=2,INDEX(IntvTriggers!I$16:I$30,$D34,1),"-") -> - | T34: =IF(T17=2,INDEX(IntvTriggers!J$16:J$30,$D34,1),"-") -> - | U34: =IF(U17=2,INDEX(IntvTriggers!K$16:K$30,$D34,1),"-") -> - | V34: =IF(V17=2,INDEX(IntvTriggers!L$16:L$30,$D34,1),"-") -> -
C35: 3 | D35: 5 | E35: Burrow filling | F35: - | G35: =IF(G18=2,INDEX(IntvChanges!M$15:M$29,$D35,1),"-") -> - | H35: =IF(H18=2,INDEX(IntvChanges!N$15:N$29,$D35,1),"-") -> - | I35: =IF(I18=2,INDEX(IntvChanges!O$15:O$29,$D35,1),"-") -> - | J35: =IF(J18=2,INDEX(IntvChanges!P$15:P$29,$D35,1),"-") -> - | K35: =IF(K18=2,INDEX(IntvChanges!Q$15:Q$29,$D35,1),"-") -> 0 | L35: =IF(L18=2,INDEX(IntvChanges!R$15:R$29,$D35,1),"-") -> - | P35: =IF(P18=2,INDEX(IntvTriggers!F$16:F$30,$D35,1),"-") -> - | Q35: =IF(Q18=2,INDEX(IntvTriggers!G$16:G$30,$D35,1),"-") -> - | R35: =IF(R18=2,INDEX(IntvTriggers!H$16:H$30,$D35,1),"-") -> - | S35: =IF(S18=2,INDEX(IntvTriggers!I$16:I$30,$D35,1),"-") -> - | T35: =IF(T18=2,INDEX(IntvTriggers!J$16:J$30,$D35,1),"-") -> - | U35: =IF(U18=2,INDEX(IntvTriggers!K$16:K$30,$D35,1),"-") -> 1.7 | V35: =IF(V18=2,INDEX(IntvTriggers!L$16:L$30,$D35,1),"-") -> -
C36: 4 | D36: 4 | E36: Drainage replacement | F36: - | G36: =IF(G19=2,INDEX(IntvChanges!M$15:M$29,$D36,1),"-") -> - | H36: =IF(H19=2,INDEX(IntvChanges!N$15:N$29,$D36,1),"-") -> - | I36: =IF(I19=2,INDEX(IntvChanges!O$15:O$29,$D36,1),"-") -> 0 | J36: =IF(J19=2,INDEX(IntvChanges!P$15:P$29,$D36,1),"-") -> -1 | K36: =IF(K19=2,INDEX(IntvChanges!Q$15:Q$29,$D36,1),"-") -> - | L36: =IF(L19=2,INDEX(IntvChanges!R$15:R$29,$D36,1),"-") -> - | P36: =IF(P19=2,INDEX(IntvTriggers!F$16:F$30,$D36,1),"-") -> - | Q36: =IF(Q19=2,INDEX(IntvTriggers!G$16:G$30,$D36,1),"-") -> - | R36: =IF(R19=2,INDEX(IntvTriggers!H$16:H$30,$D36,1),"-") -> - | S36: =IF(S19=2,INDEX(IntvTriggers!I$16:I$30,$D36,1),"-") -> 2 | T36: =IF(T19=2,INDEX(IntvTriggers!J$16:J$30,$D36,1),"-") -> - | U36: =IF(U19=2,INDEX(IntvTriggers!K$16:K$30,$D36,1),"-") -> - | V36: =IF(V19=2,INDEX(IntvTriggers!L$16:L$30,$D36,1),"-") -> -
C37: 5 | D37: 3 | E37: Drainage repair | F37: - | G37: =IF(G20=2,INDEX(IntvChanges!M$15:M$29,$D37,1),"-") -> - | H37: =IF(H20=2,INDEX(IntvChanges!N$15:N$29,$D37,1),"-") -> - | I37: =IF(I20=2,INDEX(IntvChanges!O$15:O$29,$D37,1),"-") -> - | J37: =IF(J20=2,INDEX(IntvChanges!P$15:P$29,$D37,1),"-") -> -0.5 | K37: =IF(K20=2,INDEX(IntvChanges!Q$15:Q$29,$D37,1),"-") -> - | L37: =IF(L20=2,INDEX(IntvChanges!R$15:R$29,$D37,1),"-") -> - | P37: =IF(P20=2,INDEX(IntvTriggers!F$16:F$30,$D37,1),"-") -> - | Q37: =IF(Q20=2,INDEX(IntvTriggers!G$16:G$30,$D37,1),"-") -> - | R37: =IF(R20=2,INDEX(IntvTriggers!H$16:H$30,$D37,1),"-") -> - | S37: =IF(S20=2,INDEX(IntvTriggers!I$16:I$30,$D37,1),"-") -> 1.5 | T37: =IF(T20=2,INDEX(IntvTriggers!J$16:J$30,$D37,1),"-") -> 1.2 | U37: =IF(U20=2,INDEX(IntvTriggers!K$16:K$30,$D37,1),"-") -> - | V37: =IF(V20=2,INDEX(IntvTriggers!L$16:L$30,$D37,1),"-") -> -
C38: 6 | D38: 2 | E38: Drainage clearance | F38: - | G38: =IF(G21=2,INDEX(IntvChanges!M$15:M$29,$D38,1),"-") -> - | H38: =IF(H21=2,INDEX(IntvChanges!N$15:N$29,$D38,1),"-") -> - | I38: =IF(I21=2,INDEX(IntvChanges!O$15:O$29,$D38,1),"-") -> - | J38: =IF(J21=2,INDEX(IntvChanges!P$15:P$29,$D38,1),"-") -> 0.5 | K38: =IF(K21=2,INDEX(IntvChanges!Q$15:Q$29,$D38,1),"-") -> - | L38: =IF(L21=2,INDEX(IntvChanges!R$15:R$29,$D38,1),"-") -> - | P38: =IF(P21=2,INDEX(IntvTriggers!F$16:F$30,$D38,1),"-") -> - | Q38: =IF(Q21=2,INDEX(IntvTriggers!G$16:G$30,$D38,1),"-") -> - | R38: =IF(R21=2,INDEX(IntvTriggers!H$16:H$30,$D38,1),"-") -> - | S38: =IF(S21=2,INDEX(IntvTriggers!I$16:I$30,$D38,1),"-") -> - | T38: =IF(T21=2,INDEX(IntvTriggers!J$16:J$30,$D38,1),"-") -> - | U38: =IF(U21=2,INDEX(IntvTriggers!K$16:K$30,$D38,1),"-") -> - | V38: =IF(V21=2,INDEX(IntvTriggers!L$16:L$30,$D38,1),"-") -> -
C39: 7 | D39: 1 | E39: Vegetation clearance | F39: - | G39: =IF(G22=2,INDEX(IntvChanges!M$15:M$29,$D39,1),"-") -> - | H39: =IF(H22=2,INDEX(IntvChanges!N$15:N$29,$D39,1),"-") -> 0 | I39: =IF(I22=2,INDEX(IntvChanges!O$15:O$29,$D39,1),"-") -> - | J39: =IF(J22=2,INDEX(IntvChanges!P$15:P$29,$D39,1),"-") -> - | K39: =IF(K22=2,INDEX(IntvChanges!Q$15:Q$29,$D39,1),"-") -> - | L39: =IF(L22=2,INDEX(IntvChanges!R$15:R$29,$D39,1),"-") -> - | P39: =IF(P22=2,INDEX(IntvTriggers!F$16:F$30,$D39,1),"-") -> - | Q39: =IF(Q22=2,INDEX(IntvTriggers!G$16:G$30,$D39,1),"-") -> - | R39: =IF(R22=2,INDEX(IntvTriggers!H$16:H$30,$D39,1),"-") -> - | S39: =IF(S22=2,INDEX(IntvTriggers!I$16:I$30,$D39,1),"-") -> - | T39: =IF(T22=2,INDEX(IntvTriggers!J$16:J$30,$D39,1),"-") -> - | U39: =IF(U22=2,INDEX(IntvTriggers!K$16:K$30,$D39,1),"-") -> - | V39: =IF(V22=2,INDEX(IntvTriggers!L$16:L$30,$D39,1),"-") -> -
C40: 8 | D40: 0 | E40: [not used] | F40: - | G40: =IF(G23=2,INDEX(IntvChanges!M$15:M$29,$D40,1),"-") -> - | H40: =IF(H23=2,INDEX(IntvChanges!N$15:N$29,$D40,1),"-") -> - | I40: =IF(I23=2,INDEX(IntvChanges!O$15:O$29,$D40,1),"-") -> - | J40: =IF(J23=2,INDEX(IntvChanges!P$15:P$29,$D40,1),"-") -> - | K40: =IF(K23=2,INDEX(IntvChanges!Q$15:Q$29,$D40,1),"-") -> - | L40: =IF(L23=2,INDEX(IntvChanges!R$15:R$29,$D40,1),"-") -> - | P40: =IF(P23=2,INDEX(IntvTriggers!F$16:F$30,$D40,1),"-") -> - | Q40: =IF(Q23=2,INDEX(IntvTriggers!G$16:G$30,$D40,1),"-") -> - | R40: =IF(R23=2,INDEX(IntvTriggers!H$16:H$30,$D40,1),"-") -> - | S40: =IF(S23=2,INDEX(IntvTriggers!I$16:I$30,$D40,1),"-") -> - | T40: =IF(T23=2,INDEX(IntvTriggers!J$16:J$30,$D40,1),"-") -> - | U40: =IF(U23=2,INDEX(IntvTriggers!K$16:K$30,$D40,1),"-") -> - | V40: =IF(V23=2,INDEX(IntvTriggers!L$16:L$30,$D40,1),"-") -> -
C41: 9 | D41: 0 | E41: [not used] | F41: - | G41: =IF(G24=2,INDEX(IntvChanges!M$15:M$29,$D41,1),"-") -> - | H41: =IF(H24=2,INDEX(IntvChanges!N$15:N$29,$D41,1),"-") -> - | I41: =IF(I24=2,INDEX(IntvChanges!O$15:O$29,$D41,1),"-") -> - | J41: =IF(J24=2,INDEX(IntvChanges!P$15:P$29,$D41,1),"-") -> - | K41: =IF(K24=2,INDEX(IntvChanges!Q$15:Q$29,$D41,1),"-") -> - | L41: =IF(L24=2,INDEX(IntvChanges!R$15:R$29,$D41,1),"-") -> - | P41: =IF(P24=2,INDEX(IntvTriggers!F$16:F$30,$D41,1),"-") -> - | Q41: =IF(Q24=2,INDEX(IntvTriggers!G$16:G$30,$D41,1),"-") -> - | R41: =IF(R24=2,INDEX(IntvTriggers!H$16:H$30,$D41,1),"-") -> - | S41: =IF(S24=2,INDEX(IntvTriggers!I$16:I$30,$D41,1),"-") -> - | T41: =IF(T24=2,INDEX(IntvTriggers!J$16:J$30,$D41,1),"-") -> - | U41: =IF(U24=2,INDEX(IntvTriggers!K$16:K$30,$D41,1),"-") -> - | V41: =IF(V24=2,INDEX(IntvTriggers!L$16:L$30,$D41,1),"-") -> -
C42: 10 | D42: 0 | E42: [not used] | F42: - | G42: =IF(G25=2,INDEX(IntvChanges!M$15:M$29,$D42,1),"-") -> - | H42: =IF(H25=2,INDEX(IntvChanges!N$15:N$29,$D42,1),"-") -> - | I42: =IF(I25=2,INDEX(IntvChanges!O$15:O$29,$D42,1),"-") -> - | J42: =IF(J25=2,INDEX(IntvChanges!P$15:P$29,$D42,1),"-") -> - | K42: =IF(K25=2,INDEX(IntvChanges!Q$15:Q$29,$D42,1),"-") -> - | L42: =IF(L25=2,INDEX(IntvChanges!R$15:R$29,$D42,1),"-") -> - | P42: =IF(P25=2,INDEX(IntvTriggers!F$16:F$30,$D42,1),"-") -> - | Q42: =IF(Q25=2,INDEX(IntvTriggers!G$16:G$30,$D42,1),"-") -> - | R42: =IF(R25=2,INDEX(IntvTriggers!H$16:H$30,$D42,1),"-") -> - | S42: =IF(S25=2,INDEX(IntvTriggers!I$16:I$30,$D42,1),"-") -> - | T42: =IF(T25=2,INDEX(IntvTriggers!J$16:J$30,$D42,1),"-") -> - | U42: =IF(U25=2,INDEX(IntvTriggers!K$16:K$30,$D42,1),"-") -> - | V42: =IF(V25=2,INDEX(IntvTriggers!L$16:L$30,$D42,1),"-") -> -
C43: 11 | D43: 0 | E43: [not used] | F43: - | G43: =IF(G26=2,INDEX(IntvChanges!M$15:M$29,$D43,1),"-") -> - | H43: =IF(H26=2,INDEX(IntvChanges!N$15:N$29,$D43,1),"-") -> - | I43: =IF(I26=2,INDEX(IntvChanges!O$15:O$29,$D43,1),"-") -> - | J43: =IF(J26=2,INDEX(IntvChanges!P$15:P$29,$D43,1),"-") -> - | K43: =IF(K26=2,INDEX(IntvChanges!Q$15:Q$29,$D43,1),"-") -> - | L43: =IF(L26=2,INDEX(IntvChanges!R$15:R$29,$D43,1),"-") -> - | P43: =IF(P26=2,INDEX(IntvTriggers!F$16:F$30,$D43,1),"-") -> - | Q43: =IF(Q26=2,INDEX(IntvTriggers!G$16:G$30,$D43,1),"-") -> - | R43: =IF(R26=2,INDEX(IntvTriggers!H$16:H$30,$D43,1),"-") -> - | S43: =IF(S26=2,INDEX(IntvTriggers!I$16:I$30,$D43,1),"-") -> - | T43: =IF(T26=2,INDEX(IntvTriggers!J$16:J$30,$D43,1),"-") -> - | U43: =IF(U26=2,INDEX(IntvTriggers!K$16:K$30,$D43,1),"-") -> - | V43: =IF(V26=2,INDEX(IntvTriggers!L$16:L$30,$D43,1),"-") -> -
C44: 12 | D44: 0 | E44: [not used] | F44: - | G44: =IF(G27=2,INDEX(IntvChanges!M$15:M$29,$D44,1),"-") -> - | H44: =IF(H27=2,INDEX(IntvChanges!N$15:N$29,$D44,1),"-") -> - | I44: =IF(I27=2,INDEX(IntvChanges!O$15:O$29,$D44,1),"-") -> - | J44: =IF(J27=2,INDEX(IntvChanges!P$15:P$29,$D44,1),"-") -> - | K44: =IF(K27=2,INDEX(IntvChanges!Q$15:Q$29,$D44,1),"-") -> - | L44: =IF(L27=2,INDEX(IntvChanges!R$15:R$29,$D44,1),"-") -> - | P44: =IF(P27=2,INDEX(IntvTriggers!F$16:F$30,$D44,1),"-") -> - | Q44: =IF(Q27=2,INDEX(IntvTriggers!G$16:G$30,$D44,1),"-") -> - | R44: =IF(R27=2,INDEX(IntvTriggers!H$16:H$30,$D44,1),"-") -> - | S44: =IF(S27=2,INDEX(IntvTriggers!I$16:I$30,$D44,1),"-") -> - | T44: =IF(T27=2,INDEX(IntvTriggers!J$16:J$30,$D44,1),"-") -> - | U44: =IF(U27=2,INDEX(IntvTriggers!K$16:K$30,$D44,1),"-") -> - | V44: =IF(V27=2,INDEX(IntvTriggers!L$16:L$30,$D44,1),"-") -> -
C45: 13 | D45: 0 | E45: [not used] | F45: - | G45: =IF(G28=2,INDEX(IntvChanges!M$15:M$29,$D45,1),"-") -> - | H45: =IF(H28=2,INDEX(IntvChanges!N$15:N$29,$D45,1),"-") -> - | I45: =IF(I28=2,INDEX(IntvChanges!O$15:O$29,$D45,1),"-") -> - | J45: =IF(J28=2,INDEX(IntvChanges!P$15:P$29,$D45,1),"-") -> - | K45: =IF(K28=2,INDEX(IntvChanges!Q$15:Q$29,$D45,1),"-") -> - | L45: =IF(L28=2,INDEX(IntvChanges!R$15:R$29,$D45,1),"-") -> - | P45: =IF(P28=2,INDEX(IntvTriggers!F$16:F$30,$D45,1),"-") -> - | Q45: =IF(Q28=2,INDEX(IntvTriggers!G$16:G$30,$D45,1),"-") -> - | R45: =IF(R28=2,INDEX(IntvTriggers!H$16:H$30,$D45,1),"-") -> - | S45: =IF(S28=2,INDEX(IntvTriggers!I$16:I$30,$D45,1),"-") -> - | T45: =IF(T28=2,INDEX(IntvTriggers!J$16:J$30,$D45,1),"-") -> - | U45: =IF(U28=2,INDEX(IntvTriggers!K$16:K$30,$D45,1),"-") -> - | V45: =IF(V28=2,INDEX(IntvTriggers!L$16:L$30,$D45,1),"-") -> -
C46: 14 | D46: 0 | E46: [not used] | F46: - | G46: =IF(G29=2,INDEX(IntvChanges!M$15:M$29,$D46,1),"-") -> - | H46: =IF(H29=2,INDEX(IntvChanges!N$15:N$29,$D46,1),"-") -> - | I46: =IF(I29=2,INDEX(IntvChanges!O$15:O$29,$D46,1),"-") -> - | J46: =IF(J29=2,INDEX(IntvChanges!P$15:P$29,$D46,1),"-") -> - | K46: =IF(K29=2,INDEX(IntvChanges!Q$15:Q$29,$D46,1),"-") -> - | L46: =IF(L29=2,INDEX(IntvChanges!R$15:R$29,$D46,1),"-") -> - | P46: =IF(P29=2,INDEX(IntvTriggers!F$16:F$30,$D46,1),"-") -> - | Q46: =IF(Q29=2,INDEX(IntvTriggers!G$16:G$30,$D46,1),"-") -> - | R46: =IF(R29=2,INDEX(IntvTriggers!H$16:H$30,$D46,1),"-") -> - | S46: =IF(S29=2,INDEX(IntvTriggers!I$16:I$30,$D46,1),"-") -> - | T46: =IF(T29=2,INDEX(IntvTriggers!J$16:J$30,$D46,1),"-") -> - | U46: =IF(U29=2,INDEX(IntvTriggers!K$16:K$30,$D46,1),"-") -> - | V46: =IF(V29=2,INDEX(IntvTriggers!L$16:L$30,$D46,1),"-") -> -
C47: 15 | D47: 0 | E47: [not used] | F47: - | G47: =IF(G30=2,INDEX(IntvChanges!M$15:M$29,$D47,1),"-") -> - | H47: =IF(H30=2,INDEX(IntvChanges!N$15:N$29,$D47,1),"-") -> - | I47: =IF(I30=2,INDEX(IntvChanges!O$15:O$29,$D47,1),"-") -> - | J47: =IF(J30=2,INDEX(IntvChanges!P$15:P$29,$D47,1),"-") -> - | K47: =IF(K30=2,INDEX(IntvChanges!Q$15:Q$29,$D47,1),"-") -> - | L47: =IF(L30=2,INDEX(IntvChanges!R$15:R$29,$D47,1),"-") -> - | P47: =IF(P30=2,INDEX(IntvTriggers!F$16:F$30,$D47,1),"-") -> - | Q47: =IF(Q30=2,INDEX(IntvTriggers!G$16:G$30,$D47,1),"-") -> - | R47: =IF(R30=2,INDEX(IntvTriggers!H$16:H$30,$D47,1),"-") -> - | S47: =IF(S30=2,INDEX(IntvTriggers!I$16:I$30,$D47,1),"-") -> - | T47: =IF(T30=2,INDEX(IntvTriggers!J$16:J$30,$D47,1),"-") -> - | U47: =IF(U30=2,INDEX(IntvTriggers!K$16:K$30,$D47,1),"-") -> - | V47: =IF(V30=2,INDEX(IntvTriggers!L$16:L$30,$D47,1),"-") -> -
X49: Triggers in periods
G50: Relative changes | W50: x | X50: 1 | Y50: 2 | Z50: 3 | AA50: 4 | AB50: 5 | AC50: 6 | AD50: 7 | AE50: 8 | AF50: 9 | AG50: 10 | AH50: 11 | AI50: 12 | AJ50: 13 | AK50: 14 | AL50: 15 | AM50: 16 | AN50: 17 | AO50: 18 | AP50: 19 | AQ50: 20 | AR50: 21
C51: =C16 -> 1 | D51: =D16 -> 7 | E51: =E33 -> Major earthworks | F51: - | G51: =IF(G16=3,INDEX(IntvChanges!F$15:F$29,$D51,1),"-") -> - | H51: =IF(H16=3,INDEX(IntvChanges!G$15:G$29,$D51,1),"-") -> - | I51: =IF(I16=3,INDEX(IntvChanges!H$15:H$29,$D51,1),"-") -> - | J51: =IF(J16=3,INDEX(IntvChanges!I$15:I$29,$D51,1),"-") -> - | K51: =IF(K16=3,INDEX(IntvChanges!J$15:J$29,$D51,1),"-") -> - | L51: =IF(L16=3,INDEX(IntvChanges!K$15:K$29,$D51,1),"-") -> - | X51: =IF($N16,LOWER(INDEX(IntvTriggers!N$16:N$30,$D51,1))=$W$50,FALSE) -> FALSE | Y51: =IF($N16,LOWER(INDEX(IntvTriggers!O$16:O$30,$D51,1))=$W$50,FALSE) -> FALSE | Z51: =IF($N16,LOWER(INDEX(IntvTriggers!P$16:P$30,$D51,1))=$W$50,FALSE) -> FALSE | AA51: =IF($N16,LOWER(INDEX(IntvTriggers!Q$16:Q$30,$D51,1))=$W$50,FALSE) -> FALSE | AB51: =IF($N16,LOWER(INDEX(IntvTriggers!R$16:R$30,$D51,1))=$W$50,FALSE) -> FALSE | AC51: =IF($N16,LOWER(INDEX(IntvTriggers!S$16:S$30,$D51,1))=$W$50,FALSE) -> FALSE | AD51: =IF($N16,LOWER(INDEX(IntvTriggers!T$16:T$30,$D51,1))=$W$50,FALSE) -> FALSE | AE51: =IF($N16,LOWER(INDEX(IntvTriggers!U$16:U$30,$D51,1))=$W$50,FALSE) -> FALSE | AF51: =IF($N16,LOWER(INDEX(IntvTriggers!V$16:V$30,$D51,1))=$W$50,FALSE) -> FALSE | AG51: =IF($N16,LOWER(INDEX(IntvTriggers!W$16:W$30,$D51,1))=$W$50,FALSE) -> FALSE | AH51: =IF($N16,LOWER(INDEX(IntvTriggers!X$16:X$30,$D51,1))=$W$50,FALSE) -> FALSE | AI51: =IF($N16,LOWER(INDEX(IntvTriggers!Y$16:Y$30,$D51,1))=$W$50,FALSE) -> FALSE | AJ51: =IF($N16,LOWER(INDEX(IntvTriggers!Z$16:Z$30,$D51,1))=$W$50,FALSE) -> FALSE | AK51: =IF($N16,LOWER(INDEX(IntvTriggers!AA$16:AA$30,$D51,1))=$W$50,FALSE) -> FALSE | AL51: =IF($N16,LOWER(INDEX(IntvTriggers!AB$16:AB$30,$D51,1))=$W$50,FALSE) -> FALSE | AM51: =IF($N16,LOWER(INDEX(IntvTriggers!AC$16:AC$30,$D51,1))=$W$50,FALSE) -> FALSE | AN51: =IF($N16,LOWER(INDEX(IntvTriggers!AD$16:AD$30,$D51,1))=$W$50,FALSE) -> FALSE | AO51: =IF($N16,LOWER(INDEX(IntvTriggers!AE$16:AE$30,$D51,1))=$W$50,FALSE) -> FALSE | AP51: =IF($N16,LOWER(INDEX(IntvTriggers!AF$16:AF$30,$D51,1))=$W$50,FALSE) -> FALSE | AQ51: =IF($N16,LOWER(INDEX(IntvTriggers!AG$16:AG$30,$D51,1))=$W$50,FALSE) -> FALSE | AR51: =IF($N16,LOWER(INDEX(IntvTriggers!AH$16:AH$30,$D51,1))=$W$50,FALSE) -> FALSE
C52: =C17 -> 2 | D52: 6 | E52: Minor earthworks | F52: - | G52: =IF(G17=3,INDEX(IntvChanges!F$15:F$29,$D52,1),"-") -> - | H52: =IF(H17=3,INDEX(IntvChanges!G$15:G$29,$D52,1),"-") -> - | I52: =IF(I17=3,INDEX(IntvChanges!H$15:H$29,$D52,1),"-") -> -0.5 | J52: =IF(J17=3,INDEX(IntvChanges!I$15:I$29,$D52,1),"-") -> - | K52: =IF(K17=3,INDEX(IntvChanges!J$15:J$29,$D52,1),"-") -> - | L52: =IF(L17=3,INDEX(IntvChanges!K$15:K$29,$D52,1),"-") -> - | X52: =IF($N17,LOWER(INDEX(IntvTriggers!N$16:N$30,$D52,1))=$W$50,FALSE) -> FALSE | Y52: =IF($N17,LOWER(INDEX(IntvTriggers!O$16:O$30,$D52,1))=$W$50,FALSE) -> FALSE | Z52: =IF($N17,LOWER(INDEX(IntvTriggers!P$16:P$30,$D52,1))=$W$50,FALSE) -> FALSE | AA52: =IF($N17,LOWER(INDEX(IntvTriggers!Q$16:Q$30,$D52,1))=$W$50,FALSE) -> FALSE | AB52: =IF($N17,LOWER(INDEX(IntvTriggers!R$16:R$30,$D52,1))=$W$50,FALSE) -> FALSE | AC52: =IF($N17,LOWER(INDEX(IntvTriggers!S$16:S$30,$D52,1))=$W$50,FALSE) -> FALSE | AD52: =IF($N17,LOWER(INDEX(IntvTriggers!T$16:T$30,$D52,1))=$W$50,FALSE) -> FALSE | AE52: =IF($N17,LOWER(INDEX(IntvTriggers!U$16:U$30,$D52,1))=$W$50,FALSE) -> FALSE | AF52: =IF($N17,LOWER(INDEX(IntvTriggers!V$16:V$30,$D52,1))=$W$50,FALSE) -> FALSE | AG52: =IF($N17,LOWER(INDEX(IntvTriggers!W$16:W$30,$D52,1))=$W$50,FALSE) -> FALSE | AH52: =IF($N17,LOWER(INDEX(IntvTriggers!X$16:X$30,$D52,1))=$W$50,FALSE) -> FALSE | AI52: =IF($N17,LOWER(INDEX(IntvTriggers!Y$16:Y$30,$D52,1))=$W$50,FALSE) -> FALSE | AJ52: =IF($N17,LOWER(INDEX(IntvTriggers!Z$16:Z$30,$D52,1))=$W$50,FALSE) -> FALSE | AK52: =IF($N17,LOWER(INDEX(IntvTriggers!AA$16:AA$30,$D52,1))=$W$50,FALSE) -> FALSE | AL52: =IF($N17,LOWER(INDEX(IntvTriggers!AB$16:AB$30,$D52,1))=$W$50,FALSE) -> FALSE | AM52: =IF($N17,LOWER(INDEX(IntvTriggers!AC$16:AC$30,$D52,1))=$W$50,FALSE) -> FALSE | AN52: =IF($N17,LOWER(INDEX(IntvTriggers!AD$16:AD$30,$D52,1))=$W$50,FALSE) -> FALSE | AO52: =IF($N17,LOWER(INDEX(IntvTriggers!AE$16:AE$30,$D52,1))=$W$50,FALSE) -> FALSE | AP52: =IF($N17,LOWER(INDEX(IntvTriggers!AF$16:AF$30,$D52,1))=$W$50,FALSE) -> FALSE | AQ52: =IF($N17,LOWER(INDEX(IntvTriggers!AG$16:AG$30,$D52,1))=$W$50,FALSE) -> FALSE | AR52: =IF($N17,LOWER(INDEX(IntvTriggers!AH$16:AH$30,$D52,1))=$W$50,FALSE) -> FALSE
C53: 3 | D53: 5 | E53: Burrow filling | F53: - | G53: =IF(G18=3,INDEX(IntvChanges!F$15:F$29,$D53,1),"-") -> - | H53: =IF(H18=3,INDEX(IntvChanges!G$15:G$29,$D53,1),"-") -> - | I53: =IF(I18=3,INDEX(IntvChanges!H$15:H$29,$D53,1),"-") -> - | J53: =IF(J18=3,INDEX(IntvChanges!I$15:I$29,$D53,1),"-") -> - | K53: =IF(K18=3,INDEX(IntvChanges!J$15:J$29,$D53,1),"-") -> - | L53: =IF(L18=3,INDEX(IntvChanges!K$15:K$29,$D53,1),"-") -> - | X53: =IF($N18,LOWER(INDEX(IntvTriggers!N$16:N$30,$D53,1))=$W$50,FALSE) -> FALSE | Y53: =IF($N18,LOWER(INDEX(IntvTriggers!O$16:O$30,$D53,1))=$W$50,FALSE) -> FALSE | Z53: =IF($N18,LOWER(INDEX(IntvTriggers!P$16:P$30,$D53,1))=$W$50,FALSE) -> FALSE | AA53: =IF($N18,LOWER(INDEX(IntvTriggers!Q$16:Q$30,$D53,1))=$W$50,FALSE) -> FALSE | AB53: =IF($N18,LOWER(INDEX(IntvTriggers!R$16:R$30,$D53,1))=$W$50,FALSE) -> FALSE | AC53: =IF($N18,LOWER(INDEX(IntvTriggers!S$16:S$30,$D53,1))=$W$50,FALSE) -> FALSE | AD53: =IF($N18,LOWER(INDEX(IntvTriggers!T$16:T$30,$D53,1))=$W$50,FALSE) -> FALSE | AE53: =IF($N18,LOWER(INDEX(IntvTriggers!U$16:U$30,$D53,1))=$W$50,FALSE) -> FALSE | AF53: =IF($N18,LOWER(INDEX(IntvTriggers!V$16:V$30,$D53,1))=$W$50,FALSE) -> FALSE | AG53: =IF($N18,LOWER(INDEX(IntvTriggers!W$16:W$30,$D53,1))=$W$50,FALSE) -> FALSE | AH53: =IF($N18,LOWER(INDEX(IntvTriggers!X$16:X$30,$D53,1))=$W$50,FALSE) -> FALSE | AI53: =IF($N18,LOWER(INDEX(IntvTriggers!Y$16:Y$30,$D53,1))=$W$50,FALSE) -> FALSE | AJ53: =IF($N18,LOWER(INDEX(IntvTriggers!Z$16:Z$30,$D53,1))=$W$50,FALSE) -> FALSE | AK53: =IF($N18,LOWER(INDEX(IntvTriggers!AA$16:AA$30,$D53,1))=$W$50,FALSE) -> FALSE | AL53: =IF($N18,LOWER(INDEX(IntvTriggers!AB$16:AB$30,$D53,1))=$W$50,FALSE) -> FALSE | AM53: =IF($N18,LOWER(INDEX(IntvTriggers!AC$16:AC$30,$D53,1))=$W$50,FALSE) -> FALSE | AN53: =IF($N18,LOWER(INDEX(IntvTriggers!AD$16:AD$30,$D53,1))=$W$50,FALSE) -> FALSE | AO53: =IF($N18,LOWER(INDEX(IntvTriggers!AE$16:AE$30,$D53,1))=$W$50,FALSE) -> FALSE | AP53: =IF($N18,LOWER(INDEX(IntvTriggers!AF$16:AF$30,$D53,1))=$W$50,FALSE) -> FALSE | AQ53: =IF($N18,LOWER(INDEX(IntvTriggers!AG$16:AG$30,$D53,1))=$W$50,FALSE) -> FALSE | AR53: =IF($N18,LOWER(INDEX(IntvTriggers!AH$16:AH$30,$D53,1))=$W$50,FALSE) -> FALSE
C54: 4 | D54: 4 | E54: Drainage replacement | F54: - | G54: =IF(G19=3,INDEX(IntvChanges!F$15:F$29,$D54,1),"-") -> - | H54: =IF(H19=3,INDEX(IntvChanges!G$15:G$29,$D54,1),"-") -> - | I54: =IF(I19=3,INDEX(IntvChanges!H$15:H$29,$D54,1),"-") -> - | J54: =IF(J19=3,INDEX(IntvChanges!I$15:I$29,$D54,1),"-") -> - | K54: =IF(K19=3,INDEX(IntvChanges!J$15:J$29,$D54,1),"-") -> - | L54: =IF(L19=3,INDEX(IntvChanges!K$15:K$29,$D54,1),"-") -> - | X54: =IF($N19,LOWER(INDEX(IntvTriggers!N$16:N$30,$D54,1))=$W$50,FALSE) -> FALSE | Y54: =IF($N19,LOWER(INDEX(IntvTriggers!O$16:O$30,$D54,1))=$W$50,FALSE) -> FALSE | Z54: =IF($N19,LOWER(INDEX(IntvTriggers!P$16:P$30,$D54,1))=$W$50,FALSE) -> FALSE | AA54: =IF($N19,LOWER(INDEX(IntvTriggers!Q$16:Q$30,$D54,1))=$W$50,FALSE) -> FALSE | AB54: =IF($N19,LOWER(INDEX(IntvTriggers!R$16:R$30,$D54,1))=$W$50,FALSE) -> FALSE | AC54: =IF($N19,LOWER(INDEX(IntvTriggers!S$16:S$30,$D54,1))=$W$50,FALSE) -> FALSE | AD54: =IF($N19,LOWER(INDEX(IntvTriggers!T$16:T$30,$D54,1))=$W$50,FALSE) -> FALSE | AE54: =IF($N19,LOWER(INDEX(IntvTriggers!U$16:U$30,$D54,1))=$W$50,FALSE) -> FALSE | AF54: =IF($N19,LOWER(INDEX(IntvTriggers!V$16:V$30,$D54,1))=$W$50,FALSE) -> FALSE | AG54: =IF($N19,LOWER(INDEX(IntvTriggers!W$16:W$30,$D54,1))=$W$50,FALSE) -> FALSE | AH54: =IF($N19,LOWER(INDEX(IntvTriggers!X$16:X$30,$D54,1))=$W$50,FALSE) -> FALSE | AI54: =IF($N19,LOWER(INDEX(IntvTriggers!Y$16:Y$30,$D54,1))=$W$50,FALSE) -> FALSE | AJ54: =IF($N19,LOWER(INDEX(IntvTriggers!Z$16:Z$30,$D54,1))=$W$50,FALSE) -> FALSE | AK54: =IF($N19,LOWER(INDEX(IntvTriggers!AA$16:AA$30,$D54,1))=$W$50,FALSE) -> FALSE | AL54: =IF($N19,LOWER(INDEX(IntvTriggers!AB$16:AB$30,$D54,1))=$W$50,FALSE) -> FALSE | AM54: =IF($N19,LOWER(INDEX(IntvTriggers!AC$16:AC$30,$D54,1))=$W$50,FALSE) -> FALSE | AN54: =IF($N19,LOWER(INDEX(IntvTriggers!AD$16:AD$30,$D54,1))=$W$50,FALSE) -> FALSE | AO54: =IF($N19,LOWER(INDEX(IntvTriggers!AE$16:AE$30,$D54,1))=$W$50,FALSE) -> FALSE | AP54: =IF($N19,LOWER(INDEX(IntvTriggers!AF$16:AF$30,$D54,1))=$W$50,FALSE) -> FALSE | AQ54: =IF($N19,LOWER(INDEX(IntvTriggers!AG$16:AG$30,$D54,1))=$W$50,FALSE) -> FALSE | AR54: =IF($N19,LOWER(INDEX(IntvTriggers!AH$16:AH$30,$D54,1))=$W$50,FALSE) -> FALSE
C55: 5 | D55: 3 | E55: Drainage repair | F55: - | G55: =IF(G20=3,INDEX(IntvChanges!F$15:F$29,$D55,1),"-") -> - | H55: =IF(H20=3,INDEX(IntvChanges!G$15:G$29,$D55,1),"-") -> - | I55: =IF(I20=3,INDEX(IntvChanges!H$15:H$29,$D55,1),"-") -> -1 | J55: =IF(J20=3,INDEX(IntvChanges!I$15:I$29,$D55,1),"-") -> - | K55: =IF(K20=3,INDEX(IntvChanges!J$15:J$29,$D55,1),"-") -> - | L55: =IF(L20=3,INDEX(IntvChanges!K$15:K$29,$D55,1),"-") -> - | X55: =IF($N20,LOWER(INDEX(IntvTriggers!N$16:N$30,$D55,1))=$W$50,FALSE) -> FALSE | Y55: =IF($N20,LOWER(INDEX(IntvTriggers!O$16:O$30,$D55,1))=$W$50,FALSE) -> FALSE | Z55: =IF($N20,LOWER(INDEX(IntvTriggers!P$16:P$30,$D55,1))=$W$50,FALSE) -> FALSE | AA55: =IF($N20,LOWER(INDEX(IntvTriggers!Q$16:Q$30,$D55,1))=$W$50,FALSE) -> FALSE | AB55: =IF($N20,LOWER(INDEX(IntvTriggers!R$16:R$30,$D55,1))=$W$50,FALSE) -> FALSE | AC55: =IF($N20,LOWER(INDEX(IntvTriggers!S$16:S$30,$D55,1))=$W$50,FALSE) -> FALSE | AD55: =IF($N20,LOWER(INDEX(IntvTriggers!T$16:T$30,$D55,1))=$W$50,FALSE) -> FALSE | AE55: =IF($N20,LOWER(INDEX(IntvTriggers!U$16:U$30,$D55,1))=$W$50,FALSE) -> FALSE | AF55: =IF($N20,LOWER(INDEX(IntvTriggers!V$16:V$30,$D55,1))=$W$50,FALSE) -> FALSE | AG55: =IF($N20,LOWER(INDEX(IntvTriggers!W$16:W$30,$D55,1))=$W$50,FALSE) -> FALSE | AH55: =IF($N20,LOWER(INDEX(IntvTriggers!X$16:X$30,$D55,1))=$W$50,FALSE) -> FALSE | AI55: =IF($N20,LOWER(INDEX(IntvTriggers!Y$16:Y$30,$D55,1))=$W$50,FALSE) -> FALSE | AJ55: =IF($N20,LOWER(INDEX(IntvTriggers!Z$16:Z$30,$D55,1))=$W$50,FALSE) -> FALSE | AK55: =IF($N20,LOWER(INDEX(IntvTriggers!AA$16:AA$30,$D55,1))=$W$50,FALSE) -> FALSE | AL55: =IF($N20,LOWER(INDEX(IntvTriggers!AB$16:AB$30,$D55,1))=$W$50,FALSE) -> FALSE | AM55: =IF($N20,LOWER(INDEX(IntvTriggers!AC$16:AC$30,$D55,1))=$W$50,FALSE) -> FALSE | AN55: =IF($N20,LOWER(INDEX(IntvTriggers!AD$16:AD$30,$D55,1))=$W$50,FALSE) -> FALSE | AO55: =IF($N20,LOWER(INDEX(IntvTriggers!AE$16:AE$30,$D55,1))=$W$50,FALSE) -> FALSE | AP55: =IF($N20,LOWER(INDEX(IntvTriggers!AF$16:AF$30,$D55,1))=$W$50,FALSE) -> FALSE | AQ55: =IF($N20,LOWER(INDEX(IntvTriggers!AG$16:AG$30,$D55,1))=$W$50,FALSE) -> FALSE | AR55: =IF($N20,LOWER(INDEX(IntvTriggers!AH$16:AH$30,$D55,1))=$W$50,FALSE) -> FALSE
C56: 6 | D56: 2 | E56: Drainage clearance | F56: - | G56: =IF(G21=3,INDEX(IntvChanges!F$15:F$29,$D56,1),"-") -> - | H56: =IF(H21=3,INDEX(IntvChanges!G$15:G$29,$D56,1),"-") -> - | I56: =IF(I21=3,INDEX(IntvChanges!H$15:H$29,$D56,1),"-") -> -0.5 | J56: =IF(J21=3,INDEX(IntvChanges!I$15:I$29,$D56,1),"-") -> - | K56: =IF(K21=3,INDEX(IntvChanges!J$15:J$29,$D56,1),"-") -> - | L56: =IF(L21=3,INDEX(IntvChanges!K$15:K$29,$D56,1),"-") -> - | X56: =IF($N21,LOWER(INDEX(IntvTriggers!N$16:N$30,$D56,1))=$W$50,FALSE) -> FALSE | Y56: =IF($N21,LOWER(INDEX(IntvTriggers!O$16:O$30,$D56,1))=$W$50,FALSE) -> FALSE | Z56: =IF($N21,LOWER(INDEX(IntvTriggers!P$16:P$30,$D56,1))=$W$50,FALSE) -> FALSE | AA56: =IF($N21,LOWER(INDEX(IntvTriggers!Q$16:Q$30,$D56,1))=$W$50,FALSE) -> FALSE | AB56: =IF($N21,LOWER(INDEX(IntvTriggers!R$16:R$30,$D56,1))=$W$50,FALSE) -> TRUE | AC56: =IF($N21,LOWER(INDEX(IntvTriggers!S$16:S$30,$D56,1))=$W$50,FALSE) -> FALSE | AD56: =IF($N21,LOWER(INDEX(IntvTriggers!T$16:T$30,$D56,1))=$W$50,FALSE) -> FALSE | AE56: =IF($N21,LOWER(INDEX(IntvTriggers!U$16:U$30,$D56,1))=$W$50,FALSE) -> FALSE | AF56: =IF($N21,LOWER(INDEX(IntvTriggers!V$16:V$30,$D56,1))=$W$50,FALSE) -> FALSE | AG56: =IF($N21,LOWER(INDEX(IntvTriggers!W$16:W$30,$D56,1))=$W$50,FALSE) -> TRUE | AH56: =IF($N21,LOWER(INDEX(IntvTriggers!X$16:X$30,$D56,1))=$W$50,FALSE) -> FALSE | AI56: =IF($N21,LOWER(INDEX(IntvTriggers!Y$16:Y$30,$D56,1))=$W$50,FALSE) -> FALSE | AJ56: =IF($N21,LOWER(INDEX(IntvTriggers!Z$16:Z$30,$D56,1))=$W$50,FALSE) -> FALSE | AK56: =IF($N21,LOWER(INDEX(IntvTriggers!AA$16:AA$30,$D56,1))=$W$50,FALSE) -> FALSE | AL56: =IF($N21,LOWER(INDEX(IntvTriggers!AB$16:AB$30,$D56,1))=$W$50,FALSE) -> TRUE | AM56: =IF($N21,LOWER(INDEX(IntvTriggers!AC$16:AC$30,$D56,1))=$W$50,FALSE) -> FALSE | AN56: =IF($N21,LOWER(INDEX(IntvTriggers!AD$16:AD$30,$D56,1))=$W$50,FALSE) -> FALSE | AO56: =IF($N21,LOWER(INDEX(IntvTriggers!AE$16:AE$30,$D56,1))=$W$50,FALSE) -> FALSE | AP56: =IF($N21,LOWER(INDEX(IntvTriggers!AF$16:AF$30,$D56,1))=$W$50,FALSE) -> FALSE | AQ56: =IF($N21,LOWER(INDEX(IntvTriggers!AG$16:AG$30,$D56,1))=$W$50,FALSE) -> TRUE | AR56: =IF($N21,LOWER(INDEX(IntvTriggers!AH$16:AH$30,$D56,1))=$W$50,FALSE) -> FALSE
C57: 7 | D57: 1 | E57: Vegetation clearance | F57: - | G57: =IF(G22=3,INDEX(IntvChanges!F$15:F$29,$D57,1),"-") -> - | H57: =IF(H22=3,INDEX(IntvChanges!G$15:G$29,$D57,1),"-") -> - | I57: =IF(I22=3,INDEX(IntvChanges!H$15:H$29,$D57,1),"-") -> - | J57: =IF(J22=3,INDEX(IntvChanges!I$15:I$29,$D57,1),"-") -> -0.3 | K57: =IF(K22=3,INDEX(IntvChanges!J$15:J$29,$D57,1),"-") -> - | L57: =IF(L22=3,INDEX(IntvChanges!K$15:K$29,$D57,1),"-") -> - | X57: =IF($N22,LOWER(INDEX(IntvTriggers!N$16:N$30,$D57,1))=$W$50,FALSE) -> FALSE | Y57: =IF($N22,LOWER(INDEX(IntvTriggers!O$16:O$30,$D57,1))=$W$50,FALSE) -> FALSE | Z57: =IF($N22,LOWER(INDEX(IntvTriggers!P$16:P$30,$D57,1))=$W$50,FALSE) -> FALSE | AA57: =IF($N22,LOWER(INDEX(IntvTriggers!Q$16:Q$30,$D57,1))=$W$50,FALSE) -> FALSE | AB57: =IF($N22,LOWER(INDEX(IntvTriggers!R$16:R$30,$D57,1))=$W$50,FALSE) -> FALSE | AC57: =IF($N22,LOWER(INDEX(IntvTriggers!S$16:S$30,$D57,1))=$W$50,FALSE) -> FALSE | AD57: =IF($N22,LOWER(INDEX(IntvTriggers!T$16:T$30,$D57,1))=$W$50,FALSE) -> FALSE | AE57: =IF($N22,LOWER(INDEX(IntvTriggers!U$16:U$30,$D57,1))=$W$50,FALSE) -> FALSE | AF57: =IF($N22,LOWER(INDEX(IntvTriggers!V$16:V$30,$D57,1))=$W$50,FALSE) -> FALSE | AG57: =IF($N22,LOWER(INDEX(IntvTriggers!W$16:W$30,$D57,1))=$W$50,FALSE) -> TRUE | AH57: =IF($N22,LOWER(INDEX(IntvTriggers!X$16:X$30,$D57,1))=$W$50,FALSE) -> FALSE | AI57: =IF($N22,LOWER(INDEX(IntvTriggers!Y$16:Y$30,$D57,1))=$W$50,FALSE) -> FALSE | AJ57: =IF($N22,LOWER(INDEX(IntvTriggers!Z$16:Z$30,$D57,1))=$W$50,FALSE) -> FALSE | AK57: =IF($N22,LOWER(INDEX(IntvTriggers!AA$16:AA$30,$D57,1))=$W$50,FALSE) -> FALSE | AL57: =IF($N22,LOWER(INDEX(IntvTriggers!AB$16:AB$30,$D57,1))=$W$50,FALSE) -> FALSE | AM57: =IF($N22,LOWER(INDEX(IntvTriggers!AC$16:AC$30,$D57,1))=$W$50,FALSE) -> FALSE | AN57: =IF($N22,LOWER(INDEX(IntvTriggers!AD$16:AD$30,$D57,1))=$W$50,FALSE) -> FALSE | AO57: =IF($N22,LOWER(INDEX(IntvTriggers!AE$16:AE$30,$D57,1))=$W$50,FALSE) -> FALSE | AP57: =IF($N22,LOWER(INDEX(IntvTriggers!AF$16:AF$30,$D57,1))=$W$50,FALSE) -> FALSE | AQ57: =IF($N22,LOWER(INDEX(IntvTriggers!AG$16:AG$30,$D57,1))=$W$50,FALSE) -> TRUE | AR57: =IF($N22,LOWER(INDEX(IntvTriggers!AH$16:AH$30,$D57,1))=$W$50,FALSE) -> FALSE
C58: 8 | D58: 0 | E58: [not used] | F58: - | G58: =IF(G23=3,INDEX(IntvChanges!F$15:F$29,$D58,1),"-") -> - | H58: =IF(H23=3,INDEX(IntvChanges!G$15:G$29,$D58,1),"-") -> - | I58: =IF(I23=3,INDEX(IntvChanges!H$15:H$29,$D58,1),"-") -> - | J58: =IF(J23=3,INDEX(IntvChanges!I$15:I$29,$D58,1),"-") -> - | K58: =IF(K23=3,INDEX(IntvChanges!J$15:J$29,$D58,1),"-") -> - | L58: =IF(L23=3,INDEX(IntvChanges!K$15:K$29,$D58,1),"-") -> - | X58: =IF($N23,LOWER(INDEX(IntvTriggers!N$16:N$30,$D58,1))=$W$50,FALSE) -> FALSE | Y58: =IF($N23,LOWER(INDEX(IntvTriggers!O$16:O$30,$D58,1))=$W$50,FALSE) -> FALSE | Z58: =IF($N23,LOWER(INDEX(IntvTriggers!P$16:P$30,$D58,1))=$W$50,FALSE) -> FALSE | AA58: =IF($N23,LOWER(INDEX(IntvTriggers!Q$16:Q$30,$D58,1))=$W$50,FALSE) -> FALSE | AB58: =IF($N23,LOWER(INDEX(IntvTriggers!R$16:R$30,$D58,1))=$W$50,FALSE) -> FALSE | AC58: =IF($N23,LOWER(INDEX(IntvTriggers!S$16:S$30,$D58,1))=$W$50,FALSE) -> FALSE | AD58: =IF($N23,LOWER(INDEX(IntvTriggers!T$16:T$30,$D58,1))=$W$50,FALSE) -> FALSE | AE58: =IF($N23,LOWER(INDEX(IntvTriggers!U$16:U$30,$D58,1))=$W$50,FALSE) -> FALSE | AF58: =IF($N23,LOWER(INDEX(IntvTriggers!V$16:V$30,$D58,1))=$W$50,FALSE) -> FALSE | AG58: =IF($N23,LOWER(INDEX(IntvTriggers!W$16:W$30,$D58,1))=$W$50,FALSE) -> FALSE | AH58: =IF($N23,LOWER(INDEX(IntvTriggers!X$16:X$30,$D58,1))=$W$50,FALSE) -> FALSE | AI58: =IF($N23,LOWER(INDEX(IntvTriggers!Y$16:Y$30,$D58,1))=$W$50,FALSE) -> FALSE | AJ58: =IF($N23,LOWER(INDEX(IntvTriggers!Z$16:Z$30,$D58,1))=$W$50,FALSE) -> FALSE | AK58: =IF($N23,LOWER(INDEX(IntvTriggers!AA$16:AA$30,$D58,1))=$W$50,FALSE) -> FALSE | AL58: =IF($N23,LOWER(INDEX(IntvTriggers!AB$16:AB$30,$D58,1))=$W$50,FALSE) -> FALSE | AM58: =IF($N23,LOWER(INDEX(IntvTriggers!AC$16:AC$30,$D58,1))=$W$50,FALSE) -> FALSE | AN58: =IF($N23,LOWER(INDEX(IntvTriggers!AD$16:AD$30,$D58,1))=$W$50,FALSE) -> FALSE | AO58: =IF($N23,LOWER(INDEX(IntvTriggers!AE$16:AE$30,$D58,1))=$W$50,FALSE) -> FALSE | AP58: =IF($N23,LOWER(INDEX(IntvTriggers!AF$16:AF$30,$D58,1))=$W$50,FALSE) -> FALSE | AQ58: =IF($N23,LOWER(INDEX(IntvTriggers!AG$16:AG$30,$D58,1))=$W$50,FALSE) -> FALSE | AR58: =IF($N23,LOWER(INDEX(IntvTriggers!AH$16:AH$30,$D58,1))=$W$50,FALSE) -> FALSE
C59: 9 | D59: 0 | E59: [not used] | F59: - | G59: =IF(G24=3,INDEX(IntvChanges!F$15:F$29,$D59,1),"-") -> - | H59: =IF(H24=3,INDEX(IntvChanges!G$15:G$29,$D59,1),"-") -> - | I59: =IF(I24=3,INDEX(IntvChanges!H$15:H$29,$D59,1),"-") -> - | J59: =IF(J24=3,INDEX(IntvChanges!I$15:I$29,$D59,1),"-") -> - | K59: =IF(K24=3,INDEX(IntvChanges!J$15:J$29,$D59,1),"-") -> - | L59: =IF(L24=3,INDEX(IntvChanges!K$15:K$29,$D59,1),"-") -> - | X59: =IF($N24,LOWER(INDEX(IntvTriggers!N$16:N$30,$D59,1))=$W$50,FALSE) -> FALSE | Y59: =IF($N24,LOWER(INDEX(IntvTriggers!O$16:O$30,$D59,1))=$W$50,FALSE) -> FALSE | Z59: =IF($N24,LOWER(INDEX(IntvTriggers!P$16:P$30,$D59,1))=$W$50,FALSE) -> FALSE | AA59: =IF($N24,LOWER(INDEX(IntvTriggers!Q$16:Q$30,$D59,1))=$W$50,FALSE) -> FALSE | AB59: =IF($N24,LOWER(INDEX(IntvTriggers!R$16:R$30,$D59,1))=$W$50,FALSE) -> FALSE | AC59: =IF($N24,LOWER(INDEX(IntvTriggers!S$16:S$30,$D59,1))=$W$50,FALSE) -> FALSE | AD59: =IF($N24,LOWER(INDEX(IntvTriggers!T$16:T$30,$D59,1))=$W$50,FALSE) -> FALSE | AE59: =IF($N24,LOWER(INDEX(IntvTriggers!U$16:U$30,$D59,1))=$W$50,FALSE) -> FALSE | AF59: =IF($N24,LOWER(INDEX(IntvTriggers!V$16:V$30,$D59,1))=$W$50,FALSE) -> FALSE | AG59: =IF($N24,LOWER(INDEX(IntvTriggers!W$16:W$30,$D59,1))=$W$50,FALSE) -> FALSE | AH59: =IF($N24,LOWER(INDEX(IntvTriggers!X$16:X$30,$D59,1))=$W$50,FALSE) -> FALSE | AI59: =IF($N24,LOWER(INDEX(IntvTriggers!Y$16:Y$30,$D59,1))=$W$50,FALSE) -> FALSE | AJ59: =IF($N24,LOWER(INDEX(IntvTriggers!Z$16:Z$30,$D59,1))=$W$50,FALSE) -> FALSE | AK59: =IF($N24,LOWER(INDEX(IntvTriggers!AA$16:AA$30,$D59,1))=$W$50,FALSE) -> FALSE | AL59: =IF($N24,LOWER(INDEX(IntvTriggers!AB$16:AB$30,$D59,1))=$W$50,FALSE) -> FALSE | AM59: =IF($N24,LOWER(INDEX(IntvTriggers!AC$16:AC$30,$D59,1))=$W$50,FALSE) -> FALSE | AN59: =IF($N24,LOWER(INDEX(IntvTriggers!AD$16:AD$30,$D59,1))=$W$50,FALSE) -> FALSE | AO59: =IF($N24,LOWER(INDEX(IntvTriggers!AE$16:AE$30,$D59,1))=$W$50,FALSE) -> FALSE | AP59: =IF($N24,LOWER(INDEX(IntvTriggers!AF$16:AF$30,$D59,1))=$W$50,FALSE) -> FALSE | AQ59: =IF($N24,LOWER(INDEX(IntvTriggers!AG$16:AG$30,$D59,1))=$W$50,FALSE) -> FALSE | AR59: =IF($N24,LOWER(INDEX(IntvTriggers!AH$16:AH$30,$D59,1))=$W$50,FALSE) -> FALSE
C60: 10 | D60: 0 | E60: [not used] | F60: - | G60: =IF(G25=3,INDEX(IntvChanges!F$15:F$29,$D60,1),"-") -> - | H60: =IF(H25=3,INDEX(IntvChanges!G$15:G$29,$D60,1),"-") -> - | I60: =IF(I25=3,INDEX(IntvChanges!H$15:H$29,$D60,1),"-") -> - | J60: =IF(J25=3,INDEX(IntvChanges!I$15:I$29,$D60,1),"-") -> - | K60: =IF(K25=3,INDEX(IntvChanges!J$15:J$29,$D60,1),"-") -> - | L60: =IF(L25=3,INDEX(IntvChanges!K$15:K$29,$D60,1),"-") -> - | X60: =IF($N25,LOWER(INDEX(IntvTriggers!N$16:N$30,$D60,1))=$W$50,FALSE) -> FALSE | Y60: =IF($N25,LOWER(INDEX(IntvTriggers!O$16:O$30,$D60,1))=$W$50,FALSE) -> FALSE | Z60: =IF($N25,LOWER(INDEX(IntvTriggers!P$16:P$30,$D60,1))=$W$50,FALSE) -> FALSE | AA60: =IF($N25,LOWER(INDEX(IntvTriggers!Q$16:Q$30,$D60,1))=$W$50,FALSE) -> FALSE | AB60: =IF($N25,LOWER(INDEX(IntvTriggers!R$16:R$30,$D60,1))=$W$50,FALSE) -> FALSE | AC60: =IF($N25,LOWER(INDEX(IntvTriggers!S$16:S$30,$D60,1))=$W$50,FALSE) -> FALSE | AD60: =IF($N25,LOWER(INDEX(IntvTriggers!T$16:T$30,$D60,1))=$W$50,FALSE) -> FALSE | AE60: =IF($N25,LOWER(INDEX(IntvTriggers!U$16:U$30,$D60,1))=$W$50,FALSE) -> FALSE | AF60: =IF($N25,LOWER(INDEX(IntvTriggers!V$16:V$30,$D60,1))=$W$50,FALSE) -> FALSE | AG60: =IF($N25,LOWER(INDEX(IntvTriggers!W$16:W$30,$D60,1))=$W$50,FALSE) -> FALSE | AH60: =IF($N25,LOWER(INDEX(IntvTriggers!X$16:X$30,$D60,1))=$W$50,FALSE) -> FALSE | AI60: =IF($N25,LOWER(INDEX(IntvTriggers!Y$16:Y$30,$D60,1))=$W$50,FALSE) -> FALSE | AJ60: =IF($N25,LOWER(INDEX(IntvTriggers!Z$16:Z$30,$D60,1))=$W$50,FALSE) -> FALSE | AK60: =IF($N25,LOWER(INDEX(IntvTriggers!AA$16:AA$30,$D60,1))=$W$50,FALSE) -> FALSE | AL60: =IF($N25,LOWER(INDEX(IntvTriggers!AB$16:AB$30,$D60,1))=$W$50,FALSE) -> FALSE | AM60: =IF($N25,LOWER(INDEX(IntvTriggers!AC$16:AC$30,$D60,1))=$W$50,FALSE) -> FALSE | AN60: =IF($N25,LOWER(INDEX(IntvTriggers!AD$16:AD$30,$D60,1))=$W$50,FALSE) -> FALSE | AO60: =IF($N25,LOWER(INDEX(IntvTriggers!AE$16:AE$30,$D60,1))=$W$50,FALSE) -> FALSE | AP60: =IF($N25,LOWER(INDEX(IntvTriggers!AF$16:AF$30,$D60,1))=$W$50,FALSE) -> FALSE | AQ60: =IF($N25,LOWER(INDEX(IntvTriggers!AG$16:AG$30,$D60,1))=$W$50,FALSE) -> FALSE | AR60: =IF($N25,LOWER(INDEX(IntvTriggers!AH$16:AH$30,$D60,1))=$W$50,FALSE) -> FALSE
C61: 11 | D61: 0 | E61: [not used] | F61: - | G61: =IF(G26=3,INDEX(IntvChanges!F$15:F$29,$D61,1),"-") -> - | H61: =IF(H26=3,INDEX(IntvChanges!G$15:G$29,$D61,1),"-") -> - | I61: =IF(I26=3,INDEX(IntvChanges!H$15:H$29,$D61,1),"-") -> - | J61: =IF(J26=3,INDEX(IntvChanges!I$15:I$29,$D61,1),"-") -> - | K61: =IF(K26=3,INDEX(IntvChanges!J$15:J$29,$D61,1),"-") -> - | L61: =IF(L26=3,INDEX(IntvChanges!K$15:K$29,$D61,1),"-") -> - | X61: =IF($N26,LOWER(INDEX(IntvTriggers!N$16:N$30,$D61,1))=$W$50,FALSE) -> FALSE | Y61: =IF($N26,LOWER(INDEX(IntvTriggers!O$16:O$30,$D61,1))=$W$50,FALSE) -> FALSE | Z61: =IF($N26,LOWER(INDEX(IntvTriggers!P$16:P$30,$D61,1))=$W$50,FALSE) -> FALSE | AA61: =IF($N26,LOWER(INDEX(IntvTriggers!Q$16:Q$30,$D61,1))=$W$50,FALSE) -> FALSE | AB61: =IF($N26,LOWER(INDEX(IntvTriggers!R$16:R$30,$D61,1))=$W$50,FALSE) -> FALSE | AC61: =IF($N26,LOWER(INDEX(IntvTriggers!S$16:S$30,$D61,1))=$W$50,FALSE) -> FALSE | AD61: =IF($N26,LOWER(INDEX(IntvTriggers!T$16:T$30,$D61,1))=$W$50,FALSE) -> FALSE | AE61: =IF($N26,LOWER(INDEX(IntvTriggers!U$16:U$30,$D61,1))=$W$50,FALSE) -> FALSE | AF61: =IF($N26,LOWER(INDEX(IntvTriggers!V$16:V$30,$D61,1))=$W$50,FALSE) -> FALSE | AG61: =IF($N26,LOWER(INDEX(IntvTriggers!W$16:W$30,$D61,1))=$W$50,FALSE) -> FALSE | AH61: =IF($N26,LOWER(INDEX(IntvTriggers!X$16:X$30,$D61,1))=$W$50,FALSE) -> FALSE | AI61: =IF($N26,LOWER(INDEX(IntvTriggers!Y$16:Y$30,$D61,1))=$W$50,FALSE) -> FALSE | AJ61: =IF($N26,LOWER(INDEX(IntvTriggers!Z$16:Z$30,$D61,1))=$W$50,FALSE) -> FALSE | AK61: =IF($N26,LOWER(INDEX(IntvTriggers!AA$16:AA$30,$D61,1))=$W$50,FALSE) -> FALSE | AL61: =IF($N26,LOWER(INDEX(IntvTriggers!AB$16:AB$30,$D61,1))=$W$50,FALSE) -> FALSE | AM61: =IF($N26,LOWER(INDEX(IntvTriggers!AC$16:AC$30,$D61,1))=$W$50,FALSE) -> FALSE | AN61: =IF($N26,LOWER(INDEX(IntvTriggers!AD$16:AD$30,$D61,1))=$W$50,FALSE) -> FALSE | AO61: =IF($N26,LOWER(INDEX(IntvTriggers!AE$16:AE$30,$D61,1))=$W$50,FALSE) -> FALSE | AP61: =IF($N26,LOWER(INDEX(IntvTriggers!AF$16:AF$30,$D61,1))=$W$50,FALSE) -> FALSE | AQ61: =IF($N26,LOWER(INDEX(IntvTriggers!AG$16:AG$30,$D61,1))=$W$50,FALSE) -> FALSE | AR61: =IF($N26,LOWER(INDEX(IntvTriggers!AH$16:AH$30,$D61,1))=$W$50,FALSE) -> FALSE
C62: 12 | D62: 0 | E62: [not used] | F62: - | G62: =IF(G27=3,INDEX(IntvChanges!F$15:F$29,$D62,1),"-") -> - | H62: =IF(H27=3,INDEX(IntvChanges!G$15:G$29,$D62,1),"-") -> - | I62: =IF(I27=3,INDEX(IntvChanges!H$15:H$29,$D62,1),"-") -> - | J62: =IF(J27=3,INDEX(IntvChanges!I$15:I$29,$D62,1),"-") -> - | K62: =IF(K27=3,INDEX(IntvChanges!J$15:J$29,$D62,1),"-") -> - | L62: =IF(L27=3,INDEX(IntvChanges!K$15:K$29,$D62,1),"-") -> - | X62: =IF($N27,LOWER(INDEX(IntvTriggers!N$16:N$30,$D62,1))=$W$50,FALSE) -> FALSE | Y62: =IF($N27,LOWER(INDEX(IntvTriggers!O$16:O$30,$D62,1))=$W$50,FALSE) -> FALSE | Z62: =IF($N27,LOWER(INDEX(IntvTriggers!P$16:P$30,$D62,1))=$W$50,FALSE) -> FALSE | AA62: =IF($N27,LOWER(INDEX(IntvTriggers!Q$16:Q$30,$D62,1))=$W$50,FALSE) -> FALSE | AB62: =IF($N27,LOWER(INDEX(IntvTriggers!R$16:R$30,$D62,1))=$W$50,FALSE) -> FALSE | AC62: =IF($N27,LOWER(INDEX(IntvTriggers!S$16:S$30,$D62,1))=$W$50,FALSE) -> FALSE | AD62: =IF($N27,LOWER(INDEX(IntvTriggers!T$16:T$30,$D62,1))=$W$50,FALSE) -> FALSE | AE62: =IF($N27,LOWER(INDEX(IntvTriggers!U$16:U$30,$D62,1))=$W$50,FALSE) -> FALSE | AF62: =IF($N27,LOWER(INDEX(IntvTriggers!V$16:V$30,$D62,1))=$W$50,FALSE) -> FALSE | AG62: =IF($N27,LOWER(INDEX(IntvTriggers!W$16:W$30,$D62,1))=$W$50,FALSE) -> FALSE | AH62: =IF($N27,LOWER(INDEX(IntvTriggers!X$16:X$30,$D62,1))=$W$50,FALSE) -> FALSE | AI62: =IF($N27,LOWER(INDEX(IntvTriggers!Y$16:Y$30,$D62,1))=$W$50,FALSE) -> FALSE | AJ62: =IF($N27,LOWER(INDEX(IntvTriggers!Z$16:Z$30,$D62,1))=$W$50,FALSE) -> FALSE | AK62: =IF($N27,LOWER(INDEX(IntvTriggers!AA$16:AA$30,$D62,1))=$W$50,FALSE) -> FALSE | AL62: =IF($N27,LOWER(INDEX(IntvTriggers!AB$16:AB$30,$D62,1))=$W$50,FALSE) -> FALSE | AM62: =IF($N27,LOWER(INDEX(IntvTriggers!AC$16:AC$30,$D62,1))=$W$50,FALSE) -> FALSE | AN62: =IF($N27,LOWER(INDEX(IntvTriggers!AD$16:AD$30,$D62,1))=$W$50,FALSE) -> FALSE | AO62: =IF($N27,LOWER(INDEX(IntvTriggers!AE$16:AE$30,$D62,1))=$W$50,FALSE) -> FALSE | AP62: =IF($N27,LOWER(INDEX(IntvTriggers!AF$16:AF$30,$D62,1))=$W$50,FALSE) -> FALSE | AQ62: =IF($N27,LOWER(INDEX(IntvTriggers!AG$16:AG$30,$D62,1))=$W$50,FALSE) -> FALSE | AR62: =IF($N27,LOWER(INDEX(IntvTriggers!AH$16:AH$30,$D62,1))=$W$50,FALSE) -> FALSE
C63: 13 | D63: 0 | E63: [not used] | F63: - | G63: =IF(G28=3,INDEX(IntvChanges!F$15:F$29,$D63,1),"-") -> - | H63: =IF(H28=3,INDEX(IntvChanges!G$15:G$29,$D63,1),"-") -> - | I63: =IF(I28=3,INDEX(IntvChanges!H$15:H$29,$D63,1),"-") -> - | J63: =IF(J28=3,INDEX(IntvChanges!I$15:I$29,$D63,1),"-") -> - | K63: =IF(K28=3,INDEX(IntvChanges!J$15:J$29,$D63,1),"-") -> - | L63: =IF(L28=3,INDEX(IntvChanges!K$15:K$29,$D63,1),"-") -> - | X63: =IF($N28,LOWER(INDEX(IntvTriggers!N$16:N$30,$D63,1))=$W$50,FALSE) -> FALSE | Y63: =IF($N28,LOWER(INDEX(IntvTriggers!O$16:O$30,$D63,1))=$W$50,FALSE) -> FALSE | Z63: =IF($N28,LOWER(INDEX(IntvTriggers!P$16:P$30,$D63,1))=$W$50,FALSE) -> FALSE | AA63: =IF($N28,LOWER(INDEX(IntvTriggers!Q$16:Q$30,$D63,1))=$W$50,FALSE) -> FALSE | AB63: =IF($N28,LOWER(INDEX(IntvTriggers!R$16:R$30,$D63,1))=$W$50,FALSE) -> FALSE | AC63: =IF($N28,LOWER(INDEX(IntvTriggers!S$16:S$30,$D63,1))=$W$50,FALSE) -> FALSE | AD63: =IF($N28,LOWER(INDEX(IntvTriggers!T$16:T$30,$D63,1))=$W$50,FALSE) -> FALSE | AE63: =IF($N28,LOWER(INDEX(IntvTriggers!U$16:U$30,$D63,1))=$W$50,FALSE) -> FALSE | AF63: =IF($N28,LOWER(INDEX(IntvTriggers!V$16:V$30,$D63,1))=$W$50,FALSE) -> FALSE | AG63: =IF($N28,LOWER(INDEX(IntvTriggers!W$16:W$30,$D63,1))=$W$50,FALSE) -> FALSE | AH63: =IF($N28,LOWER(INDEX(IntvTriggers!X$16:X$30,$D63,1))=$W$50,FALSE) -> FALSE | AI63: =IF($N28,LOWER(INDEX(IntvTriggers!Y$16:Y$30,$D63,1))=$W$50,FALSE) -> FALSE | AJ63: =IF($N28,LOWER(INDEX(IntvTriggers!Z$16:Z$30,$D63,1))=$W$50,FALSE) -> FALSE | AK63: =IF($N28,LOWER(INDEX(IntvTriggers!AA$16:AA$30,$D63,1))=$W$50,FALSE) -> FALSE | AL63: =IF($N28,LOWER(INDEX(IntvTriggers!AB$16:AB$30,$D63,1))=$W$50,FALSE) -> FALSE | AM63: =IF($N28,LOWER(INDEX(IntvTriggers!AC$16:AC$30,$D63,1))=$W$50,FALSE) -> FALSE | AN63: =IF($N28,LOWER(INDEX(IntvTriggers!AD$16:AD$30,$D63,1))=$W$50,FALSE) -> FALSE | AO63: =IF($N28,LOWER(INDEX(IntvTriggers!AE$16:AE$30,$D63,1))=$W$50,FALSE) -> FALSE | AP63: =IF($N28,LOWER(INDEX(IntvTriggers!AF$16:AF$30,$D63,1))=$W$50,FALSE) -> FALSE | AQ63: =IF($N28,LOWER(INDEX(IntvTriggers!AG$16:AG$30,$D63,1))=$W$50,FALSE) -> FALSE | AR63: =IF($N28,LOWER(INDEX(IntvTriggers!AH$16:AH$30,$D63,1))=$W$50,FALSE) -> FALSE
C64: 14 | D64: 0 | E64: [not used] | F64: - | G64: =IF(G29=3,INDEX(IntvChanges!F$15:F$29,$D64,1),"-") -> - | H64: =IF(H29=3,INDEX(IntvChanges!G$15:G$29,$D64,1),"-") -> - | I64: =IF(I29=3,INDEX(IntvChanges!H$15:H$29,$D64,1),"-") -> - | J64: =IF(J29=3,INDEX(IntvChanges!I$15:I$29,$D64,1),"-") -> - | K64: =IF(K29=3,INDEX(IntvChanges!J$15:J$29,$D64,1),"-") -> - | L64: =IF(L29=3,INDEX(IntvChanges!K$15:K$29,$D64,1),"-") -> - | X64: =IF($N29,LOWER(INDEX(IntvTriggers!N$16:N$30,$D64,1))=$W$50,FALSE) -> FALSE | Y64: =IF($N29,LOWER(INDEX(IntvTriggers!O$16:O$30,$D64,1))=$W$50,FALSE) -> FALSE | Z64: =IF($N29,LOWER(INDEX(IntvTriggers!P$16:P$30,$D64,1))=$W$50,FALSE) -> FALSE | AA64: =IF($N29,LOWER(INDEX(IntvTriggers!Q$16:Q$30,$D64,1))=$W$50,FALSE) -> FALSE | AB64: =IF($N29,LOWER(INDEX(IntvTriggers!R$16:R$30,$D64,1))=$W$50,FALSE) -> FALSE | AC64: =IF($N29,LOWER(INDEX(IntvTriggers!S$16:S$30,$D64,1))=$W$50,FALSE) -> FALSE | AD64: =IF($N29,LOWER(INDEX(IntvTriggers!T$16:T$30,$D64,1))=$W$50,FALSE) -> FALSE | AE64: =IF($N29,LOWER(INDEX(IntvTriggers!U$16:U$30,$D64,1))=$W$50,FALSE) -> FALSE | AF64: =IF($N29,LOWER(INDEX(IntvTriggers!V$16:V$30,$D64,1))=$W$50,FALSE) -> FALSE | AG64: =IF($N29,LOWER(INDEX(IntvTriggers!W$16:W$30,$D64,1))=$W$50,FALSE) -> FALSE | AH64: =IF($N29,LOWER(INDEX(IntvTriggers!X$16:X$30,$D64,1))=$W$50,FALSE) -> FALSE | AI64: =IF($N29,LOWER(INDEX(IntvTriggers!Y$16:Y$30,$D64,1))=$W$50,FALSE) -> FALSE | AJ64: =IF($N29,LOWER(INDEX(IntvTriggers!Z$16:Z$30,$D64,1))=$W$50,FALSE) -> FALSE | AK64: =IF($N29,LOWER(INDEX(IntvTriggers!AA$16:AA$30,$D64,1))=$W$50,FALSE) -> FALSE | AL64: =IF($N29,LOWER(INDEX(IntvTriggers!AB$16:AB$30,$D64,1))=$W$50,FALSE) -> FALSE | AM64: =IF($N29,LOWER(INDEX(IntvTriggers!AC$16:AC$30,$D64,1))=$W$50,FALSE) -> FALSE | AN64: =IF($N29,LOWER(INDEX(IntvTriggers!AD$16:AD$30,$D64,1))=$W$50,FALSE) -> FALSE | AO64: =IF($N29,LOWER(INDEX(IntvTriggers!AE$16:AE$30,$D64,1))=$W$50,FALSE) -> FALSE | AP64: =IF($N29,LOWER(INDEX(IntvTriggers!AF$16:AF$30,$D64,1))=$W$50,FALSE) -> FALSE | AQ64: =IF($N29,LOWER(INDEX(IntvTriggers!AG$16:AG$30,$D64,1))=$W$50,FALSE) -> FALSE | AR64: =IF($N29,LOWER(INDEX(IntvTriggers!AH$16:AH$30,$D64,1))=$W$50,FALSE) -> FALSE
C65: 15 | D65: 0 | E65: [not used] | F65: - | G65: =IF(G30=3,INDEX(IntvChanges!F$15:F$29,$D65,1),"-") -> - | H65: =IF(H30=3,INDEX(IntvChanges!G$15:G$29,$D65,1),"-") -> - | I65: =IF(I30=3,INDEX(IntvChanges!H$15:H$29,$D65,1),"-") -> - | J65: =IF(J30=3,INDEX(IntvChanges!I$15:I$29,$D65,1),"-") -> - | K65: =IF(K30=3,INDEX(IntvChanges!J$15:J$29,$D65,1),"-") -> - | L65: =IF(L30=3,INDEX(IntvChanges!K$15:K$29,$D65,1),"-") -> - | X65: =IF($N30,LOWER(INDEX(IntvTriggers!N$16:N$30,$D65,1))=$W$50,FALSE) -> FALSE | Y65: =IF($N30,LOWER(INDEX(IntvTriggers!O$16:O$30,$D65,1))=$W$50,FALSE) -> FALSE | Z65: =IF($N30,LOWER(INDEX(IntvTriggers!P$16:P$30,$D65,1))=$W$50,FALSE) -> FALSE | AA65: =IF($N30,LOWER(INDEX(IntvTriggers!Q$16:Q$30,$D65,1))=$W$50,FALSE) -> FALSE | AB65: =IF($N30,LOWER(INDEX(IntvTriggers!R$16:R$30,$D65,1))=$W$50,FALSE) -> FALSE | AC65: =IF($N30,LOWER(INDEX(IntvTriggers!S$16:S$30,$D65,1))=$W$50,FALSE) -> FALSE | AD65: =IF($N30,LOWER(INDEX(IntvTriggers!T$16:T$30,$D65,1))=$W$50,FALSE) -> FALSE | AE65: =IF($N30,LOWER(INDEX(IntvTriggers!U$16:U$30,$D65,1))=$W$50,FALSE) -> FALSE | AF65: =IF($N30,LOWER(INDEX(IntvTriggers!V$16:V$30,$D65,1))=$W$50,FALSE) -> FALSE | AG65: =IF($N30,LOWER(INDEX(IntvTriggers!W$16:W$30,$D65,1))=$W$50,FALSE) -> FALSE | AH65: =IF($N30,LOWER(INDEX(IntvTriggers!X$16:X$30,$D65,1))=$W$50,FALSE) -> FALSE | AI65: =IF($N30,LOWER(INDEX(IntvTriggers!Y$16:Y$30,$D65,1))=$W$50,FALSE) -> FALSE | AJ65: =IF($N30,LOWER(INDEX(IntvTriggers!Z$16:Z$30,$D65,1))=$W$50,FALSE) -> FALSE | AK65: =IF($N30,LOWER(INDEX(IntvTriggers!AA$16:AA$30,$D65,1))=$W$50,FALSE) -> FALSE | AL65: =IF($N30,LOWER(INDEX(IntvTriggers!AB$16:AB$30,$D65,1))=$W$50,FALSE) -> FALSE | AM65: =IF($N30,LOWER(INDEX(IntvTriggers!AC$16:AC$30,$D65,1))=$W$50,FALSE) -> FALSE | AN65: =IF($N30,LOWER(INDEX(IntvTriggers!AD$16:AD$30,$D65,1))=$W$50,FALSE) -> FALSE | AO65: =IF($N30,LOWER(INDEX(IntvTriggers!AE$16:AE$30,$D65,1))=$W$50,FALSE) -> FALSE | AP65: =IF($N30,LOWER(INDEX(IntvTriggers!AF$16:AF$30,$D65,1))=$W$50,FALSE) -> FALSE | AQ65: =IF($N30,LOWER(INDEX(IntvTriggers!AG$16:AG$30,$D65,1))=$W$50,FALSE) -> FALSE | AR65: =IF($N30,LOWER(INDEX(IntvTriggers!AH$16:AH$30,$D65,1))=$W$50,FALSE) -> FALSE
B67: Deterioration and Intervention Sequence
G69: Scores by deterioration and intervention | X69: Repetition counting
A70: Offset | B70: Per. | C70: Seq | D70: Intv | E70: Event | F70: =F7 -> SRV | G70: MA | H70: VA | I70: SW | J70: DA | K70: BA | L70: CA | N70: Intervene | P70: Trigger tests | X70: This | Z70: Acc. | AA70: Count
A71: =ROWS(B72:B88)-1 -> 16 | E71: Initial Condition | F71: =$F$11*(MAX(G71,H71)+MAX(I71,J71)+K71+L71) -> 0.5 | G71: =G10 -> 0 | H71: 0 | I71: 0 | J71: 0.5 | K71: 0 | L71: 0 | P71: =P13 -> SRV | Q71: MA | R71: VA | S71: SW | T71: DA | U71: BA | V71: CA | X71: period | Y71: Reset | Z71: Count | AA71: OK
B72: 1 | C72: 0 | E72: Unconstrained deterioration | F72: 1.474442283 | G72: =MAX(G$8,MIN(G$9,G71+INDEX(OFFSET(DetRates!N$17:N$23,0,DetRates!$D$10),MATCH(G71,DetRates!G$17:G$23,1),1))) -> 0.07179596043 | H72: =MAX(H$8,MIN(H$9,H71+INDEX(OFFSET(DetRates!O$17:O$23,0,DetRates!$D$10),MATCH(H71,DetRates!H$17:H$23,1),1))) -> 0.3207570802 | I72: =MAX(I$8,MIN(I$9,I71+INDEX(OFFSET(DetRates!P$17:P$23,0,DetRates!$D$10),MATCH(I71,DetRates!I$17:I$23,1),1))) -> 0.2725380599 | J72: =MAX(J$8,MIN(J$9,J71+INDEX(OFFSET(DetRates!Q$17:Q$23,0,DetRates!$D$10),MATCH(J71,DetRates!J$17:J$23,1),1))) -> 0.6165464789 | K72: =MAX(K$8,MIN(K$9,K71+INDEX(OFFSET(DetRates!R$17:R$23,0,DetRates!$D$10),MATCH(K71,DetRates!K$17:K$23,1),1))) -> 0.4893651175 | L72: =MAX(L$8,MIN(L$9,L71+INDEX(OFFSET(DetRates!S$17:S$23,0,DetRates!$D$10),MATCH(L71,DetRates!L$17:L$23,1),1))) -> 0.04777360613
B73: 1 | C73: =C16 -> 1 | D73: =D16 -> 7 | E73: =E16 -> Major earthworks | F73: 1.474442283 | G73: =IF($N73,MAX(G$8,MIN(G$9,CHOOSE(OFFSET(G$15,$C73,0),G72,OFFSET(G$32,$C73,0),G72+OFFSET(G$50,$C73,0)))),G72) -> 0.07179596043 | H73: =IF($N73,MAX(H$8,MIN(H$9,CHOOSE(OFFSET(H$15,$C73,0),H72,OFFSET(H$32,$C73,0),H72+OFFSET(H$50,$C73,0)))),H72) -> 0.3207570802 | I73: =IF($N73,MAX(I$8,MIN(I$9,CHOOSE(OFFSET(I$15,$C73,0),I72,OFFSET(I$32,$C73,0),I72+OFFSET(I$50,$C73,0)))),I72) -> 0.2725380599 | J73: =IF($N73,MAX(J$8,MIN(J$9,CHOOSE(OFFSET(J$15,$C73,0),J72,OFFSET(J$32,$C73,0),J72+OFFSET(J$50,$C73,0)))),J72) -> 0.6165464789 | K73: =IF($N73,MAX(K$8,MIN(K$9,CHOOSE(OFFSET(K$15,$C73,0),K72,OFFSET(K$32,$C73,0),K72+OFFSET(K$50,$C73,0)))),K72) -> 0.4893651175 | L73: =IF($N73,MAX(L$8,MIN(L$9,CHOOSE(OFFSET(L$15,$C73,0),L72,OFFSET(L$32,$C73,0),L72+OFFSET(L$50,$C73,0)))),L72) -> 0.04777360613 | N73: =AND(OR(P73:V73),AA73) -> FALSE | P73: =CHOOSE(OFFSET(P$15,$C73,0),FALSE,F72>=OFFSET(P$32,$C73,0),(OFFSET($W$50,$C73,$B73))) -> FALSE | Q73: =CHOOSE(OFFSET(Q$15,$C73,0),FALSE,G72>=OFFSET(Q$32,$C73,0),(OFFSET($W$50,$C73,$B73))) -> FALSE | R73: =CHOOSE(OFFSET(R$15,$C73,0),FALSE,H72>=OFFSET(R$32,$C73,0),(OFFSET($W$50,$C73,$B73))) -> FALSE | S73: =CHOOSE(OFFSET(S$15,$C73,0),FALSE,I72>=OFFSET(S$32,$C73,0),(OFFSET($W$50,$C73,$B73))) -> FALSE | T73: =CHOOSE(OFFSET(T$15,$C73,0),FALSE,J72>=OFFSET(T$32,$C73,0),(OFFSET($W$50,$C73,$B73))) -> FALSE | U73: =CHOOSE(OFFSET(U$15,$C73,0),FALSE,K72>=OFFSET(U$32,$C73,0),(OFFSET($W$50,$C73,$B73))) -> FALSE | V73: =CHOOSE(OFFSET(V$15,$C73,0),FALSE,L72>=OFFSET(V$32,$C73,0),(OFFSET($W$50,$C73,$B73))) -> FALSE | X73: =0+N73 -> 0 | Z73: 0 | AA73: =Z73<OFFSET(Z$15,C73,0) -> TRUE
B74: 1 | C74: =C17 -> 2 | D74: 6 | E74: =E17 -> Minor earthworks | F74: 1.474442283 | G74: 0.07179596043 | H74: 0.3207570802 | I74: 0.2725380599 | J74: 0.6165464789 | K74: 0.4893651175 | L74: 0.04777360613 | N74: FALSE | P74: FALSE | Q74: FALSE | R74: FALSE | S74: FALSE | T74: FALSE | U74: FALSE | V74: FALSE | X74: 0 | Z74: 0 | AA74: TRUE
B75: 1 | C75: 3 | D75: 5 | E75: Burrow filling | F75: 1.474442283 | G75: 0.07179596043 | H75: 0.3207570802 | I75: 0.2725380599 | J75: 0.6165464789 | K75: 0.4893651175 | L75: 0.04777360613 | N75: FALSE | P75: FALSE | Q75: FALSE | R75: FALSE | S75: FALSE | T75: FALSE | U75: FALSE | V75: FALSE | X75: 0 | Z75: 0 | AA75: TRUE
B76: 1 | C76: 4 | D76: 4 | E76: Drainage replacement | F76: 1.474442283 | G76: 0.07179596043 | H76: 0.3207570802 | I76: 0.2725380599 | J76: 0.6165464789 | K76: 0.4893651175 | L76: 0.04777360613 | N76: FALSE | P76: FALSE | Q76: FALSE | R76: FALSE | S76: FALSE | T76: FALSE | U76: FALSE | V76: FALSE | X76: 0 | Z76: 0 | AA76: TRUE
B77: 1 | C77: 5 | D77: 3 | E77: Drainage repair | F77: 1.474442283 | G77: 0.07179596043 | H77: 0.3207570802 | I77: 0.2725380599 | J77: 0.6165464789 | K77: 0.4893651175 | L77: 0.04777360613 | N77: FALSE | P77: FALSE | Q77: FALSE | R77: FALSE | S77: FALSE | T77: FALSE | U77: FALSE | V77: FALSE | X77: 0 | Z77: 0 | AA77: TRUE
B78: 1 | C78: 6 | D78: 2 | E78: Drainage clearance | F78: 1.474442283 | G78: 0.07179596043 | H78: 0.3207570802 | I78: 0.2725380599 | J78: 0.6165464789 | K78: 0.4893651175 | L78: 0.04777360613 | N78: FALSE | P78: FALSE | Q78: FALSE | R78: FALSE | S78: FALSE | T78: FALSE | U78: FALSE | V78: FALSE | X78: 0 | Z78: 0 | AA78: TRUE
B79: 1 | C79: 7 | D79: 1 | E79: Vegetation clearance | F79: 1.474442283 | G79: 0.07179596043 | H79: 0.3207570802 | I79: 0.2725380599 | J79: 0.6165464789 | K79: 0.4893651175 | L79: 0.04777360613 | N79: FALSE | P79: FALSE | Q79: FALSE | R79: FALSE | S79: FALSE | T79: FALSE | U79: FALSE | V79: FALSE | X79: 0 | Z79: 0 | AA79: TRUE
B80: 1 | C80: 8 | D80: 0 | E80: [not used] | F80: 1.474442283 | G80: 0.07179596043 | H80: 0.3207570802 | I80: 0.2725380599 | J80: 0.6165464789 | K80: 0.4893651175 | L80: 0.04777360613 | N80: FALSE | P80: FALSE | Q80: FALSE | R80: FALSE | S80: FALSE | T80: FALSE | U80: FALSE | V80: FALSE | X80: 0 | Z80: 0 | AA80: TRUE
B81: 1 | C81: 9 | D81: 0 | E81: [not used] | F81: 1.474442283 | G81: 0.07179596043 | H81: 0.3207570802 | I81: 0.2725380599 | J81: 0.6165464789 | K81: 0.4893651175 | L81: 0.04777360613 | N81: FALSE | P81: FALSE | Q81: FALSE | R81: FALSE | S81: FALSE | T81: FALSE | U81: FALSE | V81: FALSE | X81: 0 | Z81: 0 | AA81: TRUE
B82: 1 | C82: 10 | D82: 0 | E82: [not used] | F82: =$F$11*(MAX(G82,H82)+MAX(I82,J82)+K82+L82) -> 1.474442283 | G82: =IF($N82,MAX(G$8,MIN(G$9,CHOOSE(OFFSET(G$15,$C82,0),G81,OFFSET(G$32,$C82,0),G81+OFFSET(G$50,$C82,0)))),G81) -> 0.07179596043 | H82: =IF($N82,MAX(H$8,MIN(H$9,CHOOSE(OFFSET(H$15,$C82,0),H81,OFFSET(H$32,$C82,0),H81+OFFSET(H$50,$C82,0)))),H81) -> 0.3207570802 | I82: =IF($N82,MAX(I$8,MIN(I$9,CHOOSE(OFFSET(I$15,$C82,0),I81,OFFSET(I$32,$C82,0),I81+OFFSET(I$50,$C82,0)))),I81) -> 0.2725380599 | J82: =IF($N82,MAX(J$8,MIN(J$9,CHOOSE(OFFSET(J$15,$C82,0),J81,OFFSET(J$32,$C82,0),J81+OFFSET(J$50,$C82,0)))),J81) -> 0.6165464789 | K82: =IF($N82,MAX(K$8,MIN(K$9,CHOOSE(OFFSET(K$15,$C82,0),K81,OFFSET(K$32,$C82,0),K81+OFFSET(K$50,$C82,0)))),K81) -> 0.4893651175 | L82: =IF($N82,MAX(L$8,MIN(L$9,CHOOSE(OFFSET(L$15,$C82,0),L81,OFFSET(L$32,$C82,0),L81+OFFSET(L$50,$C82,0)))),L81) -> 0.04777360613 | N82: =AND(OR(P82:V82),AA82) -> FALSE | P82: =CHOOSE(OFFSET(P$15,$C82,0),FALSE,F81>=OFFSET(P$32,$C82,0),(OFFSET($W$50,$C82,$B82))) -> FALSE | Q82: =CHOOSE(OFFSET(Q$15,$C82,0),FALSE,G81>=OFFSET(Q$32,$C82,0),(OFFSET($W$50,$C82,$B82))) -> FALSE | R82: =CHOOSE(OFFSET(R$15,$C82,0),FALSE,H81>=OFFSET(R$32,$C82,0),(OFFSET($W$50,$C82,$B82))) -> FALSE | S82: =CHOOSE(OFFSET(S$15,$C82,0),FALSE,I81>=OFFSET(S$32,$C82,0),(OFFSET($W$50,$C82,$B82))) -> FALSE | T82: =CHOOSE(OFFSET(T$15,$C82,0),FALSE,J81>=OFFSET(T$32,$C82,0),(OFFSET($W$50,$C82,$B82))) -> FALSE | U82: =CHOOSE(OFFSET(U$15,$C82,0),FALSE,K81>=OFFSET(U$32,$C82,0),(OFFSET($W$50,$C82,$B82))) -> FALSE | V82: =CHOOSE(OFFSET(V$15,$C82,0),FALSE,L81>=OFFSET(V$32,$C82,0),(OFFSET($W$50,$C82,$B82))) -> FALSE | X82: =0+N82 -> 0 | Z82: 0 | AA82: =Z82<OFFSET(Z$15,C82,0) -> TRUE
B83: 1 | C83: 11 | D83: 0 | E83: [not used] | F83: 1.474442283 | G83: 0.07179596043 | H83: 0.3207570802 | I83: 0.2725380599 | J83: 0.6165464789 | K83: 0.4893651175 | L83: 0.04777360613 | N83: FALSE | P83: FALSE | Q83: FALSE | R83: FALSE | S83: FALSE | T83: FALSE | U83: FALSE | V83: FALSE | X83: 0 | Z83: 0 | AA83: TRUE
B84: 1 | C84: 12 | D84: 0 | E84: [not used] | F84: 1.474442283 | G84: 0.07179596043 | H84: 0.3207570802 | I84: 0.2725380599 | J84: 0.6165464789 | K84: 0.4893651175 | L84: 0.04777360613 | N84: FALSE | P84: FALSE | Q84: FALSE | R84: FALSE | S84: FALSE | T84: FALSE | U84: FALSE | V84: FALSE | X84: 0 | Z84: 0 | AA84: TRUE
B85: 1 | C85: 13 | D85: 0 | E85: [not used] | F85: 1.474442283 | G85: 0.07179596043 | H85: 0.3207570802 | I85: 0.2725380599 | J85: 0.6165464789 | K85: 0.4893651175 | L85: 0.04777360613 | N85: FALSE | P85: FALSE | Q85: FALSE | R85: FALSE | S85: FALSE | T85: FALSE | U85: FALSE | V85: FALSE | X85: 0 | Z85: 0 | AA85: TRUE
B86: 1 | C86: 14 | D86: 0 | E86: [not used] | F86: 1.474442283 | G86: 0.07179596043 | H86: 0.3207570802 | I86: 0.2725380599 | J86: 0.6165464789 | K86: 0.4893651175 | L86: 0.04777360613 | N86: FALSE | P86: FALSE | Q86: FALSE | R86: FALSE | S86: FALSE | T86: FALSE | U86: FALSE | V86: FALSE | X86: 0 | Z86: 0 | AA86: TRUE
B87: 1 | C87: 15 | D87: 0 | E87: [not used] | F87: 1.474442283 | G87: 0.07179596043 | H87: 0.3207570802 | I87: 0.2725380599 | J87: 0.6165464789 | K87: 0.4893651175 | L87: 0.04777360613 | N87: FALSE | P87: FALSE | Q87: FALSE | R87: FALSE | S87: FALSE | T87: FALSE | U87: FALSE | V87: FALSE | X87: 0 | Z87: 0 | AA87: TRUE
B88: =B73+1 -> 2 | C88: 0 | E88: =E72 -> Unconstrained deterioration | F88: =$F$11*(MAX(G88,H88)+MAX(I88,J88)+K88+L88) -> 2.698891691 | G88: =MAX(G$8,MIN(G$9,G87+INDEX(OFFSET(DetRates!N$17:N$23,0,DetRates!$D$10),MATCH(G87,DetRates!G$17:G$23,1),1))) -> 0.1435919209 | H88: =MAX(H$8,MIN(H$9,H87+INDEX(OFFSET(DetRates!O$17:O$23,0,DetRates!$D$10),MATCH(H87,DetRates!H$17:H$23,1),1))) -> 0.8915212856 | I88: =MAX(I$8,MIN(I$9,I87+INDEX(OFFSET(DetRates!P$17:P$23,0,DetRates!$D$10),MATCH(I87,DetRates!I$17:I$23,1),1))) -> 0.5450761198 | J88: =MAX(J$8,MIN(J$9,J87+INDEX(OFFSET(DetRates!Q$17:Q$23,0,DetRates!$D$10),MATCH(J87,DetRates!J$17:J$23,1),1))) -> 0.7330929577 | K88: =MAX(K$8,MIN(K$9,K87+INDEX(OFFSET(DetRates!R$17:R$23,0,DetRates!$D$10),MATCH(K87,DetRates!K$17:K$23,1),1))) -> 0.978730235 | L88: =MAX(L$8,MIN(L$9,L87+INDEX(OFFSET(DetRates!S$17:S$23,0,DetRates!$D$10),MATCH(L87,DetRates!L$17:L$23,1),1))) -> 0.09554721226
A89: =(B89-2)*A$71 -> 0 | B89: =B73+1 -> 2 | C89: =C73 -> 1 | D89: =D73 -> 7 | E89: Major earthworks | F89: =$F$11*(MAX(G89,H89)+MAX(I89,J89)+K89+L89) -> 2.698891691 | G89: =IF($N89,MAX(G$8,MIN(G$9,CHOOSE(OFFSET(G$15,$C89,0),G88,OFFSET(G$32,$C89,0),G88+OFFSET(G$50,$C89,0)))),G88) -> 0.1435919209 | H89: =IF($N89,MAX(H$8,MIN(H$9,CHOOSE(OFFSET(H$15,$C89,0),H88,OFFSET(H$32,$C89,0),H88+OFFSET(H$50,$C89,0)))),H88) -> 0.8915212856 | I89: =IF($N89,MAX(I$8,MIN(I$9,CHOOSE(OFFSET(I$15,$C89,0),I88,OFFSET(I$32,$C89,0),I88+OFFSET(I$50,$C89,0)))),I88) -> 0.5450761198 | J89: =IF($N89,MAX(J$8,MIN(J$9,CHOOSE(OFFSET(J$15,$C89,0),J88,OFFSET(J$32,$C89,0),J88+OFFSET(J$50,$C89,0)))),J88) -> 0.7330929577 | K89: =IF($N89,MAX(K$8,MIN(K$9,CHOOSE(OFFSET(K$15,$C89,0),K88,OFFSET(K$32,$C89,0),K88+OFFSET(K$50,$C89,0)))),K88) -> 0.978730235 | L89: =IF($N89,MAX(L$8,MIN(L$9,CHOOSE(OFFSET(L$15,$C89,0),L88,OFFSET(L$32,$C89,0),L88+OFFSET(L$50,$C89,0)))),L88) -> 0.09554721226 | N89: =AND(OR(P89:V89),AA89) -> FALSE | P89: =CHOOSE(OFFSET(P$15,$C89,0),FALSE,F88>=OFFSET(P$32,$C89,0),(OFFSET($W$50,$C89,$B89))) -> FALSE | Q89: =CHOOSE(OFFSET(Q$15,$C89,0),FALSE,G88>=OFFSET(Q$32,$C89,0),(OFFSET($W$50,$C89,$B89))) -> FALSE | R89: =CHOOSE(OFFSET(R$15,$C89,0),FALSE,H88>=OFFSET(R$32,$C89,0),(OFFSET($W$50,$C89,$B89))) -> FALSE | S89: =CHOOSE(OFFSET(S$15,$C89,0),FALSE,I88>=OFFSET(S$32,$C89,0),(OFFSET($W$50,$C89,$B89))) -> FALSE | T89: =CHOOSE(OFFSET(T$15,$C89,0),FALSE,J88>=OFFSET(T$32,$C89,0),(OFFSET($W$50,$C89,$B89))) -> FALSE | U89: =CHOOSE(OFFSET(U$15,$C89,0),FALSE,K88>=OFFSET(U$32,$C89,0),(OFFSET($W$50,$C89,$B89))) -> FALSE | V89: =CHOOSE(OFFSET(V$15,$C89,0),FALSE,L88>=OFFSET(V$32,$C89,0),(OFFSET($W$50,$C89,$B89))) -> FALSE | X89: =0+N89 -> 0 | Y89: =MMULT(OFFSET($AB$15:$AP$15,$C89,0),OFFSET($X$73:$X$87,$A89,0))>0 -> FALSE | Z89: =IF(Y89,0,Z73+X73) -> 0 | AA89: =Z89<OFFSET(Z$15,C89,0) -> TRUE
A90: 0 | B90: 2 | C90: 2 | D90: 6 | E90: Minor earthworks | F90: 2.698891691 | G90: 0.1435919209 | H90: 0.8915212856 | I90: 0.5450761198 | J90: 0.7330929577 | K90: 0.978730235 | L90: 0.09554721226 | N90: FALSE | P90: FALSE | Q90: FALSE | R90: FALSE | S90: FALSE | T90: FALSE | U90: FALSE | V90: FALSE | X90: 0 | Y90: =MMULT(OFFSET($AB$15:$AP$15,$C90,0),OFFSET($X$73:$X$87,$A90,0))>0 -> FALSE | Z90: 0 | AA90: TRUE
A91: 0 | B91: 2 | C91: 3 | D91: 5 | E91: Burrow filling | F91: 2.698891691 | G91: 0.1435919209 | H91: 0.8915212856 | I91: 0.5450761198 | J91: 0.7330929577 | K91: 0.978730235 | L91: 0.09554721226 | N91: FALSE | P91: FALSE | Q91: FALSE | R91: FALSE | S91: FALSE | T91: FALSE | U91: FALSE | V91: FALSE | X91: 0 | Y91: =MMULT(OFFSET($AB$15:$AP$15,$C91,0),OFFSET($X$73:$X$87,$A91,0))>0 -> FALSE | Z91: 0 | AA91: TRUE
A92: 0 | B92: 2 | C92: 4 | D92: 4 | E92: Drainage replacement | F92: 2.698891691 | G92: 0.1435919209 | H92: 0.8915212856 | I92: 0.5450761198 | J92: 0.7330929577 | K92: 0.978730235 | L92: 0.09554721226 | N92: FALSE | P92: FALSE | Q92: FALSE | R92: FALSE | S92: FALSE | T92: FALSE | U92: FALSE | V92: FALSE | X92: 0 | Y92: FALSE | Z92: 0 | AA92: TRUE
A93: 0 | B93: 2 | C93: 5 | D93: 3 | E93: Drainage repair | F93: 2.698891691 | G93: 0.1435919209 | H93: 0.8915212856 | I93: 0.5450761198 | J93: 0.7330929577 | K93: 0.978730235 | L93: 0.09554721226 | N93: FALSE | P93: FALSE | Q93: FALSE | R93: FALSE | S93: FALSE | T93: FALSE | U93: FALSE | V93: FALSE | X93: 0 | Y93: FALSE | Z93: 0 | AA93: TRUE
A94: 0 | B94: 2 | C94: 6 | D94: 2 | E94: Drainage clearance | F94: 2.698891691 | G94: 0.1435919209 | H94: 0.8915212856 | I94: 0.5450761198 | J94: 0.7330929577 | K94: 0.978730235 | L94: 0.09554721226 | N94: FALSE | P94: FALSE | Q94: FALSE | R94: FALSE | S94: FALSE | T94: FALSE | U94: FALSE | V94: FALSE | X94: 0 | Y94: FALSE | Z94: 0 | AA94: TRUE
A95: 0 | B95: 2 | C95: 7 | D95: 1 | E95: Vegetation clearance | F95: 2.698891691 | G95: 0.1435919209 | H95: 0.8915212856 | I95: 0.5450761198 | J95: 0.7330929577 | K95: 0.978730235 | L95: 0.09554721226 | N95: FALSE | P95: FALSE | Q95: FALSE | R95: FALSE | S95: FALSE | T95: FALSE | U95: FALSE | V95: FALSE | X95: 0 | Y95: FALSE | Z95: 0 | AA95: TRUE
A96: 0 | B96: 2 | C96: 8 | D96: 0 | E96: [not used] | F96: 2.698891691 | G96: 0.1435919209 | H96: 0.8915212856 | I96: 0.5450761198 | J96: 0.7330929577 | K96: 0.978730235 | L96: 0.09554721226 | N96: FALSE | P96: FALSE | Q96: FALSE | R96: FALSE | S96: FALSE | T96: FALSE | U96: FALSE | V96: FALSE | X96: 0 | Y96: FALSE | Z96: 0 | AA96: TRUE
A97: 0 | B97: 2 | C97: 9 | D97: 0 | E97: [not used] | F97: 2.698891691 | G97: 0.1435919209 | H97: 0.8915212856 | I97: 0.5450761198 | J97: 0.7330929577 | K97: 0.978730235 | L97: 0.09554721226 | N97: FALSE | P97: FALSE | Q97: FALSE | R97: FALSE | S97: FALSE | T97: FALSE | U97: FALSE | V97: FALSE | X97: 0 | Y97: FALSE | Z97: 0 | AA97: TRUE
A98: =(B98-2)*A$71 -> 0 | B98: =B82+1 -> 2 | C98: 10 | D98: 0 | E98: [not used] | F98: 2.698891691 | G98: =IF($N98,MAX(G$8,MIN(G$9,CHOOSE(OFFSET(G$15,$C98,0),G97,OFFSET(G$32,$C98,0),G97+OFFSET(G$50,$C98,0)))),G97) -> 0.1435919209 | H98: =IF($N98,MAX(H$8,MIN(H$9,CHOOSE(OFFSET(H$15,$C98,0),H97,OFFSET(H$32,$C98,0),H97+OFFSET(H$50,$C98,0)))),H97) -> 0.8915212856 | I98: =IF($N98,MAX(I$8,MIN(I$9,CHOOSE(OFFSET(I$15,$C98,0),I97,OFFSET(I$32,$C98,0),I97+OFFSET(I$50,$C98,0)))),I97) -> 0.5450761198 | J98: =IF($N98,MAX(J$8,MIN(J$9,CHOOSE(OFFSET(J$15,$C98,0),J97,OFFSET(J$32,$C98,0),J97+OFFSET(J$50,$C98,0)))),J97) -> 0.7330929577 | K98: =IF($N98,MAX(K$8,MIN(K$9,CHOOSE(OFFSET(K$15,$C98,0),K97,OFFSET(K$32,$C98,0),K97+OFFSET(K$50,$C98,0)))),K97) -> 0.978730235 | L98: =IF($N98,MAX(L$8,MIN(L$9,CHOOSE(OFFSET(L$15,$C98,0),L97,OFFSET(L$32,$C98,0),L97+OFFSET(L$50,$C98,0)))),L97) -> 0.09554721226 | N98: =AND(OR(P98:V98),AA98) -> FALSE | P98: =CHOOSE(OFFSET(P$15,$C98,0),FALSE,F97>=OFFSET(P$32,$C98,0),(OFFSET($W$50,$C98,$B98))) -> FALSE | Q98: =CHOOSE(OFFSET(Q$15,$C98,0),FALSE,G97>=OFFSET(Q$32,$C98,0),(OFFSET($W$50,$C98,$B98))) -> FALSE | R98: =CHOOSE(OFFSET(R$15,$C98,0),FALSE,H97>=OFFSET(R$32,$C98,0),(OFFSET($W$50,$C98,$B98))) -> FALSE | S98: =CHOOSE(OFFSET(S$15,$C98,0),FALSE,I97>=OFFSET(S$32,$C98,0),(OFFSET($W$50,$C98,$B98))) -> FALSE | T98: =CHOOSE(OFFSET(T$15,$C98,0),FALSE,J97>=OFFSET(T$32,$C98,0),(OFFSET($W$50,$C98,$B98))) -> FALSE | U98: =CHOOSE(OFFSET(U$15,$C98,0),FALSE,K97>=OFFSET(U$32,$C98,0),(OFFSET($W$50,$C98,$B98))) -> FALSE | V98: =CHOOSE(OFFSET(V$15,$C98,0),FALSE,L97>=OFFSET(V$32,$C98,0),(OFFSET($W$50,$C98,$B98))) -> FALSE | X98: =0+N98 -> 0 | Y98: FALSE | Z98: =IF(Y98,0,Z82+X82) -> 0 | AA98: =Z98<OFFSET(Z$15,C98,0) -> TRUE
A99: 0 | B99: 2 | C99: 11 | D99: 0 | E99: [not used] | F99: 2.698891691 | G99: 0.1435919209 | H99: 0.8915212856 | I99: 0.5450761198 | J99: 0.7330929577 | K99: 0.978730235 | L99: 0.09554721226 | N99: FALSE | P99: FALSE | Q99: FALSE | R99: FALSE | S99: FALSE | T99: FALSE | U99: FALSE | V99: FALSE | X99: 0 | Y99: FALSE | Z99: 0 | AA99: TRUE
A100: 0 | B100: 2 | C100: 12 | D100: 0 | E100: [not used] | F100: 2.698891691 | G100: 0.1435919209 | H100: 0.8915212856 | I100: 0.5450761198 | J100: 0.7330929577 | K100: 0.978730235 | L100: 0.09554721226 | N100: FALSE | P100: FALSE | Q100: FALSE | R100: FALSE | S100: FALSE | T100: FALSE | U100: FALSE | V100: FALSE | X100: 0 | Y100: FALSE | Z100: 0 | AA100: TRUE
A101: 0 | B101: 2 | C101: 13 | D101: 0 | E101: [not used] | F101: 2.698891691 | G101: 0.1435919209 | H101: 0.8915212856 | I101: 0.5450761198 | J101: 0.7330929577 | K101: 0.978730235 | L101: 0.09554721226 | N101: FALSE | P101: FALSE | Q101: FALSE | R101: FALSE | S101: FALSE | T101: FALSE | U101: FALSE | V101: FALSE | X101: 0 | Y101: FALSE | Z101: 0 | AA101: TRUE
A102: 0 | B102: 2 | C102: 14 | D102: 0 | E102: [not used] | F102: 2.698891691 | G102: 0.1435919209 | H102: 0.8915212856 | I102: 0.5450761198 | J102: 0.7330929577 | K102: 0.978730235 | L102: 0.09554721226 | N102: FALSE | P102: FALSE | Q102: FALSE | R102: FALSE | S102: FALSE | T102: FALSE | U102: FALSE | V102: FALSE | X102: 0 | Y102: FALSE | Z102: 0 | AA102: TRUE
A103: 0 | B103: 2 | C103: 15 | D103: 0 | E103: [not used] | F103: 2.698891691 | G103: 0.1435919209 | H103: 0.8915212856 | I103: 0.5450761198 | J103: 0.7330929577 | K103: 0.978730235 | L103: 0.09554721226 | N103: FALSE | P103: FALSE | Q103: FALSE | R103: FALSE | S103: FALSE | T103: FALSE | U103: FALSE | V103: FALSE | X103: 0 | Y103: FALSE | Z103: 0 | AA103: TRUE
B104: =B89+1 -> 3 | C104: 1 | E104: =E88 -> Unconstrained deterioration | F104: 3.652464682 | G104: =MAX(G$8,MIN(G$9,G103+INDEX(OFFSET(DetRates!N$17:N$23,0,DetRates!$D$10),MATCH(G103,DetRates!G$17:G$23,1),1))) -> 0.2153878813 | H104: =MAX(H$8,MIN(H$9,H103+INDEX(OFFSET(DetRates!O$17:O$23,0,DetRates!$D$10),MATCH(H103,DetRates!H$17:H$23,1),1))) -> 1.191409075 | I104: =MAX(I$8,MIN(I$9,I103+INDEX(OFFSET(DetRates!P$17:P$23,0,DetRates!$D$10),MATCH(I103,DetRates!I$17:I$23,1),1))) -> 0.8176141797 | J104: =MAX(J$8,MIN(J$9,J103+INDEX(OFFSET(DetRates!Q$17:Q$23,0,DetRates!$D$10),MATCH(J103,DetRates!J$17:J$23,1),1))) -> 0.8496394366 | K104: =MAX(K$8,MIN(K$9,K103+INDEX(OFFSET(DetRates!R$17:R$23,0,DetRates!$D$10),MATCH(K103,DetRates!K$17:K$23,1),1))) -> 1.468095352 | L104: =MAX(L$8,MIN(L$9,L103+INDEX(OFFSET(DetRates!S$17:S$23,0,DetRates!$D$10),MATCH(L103,DetRates!L$17:L$23,1),1))) -> 0.1433208184
A105: =(B105-2)*A$71 -> 16 | B105: =B89+1 -> 3 | C105: 1 | D105: 7 | E105: Major earthworks | F105: =$F$11*(MAX(G105,H105)+MAX(I105,J105)+K105+L105) -> 3.652464682 | G105: =IF($N105,MAX(G$8,MIN(G$9,CHOOSE(OFFSET(G$15,$C105,0),G104,OFFSET(G$32,$C105,0),G104+OFFSET(G$50,$C105,0)))),G104) -> 0.2153878813 | H105: =IF($N105,MAX(H$8,MIN(H$9,CHOOSE(OFFSET(H$15,$C105,0),H104,OFFSET(H$32,$C105,0),H104+OFFSET(H$50,$C105,0)))),H104) -> 1.191409075 | I105: =IF($N105,MAX(I$8,MIN(I$9,CHOOSE(OFFSET(I$15,$C105,0),I104,OFFSET(I$32,$C105,0),I104+OFFSET(I$50,$C105,0)))),I104) -> 0.8176141797 | J105: =IF($N105,MAX(J$8,MIN(J$9,CHOOSE(OFFSET(J$15,$C105,0),J104,OFFSET(J$32,$C105,0),J104+OFFSET(J$50,$C105,0)))),J104) -> 0.8496394366 | K105: =IF($N105,MAX(K$8,MIN(K$9,CHOOSE(OFFSET(K$15,$C105,0),K104,OFFSET(K$32,$C105,0),K104+OFFSET(K$50,$C105,0)))),K104) -> 1.468095352 | L105: =IF($N105,MAX(L$8,MIN(L$9,CHOOSE(OFFSET(L$15,$C105,0),L104,OFFSET(L$32,$C105,0),L104+OFFSET(L$50,$C105,0)))),L104) -> 0.1433208184 | N105: =AND(OR(P105:V105),AA105) -> FALSE | P105: =CHOOSE(OFFSET(P$15,$C105,0),FALSE,F104>=OFFSET(P$32,$C105,0),(OFFSET($W$50,$C105,$B105))) -> FALSE | Q105: =CHOOSE(OFFSET(Q$15,$C105,0),FALSE,G104>=OFFSET(Q$32,$C105,0),(OFFSET($W$50,$C105,$B105))) -> FALSE | R105: =CHOOSE(OFFSET(R$15,$C105,0),FALSE,H104>=OFFSET(R$32,$C105,0),(OFFSET($W$50,$C105,$B105))) -> FALSE | S105: =CHOOSE(OFFSET(S$15,$C105,0),FALSE,I104>=OFFSET(S$32,$C105,0),(OFFSET($W$50,$C105,$B105))) -> FALSE | T105: =CHOOSE(OFFSET(T$15,$C105,0),FALSE,J104>=OFFSET(T$32,$C105,0),(OFFSET($W$50,$C105,$B105))) -> FALSE | U105: =CHOOSE(OFFSET(U$15,$C105,0),FALSE,K104>=OFFSET(U$32,$C105,0),(OFFSET($W$50,$C105,$B105))) -> FALSE | V105: =CHOOSE(OFFSET(V$15,$C105,0),FALSE,L104>=OFFSET(V$32,$C105,0),(OFFSET($W$50,$C105,$B105))) -> FALSE | X105: =0+N105 -> 0 | Y105: =MMULT(OFFSET($AB$15:$AP$15,$C105,0),OFFSET($X$73:$X$87,$A105,0))>0 -> FALSE | Z105: =IF(Y105,0,Z89+X89) -> 0 | AA105: =Z105<OFFSET(Z$15,C105,0) -> TRUE
A106: 16 | B106: 3 | C106: =C90 -> 2 | D106: 6 | E106: Minor earthworks | F106: 3.652464682 | G106: 0.2153878813 | H106: 1.191409075 | I106: 0.8176141797 | J106: 0.8496394366 | K106: 1.468095352 | L106: 0.1433208184 | N106: FALSE | P106: FALSE | Q106: FALSE | R106: FALSE | S106: FALSE | T106: FALSE | U106: FALSE | V106: FALSE | X106: 0 | Y106: FALSE | Z106: 0 | AA106: TRUE
A107: 16 | B107: 3 | C107: 3 | D107: 5 | E107: Burrow filling | F107: 3.652464682 | G107: 0.2153878813 | H107: 1.191409075 | I107: 0.8176141797 | J107: 0.8496394366 | K107: 1.468095352 | L107: 0.1433208184 | N107: FALSE | P107: FALSE | Q107: FALSE | R107: FALSE | S107: FALSE | T107: FALSE | U107: FALSE | V107: FALSE | X107: 0 | Y107: FALSE | Z107: 0 | AA107: TRUE
A108: 16 | B108: 3 | C108: 4 | D108: 4 | E108: Drainage replacement | F108: 3.652464682 | G108: 0.2153878813 | H108: 1.191409075 | I108: 0.8176141797 | J108: 0.8496394366 | K108: 1.468095352 | L108: 0.1433208184 | N108: FALSE | P108: FALSE | Q108: FALSE | R108: FALSE | S108: FALSE | T108: FALSE | U108: FALSE | V108: FALSE | X108: 0 | Y108: FALSE | Z108: 0 | AA108: TRUE
A109: 16 | B109: 3 | C109: 5 | D109: 3 | E109: Drainage repair | F109: 3.652464682 | G109: 0.2153878813 | H109: 1.191409075 | I109: 0.8176141797 | J109: 0.8496394366 | K109: 1.468095352 | L109: 0.1433208184 | N109: FALSE | P109: FALSE | Q109: FALSE | R109: FALSE | S109: FALSE | T109: FALSE | U109: FALSE | V109: FALSE | X109: 0 | Y109: FALSE | Z109: 0 | AA109: TRUE
A110: 16 | B110: 3 | C110: 6 | D110: 2 | E110: Drainage clearance | F110: 3.652464682 | G110: 0.2153878813 | H110: 1.191409075 | I110: 0.8176141797 | J110: 0.8496394366 | K110: 1.468095352 | L110: 0.1433208184 | N110: FALSE | P110: FALSE | Q110: FALSE | R110: FALSE | S110: FALSE | T110: FALSE | U110: FALSE | V110: FALSE | X110: 0 | Y110: FALSE | Z110: 0 | AA110: TRUE
A111: 16 | B111: 3 | C111: 7 | D111: 1 | E111: Vegetation clearance | F111: 3.652464682 | G111: 0.2153878813 | H111: 1.191409075 | I111: 0.8176141797 | J111: 0.8496394366 | K111: 1.468095352 | L111: 0.1433208184 | N111: FALSE | P111: FALSE | Q111: FALSE | R111: FALSE | S111: FALSE | T111: FALSE | U111: FALSE | V111: FALSE | X111: 0 | Y111: FALSE | Z111: 0 | AA111: TRUE
A112: 16 | B112: 3 | C112: 8 | D112: 0 | E112: [not used] | F112: 3.652464682 | G112: 0.2153878813 | H112: 1.191409075 | I112: 0.8176141797 | J112: 0.8496394366 | K112: 1.468095352 | L112: 0.1433208184 | N112: FALSE | P112: FALSE | Q112: FALSE | R112: FALSE | S112: FALSE | T112: FALSE | U112: FALSE | V112: FALSE | X112: 0 | Y112: FALSE | Z112: 0 | AA112: TRUE
A113: 16 | B113: 3 | C113: 9 | D113: 0 | E113: [not used] | F113: 3.652464682 | G113: 0.2153878813 | H113: 1.191409075 | I113: 0.8176141797 | J113: 0.8496394366 | K113: 1.468095352 | L113: 0.1433208184 | N113: FALSE | P113: FALSE | Q113: FALSE | R113: FALSE | S113: FALSE | T113: FALSE | U113: FALSE | V113: FALSE | X113: 0 | Y113: FALSE | Z113: 0 | AA113: TRUE
A114: 16 | B114: 3 | C114: 10 | D114: 0 | E114: [not used] | F114: 3.652464682 | G114: 0.2153878813 | H114: 1.191409075 | I114: 0.8176141797 | J114: 0.8496394366 | K114: 1.468095352 | L114: 0.1433208184 | N114: FALSE | P114: FALSE | Q114: FALSE | R114: FALSE | S114: FALSE | T114: FALSE | U114: FALSE | V114: FALSE | X114: 0 | Y114: FALSE | Z114: 0 | AA114: TRUE
A115: 16 | B115: 3 | C115: 11 | D115: 0 | E115: [not used] | F115: 3.652464682 | G115: 0.2153878813 | H115: 1.191409075 | I115: 0.8176141797 | J115: 0.8496394366 | K115: 1.468095352 | L115: 0.1433208184 | N115: FALSE | P115: FALSE | Q115: FALSE | R115: FALSE | S115: FALSE | T115: FALSE | U115: FALSE | V115: FALSE | X115: 0 | Y115: FALSE | Z115: 0 | AA115: TRUE
A116: 16 | B116: 3 | C116: 12 | D116: 0 | E116: [not used] | F116: 3.652464682 | G116: 0.2153878813 | H116: 1.191409075 | I116: 0.8176141797 | J116: 0.8496394366 | K116: 1.468095352 | L116: 0.1433208184 | N116: FALSE | P116: FALSE | Q116: FALSE | R116: FALSE | S116: FALSE | T116: FALSE | U116: FALSE | V116: FALSE | X116: 0 | Y116: FALSE | Z116: 0 | AA116: TRUE
A117: 16 | B117: 3 | C117: 13 | D117: 0 | E117: [not used] | F117: 3.652464682 | G117: 0.2153878813 | H117: 1.191409075 | I117: 0.8176141797 | J117: 0.8496394366 | K117: 1.468095352 | L117: 0.1433208184 | N117: FALSE | P117: FALSE | Q117: FALSE | R117: FALSE | S117: FALSE | T117: FALSE | U117: FALSE | V117: FALSE | X117: 0 | Y117: FALSE | Z117: 0 | AA117: TRUE
A118: 16 | B118: 3 | C118: 14 | D118: 0 | E118: [not used] | F118: 3.652464682 | G118: 0.2153878813 | H118: 1.191409075 | I118: 0.8176141797 | J118: 0.8496394366 | K118: 1.468095352 | L118: 0.1433208184 | N118: FALSE | P118: FALSE | Q118: FALSE | R118: FALSE | S118: FALSE | T118: FALSE | U118: FALSE | V118: FALSE | X118: 0 | Y118: FALSE | Z118: 0 | AA118: TRUE
A119: 16 | B119: 3 | C119: 15 | D119: 0 | E119: [not used] | F119: 3.652464682 | G119: 0.2153878813 | H119: 1.191409075 | I119: 0.8176141797 | J119: 0.8496394366 | K119: 1.468095352 | L119: 0.1433208184 | N119: FALSE | P119: FALSE | Q119: FALSE | R119: FALSE | S119: FALSE | T119: FALSE | U119: FALSE | V119: FALSE | X119: 0 | Y119: FALSE | Z119: 0 | AA119: TRUE
B120: =B105+1 -> 4 | C120: 2 | E120: =E104 -> Unconstrained deterioration | F120: 4.355474534 | G120: =MAX(G$8,MIN(G$9,G119+INDEX(OFFSET(DetRates!N$17:N$23,0,DetRates!$D$10),MATCH(G119,DetRates!G$17:G$23,1),1))) -> 0.2871838417 | H120: =MAX(H$8,MIN(H$9,H119+INDEX(OFFSET(DetRates!O$17:O$23,0,DetRates!$D$10),MATCH(H119,DetRates!H$17:H$23,1),1))) -> 1.220420447 | I120: =MAX(I$8,MIN(I$9,I119+INDEX(OFFSET(DetRates!P$17:P$23,0,DetRates!$D$10),MATCH(I119,DetRates!I$17:I$23,1),1))) -> 1.09015224 | J120: =MAX(J$8,MIN(J$9,J119+INDEX(OFFSET(DetRates!Q$17:Q$23,0,DetRates!$D$10),MATCH(J119,DetRates!J$17:J$23,1),1))) -> 0.9661859155 | K120: =MAX(K$8,MIN(K$9,K119+INDEX(OFFSET(DetRates!R$17:R$23,0,DetRates!$D$10),MATCH(K119,DetRates!K$17:K$23,1),1))) -> 1.853807423 | L120: =MAX(L$8,MIN(L$9,L119+INDEX(OFFSET(DetRates!S$17:S$23,0,DetRates!$D$10),MATCH(L119,DetRates!L$17:L$23,1),1))) -> 0.1910944245
A121: =(B121-2)*A$71 -> 32 | B121: =B105+1 -> 4 | C121: 1 | D121: 7 | E121: Major earthworks | F121: 4.355474534 | G121: =IF($N121,MAX(G$8,MIN(G$9,CHOOSE(OFFSET(G$15,$C121,0),G120,OFFSET(G$32,$C121,0),G120+OFFSET(G$50,$C121,0)))),G120) -> 0.2871838417 | H121: =IF($N121,MAX(H$8,MIN(H$9,CHOOSE(OFFSET(H$15,$C121,0),H120,OFFSET(H$32,$C121,0),H120+OFFSET(H$50,$C121,0)))),H120) -> 1.220420447 | I121: =IF($N121,MAX(I$8,MIN(I$9,CHOOSE(OFFSET(I$15,$C121,0),I120,OFFSET(I$32,$C121,0),I120+OFFSET(I$50,$C121,0)))),I120) -> 1.09015224 | J121: =IF($N121,MAX(J$8,MIN(J$9,CHOOSE(OFFSET(J$15,$C121,0),J120,OFFSET(J$32,$C121,0),J120+OFFSET(J$50,$C121,0)))),J120) -> 0.9661859155 | K121: =IF($N121,MAX(K$8,MIN(K$9,CHOOSE(OFFSET(K$15,$C121,0),K120,OFFSET(K$32,$C121,0),K120+OFFSET(K$50,$C121,0)))),K120) -> 1.853807423 | L121: =IF($N121,MAX(L$8,MIN(L$9,CHOOSE(OFFSET(L$15,$C121,0),L120,OFFSET(L$32,$C121,0),L120+OFFSET(L$50,$C121,0)))),L120) -> 0.1910944245 | N121: =AND(OR(P121:V121),AA121) -> FALSE | P121: =CHOOSE(OFFSET(P$15,$C121,0),FALSE,F120>=OFFSET(P$32,$C121,0),(OFFSET($W$50,$C121,$B121))) -> FALSE | Q121: =CHOOSE(OFFSET(Q$15,$C121,0),FALSE,G120>=OFFSET(Q$32,$C121,0),(OFFSET($W$50,$C121,$B121))) -> FALSE | R121: =CHOOSE(OFFSET(R$15,$C121,0),FALSE,H120>=OFFSET(R$32,$C121,0),(OFFSET($W$50,$C121,$B121))) -> FALSE | S121: =CHOOSE(OFFSET(S$15,$C121,0),FALSE,I120>=OFFSET(S$32,$C121,0),(OFFSET($W$50,$C121,$B121))) -> FALSE | T121: =CHOOSE(OFFSET(T$15,$C121,0),FALSE,J120>=OFFSET(T$32,$C121,0),(OFFSET($W$50,$C121,$B121))) -> FALSE | U121: =CHOOSE(OFFSET(U$15,$C121,0),FALSE,K120>=OFFSET(U$32,$C121,0),(OFFSET($W$50,$C121,$B121))) -> FALSE | V121: =CHOOSE(OFFSET(V$15,$C121,0),FALSE,L120>=OFFSET(V$32,$C121,0),(OFFSET($W$50,$C121,$B121))) -> FALSE | X121: =0+N121 -> 0 | Y121: =MMULT(OFFSET($AB$15:$AP$15,$C121,0),OFFSET($X$73:$X$87,$A121,0))>0 -> FALSE | Z121: =IF(Y121,0,Z105+X105) -> 0 | AA121: =Z121<OFFSET(Z$15,C121,0) -> TRUE
A122: 32 | B122: 4 | C122: =C106 -> 2 | D122: 6 | E122: Minor earthworks | F122: 4.355474534 | G122: 0.2871838417 | H122: 1.220420447 | I122: 1.09015224 | J122: 0.9661859155 | K122: 1.853807423 | L122: 0.1910944245 | N122: FALSE | P122: FALSE | Q122: FALSE | R122: FALSE | S122: FALSE | T122: FALSE | U122: FALSE | V122: FALSE | X122: 0 | Y122: =MMULT(OFFSET($AB$15:$AP$15,$C122,0),OFFSET($X$73:$X$87,$A122,0))>0 -> FALSE | Z122: 0 | AA122: TRUE
A123: 32 | B123: 4 | C123: 3 | D123: 5 | E123: Burrow filling | F123: 2.501667111 | G123: 0.2871838417 | H123: 1.220420447 | I123: 1.09015224 | J123: 0.9661859155 | K123: 0 | L123: 0.1910944245 | N123: TRUE | P123: FALSE | Q123: FALSE | R123: FALSE | S123: FALSE | T123: FALSE | U123: TRUE | V123: FALSE | X123: 1 | Y123: FALSE | Z123: 0 | AA123: TRUE
A124: 32 | B124: 4 | C124: 4 | D124: 4 | E124: Drainage replacement | F124: 2.501667111 | G124: 0.2871838417 | H124: 1.220420447 | I124: 1.09015224 | J124: 0.9661859155 | K124: 0 | L124: 0.1910944245 | N124: FALSE | P124: FALSE | Q124: FALSE | R124: FALSE | S124: FALSE | T124: FALSE | U124: FALSE | V124: FALSE | X124: 0 | Y124: FALSE | Z124: 0 | AA124: TRUE
A125: 32 | B125: 4 | C125: 5 | D125: 3 | E125: Drainage repair | F125: 2.501667111 | G125: 0.2871838417 | H125: 1.220420447 | I125: 1.09015224 | J125: 0.9661859155 | K125: 0 | L125: 0.1910944245 | N125: FALSE | P125: FALSE | Q125: FALSE | R125: FALSE | S125: FALSE | T125: FALSE | U125: FALSE | V125: FALSE | X125: 0 | Y125: FALSE | Z125: 0 | AA125: TRUE
A126: 32 | B126: 4 | C126: 6 | D126: 2 | E126: Drainage clearance | F126: 2.501667111 | G126: 0.2871838417 | H126: 1.220420447 | I126: 1.09015224 | J126: 0.9661859155 | K126: 0 | L126: 0.1910944245 | N126: FALSE | P126: FALSE | Q126: FALSE | R126: FALSE | S126: FALSE | T126: FALSE | U126: FALSE | V126: FALSE | X126: 0 | Y126: FALSE | Z126: 0 | AA126: TRUE
A127: 32 | B127: 4 | C127: 7 | D127: 1 | E127: Vegetation clearance | F127: 2.501667111 | G127: 0.2871838417 | H127: 1.220420447 | I127: 1.09015224 | J127: 0.9661859155 | K127: 0 | L127: 0.1910944245 | N127: FALSE | P127: FALSE | Q127: FALSE | R127: FALSE | S127: FALSE | T127: FALSE | U127: FALSE | V127: FALSE | X127: 0 | Y127: FALSE | Z127: 0 | AA127: TRUE
A128: 32 | B128: 4 | C128: 8 | D128: 0 | E128: [not used] | F128: 2.501667111 | G128: 0.2871838417 | H128: 1.220420447 | I128: 1.09015224 | J128: 0.9661859155 | K128: 0 | L128: 0.1910944245 | N128: FALSE | P128: FALSE | Q128: FALSE | R128: FALSE | S128: FALSE | T128: FALSE | U128: FALSE | V128: FALSE | X128: 0 | Y128: FALSE | Z128: 0 | AA128: TRUE
A129: 32 | B129: 4 | C129: 9 | D129: 0 | E129: [not used] | F129: 2.501667111 | G129: 0.2871838417 | H129: 1.220420447 | I129: 1.09015224 | J129: 0.9661859155 | K129: 0 | L129: 0.1910944245 | N129: FALSE | P129: FALSE | Q129: FALSE | R129: FALSE | S129: FALSE | T129: FALSE | U129: FALSE | V129: FALSE | X129: 0 | Y129: FALSE | Z129: 0 | AA129: TRUE
A130: 32 | B130: 4 | C130: 10 | D130: 0 | E130: [not used] | F130: 2.501667111 | G130: 0.2871838417 | H130: 1.220420447 | I130: 1.09015224 | J130: 0.9661859155 | K130: 0 | L130: 0.1910944245 | N130: FALSE | P130: FALSE | Q130: FALSE | R130: FALSE | S130: FALSE | T130: FALSE | U130: FALSE | V130: FALSE | X130: 0 | Y130: FALSE | Z130: 0 | AA130: TRUE
A131: 32 | B131: 4 | C131: 11 | D131: 0 | E131: [not used] | F131: 2.501667111 | G131: 0.2871838417 | H131: 1.220420447 | I131: 1.09015224 | J131: 0.9661859155 | K131: 0 | L131: 0.1910944245 | N131: FALSE | P131: FALSE | Q131: FALSE | R131: FALSE | S131: FALSE | T131: FALSE | U131: FALSE | V131: FALSE | X131: 0 | Y131: FALSE | Z131: 0 | AA131: TRUE
A132: 32 | B132: 4 | C132: 12 | D132: 0 | E132: [not used] | F132: 2.501667111 | G132: 0.2871838417 | H132: 1.220420447 | I132: 1.09015224 | J132: 0.9661859155 | K132: 0 | L132: 0.1910944245 | N132: FALSE | P132: FALSE | Q132: FALSE | R132: FALSE | S132: FALSE | T132: FALSE | U132: FALSE | V132: FALSE | X132: 0 | Y132: FALSE | Z132: 0 | AA132: TRUE
A133: 32 | B133: 4 | C133: 13 | D133: 0 | E133: [not used] | F133: 2.501667111 | G133: 0.2871838417 | H133: 1.220420447 | I133: 1.09015224 | J133: 0.9661859155 | K133: 0 | L133: 0.1910944245 | N133: FALSE | P133: FALSE | Q133: FALSE | R133: FALSE | S133: FALSE | T133: FALSE | U133: FALSE | V133: FALSE | X133: 0 | Y133: FALSE | Z133: 0 | AA133: TRUE
A134: 32 | B134: 4 | C134: 14 | D134: 0 | E134: [not used] | F134: 2.501667111 | G134: 0.2871838417 | H134: 1.220420447 | I134: 1.09015224 | J134: 0.9661859155 | K134: 0 | L134: 0.1910944245 | N134: FALSE | P134: FALSE | Q134: FALSE | R134: FALSE | S134: FALSE | T134: FALSE | U134: FALSE | V134: FALSE | X134: 0 | Y134: FALSE | Z134: 0 | AA134: TRUE
A135: 32 | B135: 4 | C135: 15 | D135: 0 | E135: [not used] | F135: 2.501667111 | G135: 0.2871838417 | H135: 1.220420447 | I135: 1.09015224 | J135: 0.9661859155 | K135: 0 | L135: 0.1910944245 | N135: FALSE | P135: FALSE | Q135: FALSE | R135: FALSE | S135: FALSE | T135: FALSE | U135: FALSE | V135: FALSE | X135: 0 | Y135: FALSE | Z135: 0 | AA135: TRUE
B136: =B121+1 -> 5 | C136: 3 | E136: =E120 -> Unconstrained deterioration | F136: 3.618130272 | G136: =MAX(G$8,MIN(G$9,G135+INDEX(OFFSET(DetRates!N$17:N$23,0,DetRates!$D$10),MATCH(G135,DetRates!G$17:G$23,1),1))) -> 0.3589798021 | H136: =MAX(H$8,MIN(H$9,H135+INDEX(OFFSET(DetRates!O$17:O$23,0,DetRates!$D$10),MATCH(H135,DetRates!H$17:H$23,1),1))) -> 1.24943182 | I136: =MAX(I$8,MIN(I$9,I135+INDEX(OFFSET(DetRates!P$17:P$23,0,DetRates!$D$10),MATCH(I135,DetRates!I$17:I$23,1),1))) -> 1.640465304 | J136: =MAX(J$8,MIN(J$9,J135+INDEX(OFFSET(DetRates!Q$17:Q$23,0,DetRates!$D$10),MATCH(J135,DetRates!J$17:J$23,1),1))) -> 1.082732394 | K136: =MAX(K$8,MIN(K$9,K135+INDEX(OFFSET(DetRates!R$17:R$23,0,DetRates!$D$10),MATCH(K135,DetRates!K$17:K$23,1),1))) -> 0.4893651175 | L136: =MAX(L$8,MIN(L$9,L135+INDEX(OFFSET(DetRates!S$17:S$23,0,DetRates!$D$10),MATCH(L135,DetRates!L$17:L$23,1),1))) -> 0.2388680306
A137: =(B137-2)*A$71 -> 48 | B137: =B121+1 -> 5 | C137: 1 | D137: 7 | E137: Major earthworks | F137: 3.618130272 | G137: =IF($N137,MAX(G$8,MIN(G$9,CHOOSE(OFFSET(G$15,$C137,0),G136,OFFSET(G$32,$C137,0),G136+OFFSET(G$50,$C137,0)))),G136) -> 0.3589798021 | H137: =IF($N137,MAX(H$8,MIN(H$9,CHOOSE(OFFSET(H$15,$C137,0),H136,OFFSET(H$32,$C137,0),H136+OFFSET(H$50,$C137,0)))),H136) -> 1.24943182 | I137: =IF($N137,MAX(I$8,MIN(I$9,CHOOSE(OFFSET(I$15,$C137,0),I136,OFFSET(I$32,$C137,0),I136+OFFSET(I$50,$C137,0)))),I136) -> 1.640465304 | J137: =IF($N137,MAX(J$8,MIN(J$9,CHOOSE(OFFSET(J$15,$C137,0),J136,OFFSET(J$32,$C137,0),J136+OFFSET(J$50,$C137,0)))),J136) -> 1.082732394 | K137: =IF($N137,MAX(K$8,MIN(K$9,CHOOSE(OFFSET(K$15,$C137,0),K136,OFFSET(K$32,$C137,0),K136+OFFSET(K$50,$C137,0)))),K136) -> 0.4893651175 | L137: =IF($N137,MAX(L$8,MIN(L$9,CHOOSE(OFFSET(L$15,$C137,0),L136,OFFSET(L$32,$C137,0),L136+OFFSET(L$50,$C137,0)))),L136) -> 0.2388680306 | N137: =AND(OR(P137:V137),AA137) -> FALSE | P137: =CHOOSE(OFFSET(P$15,$C137,0),FALSE,F136>=OFFSET(P$32,$C137,0),(OFFSET($W$50,$C137,$B137))) -> FALSE | Q137: =CHOOSE(OFFSET(Q$15,$C137,0),FALSE,G136>=OFFSET(Q$32,$C137,0),(OFFSET($W$50,$C137,$B137))) -> FALSE | R137: =CHOOSE(OFFSET(R$15,$C137,0),FALSE,H136>=OFFSET(R$32,$C137,0),(OFFSET($W$50,$C137,$B137))) -> FALSE | S137: =CHOOSE(OFFSET(S$15,$C137,0),FALSE,I136>=OFFSET(S$32,$C137,0),(OFFSET($W$50,$C137,$B137))) -> FALSE | T137: =CHOOSE(OFFSET(T$15,$C137,0),FALSE,J136>=OFFSET(T$32,$C137,0),(OFFSET($W$50,$C137,$B137))) -> FALSE | U137: =CHOOSE(OFFSET(U$15,$C137,0),FALSE,K136>=OFFSET(U$32,$C137,0),(OFFSET($W$50,$C137,$B137))) -> FALSE | V137: =CHOOSE(OFFSET(V$15,$C137,0),FALSE,L136>=OFFSET(V$32,$C137,0),(OFFSET($W$50,$C137,$B137))) -> FALSE | X137: =0+N137 -> 0 | Y137: =MMULT(OFFSET($AB$15:$AP$15,$C137,0),OFFSET($X$73:$X$87,$A137,0))>0 -> FALSE | Z137: =IF(Y137,0,Z121+X121) -> 0 | AA137: =Z137<OFFSET(Z$15,C137,0) -> TRUE
A138: 48 | B138: 5 | C138: =C122 -> 2 | D138: 6 | E138: Minor earthworks | F138: 3.618130272 | G138: 0.3589798021 | H138: 1.24943182 | I138: 1.640465304 | J138: 1.082732394 | K138: 0.4893651175 | L138: 0.2388680306 | N138: FALSE | P138: FALSE | Q138: FALSE | R138: FALSE | S138: FALSE | T138: FALSE | U138: FALSE | V138: FALSE | X138: 0 | Y138: =MMULT(OFFSET($AB$15:$AP$15,$C138,0),OFFSET($X$73:$X$87,$A138,0))>0 -> FALSE | Z138: 0 | AA138: TRUE
A139: 48 | B139: 5 | C139: 3 | D139: 5 | E139: Burrow filling | F139: 3.618130272 | G139: 0.3589798021 | H139: 1.24943182 | I139: 1.640465304 | J139: 1.082732394 | K139: 0.4893651175 | L139: 0.2388680306 | N139: FALSE | P139: FALSE | Q139: FALSE | R139: FALSE | S139: FALSE | T139: FALSE | U139: FALSE | V139: FALSE | X139: 0 | Y139: FALSE | Z139: 1 | AA139: TRUE
A140: 48 | B140: 5 | C140: 4 | D140: 4 | E140: Drainage replacement | F140: 3.618130272 | G140: 0.3589798021 | H140: 1.24943182 | I140: 1.640465304 | J140: 1.082732394 | K140: 0.4893651175 | L140: 0.2388680306 | N140: FALSE | P140: FALSE | Q140: FALSE | R140: FALSE | S140: FALSE | T140: FALSE | U140: FALSE | V140: FALSE | X140: 0 | Y140: FALSE | Z140: 0 | AA140: TRUE
A141: 48 | B141: 5 | C141: 5 | D141: 3 | E141: Drainage repair | F141: 2.618130272 | G141: 0.3589798021 | H141: 1.24943182 | I141: 0.6404653043 | J141: -0.5 | K141: 0.4893651175 | L141: 0.2388680306 | N141: TRUE | P141: FALSE | Q141: FALSE | R141: FALSE | S141: TRUE | T141: FALSE | U141: FALSE | V141: FALSE | X141: 1 | Y141: FALSE | Z141: 0 | AA141: TRUE
A142: 48 | B142: 5 | C142: 6 | D142: 2 | E142: Drainage clearance | F142: 2.477664968 | G142: 0.3589798021 | H142: 1.24943182 | I142: 0.1404653043 | J142: 0.5 | K142: 0.4893651175 | L142: 0.2388680306 | N142: TRUE | P142: TRUE | Q142: TRUE | R142: TRUE | S142: TRUE | T142: TRUE | U142: TRUE | V142: TRUE | X142: 1 | Y142: FALSE | Z142: 0 | AA142: TRUE
A143: 48 | B143: 5 | C143: 7 | D143: 1 | E143: Vegetation clearance | F143: 2.477664968 | G143: 0.3589798021 | H143: 1.24943182 | I143: 0.1404653043 | J143: 0.5 | K143: 0.4893651175 | L143: 0.2388680306 | N143: FALSE | P143: FALSE | Q143: FALSE | R143: FALSE | S143: FALSE | T143: FALSE | U143: FALSE | V143: FALSE | X143: 0 | Y143: FALSE | Z143: 0 | AA143: TRUE
A144: 48 | B144: 5 | C144: 8 | D144: 0 | E144: [not used] | F144: 2.477664968 | G144: 0.3589798021 | H144: 1.24943182 | I144: 0.1404653043 | J144: 0.5 | K144: 0.4893651175 | L144: 0.2388680306 | N144: FALSE | P144: FALSE | Q144: FALSE | R144: FALSE | S144: FALSE | T144: FALSE | U144: FALSE | V144: FALSE | X144: 0 | Y144: FALSE | Z144: 0 | AA144: TRUE
A145: 48 | B145: 5 | C145: 9 | D145: 0 | E145: [not used] | F145: 2.477664968 | G145: 0.3589798021 | H145: 1.24943182 | I145: 0.1404653043 | J145: 0.5 | K145: 0.4893651175 | L145: 0.2388680306 | N145: FALSE | P145: FALSE | Q145: FALSE | R145: FALSE | S145: FALSE | T145: FALSE | U145: FALSE | V145: FALSE | X145: 0 | Y145: FALSE | Z145: 0 | AA145: TRUE
A146: 48 | B146: 5 | C146: 10 | D146: 0 | E146: [not used] | F146: 2.477664968 | G146: 0.3589798021 | H146: 1.24943182 | I146: 0.1404653043 | J146: 0.5 | K146: 0.4893651175 | L146: 0.2388680306 | N146: FALSE | P146: FALSE | Q146: FALSE | R146: FALSE | S146: FALSE | T146: FALSE | U146: FALSE | V146: FALSE | X146: 0 | Y146: FALSE | Z146: 0 | AA146: TRUE
A147: 48 | B147: 5 | C147: 11 | D147: 0 | E147: [not used] | F147: 2.477664968 | G147: 0.3589798021 | H147: 1.24943182 | I147: 0.1404653043 | J147: 0.5 | K147: 0.4893651175 | L147: 0.2388680306 | N147: FALSE | P147: FALSE | Q147: FALSE | R147: FALSE | S147: FALSE | T147: FALSE | U147: FALSE | V147: FALSE | X147: 0 | Y147: FALSE | Z147: 0 | AA147: TRUE
A148: 48 | B148: 5 | C148: 12 | D148: 0 | E148: [not used] | F148: 2.477664968 | G148: 0.3589798021 | H148: 1.24943182 | I148: 0.1404653043 | J148: 0.5 | K148: 0.4893651175 | L148: 0.2388680306 | N148: FALSE | P148: FALSE | Q148: FALSE | R148: FALSE | S148: FALSE | T148: FALSE | U148: FALSE | V148: FALSE | X148: 0 | Y148: FALSE | Z148: 0 | AA148: TRUE
A149: 48 | B149: 5 | C149: 13 | D149: 0 | E149: [not used] | F149: 2.477664968 | G149: 0.3589798021 | H149: 1.24943182 | I149: 0.1404653043 | J149: 0.5 | K149: 0.4893651175 | L149: 0.2388680306 | N149: FALSE | P149: FALSE | Q149: FALSE | R149: FALSE | S149: FALSE | T149: FALSE | U149: FALSE | V149: FALSE | X149: 0 | Y149: FALSE | Z149: 0 | AA149: TRUE
A150: 48 | B150: 5 | C150: 14 | D150: 0 | E150: [not used] | F150: 2.477664968 | G150: 0.3589798021 | H150: 1.24943182 | I150: 0.1404653043 | J150: 0.5 | K150: 0.4893651175 | L150: 0.2388680306 | N150: FALSE | P150: FALSE | Q150: FALSE | R150: FALSE | S150: FALSE | T150: FALSE | U150: FALSE | V150: FALSE | X150: 0 | Y150: FALSE | Z150: 0 | AA150: TRUE
A151: 48 | B151: 5 | C151: 15 | D151: 0 | E151: [not used] | F151: 2.477664968 | G151: 0.3589798021 | H151: 1.24943182 | I151: 0.1404653043 | J151: 0.5 | K151: 0.4893651175 | L151: 0.2388680306 | N151: FALSE | P151: FALSE | Q151: FALSE | R151: FALSE | S151: FALSE | T151: FALSE | U151: FALSE | V151: FALSE | X151: 0 | Y151: FALSE | Z151: 0 | AA151: TRUE
B152: =B137+1 -> 6 | C152: 4 | E152: =E136 -> Unconstrained deterioration | F152: 3.160361543 | G152: =MAX(G$8,MIN(G$9,G151+INDEX(OFFSET(DetRates!N$17:N$23,0,DetRates!$D$10),MATCH(G151,DetRates!G$17:G$23,1),1))) -> 0.4307757626 | H152: =MAX(H$8,MIN(H$9,H151+INDEX(OFFSET(DetRates!O$17:O$23,0,DetRates!$D$10),MATCH(H151,DetRates!H$17:H$23,1),1))) -> 1.278443193 | I152: =MAX(I$8,MIN(I$9,I151+INDEX(OFFSET(DetRates!P$17:P$23,0,DetRates!$D$10),MATCH(I151,DetRates!I$17:I$23,1),1))) -> 0.4130033642 | J152: =MAX(J$8,MIN(J$9,J151+INDEX(OFFSET(DetRates!Q$17:Q$23,0,DetRates!$D$10),MATCH(J151,DetRates!J$17:J$23,1),1))) -> 0.6165464789 | K152: =MAX(K$8,MIN(K$9,K151+INDEX(OFFSET(DetRates!R$17:R$23,0,DetRates!$D$10),MATCH(K151,DetRates!K$17:K$23,1),1))) -> 0.978730235 | L152: =MAX(L$8,MIN(L$9,L151+INDEX(OFFSET(DetRates!S$17:S$23,0,DetRates!$D$10),MATCH(L151,DetRates!L$17:L$23,1),1))) -> 0.2866416368
A153: =(B153-2)*A$71 -> 64 | B153: =B137+1 -> 6 | C153: 1 | D153: 7 | E153: Major earthworks | F153: 3.160361543 | G153: =IF($N153,MAX(G$8,MIN(G$9,CHOOSE(OFFSET(G$15,$C153,0),G152,OFFSET(G$32,$C153,0),G152+OFFSET(G$50,$C153,0)))),G152) -> 0.4307757626 | H153: =IF($N153,MAX(H$8,MIN(H$9,CHOOSE(OFFSET(H$15,$C153,0),H152,OFFSET(H$32,$C153,0),H152+OFFSET(H$50,$C153,0)))),H152) -> 1.278443193 | I153: =IF($N153,MAX(I$8,MIN(I$9,CHOOSE(OFFSET(I$15,$C153,0),I152,OFFSET(I$32,$C153,0),I152+OFFSET(I$50,$C153,0)))),I152) -> 0.4130033642 | J153: =IF($N153,MAX(J$8,MIN(J$9,CHOOSE(OFFSET(J$15,$C153,0),J152,OFFSET(J$32,$C153,0),J152+OFFSET(J$50,$C153,0)))),J152) -> 0.6165464789 | K153: =IF($N153,MAX(K$8,MIN(K$9,CHOOSE(OFFSET(K$15,$C153,0),K152,OFFSET(K$32,$C153,0),K152+OFFSET(K$50,$C153,0)))),K152) -> 0.978730235 | L153: =IF($N153,MAX(L$8,MIN(L$9,CHOOSE(OFFSET(L$15,$C153,0),L152,OFFSET(L$32,$C153,0),L152+OFFSET(L$50,$C153,0)))),L152) -> 0.2866416368 | N153: =AND(OR(P153:V153),AA153) -> FALSE | P153: =CHOOSE(OFFSET(P$15,$C153,0),FALSE,F152>=OFFSET(P$32,$C153,0),(OFFSET($W$50,$C153,$B153))) -> FALSE | Q153: =CHOOSE(OFFSET(Q$15,$C153,0),FALSE,G152>=OFFSET(Q$32,$C153,0),(OFFSET($W$50,$C153,$B153))) -> FALSE | R153: =CHOOSE(OFFSET(R$15,$C153,0),FALSE,H152>=OFFSET(R$32,$C153,0),(OFFSET($W$50,$C153,$B153))) -> FALSE | S153: =CHOOSE(OFFSET(S$15,$C153,0),FALSE,I152>=OFFSET(S$32,$C153,0),(OFFSET($W$50,$C153,$B153))) -> FALSE | T153: =CHOOSE(OFFSET(T$15,$C153,0),FALSE,J152>=OFFSET(T$32,$C153,0),(OFFSET($W$50,$C153,$B153))) -> FALSE | U153: =CHOOSE(OFFSET(U$15,$C153,0),FALSE,K152>=OFFSET(U$32,$C153,0),(OFFSET($W$50,$C153,$B153))) -> FALSE | V153: =CHOOSE(OFFSET(V$15,$C153,0),FALSE,L152>=OFFSET(V$32,$C153,0),(OFFSET($W$50,$C153,$B153))) -> FALSE | X153: =0+N153 -> 0 | Y153: =MMULT(OFFSET($AB$15:$AP$15,$C153,0),OFFSET($X$73:$X$87,$A153,0))>0 -> FALSE | Z153: =IF(Y153,0,Z137+X137) -> 0 | AA153: =Z153<OFFSET(Z$15,C153,0) -> TRUE
A154: 64 | B154: 6 | C154: =C138 -> 2 | D154: 6 | E154: Minor earthworks | F154: 3.160361543 | G154: 0.4307757626 | H154: 1.278443193 | I154: 0.4130033642 | J154: 0.6165464789 | K154: 0.978730235 | L154: 0.2866416368 | N154: FALSE | P154: FALSE | Q154: FALSE | R154: FALSE | S154: FALSE | T154: FALSE | U154: FALSE | V154: FALSE | X154: 0 | Y154: =MMULT(OFFSET($AB$15:$AP$15,$C154,0),OFFSET($X$73:$X$87,$A154,0))>0 -> FALSE | Z154: 0 | AA154: TRUE
A155: 64 | B155: 6 | C155: 3 | D155: 5 | E155: Burrow filling | F155: 3.160361543 | G155: 0.4307757626 | H155: 1.278443193 | I155: 0.4130033642 | J155: 0.6165464789 | K155: 0.978730235 | L155: 0.2866416368 | N155: FALSE | P155: FALSE | Q155: FALSE | R155: FALSE | S155: FALSE | T155: FALSE | U155: FALSE | V155: FALSE | X155: 0 | Y155: FALSE | Z155: 1 | AA155: TRUE
A156: 64 | B156: 6 | C156: 4 | D156: 4 | E156: Drainage replacement | F156: 3.160361543 | G156: 0.4307757626 | H156: 1.278443193 | I156: 0.4130033642 | J156: 0.6165464789 | K156: 0.978730235 | L156: 0.2866416368 | N156: FALSE | P156: FALSE | Q156: FALSE | R156: FALSE | S156: FALSE | T156: FALSE | U156: FALSE | V156: FALSE | X156: 0 | Y156: FALSE | Z156: 0 | AA156: TRUE
A157: 64 | B157: 6 | C157: 5 | D157: 3 | E157: Drainage repair | F157: 3.160361543 | G157: 0.4307757626 | H157: 1.278443193 | I157: 0.4130033642 | J157: 0.6165464789 | K157: 0.978730235 | L157: 0.2866416368 | N157: FALSE | P157: FALSE | Q157: FALSE | R157: FALSE | S157: FALSE | T157: FALSE | U157: FALSE | V157: FALSE | X157: 0 | Y157: FALSE | Z157: 1 | AA157: TRUE
A158: 64 | B158: 6 | C158: 6 | D158: 2 | E158: Drainage clearance | F158: 3.160361543 | G158: 0.4307757626 | H158: 1.278443193 | I158: 0.4130033642 | J158: 0.6165464789 | K158: 0.978730235 | L158: 0.2866416368 | N158: FALSE | P158: FALSE | Q158: FALSE | R158: FALSE | S158: FALSE | T158: FALSE | U158: FALSE | V158: FALSE | X158: 0 | Y158: FALSE | Z158: 1 | AA158: TRUE
A159: 64 | B159: 6 | C159: 7 | D159: 1 | E159: Vegetation clearance | F159: 3.160361543 | G159: 0.4307757626 | H159: 1.278443193 | I159: 0.4130033642 | J159: 0.6165464789 | K159: 0.978730235 | L159: 0.2866416368 | N159: FALSE | P159: FALSE | Q159: FALSE | R159: FALSE | S159: FALSE | T159: FALSE | U159: FALSE | V159: FALSE | X159: 0 | Y159: FALSE | Z159: 0 | AA159: TRUE
A160: 64 | B160: 6 | C160: 8 | D160: 0 | E160: [not used] | F160: 3.160361543 | G160: 0.4307757626 | H160: 1.278443193 | I160: 0.4130033642 | J160: 0.6165464789 | K160: 0.978730235 | L160: 0.2866416368 | N160: FALSE | P160: FALSE | Q160: FALSE | R160: FALSE | S160: FALSE | T160: FALSE | U160: FALSE | V160: FALSE | X160: 0 | Y160: FALSE | Z160: 0 | AA160: TRUE
A161: 64 | B161: 6 | C161: 9 | D161: 0 | E161: [not used] | F161: 3.160361543 | G161: 0.4307757626 | H161: 1.278443193 | I161: 0.4130033642 | J161: 0.6165464789 | K161: 0.978730235 | L161: 0.2866416368 | N161: FALSE | P161: FALSE | Q161: FALSE | R161: FALSE | S161: FALSE | T161: FALSE | U161: FALSE | V161: FALSE | X161: 0 | Y161: FALSE | Z161: 0 | AA161: TRUE
A162: 64 | B162: 6 | C162: 10 | D162: 0 | E162: [not used] | F162: 3.160361543 | G162: 0.4307757626 | H162: 1.278443193 | I162: 0.4130033642 | J162: 0.6165464789 | K162: 0.978730235 | L162: 0.2866416368 | N162: FALSE | P162: FALSE | Q162: FALSE | R162: FALSE | S162: FALSE | T162: FALSE | U162: FALSE | V162: FALSE | X162: 0 | Y162: FALSE | Z162: 0 | AA162: TRUE
A163: 64 | B163: 6 | C163: 11 | D163: 0 | E163: [not used] | F163: 3.160361543 | G163: 0.4307757626 | H163: 1.278443193 | I163: 0.4130033642 | J163: 0.6165464789 | K163: 0.978730235 | L163: 0.2866416368 | N163: FALSE | P163: FALSE | Q163: FALSE | R163: FALSE | S163: FALSE | T163: FALSE | U163: FALSE | V163: FALSE | X163: 0 | Y163: FALSE | Z163: 0 | AA163: TRUE
A164: 64 | B164: 6 | C164: 12 | D164: 0 | E164: [not used] | F164: 3.160361543 | G164: 0.4307757626 | H164: 1.278443193 | I164: 0.4130033642 | J164: 0.6165464789 | K164: 0.978730235 | L164: 0.2866416368 | N164: FALSE | P164: FALSE | Q164: FALSE | R164: FALSE | S164: FALSE | T164: FALSE | U164: FALSE | V164: FALSE | X164: 0 | Y164: FALSE | Z164: 0 | AA164: TRUE
A165: 64 | B165: 6 | C165: 13 | D165: 0 | E165: [not used] | F165: 3.160361543 | G165: 0.4307757626 | H165: 1.278443193 | I165: 0.4130033642 | J165: 0.6165464789 | K165: 0.978730235 | L165: 0.2866416368 | N165: FALSE | P165: FALSE | Q165: FALSE | R165: FALSE | S165: FALSE | T165: FALSE | U165: FALSE | V165: FALSE | X165: 0 | Y165: FALSE | Z165: 0 | AA165: TRUE
A166: 64 | B166: 6 | C166: 14 | D166: 0 | E166: [not used] | F166: 3.160361543 | G166: 0.4307757626 | H166: 1.278443193 | I166: 0.4130033642 | J166: 0.6165464789 | K166: 0.978730235 | L166: 0.2866416368 | N166: FALSE | P166: FALSE | Q166: FALSE | R166: FALSE | S166: FALSE | T166: FALSE | U166: FALSE | V166: FALSE | X166: 0 | Y166: FALSE | Z166: 0 | AA166: TRUE
A167: 64 | B167: 6 | C167: 15 | D167: 0 | E167: [not used] | F167: 3.160361543 | G167: 0.4307757626 | H167: 1.278443193 | I167: 0.4130033642 | J167: 0.6165464789 | K167: 0.978730235 | L167: 0.2866416368 | N167: FALSE | P167: FALSE | Q167: FALSE | R167: FALSE | S167: FALSE | T167: FALSE | U167: FALSE | V167: FALSE | X167: 0 | Y167: FALSE | Z167: 0 | AA167: TRUE
B168: =B153+1 -> 7 | C168: 5 | E168: =E152 -> Unconstrained deterioration | F168: 3.843058119 | G168: =MAX(G$8,MIN(G$9,G167+INDEX(OFFSET(DetRates!N$17:N$23,0,DetRates!$D$10),MATCH(G167,DetRates!G$17:G$23,1),1))) -> 0.502571723 | H168: =MAX(H$8,MIN(H$9,H167+INDEX(OFFSET(DetRates!O$17:O$23,0,DetRates!$D$10),MATCH(H167,DetRates!H$17:H$23,1),1))) -> 1.307454565 | I168: =MAX(I$8,MIN(I$9,I167+INDEX(OFFSET(DetRates!P$17:P$23,0,DetRates!$D$10),MATCH(I167,DetRates!I$17:I$23,1),1))) -> 0.6855414241 | J168: =MAX(J$8,MIN(J$9,J167+INDEX(OFFSET(DetRates!Q$17:Q$23,0,DetRates!$D$10),MATCH(J167,DetRates!J$17:J$23,1),1))) -> 0.7330929577 | K168: =MAX(K$8,MIN(K$9,K167+INDEX(OFFSET(DetRates!R$17:R$23,0,DetRates!$D$10),MATCH(K167,DetRates!K$17:K$23,1),1))) -> 1.468095352 | L168: =MAX(L$8,MIN(L$9,L167+INDEX(OFFSET(DetRates!S$17:S$23,0,DetRates!$D$10),MATCH(L167,DetRates!L$17:L$23,1),1))) -> 0.3344152429
A169: =(B169-2)*A$71 -> 80 | B169: =B153+1 -> 7 | C169: 1 | D169: 7 | E169: Major earthworks | F169: =$F$11*(MAX(G169,H169)+MAX(I169,J169)+K169+L169) -> 3.843058119 | G169: =IF($N169,MAX(G$8,MIN(G$9,CHOOSE(OFFSET(G$15,$C169,0),G168,OFFSET(G$32,$C169,0),G168+OFFSET(G$50,$C169,0)))),G168) -> 0.502571723 | H169: =IF($N169,MAX(H$8,MIN(H$9,CHOOSE(OFFSET(H$15,$C169,0),H168,OFFSET(H$32,$C169,0),H168+OFFSET(H$50,$C169,0)))),H168) -> 1.307454565 | I169: =IF($N169,MAX(I$8,MIN(I$9,CHOOSE(OFFSET(I$15,$C169,0),I168,OFFSET(I$32,$C169,0),I168+OFFSET(I$50,$C169,0)))),I168) -> 0.6855414241 | J169: =IF($N169,MAX(J$8,MIN(J$9,CHOOSE(OFFSET(J$15,$C169,0),J168,OFFSET(J$32,$C169,0),J168+OFFSET(J$50,$C169,0)))),J168) -> 0.7330929577 | K169: =IF($N169,MAX(K$8,MIN(K$9,CHOOSE(OFFSET(K$15,$C169,0),K168,OFFSET(K$32,$C169,0),K168+OFFSET(K$50,$C169,0)))),K168) -> 1.468095352 | L169: =IF($N169,MAX(L$8,MIN(L$9,CHOOSE(OFFSET(L$15,$C169,0),L168,OFFSET(L$32,$C169,0),L168+OFFSET(L$50,$C169,0)))),L168) -> 0.3344152429 | N169: =AND(OR(P169:V169),AA169) -> FALSE | P169: =CHOOSE(OFFSET(P$15,$C169,0),FALSE,F168>=OFFSET(P$32,$C169,0),(OFFSET($W$50,$C169,$B169))) -> FALSE | Q169: =CHOOSE(OFFSET(Q$15,$C169,0),FALSE,G168>=OFFSET(Q$32,$C169,0),(OFFSET($W$50,$C169,$B169))) -> FALSE | R169: =CHOOSE(OFFSET(R$15,$C169,0),FALSE,H168>=OFFSET(R$32,$C169,0),(OFFSET($W$50,$C169,$B169))) -> FALSE | S169: =CHOOSE(OFFSET(S$15,$C169,0),FALSE,I168>=OFFSET(S$32,$C169,0),(OFFSET($W$50,$C169,$B169))) -> FALSE | T169: =CHOOSE(OFFSET(T$15,$C169,0),FALSE,J168>=OFFSET(T$32,$C169,0),(OFFSET($W$50,$C169,$B169))) -> FALSE | U169: =CHOOSE(OFFSET(U$15,$C169,0),FALSE,K168>=OFFSET(U$32,$C169,0),(OFFSET($W$50,$C169,$B169))) -> FALSE | V169: =CHOOSE(OFFSET(V$15,$C169,0),FALSE,L168>=OFFSET(V$32,$C169,0),(OFFSET($W$50,$C169,$B169))) -> FALSE | X169: =0+N169 -> 0 | Y169: =MMULT(OFFSET($AB$15:$AP$15,$C169,0),OFFSET($X$73:$X$87,$A169,0))>0 -> FALSE | Z169: =IF(Y169,0,Z153+X153) -> 0 | AA169: =Z169<OFFSET(Z$15,C169,0) -> TRUE
A170: 80 | B170: 7 | C170: =C154 -> 2 | D170: 6 | E170: Minor earthworks | F170: 3.843058119 | G170: 0.502571723 | H170: 1.307454565 | I170: 0.6855414241 | J170: 0.7330929577 | K170: 1.468095352 | L170: 0.3344152429 | N170: FALSE | P170: FALSE | Q170: FALSE | R170: FALSE | S170: FALSE | T170: FALSE | U170: FALSE | V170: FALSE | X170: 0 | Y170: FALSE | Z170: 0 | AA170: TRUE
A171: 80 | B171: 7 | C171: 3 | D171: 5 | E171: Burrow filling | F171: 3.843058119 | G171: 0.502571723 | H171: 1.307454565 | I171: 0.6855414241 | J171: 0.7330929577 | K171: 1.468095352 | L171: 0.3344152429 | N171: FALSE | P171: FALSE | Q171: FALSE | R171: FALSE | S171: FALSE | T171: FALSE | U171: FALSE | V171: FALSE | X171: 0 | Y171: FALSE | Z171: 1 | AA171: TRUE
A172: 80 | B172: 7 | C172: 4 | D172: 4 | E172: Drainage replacement | F172: 3.843058119 | G172: 0.502571723 | H172: 1.307454565 | I172: 0.6855414241 | J172: 0.7330929577 | K172: 1.468095352 | L172: 0.3344152429 | N172: FALSE | P172: FALSE | Q172: FALSE | R172: FALSE | S172: FALSE | T172: FALSE | U172: FALSE | V172: FALSE | X172: 0 | Y172: FALSE | Z172: 0 | AA172: TRUE
A173: 80 | B173: 7 | C173: 5 | D173: 3 | E173: Drainage repair | F173: 3.843058119 | G173: 0.502571723 | H173: 1.307454565 | I173: 0.6855414241 | J173: 0.7330929577 | K173: 1.468095352 | L173: 0.3344152429 | N173: FALSE | P173: FALSE | Q173: FALSE | R173: FALSE | S173: FALSE | T173: FALSE | U173: FALSE | V173: FALSE | X173: 0 | Y173: FALSE | Z173: 1 | AA173: TRUE
A174: 80 | B174: 7 | C174: 6 | D174: 2 | E174: Drainage clearance | F174: 3.843058119 | G174: 0.502571723 | H174: 1.307454565 | I174: 0.6855414241 | J174: 0.7330929577 | K174: 1.468095352 | L174: 0.3344152429 | N174: FALSE | P174: FALSE | Q174: FALSE | R174: FALSE | S174: FALSE | T174: FALSE | U174: FALSE | V174: FALSE | X174: 0 | Y174: FALSE | Z174: 1 | AA174: TRUE
A175: 80 | B175: 7 | C175: 7 | D175: 1 | E175: Vegetation clearance | F175: 3.843058119 | G175: 0.502571723 | H175: 1.307454565 | I175: 0.6855414241 | J175: 0.7330929577 | K175: 1.468095352 | L175: 0.3344152429 | N175: FALSE | P175: FALSE | Q175: FALSE | R175: FALSE | S175: FALSE | T175: FALSE | U175: FALSE | V175: FALSE | X175: 0 | Y175: FALSE | Z175: 0 | AA175: TRUE
A176: 80 | B176: 7 | C176: 8 | D176: 0 | E176: [not used] | F176: 3.843058119 | G176: 0.502571723 | H176: 1.307454565 | I176: 0.6855414241 | J176: 0.7330929577 | K176: 1.468095352 | L176: 0.3344152429 | N176: FALSE | P176: FALSE | Q176: FALSE | R176: FALSE | S176: FALSE | T176: FALSE | U176: FALSE | V176: FALSE | X176: 0 | Y176: FALSE | Z176: 0 | AA176: TRUE
A177: 80 | B177: 7 | C177: 9 | D177: 0 | E177: [not used] | F177: 3.843058119 | G177: 0.502571723 | H177: 1.307454565 | I177: 0.6855414241 | J177: 0.7330929577 | K177: 1.468095352 | L177: 0.3344152429 | N177: FALSE | P177: FALSE | Q177: FALSE | R177: FALSE | S177: FALSE | T177: FALSE | U177: FALSE | V177: FALSE | X177: 0 | Y177: FALSE | Z177: 0 | AA177: TRUE
A178: 80 | B178: 7 | C178: 10 | D178: 0 | E178: [not used] | F178: 3.843058119 | G178: 0.502571723 | H178: 1.307454565 | I178: 0.6855414241 | J178: 0.7330929577 | K178: 1.468095352 | L178: 0.3344152429 | N178: FALSE | P178: FALSE | Q178: FALSE | R178: FALSE | S178: FALSE | T178: FALSE | U178: FALSE | V178: FALSE | X178: 0 | Y178: FALSE | Z178: 0 | AA178: TRUE
A179: 80 | B179: 7 | C179: 11 | D179: 0 | E179: [not used] | F179: 3.843058119 | G179: 0.502571723 | H179: 1.307454565 | I179: 0.6855414241 | J179: 0.7330929577 | K179: 1.468095352 | L179: 0.3344152429 | N179: FALSE | P179: FALSE | Q179: FALSE | R179: FALSE | S179: FALSE | T179: FALSE | U179: FALSE | V179: FALSE | X179: 0 | Y179: FALSE | Z179: 0 | AA179: TRUE
A180: 80 | B180: 7 | C180: 12 | D180: 0 | E180: [not used] | F180: 3.843058119 | G180: 0.502571723 | H180: 1.307454565 | I180: 0.6855414241 | J180: 0.7330929577 | K180: 1.468095352 | L180: 0.3344152429 | N180: FALSE | P180: FALSE | Q180: FALSE | R180: FALSE | S180: FALSE | T180: FALSE | U180: FALSE | V180: FALSE | X180: 0 | Y180: FALSE | Z180: 0 | AA180: TRUE
A181: 80 | B181: 7 | C181: 13 | D181: 0 | E181: [not used] | F181: 3.843058119 | G181: 0.502571723 | H181: 1.307454565 | I181: 0.6855414241 | J181: 0.7330929577 | K181: 1.468095352 | L181: 0.3344152429 | N181: FALSE | P181: FALSE | Q181: FALSE | R181: FALSE | S181: FALSE | T181: FALSE | U181: FALSE | V181: FALSE | X181: 0 | Y181: FALSE | Z181: 0 | AA181: TRUE
A182: 80 | B182: 7 | C182: 14 | D182: 0 | E182: [not used] | F182: 3.843058119 | G182: 0.502571723 | H182: 1.307454565 | I182: 0.6855414241 | J182: 0.7330929577 | K182: 1.468095352 | L182: 0.3344152429 | N182: FALSE | P182: FALSE | Q182: FALSE | R182: FALSE | S182: FALSE | T182: FALSE | U182: FALSE | V182: FALSE | X182: 0 | Y182: FALSE | Z182: 0 | AA182: TRUE
A183: 80 | B183: 7 | C183: 15 | D183: 0 | E183: [not used] | F183: 3.843058119 | G183: 0.502571723 | H183: 1.307454565 | I183: 0.6855414241 | J183: 0.7330929577 | K183: 1.468095352 | L183: 0.3344152429 | N183: FALSE | P183: FALSE | Q183: FALSE | R183: FALSE | S183: FALSE | T183: FALSE | U183: FALSE | V183: FALSE | X183: 0 | Y183: FALSE | Z183: 0 | AA183: TRUE
B184: =B169+1 -> 8 | C184: 6 | E184: =E168 -> Unconstrained deterioration | F184: 4.530541694 | G184: =MAX(G$8,MIN(G$9,G183+INDEX(OFFSET(DetRates!N$17:N$23,0,DetRates!$D$10),MATCH(G183,DetRates!G$17:G$23,1),1))) -> 0.5743676834 | H184: =MAX(H$8,MIN(H$9,H183+INDEX(OFFSET(DetRates!O$17:O$23,0,DetRates!$D$10),MATCH(H183,DetRates!H$17:H$23,1),1))) -> 1.336465938 | I184: =MAX(I$8,MIN(I$9,I183+INDEX(OFFSET(DetRates!P$17:P$23,0,DetRates!$D$10),MATCH(I183,DetRates!I$17:I$23,1),1))) -> 0.958079484 | J184: =MAX(J$8,MIN(J$9,J183+INDEX(OFFSET(DetRates!Q$17:Q$23,0,DetRates!$D$10),MATCH(J183,DetRates!J$17:J$23,1),1))) -> 0.8496394366 | K184: =MAX(K$8,MIN(K$9,K183+INDEX(OFFSET(DetRates!R$17:R$23,0,DetRates!$D$10),MATCH(K183,DetRates!K$17:K$23,1),1))) -> 1.853807423 | L184: =MAX(L$8,MIN(L$9,L183+INDEX(OFFSET(DetRates!S$17:S$23,0,DetRates!$D$10),MATCH(L183,DetRates!L$17:L$23,1),1))) -> 0.382188849
A185: =(B185-2)*A$71 -> 96 | B185: =B169+1 -> 8 | C185: 1 | D185: 7 | E185: Major earthworks | F185: 4.530541694 | G185: =IF($N185,MAX(G$8,MIN(G$9,CHOOSE(OFFSET(G$15,$C185,0),G184,OFFSET(G$32,$C185,0),G184+OFFSET(G$50,$C185,0)))),G184) -> 0.5743676834 | H185: =IF($N185,MAX(H$8,MIN(H$9,CHOOSE(OFFSET(H$15,$C185,0),H184,OFFSET(H$32,$C185,0),H184+OFFSET(H$50,$C185,0)))),H184) -> 1.336465938 | I185: =IF($N185,MAX(I$8,MIN(I$9,CHOOSE(OFFSET(I$15,$C185,0),I184,OFFSET(I$32,$C185,0),I184+OFFSET(I$50,$C185,0)))),I184) -> 0.958079484 | J185: =IF($N185,MAX(J$8,MIN(J$9,CHOOSE(OFFSET(J$15,$C185,0),J184,OFFSET(J$32,$C185,0),J184+OFFSET(J$50,$C185,0)))),J184) -> 0.8496394366 | K185: =IF($N185,MAX(K$8,MIN(K$9,CHOOSE(OFFSET(K$15,$C185,0),K184,OFFSET(K$32,$C185,0),K184+OFFSET(K$50,$C185,0)))),K184) -> 1.853807423 | L185: =IF($N185,MAX(L$8,MIN(L$9,CHOOSE(OFFSET(L$15,$C185,0),L184,OFFSET(L$32,$C185,0),L184+OFFSET(L$50,$C185,0)))),L184) -> 0.382188849 | N185: =AND(OR(P185:V185),AA185) -> FALSE | P185: =CHOOSE(OFFSET(P$15,$C185,0),FALSE,F184>=OFFSET(P$32,$C185,0),(OFFSET($W$50,$C185,$B185))) -> FALSE | Q185: =CHOOSE(OFFSET(Q$15,$C185,0),FALSE,G184>=OFFSET(Q$32,$C185,0),(OFFSET($W$50,$C185,$B185))) -> FALSE | R185: =CHOOSE(OFFSET(R$15,$C185,0),FALSE,H184>=OFFSET(R$32,$C185,0),(OFFSET($W$50,$C185,$B185))) -> FALSE | S185: =CHOOSE(OFFSET(S$15,$C185,0),FALSE,I184>=OFFSET(S$32,$C185,0),(OFFSET($W$50,$C185,$B185))) -> FALSE | T185: =CHOOSE(OFFSET(T$15,$C185,0),FALSE,J184>=OFFSET(T$32,$C185,0),(OFFSET($W$50,$C185,$B185))) -> FALSE | U185: =CHOOSE(OFFSET(U$15,$C185,0),FALSE,K184>=OFFSET(U$32,$C185,0),(OFFSET($W$50,$C185,$B185))) -> FALSE | V185: =CHOOSE(OFFSET(V$15,$C185,0),FALSE,L184>=OFFSET(V$32,$C185,0),(OFFSET($W$50,$C185,$B185))) -> FALSE | X185: =0+N185 -> 0 | Y185: =MMULT(OFFSET($AB$15:$AP$15,$C185,0),OFFSET($X$73:$X$87,$A185,0))>0 -> FALSE | Z185: =IF(Y185,0,Z169+X169) -> 0 | AA185: =Z185<OFFSET(Z$15,C185,0) -> TRUE
A186: 96 | B186: 8 | C186: =C170 -> 2 | D186: 6 | E186: Minor earthworks | F186: 4.530541694 | G186: 0.5743676834 | H186: 1.336465938 | I186: 0.958079484 | J186: 0.8496394366 | K186: 1.853807423 | L186: 0.382188849 | N186: FALSE | P186: FALSE | Q186: FALSE | R186: FALSE | S186: FALSE | T186: FALSE | U186: FALSE | V186: FALSE | X186: 0 | Y186: =MMULT(OFFSET($AB$15:$AP$15,$C186,0),OFFSET($X$73:$X$87,$A186,0))>0 -> FALSE | Z186: 0 | AA186: TRUE
A187: 96 | B187: 8 | C187: 3 | D187: 5 | E187: Burrow filling | F187: 2.676734271 | G187: 0.5743676834 | H187: 1.336465938 | I187: 0.958079484 | J187: 0.8496394366 | K187: 0 | L187: 0.382188849 | N187: TRUE | P187: FALSE | Q187: FALSE | R187: FALSE | S187: FALSE | T187: FALSE | U187: TRUE | V187: FALSE | X187: 1 | Y187: FALSE | Z187: 1 | AA187: TRUE
A188: 96 | B188: 8 | C188: 4 | D188: 4 | E188: Drainage replacement | F188: 2.676734271 | G188: 0.5743676834 | H188: 1.336465938 | I188: 0.958079484 | J188: 0.8496394366 | K188: 0 | L188: 0.382188849 | N188: FALSE | P188: FALSE | Q188: FALSE | R188: FALSE | S188: FALSE | T188: FALSE | U188: FALSE | V188: FALSE | X188: 0 | Y188: FALSE | Z188: 0 | AA188: TRUE
A189: 96 | B189: 8 | C189: 5 | D189: 3 | E189: Drainage repair | F189: 2.676734271 | G189: 0.5743676834 | H189: 1.336465938 | I189: 0.958079484 | J189: 0.8496394366 | K189: 0 | L189: 0.382188849 | N189: FALSE | P189: FALSE | Q189: FALSE | R189: FALSE | S189: FALSE | T189: FALSE | U189: FALSE | V189: FALSE | X189: 0 | Y189: FALSE | Z189: 1 | AA189: TRUE
A190: 96 | B190: 8 | C190: 6 | D190: 2 | E190: Drainage clearance | F190: 2.676734271 | G190: 0.5743676834 | H190: 1.336465938 | I190: 0.958079484 | J190: 0.8496394366 | K190: 0 | L190: 0.382188849 | N190: FALSE | P190: FALSE | Q190: FALSE | R190: FALSE | S190: FALSE | T190: FALSE | U190: FALSE | V190: FALSE | X190: 0 | Y190: FALSE | Z190: 1 | AA190: TRUE
A191: 96 | B191: 8 | C191: 7 | D191: 1 | E191: Vegetation clearance | F191: 2.676734271 | G191: 0.5743676834 | H191: 1.336465938 | I191: 0.958079484 | J191: 0.8496394366 | K191: 0 | L191: 0.382188849 | N191: FALSE | P191: FALSE | Q191: FALSE | R191: FALSE | S191: FALSE | T191: FALSE | U191: FALSE | V191: FALSE | X191: 0 | Y191: FALSE | Z191: 0 | AA191: TRUE
A192: 96 | B192: 8 | C192: 8 | D192: 0 | E192: [not used] | F192: 2.676734271 | G192: 0.5743676834 | H192: 1.336465938 | I192: 0.958079484 | J192: 0.8496394366 | K192: 0 | L192: 0.382188849 | N192: FALSE | P192: FALSE | Q192: FALSE | R192: FALSE | S192: FALSE | T192: FALSE | U192: FALSE | V192: FALSE | X192: 0 | Y192: FALSE | Z192: 0 | AA192: TRUE
A193: 96 | B193: 8 | C193: 9 | D193: 0 | E193: [not used] | F193: 2.676734271 | G193: 0.5743676834 | H193: 1.336465938 | I193: 0.958079484 | J193: 0.8496394366 | K193: 0 | L193: 0.382188849 | N193: FALSE | P193: FALSE | Q193: FALSE | R193: FALSE | S193: FALSE | T193: FALSE | U193: FALSE | V193: FALSE | X193: 0 | Y193: FALSE | Z193: 0 | AA193: TRUE
A194: 96 | B194: 8 | C194: 10 | D194: 0 | E194: [not used] | F194: 2.676734271 | G194: 0.5743676834 | H194: 1.336465938 | I194: 0.958079484 | J194: 0.8496394366 | K194: 0 | L194: 0.382188849 | N194: FALSE | P194: FALSE | Q194: FALSE | R194: FALSE | S194: FALSE | T194: FALSE | U194: FALSE | V194: FALSE | X194: 0 | Y194: FALSE | Z194: 0 | AA194: TRUE
A195: 96 | B195: 8 | C195: 11 | D195: 0 | E195: [not used] | F195: 2.676734271 | G195: 0.5743676834 | H195: 1.336465938 | I195: 0.958079484 | J195: 0.8496394366 | K195: 0 | L195: 0.382188849 | N195: FALSE | P195: FALSE | Q195: FALSE | R195: FALSE | S195: FALSE | T195: FALSE | U195: FALSE | V195: FALSE | X195: 0 | Y195: FALSE | Z195: 0 | AA195: TRUE
A196: 96 | B196: 8 | C196: 12 | D196: 0 | E196: [not used] | F196: 2.676734271 | G196: 0.5743676834 | H196: 1.336465938 | I196: 0.958079484 | J196: 0.8496394366 | K196: 0 | L196: 0.382188849 | N196: FALSE | P196: FALSE | Q196: FALSE | R196: FALSE | S196: FALSE | T196: FALSE | U196: FALSE | V196: FALSE | X196: 0 | Y196: FALSE | Z196: 0 | AA196: TRUE
A197: 96 | B197: 8 | C197: 13 | D197: 0 | E197: [not used] | F197: 2.676734271 | G197: 0.5743676834 | H197: 1.336465938 | I197: 0.958079484 | J197: 0.8496394366 | K197: 0 | L197: 0.382188849 | N197: FALSE | P197: FALSE | Q197: FALSE | R197: FALSE | S197: FALSE | T197: FALSE | U197: FALSE | V197: FALSE | X197: 0 | Y197: FALSE | Z197: 0 | AA197: TRUE
A198: 96 | B198: 8 | C198: 14 | D198: 0 | E198: [not used] | F198: 2.676734271 | G198: 0.5743676834 | H198: 1.336465938 | I198: 0.958079484 | J198: 0.8496394366 | K198: 0 | L198: 0.382188849 | N198: FALSE | P198: FALSE | Q198: FALSE | R198: FALSE | S198: FALSE | T198: FALSE | U198: FALSE | V198: FALSE | X198: 0 | Y198: FALSE | Z198: 0 | AA198: TRUE
A199: 96 | B199: 8 | C199: 15 | D199: 0 | E199: [not used] | F199: 2.676734271 | G199: 0.5743676834 | H199: 1.336465938 | I199: 0.958079484 | J199: 0.8496394366 | K199: 0 | L199: 0.382188849 | N199: FALSE | P199: FALSE | Q199: FALSE | R199: FALSE | S199: FALSE | T199: FALSE | U199: FALSE | V199: FALSE | X199: 0 | Y199: FALSE | Z199: 0 | AA199: TRUE
B200: =B185+1 -> 9 | C200: 7 | E200: =E184 -> Unconstrained deterioration | F200: 3.515422427 | G200: =MAX(G$8,MIN(G$9,G199+INDEX(OFFSET(DetRates!N$17:N$23,0,DetRates!$D$10),MATCH(G199,DetRates!G$17:G$23,1),1))) -> 0.6461636439 | H200: =MAX(H$8,MIN(H$9,H199+INDEX(OFFSET(DetRates!O$17:O$23,0,DetRates!$D$10),MATCH(H199,DetRates!H$17:H$23,1),1))) -> 1.365477311 | I200: =MAX(I$8,MIN(I$9,I199+INDEX(OFFSET(DetRates!P$17:P$23,0,DetRates!$D$10),MATCH(I199,DetRates!I$17:I$23,1),1))) -> 1.230617544 | J200: =MAX(J$8,MIN(J$9,J199+INDEX(OFFSET(DetRates!Q$17:Q$23,0,DetRates!$D$10),MATCH(J199,DetRates!J$17:J$23,1),1))) -> 0.9661859155 | K200: =MAX(K$8,MIN(K$9,K199+INDEX(OFFSET(DetRates!R$17:R$23,0,DetRates!$D$10),MATCH(K199,DetRates!K$17:K$23,1),1))) -> 0.4893651175 | L200: =MAX(L$8,MIN(L$9,L199+INDEX(OFFSET(DetRates!S$17:S$23,0,DetRates!$D$10),MATCH(L199,DetRates!L$17:L$23,1),1))) -> 0.4299624552
A201: =(B201-2)*A$71 -> 112 | B201: =B185+1 -> 9 | C201: 1 | D201: 7 | E201: Major earthworks | F201: 3.515422427 | G201: =IF($N201,MAX(G$8,MIN(G$9,CHOOSE(OFFSET(G$15,$C201,0),G200,OFFSET(G$32,$C201,0),G200+OFFSET(G$50,$C201,0)))),G200) -> 0.6461636439 | H201: =IF($N201,MAX(H$8,MIN(H$9,CHOOSE(OFFSET(H$15,$C201,0),H200,OFFSET(H$32,$C201,0),H200+OFFSET(H$50,$C201,0)))),H200) -> 1.365477311 | I201: =IF($N201,MAX(I$8,MIN(I$9,CHOOSE(OFFSET(I$15,$C201,0),I200,OFFSET(I$32,$C201,0),I200+OFFSET(I$50,$C201,0)))),I200) -> 1.230617544 | J201: =IF($N201,MAX(J$8,MIN(J$9,CHOOSE(OFFSET(J$15,$C201,0),J200,OFFSET(J$32,$C201,0),J200+OFFSET(J$50,$C201,0)))),J200) -> 0.9661859155 | K201: =IF($N201,MAX(K$8,MIN(K$9,CHOOSE(OFFSET(K$15,$C201,0),K200,OFFSET(K$32,$C201,0),K200+OFFSET(K$50,$C201,0)))),K200) -> 0.4893651175 | L201: =IF($N201,MAX(L$8,MIN(L$9,CHOOSE(OFFSET(L$15,$C201,0),L200,OFFSET(L$32,$C201,0),L200+OFFSET(L$50,$C201,0)))),L200) -> 0.4299624552 | N201: =AND(OR(P201:V201),AA201) -> FALSE | P201: =CHOOSE(OFFSET(P$15,$C201,0),FALSE,F200>=OFFSET(P$32,$C201,0),(OFFSET($W$50,$C201,$B201))) -> FALSE | Q201: =CHOOSE(OFFSET(Q$15,$C201,0),FALSE,G200>=OFFSET(Q$32,$C201,0),(OFFSET($W$50,$C201,$B201))) -> FALSE | R201: =CHOOSE(OFFSET(R$15,$C201,0),FALSE,H200>=OFFSET(R$32,$C201,0),(OFFSET($W$50,$C201,$B201))) -> FALSE | S201: =CHOOSE(OFFSET(S$15,$C201,0),FALSE,I200>=OFFSET(S$32,$C201,0),(OFFSET($W$50,$C201,$B201))) -> FALSE | T201: =CHOOSE(OFFSET(T$15,$C201,0),FALSE,J200>=OFFSET(T$32,$C201,0),(OFFSET($W$50,$C201,$B201))) -> FALSE | U201: =CHOOSE(OFFSET(U$15,$C201,0),FALSE,K200>=OFFSET(U$32,$C201,0),(OFFSET($W$50,$C201,$B201))) -> FALSE | V201: =CHOOSE(OFFSET(V$15,$C201,0),FALSE,L200>=OFFSET(V$32,$C201,0),(OFFSET($W$50,$C201,$B201))) -> FALSE | X201: =0+N201 -> 0 | Y201: =MMULT(OFFSET($AB$15:$AP$15,$C201,0),OFFSET($X$73:$X$87,$A201,0))>0 -> FALSE | Z201: =IF(Y201,0,Z185+X185) -> 0 | AA201: =Z201<OFFSET(Z$15,C201,0) -> TRUE
A202: 112 | B202: 9 | C202: =C186 -> 2 | D202: 6 | E202: Minor earthworks | F202: 3.515422427 | G202: 0.6461636439 | H202: 1.365477311 | I202: 1.230617544 | J202: 0.9661859155 | K202: 0.4893651175 | L202: 0.4299624552 | N202: FALSE | P202: FALSE | Q202: FALSE | R202: FALSE | S202: FALSE | T202: FALSE | U202: FALSE | V202: FALSE | X202: 0 | Y202: =MMULT(OFFSET($AB$15:$AP$15,$C202,0),OFFSET($X$73:$X$87,$A202,0))>0 -> FALSE | Z202: 0 | AA202: TRUE
A203: 112 | B203: 9 | C203: 3 | D203: 5 | E203: Burrow filling | F203: 3.515422427 | G203: 0.6461636439 | H203: 1.365477311 | I203: 1.230617544 | J203: 0.9661859155 | K203: 0.4893651175 | L203: 0.4299624552 | N203: FALSE | P203: FALSE | Q203: FALSE | R203: FALSE | S203: FALSE | T203: FALSE | U203: FALSE | V203: FALSE | X203: 0 | Y203: FALSE | Z203: 2 | AA203: TRUE
A204: 112 | B204: 9 | C204: 4 | D204: 4 | E204: Drainage replacement | F204: 3.515422427 | G204: 0.6461636439 | H204: 1.365477311 | I204: 1.230617544 | J204: 0.9661859155 | K204: 0.4893651175 | L204: 0.4299624552 | N204: FALSE | P204: FALSE | Q204: FALSE | R204: FALSE | S204: FALSE | T204: FALSE | U204: FALSE | V204: FALSE | X204: 0 | Y204: FALSE | Z204: 0 | AA204: TRUE
A205: 112 | B205: 9 | C205: 5 | D205: 3 | E205: Drainage repair | F205: 3.515422427 | G205: 0.6461636439 | H205: 1.365477311 | I205: 1.230617544 | J205: 0.9661859155 | K205: 0.4893651175 | L205: 0.4299624552 | N205: FALSE | P205: FALSE | Q205: FALSE | R205: FALSE | S205: FALSE | T205: FALSE | U205: FALSE | V205: FALSE | X205: 0 | Y205: FALSE | Z205: 1 | AA205: TRUE
A206: 112 | B206: 9 | C206: 6 | D206: 2 | E206: Drainage clearance | F206: 3.515422427 | G206: 0.6461636439 | H206: 1.365477311 | I206: 1.230617544 | J206: 0.9661859155 | K206: 0.4893651175 | L206: 0.4299624552 | N206: FALSE | P206: FALSE | Q206: FALSE | R206: FALSE | S206: FALSE | T206: FALSE | U206: FALSE | V206: FALSE | X206: 0 | Y206: FALSE | Z206: 1 | AA206: TRUE
... 201 more rows

Sheet Results
A1: MAINLINE | C1: =Flowchart!C1 -> Soil Cutting Model
B2: Summary of Projected Values
C3: This sheet shows the collation of results from the Projection with additional cost and impact evaluation.
C4: Data from here is carried to the output sheets
C5: There is no user input on this sheet.
D6: Period | E6: 5 | F6: years
B7: Intervention schedule | D7: Years: | E7: =TEXT(1,"00") &"-"& TEXT($E$6,"00") -> 01-05 | F7: =TEXT(LEFT(E7,2)+$E$6,"00") &"-"& TEXT(RIGHT(E7,2)+$E$6,"00") -> 06-10 | G7: 11-15 | H7: 16-20 | I7: 21-25 | J7: 26-30 | K7: 31-35 | L7: 36-40 | M7: 41-45 | N7: 46-50 | O7: 51-55 | P7: 56-60 | Q7: 61-65 | R7: 66-70 | S7: 71-75 | T7: 76-80 | U7: 81-85 | V7: 86-90 | W7: 91-95 | X7: 96-100 | Y7: 101-05
D8: Period: | E8: 1 | F8: =E8+1 -> 2 | G8: 3 | H8: 4 | I8: 5 | J8: 6 | K8: 7 | L8: 8 | M8: 9 | N8: 10 | O8: 11 | P8: 12 | Q8: 13 | R8: 14 | S8: 15 | T8: 16 | U8: 17 | V8: 18 | W8: 19 | X8: 20 | Y8: 21
D9: Row offset: | E9: =Projection!$A$71*(E8-1) -> 0 | F9: =Projection!$A$71*(F8-1) -> 16 | G9: =Projection!$A$71*(G8-1) -> 32 | H9: =Projection!$A$71*(H8-1) -> 48 | I9: =Projection!$A$71*(I8-1) -> 64 | J9: =Projection!$A$71*(J8-1) -> 80 | K9: =Projection!$A$71*(K8-1) -> 96 | L9: =Projection!$A$71*(L8-1) -> 112 | M9: =Projection!$A$71*(M8-1) -> 128 | N9: =Projection!$A$71*(N8-1) -> 144 | O9: =Projection!$A$71*(O8-1) -> 160 | P9: =Projection!$A$71*(P8-1) -> 176 | Q9: =Projection!$A$71*(Q8-1) -> 192 | R9: =Projection!$A$71*(R8-1) -> 208 | S9: =Projection!$A$71*(S8-1) -> 224 | T9: =Projection!$A$71*(T8-1) -> 240 | U9: =Projection!$A$71*(U8-1) -> 256 | V9: =Projection!$A$71*(V8-1) -> 272 | W9: =Projection!$A$71*(W8-1) -> 288 | X9: =Projection!$A$71*(X8-1) -> 304 | Y9: =Projection!$A$71*(Y8-1) -> 320
A10: Seq | B10: Intv. | C10: Name | AA10: Total
A11: =IntvTriggers!C16 -> 7 | B11: 1 | C11: =IF(IntvTriggers!D16=0,"[unused]",IntvTriggers!D16) -> Vegetation clearance | E11: =OFFSET(Projection!$N$72,E$9+$A11,0)*1 -> 0 | F11: =OFFSET(Projection!$N$72,F$9+$A11,0)*1 -> 0 | G11: =OFFSET(Projection!$N$72,G$9+$A11,0)*1 -> 0 | H11: =OFFSET(Projection!$N$72,H$9+$A11,0)*1 -> 0 | I11: =OFFSET(Projection!$N$72,I$9+$A11,0)*1 -> 0 | J11: =OFFSET(Projection!$N$72,J$9+$A11,0)*1 -> 0 | K11: =OFFSET(Projection!$N$72,K$9+$A11,0)*1 -> 0 | L11: =OFFSET(Projection!$N$72,L$9+$A11,0)*1 -> 0 | M11: =OFFSET(Projection!$N$72,M$9+$A11,0)*1 -> 0 | N11: =OFFSET(Projection!$N$72,N$9+$A11,0)*1 -> 1 | O11: =OFFSET(Projection!$N$72,O$9+$A11,0)*1 -> 0 | P11: =OFFSET(Projection!$N$72,P$9+$A11,0)*1 -> 0 | Q11: =OFFSET(Projection!$N$72,Q$9+$A11,0)*1 -> 0 | R11: =OFFSET(Projection!$N$72,R$9+$A11,0)*1 -> 0 | S11: =OFFSET(Projection!$N$72,S$9+$A11,0)*1 -> 0 | T11: =OFFSET(Projection!$N$72,T$9+$A11,0)*1 -> 0 | U11: =OFFSET(Projection!$N$72,U$9+$A11,0)*1 -> 0 | V11: =OFFSET(Projection!$N$72,V$9+$A11,0)*1 -> 0 | W11: =OFFSET(Projection!$N$72,W$9+$A11,0)*1 -> 0 | X11: =OFFSET(Projection!$N$72,X$9+$A11,0)*1 -> 1 | Y11: =OFFSET(Projection!$N$72,Y$9+$A11,0)*1 -> 0 | AA11: =SUM(E11:Y11) -> 2
A12: =IntvTriggers!C17 -> 6 | B12: 2 | C12: =IF(IntvTriggers!D17=0,"[unused]",IntvTriggers!D17) -> Drainage clearance | E12: =OFFSET(Projection!$N$72,E$9+$A12,0)*1 -> 0 | F12: =OFFSET(Projection!$N$72,F$9+$A12,0)*1 -> 0 | G12: =OFFSET(Projection!$N$72,G$9+$A12,0)*1 -> 0 | H12: =OFFSET(Projection!$N$72,H$9+$A12,0)*1 -> 0 | I12: =OFFSET(Projection!$N$72,I$9+$A12,0)*1 -> 1 | J12: =OFFSET(Projection!$N$72,J$9+$A12,0)*1 -> 0 | K12: =OFFSET(Projection!$N$72,K$9+$A12,0)*1 -> 0 | L12: =OFFSET(Projection!$N$72,L$9+$A12,0)*1 -> 0 | M12: =OFFSET(Projection!$N$72,M$9+$A12,0)*1 -> 0 | N12: =OFFSET(Projection!$N$72,N$9+$A12,0)*1 -> 1 | O12: =OFFSET(Projection!$N$72,O$9+$A12,0)*1 -> 0 | P12: =OFFSET(Projection!$N$72,P$9+$A12,0)*1 -> 0 | Q12: =OFFSET(Projection!$N$72,Q$9+$A12,0)*1 -> 0 | R12: =OFFSET(Projection!$N$72,R$9+$A12,0)*1 -> 0 | S12: =OFFSET(Projection!$N$72,S$9+$A12,0)*1 -> 1 | T12: =OFFSET(Projection!$N$72,T$9+$A12,0)*1 -> 0 | U12: =OFFSET(Projection!$N$72,U$9+$A12,0)*1 -> 0 | V12: =OFFSET(Projection!$N$72,V$9+$A12,0)*1 -> 0 | W12: =OFFSET(Projection!$N$72,W$9+$A12,0)*1 -> 0 | X12: =OFFSET(Projection!$N$72,X$9+$A12,0)*1 -> 1 | Y12: =OFFSET(Projection!$N$72,Y$9+$A12,0)*1 -> 0 | AA12: =SUM(E12:Y12) -> 4
A13: =IntvTriggers!C18 -> 5 | B13: 3 | C13: =IF(IntvTriggers!D18=0,"[unused]",IntvTriggers!D18) -> Drainage repair | E13: =OFFSET(Projection!$N$72,E$9+$A13,0)*1 -> 0 | F13: =OFFSET(Projection!$N$72,F$9+$A13,0)*1 -> 0 | G13: =OFFSET(Projection!$N$72,G$9+$A13,0)*1 -> 0 | H13: =OFFSET(Projection!$N$72,H$9+$A13,0)*1 -> 0 | I13: =OFFSET(Projection!$N$72,I$9+$A13,0)*1 -> 1 | J13: =OFFSET(Projection!$N$72,J$9+$A13,0)*1 -> 0 | K13: =OFFSET(Projection!$N$72,K$9+$A13,0)*1 -> 0 | L13: =OFFSET(Projection!$N$72,L$9+$A13,0)*1 -> 0 | M13: =OFFSET(Projection!$N$72,M$9+$A13,0)*1 -> 0 | N13: =OFFSET(Projection!$N$72,N$9+$A13,0)*1 -> 1 | O13: =OFFSET(Projection!$N$72,O$9+$A13,0)*1 -> 0 | P13: =OFFSET(Projection!$N$72,P$9+$A13,0)*1 -> 0 | Q13: =OFFSET(Projection!$N$72,Q$9+$A13,0)*1 -> 0 | R13: =OFFSET(Projection!$N$72,R$9+$A13,0)*1 -> 1 | S13: =OFFSET(Projection!$N$72,S$9+$A13,0)*1 -> 0 | T13: =OFFSET(Projection!$N$72,T$9+$A13,0)*1 -> 0 | U13: =OFFSET(Projection!$N$72,U$9+$A13,0)*1 -> 0 | V13: =OFFSET(Projection!$N$72,V$9+$A13,0)*1 -> 0 | W13: =OFFSET(Projection!$N$72,W$9+$A13,0)*1 -> 1 | X13: =OFFSET(Projection!$N$72,X$9+$A13,0)*1 -> 0 | Y13: =OFFSET(Projection!$N$72,Y$9+$A13,0)*1 -> 0 | AA13: 4
A14: =IntvTriggers!C19 -> 4 | B14: 4 | C14: =IF(IntvTriggers!D19=0,"[unused]",IntvTriggers!D19) -> Drainage replacement | E14: =OFFSET(Projection!$N$72,E$9+$A14,0)*1 -> 0 | F14: =OFFSET(Projection!$N$72,F$9+$A14,0)*1 -> 0 | G14: =OFFSET(Projection!$N$72,G$9+$A14,0)*1 -> 0 | H14: =OFFSET(Projection!$N$72,H$9+$A14,0)*1 -> 0 | I14: =OFFSET(Projection!$N$72,I$9+$A14,0)*1 -> 0 | J14: =OFFSET(Projection!$N$72,J$9+$A14,0)*1 -> 0 | K14: =OFFSET(Projection!$N$72,K$9+$A14,0)*1 -> 0 | L14: =OFFSET(Projection!$N$72,L$9+$A14,0)*1 -> 0 | M14: =OFFSET(Projection!$N$72,M$9+$A14,0)*1 -> 0 | N14: =OFFSET(Projection!$N$72,N$9+$A14,0)*1 -> 0 | O14: =OFFSET(Projection!$N$72,O$9+$A14,0)*1 -> 0 | P14: =OFFSET(Projection!$N$72,P$9+$A14,0)*1 -> 0 | Q14: =OFFSET(Projection!$N$72,Q$9+$A14,0)*1 -> 0 | R14: =OFFSET(Projection!$N$72,R$9+$A14,0)*1 -> 0 | S14: =OFFSET(Projection!$N$72,S$9+$A14,0)*1 -> 0 | T14: =OFFSET(Projection!$N$72,T$9+$A14,0)*1 -> 0 | U14: =OFFSET(Projection!$N$72,U$9+$A14,0)*1 -> 0 | V14: =OFFSET(Projection!$N$72,V$9+$A14,0)*1 -> 0 | W14: =OFFSET(Projection!$N$72,W$9+$A14,0)*1 -> 0 | X14: =OFFSET(Projection!$N$72,X$9+$A14,0)*1 -> 0 | Y14: =OFFSET(Projection!$N$72,Y$9+$A14,0)*1 -> 0 | AA14: 0
A15: =IntvTriggers!C20 -> 3 | B15: 5 | C15: =IF(IntvTriggers!D20=0,"[unused]",IntvTriggers!D20) -> Burrow filling | E15: =OFFSET(Projection!$N$72,E$9+$A15,0)*1 -> 0 | F15: =OFFSET(Projection!$N$72,F$9+$A15,0)*1 -> 0 | G15: =OFFSET(Projection!$N$72,G$9+$A15,0)*1 -> 0 | H15: =OFFSET(Projection!$N$72,H$9+$A15,0)*1 -> 1 | I15: =OFFSET(Projection!$N$72,I$9+$A15,0)*1 -> 0 | J15: =OFFSET(Projection!$N$72,J$9+$A15,0)*1 -> 0 | K15: =OFFSET(Projection!$N$72,K$9+$A15,0)*1 -> 0 | L15: =OFFSET(Projection!$N$72,L$9+$A15,0)*1 -> 1 | M15: =OFFSET(Projection!$N$72,M$9+$A15,0)*1 -> 0 | N15: =OFFSET(Projection!$N$72,N$9+$A15,0)*1 -> 0 | O15: =OFFSET(Projection!$N$72,O$9+$A15,0)*1 -> 0 | P15: =OFFSET(Projection!$N$72,P$9+$A15,0)*1 -> 1 | Q15: =OFFSET(Projection!$N$72,Q$9+$A15,0)*1 -> 0 | R15: =OFFSET(Projection!$N$72,R$9+$A15,0)*1 -> 0 | S15: =OFFSET(Projection!$N$72,S$9+$A15,0)*1 -> 0 | T15: =OFFSET(Projection!$N$72,T$9+$A15,0)*1 -> 1 | U15: =OFFSET(Projection!$N$72,U$9+$A15,0)*1 -> 0 | V15: =OFFSET(Projection!$N$72,V$9+$A15,0)*1 -> 0 | W15: =OFFSET(Projection!$N$72,W$9+$A15,0)*1 -> 0 | X15: =OFFSET(Projection!$N$72,X$9+$A15,0)*1 -> 1 | Y15: =OFFSET(Projection!$N$72,Y$9+$A15,0)*1 -> 0 | AA15: 5
A16: =IntvTriggers!C21 -> 2 | B16: 6 | C16: =IF(IntvTriggers!D21=0,"[unused]",IntvTriggers!D21) -> Minor earthworks | E16: =OFFSET(Projection!$N$72,E$9+$A16,0)*1 -> 0 | F16: =OFFSET(Projection!$N$72,F$9+$A16,0)*1 -> 0 | G16: =OFFSET(Projection!$N$72,G$9+$A16,0)*1 -> 0 | H16: =OFFSET(Projection!$N$72,H$9+$A16,0)*1 -> 0 | I16: =OFFSET(Projection!$N$72,I$9+$A16,0)*1 -> 0 | J16: =OFFSET(Projection!$N$72,J$9+$A16,0)*1 -> 0 | K16: =OFFSET(Projection!$N$72,K$9+$A16,0)*1 -> 0 | L16: =OFFSET(Projection!$N$72,L$9+$A16,0)*1 -> 0 | M16: =OFFSET(Projection!$N$72,M$9+$A16,0)*1 -> 0 | N16: =OFFSET(Projection!$N$72,N$9+$A16,0)*1 -> 0 | O16: =OFFSET(Projection!$N$72,O$9+$A16,0)*1 -> 0 | P16: =OFFSET(Projection!$N$72,P$9+$A16,0)*1 -> 0 | Q16: =OFFSET(Projection!$N$72,Q$9+$A16,0)*1 -> 0 | R16: =OFFSET(Projection!$N$72,R$9+$A16,0)*1 -> 0 | S16: =OFFSET(Projection!$N$72,S$9+$A16,0)*1 -> 0 | T16: =OFFSET(Projection!$N$72,T$9+$A16,0)*1 -> 0 | U16: =OFFSET(Projection!$N$72,U$9+$A16,0)*1 -> 0 | V16: =OFFSET(Projection!$N$72,V$9+$A16,0)*1 -> 0 | W16: =OFFSET(Projection!$N$72,W$9+$A16,0)*1 -> 0 | X16: =OFFSET(Projection!$N$72,X$9+$A16,0)*1 -> 0 | Y16: =OFFSET(Projection!$N$72,Y$9+$A16,0)*1 -> 0 | AA16: 0
A17: =IntvTriggers!C22 -> 1 | B17: 7 | C17: =IF(IntvTriggers!D22=0,"[unused]",IntvTriggers!D22) -> Major earthworks | E17: =OFFSET(Projection!$N$72,E$9+$A17,0)*1 -> 0 | F17: =OFFSET(Projection!$N$72,F$9+$A17,0)*1 -> 0 | G17: =OFFSET(Projection!$N$72,G$9+$A17,0)*1 -> 0 | H17: =OFFSET(Projection!$N$72,H$9+$A17,0)*1 -> 0 | I17: =OFFSET(Projection!$N$72,I$9+$A17,0)*1 -> 0 | J17: =OFFSET(Projection!$N$72,J$9+$A17,0)*1 -> 0 | K17: =OFFSET(Projection!$N$72,K$9+$A17,0)*1 -> 0 | L17: =OFFSET(Projection!$N$72,L$9+$A17,0)*1 -> 0 | M17: =OFFSET(Projection!$N$72,M$9+$A17,0)*1 -> 0 | N17: =OFFSET(Projection!$N$72,N$9+$A17,0)*1 -> 0 | O17: =OFFSET(Projection!$N$72,O$9+$A17,0)*1 -> 0 | P17: =OFFSET(Projection!$N$72,P$9+$A17,0)*1 -> 0 | Q17: =OFFSET(Projection!$N$72,Q$9+$A17,0)*1 -> 0 | R17: =OFFSET(Projection!$N$72,R$9+$A17,0)*1 -> 0 | S17: =OFFSET(Projection!$N$72,S$9+$A17,0)*1 -> 0 | T17: =OFFSET(Projection!$N$72,T$9+$A17,0)*1 -> 0 | U17: =OFFSET(Projection!$N$72,U$9+$A17,0)*1 -> 0 | V17: =OFFSET(Projection!$N$72,V$9+$A17,0)*1 -> 0 | W17: =OFFSET(Projection!$N$72,W$9+$A17,0)*1 -> 0 | X17: =OFFSET(Projection!$N$72,X$9+$A17,0)*1 -> 0 | Y17: =OFFSET(Projection!$N$72,Y$9+$A17,0)*1 -> 0 | AA17: 0
A18: =IntvTriggers!C23 -> 0 | B18: 8 | C18: =IF(IntvTriggers!D23=0,"[unused]",IntvTriggers!D23) -> [unused] | E18: =OFFSET(Projection!$N$72,E$9+$A18,0)*1 -> 0 | F18: =OFFSET(Projection!$N$72,F$9+$A18,0)*1 -> 0 | G18: =OFFSET(Projection!$N$72,G$9+$A18,0)*1 -> 0 | H18: =OFFSET(Projection!$N$72,H$9+$A18,0)*1 -> 0 | I18: =OFFSET(Projection!$N$72,I$9+$A18,0)*1 -> 0 | J18: =OFFSET(Projection!$N$72,J$9+$A18,0)*1 -> 0 | K18: =OFFSET(Projection!$N$72,K$9+$A18,0)*1 -> 0 | L18: =OFFSET(Projection!$N$72,L$9+$A18,0)*1 -> 0 | M18: =OFFSET(Projection!$N$72,M$9+$A18,0)*1 -> 0 | N18: =OFFSET(Projection!$N$72,N$9+$A18,0)*1 -> 0 | O18: =OFFSET(Projection!$N$72,O$9+$A18,0)*1 -> 0 | P18: =OFFSET(Projection!$N$72,P$9+$A18,0)*1 -> 0 | Q18: =OFFSET(Projection!$N$72,Q$9+$A18,0)*1 -> 0 | R18: =OFFSET(Projection!$N$72,R$9+$A18,0)*1 -> 0 | S18: =OFFSET(Projection!$N$72,S$9+$A18,0)*1 -> 0 | T18: =OFFSET(Projection!$N$72,T$9+$A18,0)*1 -> 0 | U18: =OFFSET(Projection!$N$72,U$9+$A18,0)*1 -> 0 | V18: =OFFSET(Projection!$N$72,V$9+$A18,0)*1 -> 0 | W18: =OFFSET(Projection!$N$72,W$9+$A18,0)*1 -> 0 | X18: =OFFSET(Projection!$N$72,X$9+$A18,0)*1 -> 0 | Y18: =OFFSET(Projection!$N$72,Y$9+$A18,0)*1 -> 0 | AA18: 0
